Workbook

Sheet MENU
J1: PM
E2: =CHOOSE(MATCH(Objeto,{"PM","PO"}),"PLANILHA MÚLTIPLA ","PLANILHA ORÇAMENTÁRIA ")& Versao -> PLANILHA MÚLTIPLA v3.0.6 | J2: v3.0.6
O3: 1
O4: 1
J5: Proposto
E6: DADOS DO CONTRATO | G6: NOVIDADES DA VERSÃO | J6: Licitado
J7: PLE
B8: =IF($O$3<>2,"DOCUMENTAÇÃO DA PROPOSTA","PROPOSTA: Para visualizar/preencher esta seção, altere o TIPO DE ORÇAMENTO para 'Proposto'") -> DOCUMENTAÇÃO DA PROPOSTA | J8: BM | L8: LEGENDA:
L9: Cores das células:
C10: =IF(TIPOORCAMENTO<>"Proposto",""," BDI ") -> BDI | E10: =IF(TIPOORCAMENTO<>"Proposto",""," ORÇAMENTO ") -> ORÇAMENTO | G10: =IF(TIPOORCAMENTO<>"Proposto","","MEMÓRIA DE CÁLCULO / PLQ") -> MEMÓRIA DE CÁLCULO / PLQ | N10: Fundo amarelo: células para preencher
C12: =IF(TIPOORCAMENTO<>"Proposto",""," QCI ") -> QCI | E12: =IF(TIPOORCAMENTO<>"Proposto","","CRONOGRAMA FÍSICO-FINANCEIRO") -> CRONOGRAMA FÍSICO-FINANCEIRO | N12: Fundo azul: células para seleção de opções
C14: =IF(TIPOORCAMENTO<>"Proposto","","Obs: Composições e Cotações devem ser preenchidas diretamente no arquivo Referência "&IF(ISBLANK(Import.DataBase),"mm-aaaa",TEXT(Import.DataBase,"mm-aaaa"))&".xlsm.") -> Obs: Composições e Cotações devem ser preenchidas diretamente no arquivo Referência 03-2024.xlsm.
L15: Cores dos botões:
B16: =IF($O$3<>2,"PÓS-LICITADO: Para visualizar/preencher esta seção, altere o TIPO DE ORÇAMENTO para 'Licitado'","RESULTADO DO PROCESSO LICITATÓRIO") -> PÓS-LICITADO: Para visualizar/preencher esta seção, altere o TIPO DE ORÇAMENTO para 'Licitado' | N16: Fundo azul: navegação entre abas
C18: =IF(TIPOORCAMENTO<>"Licitado",""," ORÇAMENTO ") ->  | E18: =IF(TIPOORCAMENTO<>"Licitado",""," QCI ") ->  | G18: =IF(TIPOORCAMENTO<>"Licitado","","CRONOGRAMA FÍSICO-FINANCEIRO") ->  | N18: Fundo laranja: execução de macro
B20: =IF($O$3<>2,"ACOMPANHAMENTO: Para visualizar/preencher esta seção, altere o TIPO DE ORÇAMENTO para 'Licitado'","ACOMPANHAMENTO DO EMPREENDIMENTO") -> ACOMPANHAMENTO: Para visualizar/preencher esta seção, altere o TIPO DE ORÇAMENTO para 'Licitado'
C22: =IF(OR(TIPOORCAMENTO<>"Licitado",ACOMPANHAMENTO<>"PLE"),"","PLAN. DE LEVANT. DE EVENTOS - PLE") ->  | E22: =IF(TIPOORCAMENTO<>"Licitado",""," RRE ") ->  | G22: =IF(OR(TIPOORCAMENTO<>"Licitado",ACOMPANHAMENTO<>"BM"),""," BOLETIM DE MEDIÇÃO - BM ") -> 
E24: =IF(TIPOORCAMENTO<>"Licitado","","OF. DE SOLICITAÇÃO DE DESBLOQUEIO") -> 

Sheet DADOS
E1: A. DOCUMENTAÇÃO DA PROPOSTA | L1: Sub-Itens de Investimento
J2: Itens de Investimento | K2: Unidades habitacionais | L2: =COUNTA(K:K)-1 -> 3 | M2: Equipamentos comunitários | N2: =COUNTA(M:M)-1 -> 6 | O2: Pavimentação | P2: =COUNTA(O:O)-1 -> 6 | Q2: Drenagem | R2: =COUNTA(Q:Q)-1 -> 6 | S2: Abastecimento de água | T2: =COUNTA(S:S)-1 -> 11 | U2: Esgotamento sanitário | V2: =COUNTA(U:U)-1 -> 8 | W2: Energia elétrica e iluminação pública | X2: =COUNTA(W:W)-1 -> 4 | Y2: Coleta e tratamento de resíduos sólidos | Z2: =COUNTA(Y:Y)-1 -> 6 | AA2: Contenção e estabilização de encostas | AB2: =COUNTA(AA:AA)-1 -> 2 | AC2: Regularização fundiária | AD2: =COUNTA(AC:AC)-1 -> 2 | AE2: Aquisição de terreno | AF2: =COUNTA(AE:AE)-1 -> 2 | AG2: Aquisição de equipamentos e insumos | AH2: =COUNTA(AG:AG)-1 -> 1 | AI2: Elaboração de estudos e projetos | AJ2: =COUNTA(AI:AI)-1 -> 1 | AK2: Instrumentos e ações em planejamento e gestão pública | AL2: =COUNTA(AK:AK)-1 -> 1 | AM2: Ações complementares às obras | AN2: =COUNTA(AM:AM)-1 -> 3 | AO2: Gerenciamento | AP2: =COUNTA(AO:AO)-1 -> 1 | AQ2: Trabalho social | AR2: =COUNTA(AQ:AQ)-1 -> 4
E3: Dados do Contrato (Inicial) | J3: Unidades habitacionais | K3: Aquisição | L3: un | M3: Convivência comunitária, assistência social e/ou comunitária | N3: m² | O3: Capeamento de vias | P3: m² | Q3: Obras de microdrenagem | R3: m | S3: Captação subterrânea | T3: m³/s | U3: Ligações domiciliares e/ou intradomiciliares | V3: un | W3: Iluminação pública - luminárias | X3: un | Y3: Acondicionamento | Z3: un | AA3: Estabilização de taludes | AB3: m² | AC3: Desapropriacões/Indenizações | AD3: m² | AE3: Aquisição de terreno | AF3: m² | AG3: Aquisição de equipamentos e insumos | AH3: un | AI3: Elaboração de estudos e projetos | AJ3: un | AK3: Instrumentos e ações em planejamento e gestão pública | AL3: un | AM3: Avaliação pós intervenção | AN3: un | AO3: Gerenciamento | AP3: %CT | AQ3: Projeto de Trabalho Social Preliminar | AR3: nº fam
E4: Fonte de recursos: | F4: (SELECIONAR) | J4: Equipamentos comunitários | K4: Construção | L4: un | M4: Educação e cultura | N4: m² | O4: Recapeamento de vias | P4: m² | Q4: Desassoreamento de cursos de água | R4: m | S4: Captação superficial | T4: m³/s | U4: Rede coletora e/ou condominial | V4: m | W4: Ligações domiciliares | X4: un | Y4: Aterro sanitário e/ou disposição final | Z4: m³ | AA4: Obras complementares a ações de redução de risco e/ou contenções | AB4: m² | AC4: Projeto de Regularização Fundiária | AD4: m² | AE4: Benfeitorias | AF4: m² | AM4: Demolições | AN4: un | AQ4: Projeto de Trabalho Social | AR4: nº fam
E5: Proponente/Tomador: | F5: Município de São Domingos | J5: Pavimentação | K5: Reforma e/ou melhoria | L5: un | M5: Esportes | N5: m² | O5: Obras de artes especiais | P5: m | Q5: Canalização de cursos de água | R5: m | S5: Estação de bombeamento de água bruta | T5: m³/s | U5: Coletor tronco e/ou interceptores | V5: m | W5: Linhas de distribuição - baixa tensão | X5: m | Y5: Erradicação de lixões | Z5: m³ | AM5: Plano de Reassentamento e medidas compensatórias | AN5: un | AQ5: Plano de Desenvolvimento Socioterritorial | AR5: nº fam
E6: Município/UF: | F6: São Domingos | J6: Drenagem | M6: Lazer e turismo | N6: m² | O6: Pavimentação de calçadas | P6: m² | Q6: Recomposição de vegetação ciliar, renaturalização de cursos de água ou restauração de margens | R6: m² | S6: Adução | T6: m | U6: Emissário | V6: m | W6: Linhas de transmissão - alta tensão | X6: m | Y6: Sistema de coleta seletiva tradicional, transporte e/ou equipamentos | Z6: un | AQ6: Plano de Gestão Condominial | AR6: nº fam
E7: Nº da Operação (0000000-00): | J7: Abastecimento de água | M7: Saúde | N7: m² | O7: Pavimentação de vias | P7: m² | Q7: Reservatório de amortecimento de cheias | R7: m³ | S7: Estação de Tratamento de Água (ETA) | T7: m³/s | U7: Estação Elevatória | V7: m³/s | Y7: Tratamento local | Z7: un
E8: Nº do TransfereGOV (000000): | J8: Esgotamento sanitário | M8: Segurança pública | N8: m² | O8: Sinalização | P8: m² | Q8: Estação de Bombeamento | R8: m³/s | S8: Estação de bombeamento de água tratada | T8: m³/s | U8: Estação de Tratamento de Esgoto (ETE) | V8: m³/s | Y8: Usinas de reciclagem | Z8: m²
E9: =IF(F4="FGTS","Valor de Financiamento Contratado (R$):","Valor do Repasse Contratado (R$):") -> Valor do Repasse Contratado (R$): | J9: Energia elétrica e iluminação pública | S9: Linha de recalque | T9: m | U9: Sistema simplificado de tratamento | V9: m³/s
E10: Valor de Contrapartida Contratada (R$): | J10: Coleta e tratamento de resíduos sólidos | S10: Reservação | T10: m³ | U10: Unidades sanitárias | V10: un
E11: % mínimo de Contrapartida: | J11: Contenção e estabilização de encostas | S11: Rede de distribuição | T11: m
E12: R$ mínimo de Contrapartida (se houver): | J12: Regularização fundiária | S12: Ligações domiciliares e/ou intradomiciliares | T12: un
E13: % máximo de Contrapartida: | J13: Aquisição de terreno | S13: Sistema simplificado de abastecimento | T13: m
J14: Aquisição de equipamentos e insumos
E15: Dados do Empreendimento e Orçamento | J15: Elaboração de estudos e projetos
E16: Nome/apelido: | F16: Pavimentação asfáltica - Linha Imigra | J16: Instrumentos e ações em planejamento e gestão pública
E17: Descrição do Objeto do Lote / CTEF: | F17: Pavimentação asfáltica - Linha Imigra | J17: Ações complementares às obras
E18: Regime previdenciário previsto para a obra: | F18: NÃO DESONERADO | J18: Gerenciamento
E19: Data base do Orçamento: | F19: 2024-03-01 | J19: Trabalho social
E21: Responsável pelo Orçamento
E22: Nome: | F22: Ana Letícia Bodanese
E23: CREA/CAU: | F23: CREA-SC 163.144-8
E24: ART/RRT: | F24: 9151068-4
E25: Data do preenchimento: | F25: =TODAY() -> 2024-05-14
E27: Responsável pelo Tomador (Prefeito, no caso de Municípios)
E28: Nome: | F28: Márcio Grosbelli
E29: Cargo: | F29: Prefeito
E31: Arredondamento das frentes: | F31: TransfereGOV
E33: B. RESULTADO DO PROCESSO LICITATÓRIO
E35: Licitação
E36: Data de emissão dos documentos de licitação:
E37: Nº do CTEF (contrato com empresa):
E38: Nome da empresa:
E39: CNPJ da empresa:
E40: Regime de execução do CTEF: | F40: (SELECIONAR)
E41: Data base do CTEF:
E44: C. ACOMPANHAMENTO DO EMPREENDIMENTO
E46: Dados da obra
E47: Data do Início da Obra:
E48: Data de fechamento do RRE: | F48: =TODAY() -> 2024-05-14
E50: Responsável pela Fiscalização
E51: Nome:
E52: Profissão:
E53: CREA/CAU (para obras/projetos):
E54: ART/RRT (para obras/projetos):
E57: D. ACOMPANHAMENTO CAIXA
E59: Responsável Gerencial
E60: Nome:
E61: Função:

Sheet NOVO
B3: Novidades da Versão
A6: V3.0.0
B7: GERAL
C8: =IF(D8<>"","▪","") -> ▪ | D8: Lançamento: Adequação à Portaria 424/2016. Acompanhamento por Eventos.
C9: =IF(D9<>"","▪","") -> 
A10: V3.0.1
B11: GERAL
C12: =IF(D12<>"","▪","") -> ▪ | D12: Ajustes de formatações.
B13: PO
C14: =IF(D14<>"","▪","") -> ▪ | D14: Correção da aplicação do BDI não desonerado.
C15: =IF(D15<>"","▪","") -> ▪ | D15: Inclusão de coluna exclusiva "Preço Unitário Edital", para o Modo 'Orçamento Licitado'.
A17: V3.0.2
B18: GERAL
C19: =IF(D19<>"","▪","") -> ▪ | D19: Ajustes de formatações.
C20: =IF(D20<>"","▪","") -> ▪ | D20: Correção do Problema de Guias ocultas no BROFFICE.
B21: ORÇAMENTO
C22: =IF(D22<>"","▪","") -> ▪ | D22: Ampliada obtenção de dados da Planilha Referência de 20.000 para 65.536 linhas.
B23: CRONOGRAMA
C24: =IF(D24<>"","▪","") -> ▪ | D24: Correção na formulação do total acumulado por Repasse, CP e Outros
B25: QCI
C26: =IF(D26<>"","▪","") -> ▪ | D26: Correção na formulação do arredondamento no rateio dos valores do QCI.
B27: RRE
C28: =IF(D28<>"","▪","") -> ▪ | D28: Correção na formulação do total por Repasse, CP e Outros.
A30: V3.0.3
B31: GERAL
C32: =IF(D32<>"","▪","") -> ▪ | D32: Correção do Problema de Guias ocultas no BROFFICE.
B33: CÁLCULO
C34: =IF(D34<>"","▪","") -> ▪ | D34: Corrigida lentidão e travamento ao incluir e excluir frentes.
A37: V3.0.4
B38: BDI
C39: =IF(D39<>"","▪","") -> ▪ | D39: Correção da CPRB que exibia 4,5% mesmo quando não desonerado.
B40: CRONOGRAMA
C41: =IF(D41<>"","▪","") -> ▪ | D41: Correção da distribuição de Repasse, CP e Outros para as metas manuais.
B42: QCI
C43: =IF(D43<>"","▪","") -> ▪ | D43: Adicionado botão para adotar a CP do QCI como CP do contrato (zera saldo a reprogramar de CP).
A45: V3.0.5
B46: GERAL
C47: =IF(D47<>"","▪","") -> ▪ | D47: Corrigido modo de Cálculo da Planilha para Automático.
A49: V3.0.6
B50: GERAL
C51: =IF(D51<>"","▪","") -> ▪ | D51: Adicionado modo de arredondamento para compatibilidade com o TransfereGOV, altera na aba DADOS
C52: =IF(D52<>"","▪","") -> ▪ | D52: A planilha passará a ser disponibilizada com o formato .xlsm. Deve ser usado arquivo referência 1.9 ou superior, também no formato .xlsm

Sheet BDI
E1: MIN | F1: MED | G1: MAX | O1: ="Quadro de Composição do BDI" -> Quadro de Composição do BDI | R1: Grau de Sigilo
A2: Construção e Reforma de Edifícios | B2: AC | C2: =CONCATENATE(A2,"-",B2) -> Construção e Reforma de Edifícios-AC | E2: 0.03 | F2: 0.04 | G2: 0.055 | R2: #PUBLICO
A3: =A2 -> Construção e Reforma de Edifícios | B3: SG | C3: Construção e Reforma de Edifícios-SG | E3: 0.008 | F3: 0.008 | G3: 0.01
A4: =A3 -> Construção e Reforma de Edifícios | B4: R | C4: Construção e Reforma de Edifícios-R | E4: 0.0097 | F4: 0.0127 | G4: 0.0127 | J4: Nº OPERAÇÃO | L4: Nº TRANSFEREGOV | N4: PROPONENTE / TOMADOR
A5: =A4 -> Construção e Reforma de Edifícios | B5: DF | C5: Construção e Reforma de Edifícios-DF | E5: 0.0059 | F5: 0.0123 | G5: 0.0139 | J5: =Import.CR -> 0 | L5: =Import.TransfereGOV -> 0 | N5: =Import.Proponente -> Município de São Domingos
A6: =A5 -> Construção e Reforma de Edifícios | B6: L | C6: Construção e Reforma de Edifícios-L | E6: 0.0616 | F6: 0.074 | G6: 0.0896 | I6: FILTRO
A7: =A6 -> Construção e Reforma de Edifícios | B7: BDI PAD | C7: Construção e Reforma de Edifícios-BDI PAD | E7: 0.2034 | F7: 0.2212 | G7: 0.25 | J7: APELIDO DO EMPREENDIMENTO / DESCRIÇÃO DO LOTE
A8: Construção de Praças Urbanas, Rodovias, Ferrovias e recapeamento e pavimentação de vias urbanas | B8: AC | C8: Construção de Praças Urbanas, Rodovias, Ferrovias e recapeamento e pavimentação de vias urbanas-AC | E8: 0.038 | F8: 0.0401 | G8: 0.0467 | J8: =Import.Apelido&" / "&Import.DescLote -> Pavimentação asfáltica - Linha Imigra / Pavimentação asfáltica - Linha Imigra
A9: Construção de Praças Urbanas, Rodovias, Ferrovias e recapeamento e pavimentação de vias urbanas | B9: SG | C9: Construção de Praças Urbanas, Rodovias, Ferrovias e recapeamento e pavimentação de vias urbanas-SG | E9: 0.0032 | F9: 0.004 | G9: 0.0074
A10: Construção de Praças Urbanas, Rodovias, Ferrovias e recapeamento e pavimentação de vias urbanas | B10: R | C10: Construção de Praças Urbanas, Rodovias, Ferrovias e recapeamento e pavimentação de vias urbanas-R | E10: 0.005 | F10: 0.0056 | G10: 0.0097 | J10: Conforme legislação tributária municipal, definir estimativa de percentual da base de cálculo para o ISS: | R10: 1
A11: Construção de Praças Urbanas, Rodovias, Ferrovias e recapeamento e pavimentação de vias urbanas | B11: DF | C11: Construção de Praças Urbanas, Rodovias, Ferrovias e recapeamento e pavimentação de vias urbanas-DF | E11: 0.0102 | F11: 0.0111 | G11: 0.0121 | I11: ↓ | J11: Sobre a base de cálculo, definir a respectiva alíquota do ISS (entre 2% e 5%): | R11: 0.03
A12: Construção de Praças Urbanas, Rodovias, Ferrovias e recapeamento e pavimentação de vias urbanas | B12: L | C12: Construção de Praças Urbanas, Rodovias, Ferrovias e recapeamento e pavimentação de vias urbanas-L | E12: 0.0664 | F12: 0.073 | G12: 0.0869 | I12: F
A13: Construção de Praças Urbanas, Rodovias, Ferrovias e recapeamento e pavimentação de vias urbanas | B13: BDI PAD | C13: Construção de Praças Urbanas, Rodovias, Ferrovias e recapeamento e pavimentação de vias urbanas-BDI PAD | E13: 0.196 | F13: 0.2097 | G13: 0.2423 | I13: F
A14: Construção de Redes de Abastecimento de Água, Coleta de Esgoto | B14: AC | C14: Construção de Redes de Abastecimento de Água, Coleta de Esgoto-AC | E14: 0.0343 | F14: 0.0493 | G14: 0.0671 | I14: F | J14: BDI 1
A15: =A14 -> Construção de Redes de Abastecimento de Água, Coleta de Esgoto | B15: SG | C15: Construção de Redes de Abastecimento de Água, Coleta de Esgoto-SG | E15: 0.0028 | F15: 0.0049 | G15: 0.0075 | I15: F
A16: =A15 -> Construção de Redes de Abastecimento de Água, Coleta de Esgoto | B16: R | C16: Construção de Redes de Abastecimento de Água, Coleta de Esgoto-R | E16: 0.01 | F16: 0.0139 | G16: 0.0174 | I16: F | J16: TIPO DE OBRA
A17: =A16 -> Construção de Redes de Abastecimento de Água, Coleta de Esgoto | B17: DF | C17: Construção de Redes de Abastecimento de Água, Coleta de Esgoto-DF | E17: 0.0094 | F17: 0.0099 | G17: 0.0117 | I17: F | J17: Construção de Praças Urbanas, Rodovias, Ferrovias e recapeamento e pavimentação de vias urbanas
A18: =A17 -> Construção de Redes de Abastecimento de Água, Coleta de Esgoto | B18: L | C18: Construção de Redes de Abastecimento de Água, Coleta de Esgoto-L | E18: 0.0674 | F18: 0.0804 | G18: 0.094 | I18: F
A19: =A18 -> Construção de Redes de Abastecimento de Água, Coleta de Esgoto | B19: BDI PAD | C19: Construção de Redes de Abastecimento de Água, Coleta de Esgoto-BDI PAD | E19: 0.2076 | F19: 0.2418 | G19: 0.2644 | I19: F | J19: Itens | R19: Siglas | S19: % Adotado | U19: Situação | X19: 1º Quartil | Y19: Médio | Z19: 3º Quartil
A20: Construção e Manutenção de Estações e Redes de Distribuição de Energia Elétrica | B20: AC | C20: Construção e Manutenção de Estações e Redes de Distribuição de Energia Elétrica-AC | E20: 0.0529 | F20: 0.0592 | G20: 0.0793 | I20: F
A21: =A20 -> Construção e Manutenção de Estações e Redes de Distribuição de Energia Elétrica | B21: SG | C21: Construção e Manutenção de Estações e Redes de Distribuição de Energia Elétrica-SG | E21: 0.0025 | F21: 0.0051 | G21: 0.0056 | I21: F | J21: =IF($J$17=$A$146,"Encargos Sociais incidentes sobre a mão de obra","Administração Central") -> Administração Central | R21: =IF($J17=$A$146,"K1","AC") -> AC | S21: 0.0401 | U21: - | X21: =VLOOKUP(CONCATENATE(J17,"-",R21),$C$2:$G$136,3,FALSE) -> 0.038 | Y21: =VLOOKUP(CONCATENATE(J17,"-",R21),$C$2:$G$136,4,FALSE) -> 0.0401 | Z21: =VLOOKUP(CONCATENATE(J17,"-",R21),$C$2:$G$136,5,FALSE) -> 0.0467
A22: =A21 -> Construção e Manutenção de Estações e Redes de Distribuição de Energia Elétrica | B22: R | C22: Construção e Manutenção de Estações e Redes de Distribuição de Energia Elétrica-R | E22: 0.01 | F22: 0.0148 | G22: 0.0197 | I22: F | J22: =IF($J$17=$A$146,"Administração Central da empresa ou consultoria - overhead","Seguro e Garantia") -> Seguro e Garantia | R22: =IF($J17=$A$146,"K2","SG") -> SG | S22: 0.004 | U22: - | X22: =VLOOKUP(CONCATENATE(J17,"-",R22),$C$2:$G$136,3,FALSE) -> 0.0032 | Y22: =VLOOKUP(CONCATENATE(J17,"-",R22),$C$2:$G$136,4,FALSE) -> 0.004 | Z22: =VLOOKUP(CONCATENATE(J17,"-",R22),$C$2:$G$136,5,FALSE) -> 0.0074
A23: =A22 -> Construção e Manutenção de Estações e Redes de Distribuição de Energia Elétrica | B23: DF | C23: Construção e Manutenção de Estações e Redes de Distribuição de Energia Elétrica-DF | E23: 0.0101 | F23: 0.0107 | G23: 0.0111 | I23: F | J23: =IF($J$17=$A$146,"","Risco") -> Risco | R23: =IF($J17=$A$146,"","R") -> R | S23: 0.0056 | U23: - | X23: =VLOOKUP(CONCATENATE(J17,"-",R23),$C$2:$G$136,3,FALSE) -> 0.005 | Y23: =VLOOKUP(CONCATENATE(J17,"-",R23),$C$2:$G$136,4,FALSE) -> 0.0056 | Z23: =VLOOKUP(CONCATENATE(J17,"-",R23),$C$2:$G$136,5,FALSE) -> 0.0097
A24: =A23 -> Construção e Manutenção de Estações e Redes de Distribuição de Energia Elétrica | B24: L | C24: Construção e Manutenção de Estações e Redes de Distribuição de Energia Elétrica-L | E24: 0.08 | F24: 0.0831 | G24: 0.0951 | I24: F | J24: =IF($J$17=$A$146,"","Despesas Financeiras") -> Despesas Financeiras | R24: =IF($J17=$A$146,"","DF") -> DF | S24: 0.0111 | U24: - | X24: =VLOOKUP(CONCATENATE(J17,"-",R24),$C$2:$G$136,3,FALSE) -> 0.0102 | Y24: =VLOOKUP(CONCATENATE(J17,"-",R24),$C$2:$G$136,4,FALSE) -> 0.0111 | Z24: =VLOOKUP(CONCATENATE(J17,"-",R24),$C$2:$G$136,5,FALSE) -> 0.0121
A25: =A24 -> Construção e Manutenção de Estações e Redes de Distribuição de Energia Elétrica | B25: BDI PAD | C25: Construção e Manutenção de Estações e Redes de Distribuição de Energia Elétrica-BDI PAD | E25: 0.24 | F25: 0.2584 | G25: 0.2786 | I25: F | J25: =IF($J$17=$A$146,"Margem bruta da empresa de consultoria","Lucro") -> Lucro | R25: =IF($J17=$A$146,"K3","L") -> L | S25: 0.073 | U25: - | X25: =VLOOKUP(CONCATENATE(J17,"-",R25),$C$2:$G$136,3,FALSE) -> 0.0664 | Y25: =VLOOKUP(CONCATENATE(J17,"-",R25),$C$2:$G$136,4,FALSE) -> 0.073 | Z25: =VLOOKUP(CONCATENATE(J17,"-",R25),$C$2:$G$136,5,FALSE) -> 0.0869
A26: Obras Portuárias, Marítimas e Fluviais | B26: AC | C26: Obras Portuárias, Marítimas e Fluviais-AC | E26: 0.04 | F26: 0.0552 | G26: 0.0785 | I26: F | J26: Tributos (impostos COFINS 3%, e PIS 0,65%) | R26: CP | S26: 0.0365 | U26: - | X26: 0.0365 | Y26: 0.0365 | Z26: 0.0365
A27: =A26 -> Obras Portuárias, Marítimas e Fluviais | B27: SG | C27: Obras Portuárias, Marítimas e Fluviais-SG | E27: 0.0081 | F27: 0.0122 | G27: 0.0199 | I27: F | J27: Tributos (ISS, variável de acordo com o município) | R27: ISS | S27: =IF(AND($J17<>$A$145,COUNTA(OFFSET(S20,1,0,6))>0),$R$11*$R$10,0) -> 0.03 | U27: - | X27: 0 | Y27: 0.025 | Z27: 0.05
A28: =A27 -> Obras Portuárias, Marítimas e Fluviais | B28: R | C28: Obras Portuárias, Marítimas e Fluviais-R | E28: 0.0146 | F28: 0.0232 | G28: 0.0316 | I28: F | J28: Tributos (Contribuição Previdenciária sobre a Receita Bruta - 0% ou 4,5% - Desoneração) | R28: CPRB | S28: =IF(BDI.Opcao<>"Desonerado",0,IF(AND($J17<>$A$145,COUNTA(OFFSET(S20,1,0,6))>0),4.5%,0%)) -> 0 | U28: - | X28: 0 | Y28: 0.045 | Z28: 0.045
A29: =A28 -> Obras Portuárias, Marítimas e Fluviais | B29: DF | C29: Obras Portuárias, Marítimas e Fluviais-DF | E29: 0.0094 | F29: 0.0102 | G29: 0.0133 | I29: F | J29: BDI SEM desoneração (Fórmula Acórdão TCU) | R29: BDI PAD | S29: =IF($J17=$A$145,0,ROUND((((1+S21+S22+S23)*(1+S24)*(1+S25)/(1-(S26+S27)))-1),4)) -> 0.22 | U29: =IF(OR($J$17=$A$146,$J$17=$A$145,AND(S29>=X29,S29<=Z29)),"OK","FORA DO INTERVALO") -> OK | X29: =IF($J17=$A$145,0,VLOOKUP(CONCATENATE($J17,"-",$R29),$C$2:$G$136,3,FALSE)) -> 0.196 | Y29: =IF($J17=$A$145,0,VLOOKUP(CONCATENATE($J17,"-",$R29),$C$2:$G$136,4,FALSE)) -> 0.2097 | Z29: =IF($J17=$A$145,0,VLOOKUP(CONCATENATE($J17,"-",$R29),$C$2:$G$136,5,FALSE)) -> 0.2423
A30: =A29 -> Obras Portuárias, Marítimas e Fluviais | B30: L | C30: Obras Portuárias, Marítimas e Fluviais-L | E30: 0.0714 | F30: 0.084 | G30: 0.1043 | I30: F | J30: BDI COM desoneração | R30: BDI DES | S30: =IF($J17=$A$145,0,ROUND((((1+S21+S22+S23)*(1+S24)*(1+S25)/(1-(S26+S27+S28)))-1),4)) -> 0.22
A31: =A30 -> Obras Portuárias, Marítimas e Fluviais | B31: BDI PAD | C31: Obras Portuárias, Marítimas e Fluviais-BDI PAD | E31: 0.228 | F31: 0.2748 | G31: 0.3095 | I31: F
A32: Fornecimento de Materiais e Equipamentos (aquisição indireta - em conjunto com licitação de obras) | B32: AC | C32: Fornecimento de Materiais e Equipamentos (aquisição indireta - em conjunto com licitação de obras)-AC | E32: 0.015 | F32: 0.0345 | G32: 0.0449 | I32: F | J32: =IF(U29<>"ok","X","") ->  | K32: =IF(U29<>"ok","Anexo: Relatório Técnico Circunstanciado justificando a adoção do percentual de cada parcela do BDI.","") -> 
A33: =A32 -> Fornecimento de Materiais e Equipamentos (aquisição indireta - em conjunto com licitação de obras) | B33: SG | C33: Fornecimento de Materiais e Equipamentos (aquisição indireta - em conjunto com licitação de obras)-SG | E33: 0.003 | F33: 0.0048 | G33: 0.0082 | I33: F
A34: =A33 -> Fornecimento de Materiais e Equipamentos (aquisição indireta - em conjunto com licitação de obras) | B34: R | C34: Fornecimento de Materiais e Equipamentos (aquisição indireta - em conjunto com licitação de obras)-R | E34: 0.0056 | F34: 0.0085 | G34: 0.0089 | I34: F | J34: Os valores de BDI foram calculados com o emprego da fórmula:
A35: =A34 -> Fornecimento de Materiais e Equipamentos (aquisição indireta - em conjunto com licitação de obras) | B35: DF | C35: Fornecimento de Materiais e Equipamentos (aquisição indireta - em conjunto com licitação de obras)-DF | E35: 0.0085 | F35: 0.0085 | G35: 0.0111 | I35: F | M35: BDI = | N35: =IF($J17=$A$146,"(1+K1+K2)*(1+K3)","(1+AC + S + R + G)*(1 + DF)*(1+L)") -> (1+AC + S + R + G)*(1 + DF)*(1+L) | Q35: - 1
A36: =A35 -> Fornecimento de Materiais e Equipamentos (aquisição indireta - em conjunto com licitação de obras) | B36: L | C36: Fornecimento de Materiais e Equipamentos (aquisição indireta - em conjunto com licitação de obras)-L | E36: 0.035 | F36: 0.0511 | G36: 0.0622 | I36: F | N36: (1-CP-ISS-CRPB)
A37: =A36 -> Fornecimento de Materiais e Equipamentos (aquisição indireta - em conjunto com licitação de obras) | B37: BDI PAD | C37: Fornecimento de Materiais e Equipamentos (aquisição indireta - em conjunto com licitação de obras)-BDI PAD | E37: 0.111 | F37: 0.1402 | G37: 0.168 | I37: F
A38: Fornecimento de Materiais e Equipamentos (aquisição direta) | B38: AC | C38: Fornecimento de Materiais e Equipamentos (aquisição direta)-AC | E38: - | F38: - | G38: - | I38: F | J38: =CONCATENATE("Declaro para os devidos fins que, conforme legislação tributária municipal, a base de cálculo deste tipo de obra corresponde à ",$R$10*100,"%, com a respectiva alíquota de ",$R$11*100,"%.") -> Declaro para os devidos fins que, conforme legislação tributária municipal, a base de cálculo deste tipo de obra corresponde à 100%, com a respectiva alíquota de 3%.
A39: Fornecimento de Materiais e Equipamentos (aquisição direta) | B39: SG | C39: Fornecimento de Materiais e Equipamentos (aquisição direta)-SG | E39: - | F39: - | G39: - | I39: F
A40: Fornecimento de Materiais e Equipamentos (aquisição direta) | B40: R | C40: Fornecimento de Materiais e Equipamentos (aquisição direta)-R | E40: - | F40: - | G40: - | I40: F | J40: =CONCATENATE("Declaro para os devidos fins que o regime de Contribuição Previdenciária sobre a Receita Bruta adotado para elaboração do orçamento foi ",IF(DESONERACAO="Sim","COM","SEM")," Desoneração, e que esta é a alternativa mais adequada para a Administração Pública.") -> Declaro para os devidos fins que o regime de Contribuição Previdenciária sobre a Receita Bruta adotado para elaboração do orçamento foi SEM Desoneração, e que esta é a alternativa mais adequada para a Administração Pública.
A41: Fornecimento de Materiais e Equipamentos (aquisição direta) | B41: DF | C41: Fornecimento de Materiais e Equipamentos (aquisição direta)-DF | E41: - | F41: - | G41: - | I41: F
A42: Fornecimento de Materiais e Equipamentos (aquisição direta) | B42: L | C42: Fornecimento de Materiais e Equipamentos (aquisição direta)-L | E42: - | F42: - | G42: - | I42: F | J42: Observações:
A43: Fornecimento de Materiais e Equipamentos (aquisição direta) | B43: BDI PAD | C43: Fornecimento de Materiais e Equipamentos (aquisição direta)-BDI PAD | E43: - | F43: - | G43: - | I43: F
A44: Estudos e Projetos, Planos e Gerenciamento e outros correlatos | B44: K1 | C44: Estudos e Projetos, Planos e Gerenciamento e outros correlatos-K1 | E44: - | F44: - | G44: - | I44: F
A45: =A44 -> Estudos e Projetos, Planos e Gerenciamento e outros correlatos | B45: K2 | C45: Estudos e Projetos, Planos e Gerenciamento e outros correlatos-K2 | E45: - | F45: 0.2 | G45: - | I45: F | J45: =Import.Município -> São Domingos | P45: =DADOS!$F$25 -> 2024-05-14
A46: =A45 -> Estudos e Projetos, Planos e Gerenciamento e outros correlatos | C46: Estudos e Projetos, Planos e Gerenciamento e outros correlatos- | E46: - | F46: - | G46: - | I46: F | J46: Local | P46: Data
A47: =A46 -> Estudos e Projetos, Planos e Gerenciamento e outros correlatos | C47: Estudos e Projetos, Planos e Gerenciamento e outros correlatos- | E47: - | F47: - | G47: - | I47: F
A48: =A47 -> Estudos e Projetos, Planos e Gerenciamento e outros correlatos | B48: K3 | C48: Estudos e Projetos, Planos e Gerenciamento e outros correlatos-K3 | E48: - | F48: 0.12 | G48: - | I48: F
A49: =A48 -> Estudos e Projetos, Planos e Gerenciamento e outros correlatos | B49: BDI PAD | C49: Estudos e Projetos, Planos e Gerenciamento e outros correlatos-BDI PAD | E49: - | F49: - | G49: - | I49: F | J49: Responsável Técnico
I50: F | J50: Nome: | K50: =Import.RespOrçamento -> Ana Letícia Bodanese
I51: F | J51: CREA/CAU: | K51: CREA-SC 163.144-8
I52: F | J52: ART/RRT: | K52: 9151068-4
I53: F
I54: =IF($S$69=0,"","F") ->  | J54: BDI 2
I55: =IF($S$69=0,"","F") -> 
J56: TIPO DE OBRA
J57: (SELECIONAR)
J59: Itens | R59: Siglas | S59: % Adotado | U59: Situação | X59: 1º Quartil | Y59: Médio | Z59: 3º Quartil
J61: =IF($J$17=$A$146,"Encargos Sociais incidentes sobre a mão de obra","Administração Central") -> Administração Central | R61: =IF($J57=$A$146,"K1","AC") -> AC | U61: - | X61: =VLOOKUP(CONCATENATE(J57,"-",R61),$C$2:$G$136,3,FALSE) ->  | Y61: =VLOOKUP(CONCATENATE(J57,"-",R61),$C$2:$G$136,4,FALSE) ->  | Z61: =VLOOKUP(CONCATENATE(J57,"-",R61),$C$2:$G$136,5,FALSE) -> 
J62: =IF($J$17=$A$146,"Administração Central da empresa ou consultoria - overhead","Seguro e Garantia") -> Seguro e Garantia | R62: =IF($J57=$A$146,"K2","SG") -> SG | U62: - | X62: =VLOOKUP(CONCATENATE(J57,"-",R62),$C$2:$G$136,3,FALSE) ->  | Y62: =VLOOKUP(CONCATENATE(J57,"-",R62),$C$2:$G$136,4,FALSE) ->  | Z62: =VLOOKUP(CONCATENATE(J57,"-",R62),$C$2:$G$136,5,FALSE) -> 
J63: =IF($J$17=$A$146,"","Risco") -> Risco | R63: =IF($J57=$A$146,"","R") -> R | U63: - | X63: =VLOOKUP(CONCATENATE(J57,"-",R63),$C$2:$G$136,3,FALSE) ->  | Y63: =VLOOKUP(CONCATENATE(J57,"-",R63),$C$2:$G$136,4,FALSE) ->  | Z63: =VLOOKUP(CONCATENATE(J57,"-",R63),$C$2:$G$136,5,FALSE) -> 
J64: =IF($J$17=$A$146,"","Despesas Financeiras") -> Despesas Financeiras | R64: =IF($J57=$A$146,"","DF") -> DF | U64: - | X64: =VLOOKUP(CONCATENATE(J57,"-",R64),$C$2:$G$136,3,FALSE) ->  | Y64: =VLOOKUP(CONCATENATE(J57,"-",R64),$C$2:$G$136,4,FALSE) ->  | Z64: =VLOOKUP(CONCATENATE(J57,"-",R64),$C$2:$G$136,5,FALSE) -> 
J65: =IF($J$17=$A$146,"Margem bruta da empresa de consultoria","Lucro") -> Lucro | R65: =IF($J57=$A$146,"K3","L") -> L | U65: - | X65: =VLOOKUP(CONCATENATE(J57,"-",R65),$C$2:$G$136,3,FALSE) ->  | Y65: =VLOOKUP(CONCATENATE(J57,"-",R65),$C$2:$G$136,4,FALSE) ->  | Z65: =VLOOKUP(CONCATENATE(J57,"-",R65),$C$2:$G$136,5,FALSE) -> 
J66: Tributos (impostos COFINS 3%, e PIS 0,65%) | R66: CP | U66: - | X66: 0.0365 | Y66: 0.0365 | Z66: 0.0365
J67: Tributos (ISS, variável de acordo com o município) | R67: ISS | S67: =IF(AND($J57<>$A$145,COUNTA(OFFSET(S60,1,0,6))>0),$R$11*$R$10,0) -> 0 | U67: - | X67: 0 | Y67: 0.025 | Z67: 0.05
J68: Tributos (Contribuição Previdenciária sobre a Receita Bruta - 0% ou 4,5% - Desoneração) | R68: CPRB | S68: =IF(BDI.Opcao<>"Desonerado",0,IF(AND($J57<>$A$145,COUNTA(OFFSET(S60,1,0,6))>0),4.5%,0%)) -> 0 | U68: - | X68: 0 | Y68: 0.045 | Z68: 0.045
J69: BDI SEM desoneração (Fórmula Acórdão TCU) | R69: BDI PAD | S69: =IF($J57=$A$145,0,ROUND((((1+S61+S62+S63)*(1+S64)*(1+S65)/(1-(S66+S67)))-1),4)) -> 0 | U69: =IF(OR($J$17=$A$146,$J$17=$A$145,AND(S69>=X69,S69<=Z69)),"OK","FORA DO INTERVALO") ->  | X69: =IF($J57=$A$145,0,VLOOKUP(CONCATENATE($J57,"-",$R69),$C$2:$G$136,3,FALSE)) ->  | Y69: =IF($J57=$A$145,0,VLOOKUP(CONCATENATE($J57,"-",$R69),$C$2:$G$136,4,FALSE)) ->  | Z69: =IF($J57=$A$145,0,VLOOKUP(CONCATENATE($J57,"-",$R69),$C$2:$G$136,5,FALSE)) -> 
J70: BDI COM desoneração | R70: BDI DES | S70: =IF($J57=$A$145,0,ROUND((((1+S61+S62+S63)*(1+S64)*(1+S65)/(1-(S66+S67+S68)))-1),4)) -> 0
J72: =IF(U69<>"ok","X","") ->  | K72: =IF(U69<>"ok","Anexo: Relatório Técnico Circunstanciado justificando a adoção do percentual de cada parcela do BDI.","") -> 
J74: Os valores de BDI foram calculados com o emprego da fórmula:
M75: BDI = | N75: =IF($J57=$A$146,"(1+K1+K2)*(1+K3)","(1+AC + S + R + G)*(1 + DF)*(1+L)") -> (1+AC + S + R + G)*(1 + DF)*(1+L) | Q75: - 1
N76: (1-CP-ISS-CRPB)
J78: =CONCATENATE("Declaro para os devidos fins que, conforme legislação tributária municipal, a base de cálculo deste tipo de obra corresponde à ",$R$10*100,"%, com a respectiva alíquota de ",$R$11*100,"%.") -> Declaro para os devidos fins que, conforme legislação tributária municipal, a base de cálculo deste tipo de obra corresponde à 100%, com a respectiva alíquota de 3%.
J80: =CONCATENATE("Declaro para os devidos fins que o regime de Contribuição Previdenciária sobre a Receita Bruta adotado para elaboração do orçamento foi ",IF(DESONERACAO="Sim","COM","SEM")," Desoneração, e que esta é a alternativa mais adequada para a Administração Pública.") -> Declaro para os devidos fins que o regime de Contribuição Previdenciária sobre a Receita Bruta adotado para elaboração do orçamento foi SEM Desoneração, e que esta é a alternativa mais adequada para a Administração Pública.
J82: Observações:
J85: =Import.Município -> São Domingos | P85: =DADOS!$F$25 -> 2024-05-14
J86: Local | P86: Data
J89: Responsável Técnico
J90: Nome: | K90: =Import.RespOrçamento -> Ana Letícia Bodanese
J91: CREA/CAU: | K91: CREA-SC 163.144-8
J92: ART/RRT: | K92: 9151068-4
I94: =IF($S$109=0,"","F") ->  | J94: BDI 3
I95: =IF($S$109=0,"","F") -> 
J96: TIPO DE OBRA
J97: (SELECIONAR)
J99: Itens | R99: Siglas | S99: % Adotado | U99: Situação | X99: 1º Quartil | Y99: Médio | Z99: 3º Quartil
J101: =IF($J$17=$A$146,"Encargos Sociais incidentes sobre a mão de obra","Administração Central") -> Administração Central | R101: =IF($J97=$A$146,"K1","AC") -> AC | U101: - | X101: =VLOOKUP(CONCATENATE(J97,"-",R101),$C$2:$G$136,3,FALSE) ->  | Y101: =VLOOKUP(CONCATENATE(J97,"-",R101),$C$2:$G$136,4,FALSE) ->  | Z101: =VLOOKUP(CONCATENATE(J97,"-",R101),$C$2:$G$136,5,FALSE) -> 
J102: =IF($J$17=$A$146,"Administração Central da empresa ou consultoria - overhead","Seguro e Garantia") -> Seguro e Garantia | R102: =IF($J97=$A$146,"K2","SG") -> SG | U102: - | X102: =VLOOKUP(CONCATENATE(J97,"-",R102),$C$2:$G$136,3,FALSE) ->  | Y102: =VLOOKUP(CONCATENATE(J97,"-",R102),$C$2:$G$136,4,FALSE) ->  | Z102: =VLOOKUP(CONCATENATE(J97,"-",R102),$C$2:$G$136,5,FALSE) -> 
J103: =IF($J$17=$A$146,"","Risco") -> Risco | R103: =IF($J97=$A$146,"","R") -> R | U103: - | X103: =VLOOKUP(CONCATENATE(J97,"-",R103),$C$2:$G$136,3,FALSE) ->  | Y103: =VLOOKUP(CONCATENATE(J97,"-",R103),$C$2:$G$136,4,FALSE) ->  | Z103: =VLOOKUP(CONCATENATE(J97,"-",R103),$C$2:$G$136,5,FALSE) -> 
J104: =IF($J$17=$A$146,"","Despesas Financeiras") -> Despesas Financeiras | R104: =IF($J97=$A$146,"","DF") -> DF | U104: - | X104: =VLOOKUP(CONCATENATE(J97,"-",R104),$C$2:$G$136,3,FALSE) ->  | Y104: =VLOOKUP(CONCATENATE(J97,"-",R104),$C$2:$G$136,4,FALSE) ->  | Z104: =VLOOKUP(CONCATENATE(J97,"-",R104),$C$2:$G$136,5,FALSE) -> 
J105: =IF($J$17=$A$146,"Margem bruta da empresa de consultoria","Lucro") -> Lucro | R105: =IF($J97=$A$146,"K3","L") -> L | U105: - | X105: =VLOOKUP(CONCATENATE(J97,"-",R105),$C$2:$G$136,3,FALSE) ->  | Y105: =VLOOKUP(CONCATENATE(J97,"-",R105),$C$2:$G$136,4,FALSE) ->  | Z105: =VLOOKUP(CONCATENATE(J97,"-",R105),$C$2:$G$136,5,FALSE) -> 
J106: Tributos (impostos COFINS 3%, e PIS 0,65%) | R106: CP | U106: - | X106: 0.0365 | Y106: 0.0365 | Z106: 0.0365
J107: Tributos (ISS, variável de acordo com o município) | R107: ISS | S107: =IF(AND($J97<>$A$145,COUNTA(OFFSET(S100,1,0,6))>0),$R$11*$R$10,0) -> 0 | U107: - | X107: 0 | Y107: 0.025 | Z107: 0.05
J108: Tributos (Contribuição Previdenciária sobre a Receita Bruta - 0% ou 4,5% - Desoneração) | R108: CPRB | S108: =IF(BDI.Opcao<>"Desonerado",0,IF(AND($J97<>$A$145,COUNTA(OFFSET(S100,1,0,6))>0),4.5%,0%)) -> 0 | U108: - | X108: 0 | Y108: 0.045 | Z108: 0.045
J109: BDI SEM desoneração (Fórmula Acórdão TCU) | R109: BDI PAD | S109: =IF($J97=$A$145,0,ROUND((((1+S101+S102+S103)*(1+S104)*(1+S105)/(1-(S106+S107)))-1),4)) -> 0 | U109: =IF(OR($J$17=$A$146,$J$17=$A$145,AND(S109>=X109,S109<=Z109)),"OK","FORA DO INTERVALO") ->  | X109: =IF($J97=$A$145,0,VLOOKUP(CONCATENATE($J97,"-",$R109),$C$2:$G$136,3,FALSE)) ->  | Y109: =IF($J97=$A$145,0,VLOOKUP(CONCATENATE($J97,"-",$R109),$C$2:$G$136,4,FALSE)) ->  | Z109: =IF($J97=$A$145,0,VLOOKUP(CONCATENATE($J97,"-",$R109),$C$2:$G$136,5,FALSE)) -> 
J110: BDI COM desoneração | R110: BDI DES | S110: =IF($J97=$A$145,0,ROUND((((1+S101+S102+S103)*(1+S104)*(1+S105)/(1-(S106+S107+S108)))-1),4)) -> 0
J112: =IF(U109<>"ok","X","") ->  | K112: =IF(U109<>"ok","Anexo: Relatório Técnico Circunstanciado justificando a adoção do percentual de cada parcela do BDI.","") -> 
J114: Os valores de BDI foram calculados com o emprego da fórmula:
M115: BDI = | N115: =IF($J97=$A$146,"(1+K1+K2)*(1+K3)","(1+AC + S + R + G)*(1 + DF)*(1+L)") -> (1+AC + S + R + G)*(1 + DF)*(1+L) | Q115: - 1
N116: (1-CP-ISS-CRPB)
J118: =CONCATENATE("Declaro para os devidos fins que, conforme legislação tributária municipal, a base de cálculo deste tipo de obra corresponde à ",$R$10*100,"%, com a respectiva alíquota de ",$R$11*100,"%.") -> Declaro para os devidos fins que, conforme legislação tributária municipal, a base de cálculo deste tipo de obra corresponde à 100%, com a respectiva alíquota de 3%.
J120: =CONCATENATE("Declaro para os devidos fins que o regime de Contribuição Previdenciária sobre a Receita Bruta adotado para elaboração do orçamento foi ",IF(DESONERACAO="Sim","COM","SEM")," Desoneração, e que esta é a alternativa mais adequada para a Administração Pública.") -> Declaro para os devidos fins que o regime de Contribuição Previdenciária sobre a Receita Bruta adotado para elaboração do orçamento foi SEM Desoneração, e que esta é a alternativa mais adequada para a Administração Pública.
J122: Observações:
J125: =Import.Município -> São Domingos | P125: =DADOS!$F$25 -> 2024-05-14
J126: Local | P126: Data
J129: Responsável Técnico
J130: Nome: | K130: =Import.RespOrçamento -> Ana Letícia Bodanese
J131: CREA/CAU: | K131: CREA-SC 163.144-8
J132: ART/RRT: | K132: 9151068-4
A138: (SELECIONAR)
A139: Construção e Reforma de Edifícios
A140: Construção de Praças Urbanas, Rodovias, Ferrovias e recapeamento e pavimentação de vias urbanas
A141: Construção de Redes de Abastecimento de Água, Coleta de Esgoto
A142: Construção e Manutenção de Estações e Redes de Distribuição de Energia Elétrica
A143: Obras Portuárias, Marítimas e Fluviais
A144: Fornecimento de Materiais e Equipamentos (aquisição indireta - em conjunto com licitação de obras)
A145: Fornecimento de Materiais e Equipamentos (aquisição direta)
A146: Estudos e Projetos, Planos e Gerenciamento e outros correlatos

Sheet ORÇAMENTO
R1: PO - PLANILHA ORÇAMENTÁRIA | X1: Grau de Sigilo
D2: LOTE | E2: Meta | F2: Nível 2 | G2: Nível 3 | H2: Nível 4 | I2: Serviço | R2: =IF(TIPOORCAMENTO="licitado","Orçamento Licitado","Orçamento Base para Licitação")&" - "&import.recurso -> Orçamento Base para Licitação - (SELECIONAR) | X2: #PUBLICO
A4: Nmax | F4: BDI 1 | G4: BDI 2 | H4: BDI 3 | I4: 0 | O4: Nº OPERAÇÃO | Q4: Nº TransfereGOV | R4: PROPONENTE / TOMADOR | S4: APELIDO DO EMPREENDIMENTO
A5: =MAX($C$15:$C$57) -> 2 | F5: =IF(BDI.Opcao="DESONERADO",BDI!$S$30,BDI!$S$29) -> 0.22 | G5: =IF(BDI.Opcao="DESONERADO",BDI!$S$70,BDI!$S$69) -> 0 | H5: =IF(BDI.Opcao="DESONERADO",BDI!$S$110,BDI!$S$109) -> 0 | O5: =Import.CR -> 0 | Q5: =Import.TransfereGOV -> 0 | R5: =Import.Proponente -> Município de São Domingos | S5: =Import.Apelido -> Pavimentação asfáltica - Linha Imigra | AE5: Arredondamento
O7: LOCALIDADE SINAPI | Q7: DATA BASE | R7: =IF(TIPOORCAMENTO="Licitado","NOME DA EMPRESA","DESCRIÇÃO DO LOTE") -> DESCRIÇÃO DO LOTE | S7: =IF(TIPOORCAMENTO="Licitado","REGIME DE EXECUÇÃO","MUNICÍPIO / UF") -> MUNICÍPIO / UF | V7: =IF(TIPOORCAMENTO="Licitado","","BDI 1") -> BDI 1 | W7: =IF(TIPOORCAMENTO="Licitado","","BDI 2") -> BDI 2 | X7: =IF(TIPOORCAMENTO="Licitado","Nº CTEF","BDI 3") -> BDI 3 | AE7: Quantidade | AF7: TRUE | AJ7: QUANTIDADES: ACOMP. POR BM | AL7: PREÇO UNITÁRIO LICITADO
F8: =IF(LEN(INFO("release"))>5,"'Referência "&Excel_BuiltIn_Database&".xlsm'#Banco.$a5:$a$65536","'[Referência "&Excel_BuiltIn_Database&".xlsm]Banco'!$a5:$a$65536") -> '[Referência 03-2024.xlsm]Banco'!$a5:$a$65536 | L8: FILTRO | O8: =IF(ISERROR(INDIRECT($F$9)),"(N/D: 'Referência "&Excel_BuiltIn_Database&".xlsm)",INDIRECT($F$9)) -> FLORIANOPOLIS | Q8: =TEXT(Import.DataBase,"mm-aa")&IF(DESONERACAO="Sim"," (DES.)"," (N DES.)") -> 03-24 (N DES.) | R8: =IF(TIPOORCAMENTO="Licitado",Import.empresa,Import.DescLote) -> Pavimentação asfáltica - Linha Imigra | S8: =IF(TIPOORCAMENTO="Licitado",Import.RegimeExecução,Import.Município) -> São Domingos | V8: =IF(TIPOORCAMENTO="Licitado","",TEXT(F5,"0,00%")) -> 22,00% | W8: =IF(TIPOORCAMENTO="Licitado","",TEXT(G5,"0,00%")) -> 0,00% | X8: =IF(TIPOORCAMENTO="Licitado",Import.CTEF,TEXT(H5,"0,00%")) -> 0,00% | Y8: RECURSO | Z8: SGL RECURSO | AE8: Custo Unitáro | AF8: TRUE
F9: =IF(LEN(INFO("release"))>5,"'Referência "&Excel_BuiltIn_Database&".xlsm'#Banco.$d$3","'[Referência "&Excel_BuiltIn_Database&".xlsm]Banco'!$d$3") -> '[Referência 03-2024.xlsm]Banco'!$d$3 | AE9: BDI | AF9: TRUE
AC10: ERRO GERAL | AE10: Preço Unitário | AF10: TRUE
AC11: =IF(COUNTIF($AC$15:OFFSET($AC$57,-1,0),"DESCRIÇÃO")+COUNTIF($AC$15:OFFSET($AC$57,-1,0),"UNIDADE")+COUNTIF($AC$15:OFFSET($AC$57,-1,0),"SEM VALOR")>0,"NÃO OK","OK") -> OK | AE11: Preço Total | AF11: TRUE
AA12: Valores não Arredondados | AJ12: ↓ | AL12: ↓
A13: Nível E | B13: Save Nivel | C13: Nível C | D13: Altura | E13: n1 | F13: n2 | G13: n3 | H13: n4 | I13: n5 | J13: Czero | K13: Cnível | L13: ↓ | M13: Nível | N13: Nível Corrigido | O13: Item | P13: Fonte | Q13: Código | R13: Descrição | S13: Unidade | T13: Quantidade | U13: =IF(TIPOORCAMENTO="Licitado","","Custo Unitário (sem BDI) (R$)") -> Custo Unitário (sem BDI) (R$) | V13: =IF(TIPOORCAMENTO="Licitado","","BDI (%)") -> BDI (%) | W13: Preço Unitário (com BDI) (R$) | X13: Preço Total (R$) | Y13: ↓ | Z13: ↓ | AA13: Contrapartida (R$) | AB13: Outros (R$) | AC13: Erro de Dados | AD13: Lista Crono | AE13: Concatenação Fonte-Código | AF13: BancoDesloc | AG13: Custo Unitário Referência (R$) | AH13: =IF(TIPOORCAMENTO="LICITADO","Valor BDI Edital","Valor BDI") -> Valor BDI | AJ13: Quantidade | AL13: Preço Unitário (com BDI) (R$) | AM13: Preço Total Licit. (R$) | AN13: Preço Unitário Edital (R$)
A14: =CHOOSE(1+LOG(1+2*(ORÇAMENTO.Nivel="Meta")+4*(ORÇAMENTO.Nivel="Nível 2")+8*(ORÇAMENTO.Nivel="Nível 3")+16*(ORÇAMENTO.Nivel="Nível 4")+32*(ORÇAMENTO.Nivel="Serviço"),2),0,1,2,3,4,"S") -> S | B14: =IF(OR(C14="s",C14=0),OFFSET(B14,-1,0),C14) -> Save Nivel | C14: =IF(OFFSET(C14,-1,0)="L",1,IF(OFFSET(C14,-1,0)=1,2,IF(OR(A14="s",A14=0),"S",IF(AND(OFFSET(C14,-1,0)=2,A14=4),3,IF(AND(OR(OFFSET(C14,-1,0)="s",OFFSET(C14,-1,0)=0),A14<>"s",A14>OFFSET(B14,-1,0)),OFFSET(B14,-1,0),A14))))) -> S | D14: =IF(OR(C14="S",C14=0),0,IF(ISERROR(K14),J14,SMALL(J14:K14,1))) -> 0 | E14: =IF($C14=1,OFFSET(E14,-1,0)+MAX(1,COUNTIF(QCI!$A$13:$A$24,OFFSET(ORÇAMENTO!E14,-1,0))),OFFSET(E14,-1,0)) -> n1 | F14: =IF($C14=1,0,IF($C14=2,OFFSET(F14,-1,0)+1,OFFSET(F14,-1,0))) -> n2 | G14: =IF(AND($C14<=2,$C14<>0),0,IF($C14=3,OFFSET(G14,-1,0)+1,OFFSET(G14,-1,0))) -> n3 | H14: =IF(AND($C14<=3,$C14<>0),0,IF($C14=4,OFFSET(H14,-1,0)+1,OFFSET(H14,-1,0))) -> n4 | I14: =IF(AND($C14<=4,$C14<>0),0,IF(AND($C14="S",$X14>0),OFFSET(I14,-1,0)+1,OFFSET(I14,-1,0))) -> n5 | J14: =IF(OR($C14="S",$C14=0),0,MATCH(0,OFFSET($D14,1,$C14,ROW($C$57)-ROW($C14)),0)) -> 0 | K14: =IF(OR($C14="S",$C14=0),0,MATCH(OFFSET($D14,0,$C14)+IF($C14<>1,1,COUNTIF(QCI!$A$13:$A$24,ORÇAMENTO!E14)),OFFSET($D14,1,$C14,ROW($C$57)-ROW($C14)),0)) -> 0 | L14: =IF(OR($X14>0,$C14=1,$C14=2,$C14=3,$C14=4),"F","") ->  | M14: Serviço | N14: =CHOOSE(1+LOG(1+2*(C14=1)+4*(C14=2)+8*(C14=3)+16*(C14=4)+32*(C14="S"),2),"","Meta","Nível 2","Nível 3","Nível 4","Serviço") -> Serviço | O14: =IF(OR($C14=0,$L14=""),"-",CONCATENATE(E14&".",IF(AND($A$5>=2,$C14>=2),F14&".",""),IF(AND($A$5>=3,$C14>=3),G14&".",""),IF(AND($A$5>=4,$C14>=4),H14&".",""),IF($C14="S",I14&".",""))) -> - | P14: SINAPI | R14: =IF($C14="S",REFERENCIA.Descricao,"(digite a descrição aqui)") -> (Sem Código) | S14: =REFERENCIA.Unidade -> - | T14: =OFFSET(CÁLCULO!H$15,ROW($T14)-ROW(T$15),0) -> 0 | V14: BDI 1 | W14: =IF($C14="S",ROUND(IF(TIPOORCAMENTO="Proposto",ORÇAMENTO.CustoUnitario*(1+$AH14),ORÇAMENTO.PrecoUnitarioLicitado),15-13*$AF$10),0) -> 0 | X14: =IF($C14="S",IF(Import.TipoArredondamento<>"TransfereGOV",VTOTAL1,SUM(OFFSET(CÁLCULO!$AA$15,ROW($X14)-ROW($X$15),1):OFFSET(CÁLCULO!$AL$15,ROW($X14)-ROW($X$15),-1))),IF($C14=0,0,ROUND(SomaAgrup,15-13*$AF$11))) -> 0 | Y14: RA | Z14: =IF(AND($C14="S",$X14>0),IF(ISBLANK($Y14),"RA",LEFT($Y14,2)),"") ->  | AA14: =IF($C14="S",IF($Z14="CP",$X14,IF($Z14="RA",(($X14)*QCI!$AA$3),0)),SomaAgrup) -> 0 | AB14: =IF($C14="S",IF($Z14="OU",ROUND($X14,2),0),SomaAgrup) -> 0 | AC14: =IF($N14="","",IF(ORÇAMENTO.Descricao="","DESCRIÇÃO",IF(AND($C14="S",ORÇAMENTO.Unidade=""),"UNIDADE",IF($X14<0,"VALOR NEGATIVO",IF(OR(AND(TIPOORCAMENTO="Proposto",$AG14<>"",$AG14>0,ORÇAMENTO.CustoUnitario>$AG14),AND(TIPOORCAMENTO="LICITADO",ORÇAMENTO.PrecoUnitarioLicitado>$AN14)),"ACIMA REF.",""))))) ->  | AD14: =IF(C14<=CRONO.NivelExibicao,MAX($AD$15:OFFSET(AD14,-1,0))+IF($C14<>1,1,MAX(1,COUNTIF(QCI!$A$13:$A$24,OFFSET($E14,-1,0)))),"") ->  | AE14: =IF(AND($C14="S",ORÇAMENTO.CodBarra<>""),IF(ORÇAMENTO.Fonte="",ORÇAMENTO.CodBarra,CONCATENATE(ORÇAMENTO.Fonte," ",ORÇAMENTO.CodBarra))) -> FALSE | AF14: =IF(ISERROR(INDIRECT(ORÇAMENTO.BancoRef)),"(abra o arquivo 'Referência "&Excel_BuiltIn_Database&".xlsm)",IF(OR($C14<>"S",ORÇAMENTO.CodBarra=""),"(Sem Código)",IF(ISERROR(MATCH($AE14,INDIRECT(ORÇAMENTO.BancoRef),0)),"(Código não identificado nas referências)",MATCH($AE14,INDIRECT(ORÇAMENTO.BancoRef),0)))) -> (Sem Código) | AG14: =ROUND(IF(DESONERACAO="sim",REFERENCIA.Desonerado,REFERENCIA.NaoDesonerado),2) -> 0 | AH14: =ROUND(IF(ISNUMBER(ORÇAMENTO.OpcaoBDI),ORÇAMENTO.OpcaoBDI,IF(LEFT(ORÇAMENTO.OpcaoBDI,3)="BDI",HLOOKUP(ORÇAMENTO.OpcaoBDI,$F$4:$H$5,2,FALSE),0)),15-11*$AF$9) -> 0.22 | AM14: =$X14 -> 0 | AN14: =ROUND(ORÇAMENTO.CustoUnitario*(1+$AH14),2) -> 0
A15: 0 | C15: L | D15: =COUNTA(OFFSET(D15,1,0):D$57) -> 41 | E15: 0 | L15: F | M15: =IF(TIPOORCAMENTO="LICITADO","CTEF","LOTE") -> LOTE | N15: =IF(TIPOORCAMENTO="LICITADO","CTEF","LOTE") -> LOTE | O15: =Import.DescLote -> Pavimentação asfáltica - Linha Imigra | X15: =SUMIF(OFFSET($C15,1,0,ROW(X57)-ROW(X15)-1),"S",OFFSET(X15,1,0,ROW(X57)-ROW(X15)-1)) -> 310649.07 | Z15: =IF(AND($C15="S",$X15>0),LEFT($Y15,2),"") ->  | AA15: =SUMIF(OFFSET($C15,1,0,ROW(AA57)-ROW(AA15)-1),"S",OFFSET(AA15,1,0,ROW(AA57)-ROW(AA15)-1)) -> 310649.07 | AB15: =SUMIF(OFFSET($C15,1,0,ROW(AB57)-ROW(AB15)-1),"S",OFFSET(AB15,1,0,ROW(AB57)-ROW(AB15)-1)) -> 0 | AM15: 310649.07
A16: =CHOOSE(1+LOG(1+2*(ORÇAMENTO.Nivel="Meta")+4*(ORÇAMENTO.Nivel="Nível 2")+8*(ORÇAMENTO.Nivel="Nível 3")+16*(ORÇAMENTO.Nivel="Nível 4")+32*(ORÇAMENTO.Nivel="Serviço"),2),0,1,2,3,4,"S") -> 1 | B16: =IF(OR(C16="s",C16=0),OFFSET(B16,-1,0),C16) -> 1 | C16: =IF(OFFSET(C16,-1,0)="L",1,IF(OFFSET(C16,-1,0)=1,2,IF(OR(A16="s",A16=0),"S",IF(AND(OFFSET(C16,-1,0)=2,A16=4),3,IF(AND(OR(OFFSET(C16,-1,0)="s",OFFSET(C16,-1,0)=0),A16<>"s",A16>OFFSET(B16,-1,0)),OFFSET(B16,-1,0),A16))))) -> 1 | D16: =IF(OR(C16="S",C16=0),0,IF(ISERROR(K16),J16,SMALL(J16:K16,1))) -> 41 | E16: =IF($C16=1,OFFSET(E16,-1,0)+MAX(1,COUNTIF(QCI!$A$13:$A$24,OFFSET(ORÇAMENTO!E16,-1,0))),OFFSET(E16,-1,0)) -> 1 | F16: =IF($C16=1,0,IF($C16=2,OFFSET(F16,-1,0)+1,OFFSET(F16,-1,0))) -> 0 | G16: =IF(AND($C16<=2,$C16<>0),0,IF($C16=3,OFFSET(G16,-1,0)+1,OFFSET(G16,-1,0))) -> 0 | H16: =IF(AND($C16<=3,$C16<>0),0,IF($C16=4,OFFSET(H16,-1,0)+1,OFFSET(H16,-1,0))) -> 0 | I16: =IF(AND($C16<=4,$C16<>0),0,IF(AND($C16="S",$X16>0),OFFSET(I16,-1,0)+1,OFFSET(I16,-1,0))) -> 0 | J16: =IF(OR($C16="S",$C16=0),0,MATCH(0,OFFSET($D16,1,$C16,ROW($C$57)-ROW($C16)),0)) -> 41 | K16: =IF(OR($C16="S",$C16=0),0,MATCH(OFFSET($D16,0,$C16)+IF($C16<>1,1,COUNTIF(QCI!$A$13:$A$24,ORÇAMENTO!E16)),OFFSET($D16,1,$C16,ROW($C$57)-ROW($C16)),0)) ->  | L16: =IF(OR($X16>0,$C16=1,$C16=2,$C16=3,$C16=4),"F","") -> F | M16: Meta | N16: =CHOOSE(1+LOG(1+2*(C16=1)+4*(C16=2)+8*(C16=3)+16*(C16=4)+32*(C16="S"),2),"","Meta","Nível 2","Nível 3","Nível 4","Serviço") -> Meta | O16: =IF(OR($C16=0,$L16=""),"-",CONCATENATE(E16&".",IF(AND($A$5>=2,$C16>=2),F16&".",""),IF(AND($A$5>=3,$C16>=3),G16&".",""),IF(AND($A$5>=4,$C16>=4),H16&".",""),IF($C16="S",I16&".",""))) -> 1. | P16: SINAPI | R16: Pavimentação asfáltica no acesso a Linha Imigra | S16: =REFERENCIA.Unidade -> - | T16: =OFFSET(CÁLCULO!H$15,ROW($T16)-ROW(T$15),0) -> 0 | V16: BDI 1 | W16: =IF($C16="S",ROUND(IF(TIPOORCAMENTO="Proposto",ORÇAMENTO.CustoUnitario*(1+$AH16),ORÇAMENTO.PrecoUnitarioLicitado),15-13*$AF$10),0) -> 0 | X16: =IF($C16="S",IF(Import.TipoArredondamento<>"TransfereGOV",VTOTAL1,SUM(OFFSET(CÁLCULO!$AA$15,ROW($X16)-ROW($X$15),1):OFFSET(CÁLCULO!$AL$15,ROW($X16)-ROW($X$15),-1))),IF($C16=0,0,ROUND(SomaAgrup,15-13*$AF$11))) -> 310649.07 | Y16: RA | Z16: =IF(AND($C16="S",$X16>0),IF(ISBLANK($Y16),"RA",LEFT($Y16,2)),"") ->  | AA16: =IF($C16="S",IF($Z16="CP",$X16,IF($Z16="RA",(($X16)*QCI!$AA$3),0)),SomaAgrup) -> 310649.07 | AB16: =IF($C16="S",IF($Z16="OU",ROUND($X16,2),0),SomaAgrup) -> 0 | AC16: =IF($N16="","",IF(ORÇAMENTO.Descricao="","DESCRIÇÃO",IF(AND($C16="S",ORÇAMENTO.Unidade=""),"UNIDADE",IF($X16<0,"VALOR NEGATIVO",IF(OR(AND(TIPOORCAMENTO="Proposto",$AG16<>"",$AG16>0,ORÇAMENTO.CustoUnitario>$AG16),AND(TIPOORCAMENTO="LICITADO",ORÇAMENTO.PrecoUnitarioLicitado>$AN16)),"ACIMA REF.",""))))) ->  | AD16: =IF(C16<=CRONO.NivelExibicao,MAX($AD$15:OFFSET(AD16,-1,0))+IF($C16<>1,1,MAX(1,COUNTIF(QCI!$A$13:$A$24,OFFSET($E16,-1,0)))),"") -> 1 | AE16: =IF(AND($C16="S",ORÇAMENTO.CodBarra<>""),IF(ORÇAMENTO.Fonte="",ORÇAMENTO.CodBarra,CONCATENATE(ORÇAMENTO.Fonte," ",ORÇAMENTO.CodBarra))) -> FALSE | AF16: =IF(ISERROR(INDIRECT(ORÇAMENTO.BancoRef)),"(abra o arquivo 'Referência "&Excel_BuiltIn_Database&".xlsm)",IF(OR($C16<>"S",ORÇAMENTO.CodBarra=""),"(Sem Código)",IF(ISERROR(MATCH($AE16,INDIRECT(ORÇAMENTO.BancoRef),0)),"(Código não identificado nas referências)",MATCH($AE16,INDIRECT(ORÇAMENTO.BancoRef),0)))) -> (Sem Código) | AG16: =ROUND(IF(DESONERACAO="sim",REFERENCIA.Desonerado,REFERENCIA.NaoDesonerado),2) -> 0 | AH16: =ROUND(IF(ISNUMBER(ORÇAMENTO.OpcaoBDI),ORÇAMENTO.OpcaoBDI,IF(LEFT(ORÇAMENTO.OpcaoBDI,3)="BDI",HLOOKUP(ORÇAMENTO.OpcaoBDI,$F$4:$H$5,2,FALSE),0)),15-11*$AF$9) -> 0.22 | AM16: 310649.07 | AN16: =ROUND(ORÇAMENTO.CustoUnitario*(1+$AH16),2) -> 0
A17: 2 | B17: 2 | C17: 2 | D17: 3 | E17: =IF($C17=1,OFFSET(E17,-1,0)+MAX(1,COUNTIF(QCI!$A$13:$A$24,OFFSET(ORÇAMENTO!E17,-1,0))),OFFSET(E17,-1,0)) -> 1 | F17: 1 | G17: 0 | H17: 0 | I17: 0 | J17: 40 | K17: =IF(OR($C17="S",$C17=0),0,MATCH(OFFSET($D17,0,$C17)+IF($C17<>1,1,COUNTIF(QCI!$A$13:$A$24,ORÇAMENTO!E17)),OFFSET($D17,1,$C17,ROW($C$57)-ROW($C17)),0)) -> 3 | L17: F | M17: Nível 2 | N17: Nível 2 | O17: 1.1. | P17: SINAPI | R17: Serviços Iniciais | S17: =REFERENCIA.Unidade -> - | T17: =OFFSET(CÁLCULO!H$15,ROW($T17)-ROW(T$15),0) -> 0 | V17: BDI 1 | W17: =IF($C17="S",ROUND(IF(TIPOORCAMENTO="Proposto",ORÇAMENTO.CustoUnitario*(1+$AH17),ORÇAMENTO.PrecoUnitarioLicitado),15-13*$AF$10),0) -> 0 | X17: =IF($C17="S",IF(Import.TipoArredondamento<>"TransfereGOV",VTOTAL1,SUM(OFFSET(CÁLCULO!$AA$15,ROW($X17)-ROW($X$15),1):OFFSET(CÁLCULO!$AL$15,ROW($X17)-ROW($X$15),-1))),IF($C17=0,0,ROUND(SomaAgrup,15-13*$AF$11))) -> 7065.81 | Y17: RA | AA17: =IF($C17="S",IF($Z17="CP",$X17,IF($Z17="RA",(($X17)*QCI!$AA$3),0)),SomaAgrup) -> 7065.81 | AB17: 0 | AC17: =IF($N17="","",IF(ORÇAMENTO.Descricao="","DESCRIÇÃO",IF(AND($C17="S",ORÇAMENTO.Unidade=""),"UNIDADE",IF($X17<0,"VALOR NEGATIVO",IF(OR(AND(TIPOORCAMENTO="Proposto",$AG17<>"",$AG17>0,ORÇAMENTO.CustoUnitario>$AG17),AND(TIPOORCAMENTO="LICITADO",ORÇAMENTO.PrecoUnitarioLicitado>$AN17)),"ACIMA REF.",""))))) ->  | AD17: =IF(C17<=CRONO.NivelExibicao,MAX($AD$15:OFFSET(AD17,-1,0))+IF($C17<>1,1,MAX(1,COUNTIF(QCI!$A$13:$A$24,OFFSET($E17,-1,0)))),"") -> 2 | AE17: =IF(AND($C17="S",ORÇAMENTO.CodBarra<>""),IF(ORÇAMENTO.Fonte="",ORÇAMENTO.CodBarra,CONCATENATE(ORÇAMENTO.Fonte," ",ORÇAMENTO.CodBarra))) -> FALSE | AF17: =IF(ISERROR(INDIRECT(ORÇAMENTO.BancoRef)),"(abra o arquivo 'Referência "&Excel_BuiltIn_Database&".xlsm)",IF(OR($C17<>"S",ORÇAMENTO.CodBarra=""),"(Sem Código)",IF(ISERROR(MATCH($AE17,INDIRECT(ORÇAMENTO.BancoRef),0)),"(Código não identificado nas referências)",MATCH($AE17,INDIRECT(ORÇAMENTO.BancoRef),0)))) -> (Sem Código) | AG17: =ROUND(IF(DESONERACAO="sim",REFERENCIA.Desonerado,REFERENCIA.NaoDesonerado),2) -> 0 | AH17: 0.22 | AM17: 7065.81 | AN17: 0
A18: S | B18: 2 | C18: S | D18: 0 | E18: =IF($C18=1,OFFSET(E18,-1,0)+MAX(1,COUNTIF(QCI!$A$13:$A$24,OFFSET(ORÇAMENTO!E18,-1,0))),OFFSET(E18,-1,0)) -> 1 | F18: 1 | G18: 0 | H18: 0 | I18: 1 | J18: 0 | K18: =IF(OR($C18="S",$C18=0),0,MATCH(OFFSET($D18,0,$C18)+IF($C18<>1,1,COUNTIF(QCI!$A$13:$A$24,ORÇAMENTO!E18)),OFFSET($D18,1,$C18,ROW($C$57)-ROW($C18)),0)) -> 0 | L18: F | M18: Serviço | N18: Serviço | O18: 1.1.1. | P18: Composição | Q18: 01 | R18: =IF($C18="S",REFERENCIA.Descricao,"(digite a descrição aqui)") -> PLACA DE OBRA EM AÇO GALVANIZADO 1,00X3,00M | S18: =REFERENCIA.Unidade -> M2 | T18: =OFFSET(CÁLCULO!H$15,ROW($T18)-ROW(T$15),0) -> 3 | U18: 384.04 | V18: BDI 1 | W18: =IF($C18="S",ROUND(IF(TIPOORCAMENTO="Proposto",ORÇAMENTO.CustoUnitario*(1+$AH18),ORÇAMENTO.PrecoUnitarioLicitado),15-13*$AF$10),0) -> 468.53 | X18: =IF($C18="S",IF(Import.TipoArredondamento<>"TransfereGOV",VTOTAL1,SUM(OFFSET(CÁLCULO!$AA$15,ROW($X18)-ROW($X$15),1):OFFSET(CÁLCULO!$AL$15,ROW($X18)-ROW($X$15),-1))),IF($C18=0,0,ROUND(SomaAgrup,15-13*$AF$11))) -> 1405.59 | Y18: RA | Z18: RA | AA18: =IF($C18="S",IF($Z18="CP",$X18,IF($Z18="RA",(($X18)*QCI!$AA$3),0)),SomaAgrup) -> 1405.59 | AB18: 0 | AC18: =IF($N18="","",IF(ORÇAMENTO.Descricao="","DESCRIÇÃO",IF(AND($C18="S",ORÇAMENTO.Unidade=""),"UNIDADE",IF($X18<0,"VALOR NEGATIVO",IF(OR(AND(TIPOORCAMENTO="Proposto",$AG18<>"",$AG18>0,ORÇAMENTO.CustoUnitario>$AG18),AND(TIPOORCAMENTO="LICITADO",ORÇAMENTO.PrecoUnitarioLicitado>$AN18)),"ACIMA REF.",""))))) ->  | AD18: =IF(C18<=CRONO.NivelExibicao,MAX($AD$15:OFFSET(AD18,-1,0))+IF($C18<>1,1,MAX(1,COUNTIF(QCI!$A$13:$A$24,OFFSET($E18,-1,0)))),"") ->  | AE18: =IF(AND($C18="S",ORÇAMENTO.CodBarra<>""),IF(ORÇAMENTO.Fonte="",ORÇAMENTO.CodBarra,CONCATENATE(ORÇAMENTO.Fonte," ",ORÇAMENTO.CodBarra))) -> Composição 01 | AF18: =IF(ISERROR(INDIRECT(ORÇAMENTO.BancoRef)),"(abra o arquivo 'Referência "&Excel_BuiltIn_Database&".xlsm)",IF(OR($C18<>"S",ORÇAMENTO.CodBarra=""),"(Sem Código)",IF(ISERROR(MATCH($AE18,INDIRECT(ORÇAMENTO.BancoRef),0)),"(Código não identificado nas referências)",MATCH($AE18,INDIRECT(ORÇAMENTO.BancoRef),0)))) -> 3 | AG18: =ROUND(IF(DESONERACAO="sim",REFERENCIA.Desonerado,REFERENCIA.NaoDesonerado),2) -> 384.04 | AH18: 0.22 | AM18: 1405.59 | AN18: 468.53
A19: =CHOOSE(1+LOG(1+2*(ORÇAMENTO.Nivel="Meta")+4*(ORÇAMENTO.Nivel="Nível 2")+8*(ORÇAMENTO.Nivel="Nível 3")+16*(ORÇAMENTO.Nivel="Nível 4")+32*(ORÇAMENTO.Nivel="Serviço"),2),0,1,2,3,4,"S") -> S | B19: =IF(OR(C19="s",C19=0),OFFSET(B19,-1,0),C19) -> 2 | C19: =IF(OFFSET(C19,-1,0)="L",1,IF(OFFSET(C19,-1,0)=1,2,IF(OR(A19="s",A19=0),"S",IF(AND(OFFSET(C19,-1,0)=2,A19=4),3,IF(AND(OR(OFFSET(C19,-1,0)="s",OFFSET(C19,-1,0)=0),A19<>"s",A19>OFFSET(B19,-1,0)),OFFSET(B19,-1,0),A19))))) -> S | D19: =IF(OR(C19="S",C19=0),0,IF(ISERROR(K19),J19,SMALL(J19:K19,1))) -> 0 | E19: =IF($C19=1,OFFSET(E19,-1,0)+MAX(1,COUNTIF(QCI!$A$13:$A$24,OFFSET(ORÇAMENTO!E19,-1,0))),OFFSET(E19,-1,0)) -> 1 | F19: =IF($C19=1,0,IF($C19=2,OFFSET(F19,-1,0)+1,OFFSET(F19,-1,0))) -> 1 | G19: =IF(AND($C19<=2,$C19<>0),0,IF($C19=3,OFFSET(G19,-1,0)+1,OFFSET(G19,-1,0))) -> 0 | H19: =IF(AND($C19<=3,$C19<>0),0,IF($C19=4,OFFSET(H19,-1,0)+1,OFFSET(H19,-1,0))) -> 0 | I19: =IF(AND($C19<=4,$C19<>0),0,IF(AND($C19="S",$X19>0),OFFSET(I19,-1,0)+1,OFFSET(I19,-1,0))) -> 2 | J19: 0 | K19: =IF(OR($C19="S",$C19=0),0,MATCH(OFFSET($D19,0,$C19)+IF($C19<>1,1,COUNTIF(QCI!$A$13:$A$24,ORÇAMENTO!E19)),OFFSET($D19,1,$C19,ROW($C$57)-ROW($C19)),0)) -> 0 | L19: =IF(OR($X19>0,$C19=1,$C19=2,$C19=3,$C19=4),"F","") -> F | M19: Serviço | N19: =CHOOSE(1+LOG(1+2*(C19=1)+4*(C19=2)+8*(C19=3)+16*(C19=4)+32*(C19="S"),2),"","Meta","Nível 2","Nível 3","Nível 4","Serviço") -> Serviço | O19: =IF(OR($C19=0,$L19=""),"-",CONCATENATE(E19&".",IF(AND($A$5>=2,$C19>=2),F19&".",""),IF(AND($A$5>=3,$C19>=3),G19&".",""),IF(AND($A$5>=4,$C19>=4),H19&".",""),IF($C19="S",I19&".",""))) -> 1.1.2. | P19: Composição | Q19: 09 | R19: =IF($C19="S",REFERENCIA.Descricao,"(digite a descrição aqui)") -> ADMINISTRAÇÃO DA OBRA | S19: =REFERENCIA.Unidade -> MÊS | T19: =OFFSET(CÁLCULO!H$15,ROW($T19)-ROW(T$15),0) -> 2 | U19: 2319.76 | V19: BDI 1 | W19: =IF($C19="S",ROUND(IF(TIPOORCAMENTO="Proposto",ORÇAMENTO.CustoUnitario*(1+$AH19),ORÇAMENTO.PrecoUnitarioLicitado),15-13*$AF$10),0) -> 2830.11 | X19: =IF($C19="S",IF(Import.TipoArredondamento<>"TransfereGOV",VTOTAL1,SUM(OFFSET(CÁLCULO!$AA$15,ROW($X19)-ROW($X$15),1):OFFSET(CÁLCULO!$AL$15,ROW($X19)-ROW($X$15),-1))),IF($C19=0,0,ROUND(SomaAgrup,15-13*$AF$11))) -> 5660.22 | Y19: RA | Z19: =IF(AND($C19="S",$X19>0),IF(ISBLANK($Y19),"RA",LEFT($Y19,2)),"") -> RA | AA19: =IF($C19="S",IF($Z19="CP",$X19,IF($Z19="RA",(($X19)*QCI!$AA$3),0)),SomaAgrup) -> 5660.22 | AB19: =IF($C19="S",IF($Z19="OU",ROUND($X19,2),0),SomaAgrup) -> 0 | AC19: =IF($N19="","",IF(ORÇAMENTO.Descricao="","DESCRIÇÃO",IF(AND($C19="S",ORÇAMENTO.Unidade=""),"UNIDADE",IF($X19<0,"VALOR NEGATIVO",IF(OR(AND(TIPOORCAMENTO="Proposto",$AG19<>"",$AG19>0,ORÇAMENTO.CustoUnitario>$AG19),AND(TIPOORCAMENTO="LICITADO",ORÇAMENTO.PrecoUnitarioLicitado>$AN19)),"ACIMA REF.",""))))) ->  | AD19: =IF(C19<=CRONO.NivelExibicao,MAX($AD$15:OFFSET(AD19,-1,0))+IF($C19<>1,1,MAX(1,COUNTIF(QCI!$A$13:$A$24,OFFSET($E19,-1,0)))),"") ->  | AE19: =IF(AND($C19="S",ORÇAMENTO.CodBarra<>""),IF(ORÇAMENTO.Fonte="",ORÇAMENTO.CodBarra,CONCATENATE(ORÇAMENTO.Fonte," ",ORÇAMENTO.CodBarra))) -> Composição 09 | AF19: =IF(ISERROR(INDIRECT(ORÇAMENTO.BancoRef)),"(abra o arquivo 'Referência "&Excel_BuiltIn_Database&".xlsm)",IF(OR($C19<>"S",ORÇAMENTO.CodBarra=""),"(Sem Código)",IF(ISERROR(MATCH($AE19,INDIRECT(ORÇAMENTO.BancoRef),0)),"(Código não identificado nas referências)",MATCH($AE19,INDIRECT(ORÇAMENTO.BancoRef),0)))) -> 11 | AG19: =ROUND(IF(DESONERACAO="sim",REFERENCIA.Desonerado,REFERENCIA.NaoDesonerado),2) -> 2319.76 | AH19: =ROUND(IF(ISNUMBER(ORÇAMENTO.OpcaoBDI),ORÇAMENTO.OpcaoBDI,IF(LEFT(ORÇAMENTO.OpcaoBDI,3)="BDI",HLOOKUP(ORÇAMENTO.OpcaoBDI,$F$4:$H$5,2,FALSE),0)),15-11*$AF$9) -> 0.22 | AM19: 5660.22 | AN19: =ROUND(ORÇAMENTO.CustoUnitario*(1+$AH19),2) -> 2830.11
A20: 2 | B20: 2 | C20: 2 | D20: 3 | E20: =IF($C20=1,OFFSET(E20,-1,0)+MAX(1,COUNTIF(QCI!$A$13:$A$24,OFFSET(ORÇAMENTO!E20,-1,0))),OFFSET(E20,-1,0)) -> 1 | F20: 2 | G20: 0 | H20: 0 | I20: 0 | J20: 37 | K20: =IF(OR($C20="S",$C20=0),0,MATCH(OFFSET($D20,0,$C20)+IF($C20<>1,1,COUNTIF(QCI!$A$13:$A$24,ORÇAMENTO!E20)),OFFSET($D20,1,$C20,ROW($C$57)-ROW($C20)),0)) -> 3 | L20: F | M20: Nível 2 | N20: Nível 2 | O20: 1.2. | P20: SINAPI | R20: Mobilização e desmobilização de equipamentos | S20: =REFERENCIA.Unidade -> - | T20: =OFFSET(CÁLCULO!H$15,ROW($T20)-ROW(T$15),0) -> 0 | U20: 0 | V20: BDI 1 | W20: =IF($C20="S",ROUND(IF(TIPOORCAMENTO="Proposto",ORÇAMENTO.CustoUnitario*(1+$AH20),ORÇAMENTO.PrecoUnitarioLicitado),15-13*$AF$10),0) -> 0 | X20: =IF($C20="S",IF(Import.TipoArredondamento<>"TransfereGOV",VTOTAL1,SUM(OFFSET(CÁLCULO!$AA$15,ROW($X20)-ROW($X$15),1):OFFSET(CÁLCULO!$AL$15,ROW($X20)-ROW($X$15),-1))),IF($C20=0,0,ROUND(SomaAgrup,15-13*$AF$11))) -> 4373.94 | Y20: RA | AA20: =IF($C20="S",IF($Z20="CP",$X20,IF($Z20="RA",(($X20)*QCI!$AA$3),0)),SomaAgrup) -> 4373.94 | AB20: 0 | AC20: =IF($N20="","",IF(ORÇAMENTO.Descricao="","DESCRIÇÃO",IF(AND($C20="S",ORÇAMENTO.Unidade=""),"UNIDADE",IF($X20<0,"VALOR NEGATIVO",IF(OR(AND(TIPOORCAMENTO="Proposto",$AG20<>"",$AG20>0,ORÇAMENTO.CustoUnitario>$AG20),AND(TIPOORCAMENTO="LICITADO",ORÇAMENTO.PrecoUnitarioLicitado>$AN20)),"ACIMA REF.",""))))) ->  | AD20: =IF(C20<=CRONO.NivelExibicao,MAX($AD$15:OFFSET(AD20,-1,0))+IF($C20<>1,1,MAX(1,COUNTIF(QCI!$A$13:$A$24,OFFSET($E20,-1,0)))),"") -> 3 | AE20: =IF(AND($C20="S",ORÇAMENTO.CodBarra<>""),IF(ORÇAMENTO.Fonte="",ORÇAMENTO.CodBarra,CONCATENATE(ORÇAMENTO.Fonte," ",ORÇAMENTO.CodBarra))) -> FALSE | AF20: =IF(ISERROR(INDIRECT(ORÇAMENTO.BancoRef)),"(abra o arquivo 'Referência "&Excel_BuiltIn_Database&".xlsm)",IF(OR($C20<>"S",ORÇAMENTO.CodBarra=""),"(Sem Código)",IF(ISERROR(MATCH($AE20,INDIRECT(ORÇAMENTO.BancoRef),0)),"(Código não identificado nas referências)",MATCH($AE20,INDIRECT(ORÇAMENTO.BancoRef),0)))) -> (Sem Código) | AG20: =ROUND(IF(DESONERACAO="sim",REFERENCIA.Desonerado,REFERENCIA.NaoDesonerado),2) -> 0 | AH20: 0.22 | AM20: 4373.94 | AN20: 0
A21: S | B21: 2 | C21: S | D21: 0 | E21: =IF($C21=1,OFFSET(E21,-1,0)+MAX(1,COUNTIF(QCI!$A$13:$A$24,OFFSET(ORÇAMENTO!E21,-1,0))),OFFSET(E21,-1,0)) -> 1 | F21: 2 | G21: 0 | H21: 0 | I21: 1 | J21: 0 | K21: =IF(OR($C21="S",$C21=0),0,MATCH(OFFSET($D21,0,$C21)+IF($C21<>1,1,COUNTIF(QCI!$A$13:$A$24,ORÇAMENTO!E21)),OFFSET($D21,1,$C21,ROW($C$57)-ROW($C21)),0)) -> 0 | L21: F | M21: Serviço | N21: Serviço | O21: 1.2.1. | P21: Composição | Q21: 02 | R21: =IF($C21="S",REFERENCIA.Descricao,"(digite a descrição aqui)") -> MOBILIZAÇÃO | S21: =REFERENCIA.Unidade -> UNID | T21: =OFFSET(CÁLCULO!H$15,ROW($T21)-ROW(T$15),0) -> 1 | U21: 1792.6 | V21: BDI 1 | W21: =IF($C21="S",ROUND(IF(TIPOORCAMENTO="Proposto",ORÇAMENTO.CustoUnitario*(1+$AH21),ORÇAMENTO.PrecoUnitarioLicitado),15-13*$AF$10),0) -> 2186.97 | X21: =IF($C21="S",IF(Import.TipoArredondamento<>"TransfereGOV",VTOTAL1,SUM(OFFSET(CÁLCULO!$AA$15,ROW($X21)-ROW($X$15),1):OFFSET(CÁLCULO!$AL$15,ROW($X21)-ROW($X$15),-1))),IF($C21=0,0,ROUND(SomaAgrup,15-13*$AF$11))) -> 2186.97 | Y21: RA | Z21: RA | AA21: =IF($C21="S",IF($Z21="CP",$X21,IF($Z21="RA",(($X21)*QCI!$AA$3),0)),SomaAgrup) -> 2186.97 | AB21: 0 | AC21: =IF($N21="","",IF(ORÇAMENTO.Descricao="","DESCRIÇÃO",IF(AND($C21="S",ORÇAMENTO.Unidade=""),"UNIDADE",IF($X21<0,"VALOR NEGATIVO",IF(OR(AND(TIPOORCAMENTO="Proposto",$AG21<>"",$AG21>0,ORÇAMENTO.CustoUnitario>$AG21),AND(TIPOORCAMENTO="LICITADO",ORÇAMENTO.PrecoUnitarioLicitado>$AN21)),"ACIMA REF.",""))))) ->  | AD21: =IF(C21<=CRONO.NivelExibicao,MAX($AD$15:OFFSET(AD21,-1,0))+IF($C21<>1,1,MAX(1,COUNTIF(QCI!$A$13:$A$24,OFFSET($E21,-1,0)))),"") ->  | AE21: =IF(AND($C21="S",ORÇAMENTO.CodBarra<>""),IF(ORÇAMENTO.Fonte="",ORÇAMENTO.CodBarra,CONCATENATE(ORÇAMENTO.Fonte," ",ORÇAMENTO.CodBarra))) -> Composição 02 | AF21: =IF(ISERROR(INDIRECT(ORÇAMENTO.BancoRef)),"(abra o arquivo 'Referência "&Excel_BuiltIn_Database&".xlsm)",IF(OR($C21<>"S",ORÇAMENTO.CodBarra=""),"(Sem Código)",IF(ISERROR(MATCH($AE21,INDIRECT(ORÇAMENTO.BancoRef),0)),"(Código não identificado nas referências)",MATCH($AE21,INDIRECT(ORÇAMENTO.BancoRef),0)))) -> 4 | AG21: =ROUND(IF(DESONERACAO="sim",REFERENCIA.Desonerado,REFERENCIA.NaoDesonerado),2) -> 1792.6 | AH21: 0.22 | AM21: 2186.97 | AN21: 2186.97
A22: S | B22: 2 | C22: S | D22: 0 | E22: =IF($C22=1,OFFSET(E22,-1,0)+MAX(1,COUNTIF(QCI!$A$13:$A$24,OFFSET(ORÇAMENTO!E22,-1,0))),OFFSET(E22,-1,0)) -> 1 | F22: 2 | G22: 0 | H22: 0 | I22: 2 | J22: 0 | K22: =IF(OR($C22="S",$C22=0),0,MATCH(OFFSET($D22,0,$C22)+IF($C22<>1,1,COUNTIF(QCI!$A$13:$A$24,ORÇAMENTO!E22)),OFFSET($D22,1,$C22,ROW($C$57)-ROW($C22)),0)) -> 0 | L22: F | M22: Serviço | N22: Serviço | O22: 1.2.2. | P22: Composição | Q22: 03 | R22: =IF($C22="S",REFERENCIA.Descricao,"(digite a descrição aqui)") -> DESMOBILIZAÇÃO | S22: =REFERENCIA.Unidade -> UNID | T22: =OFFSET(CÁLCULO!H$15,ROW($T22)-ROW(T$15),0) -> 1 | U22: 1792.6 | V22: BDI 1 | W22: =IF($C22="S",ROUND(IF(TIPOORCAMENTO="Proposto",ORÇAMENTO.CustoUnitario*(1+$AH22),ORÇAMENTO.PrecoUnitarioLicitado),15-13*$AF$10),0) -> 2186.97 | X22: =IF($C22="S",IF(Import.TipoArredondamento<>"TransfereGOV",VTOTAL1,SUM(OFFSET(CÁLCULO!$AA$15,ROW($X22)-ROW($X$15),1):OFFSET(CÁLCULO!$AL$15,ROW($X22)-ROW($X$15),-1))),IF($C22=0,0,ROUND(SomaAgrup,15-13*$AF$11))) -> 2186.97 | Y22: RA | Z22: RA | AA22: =IF($C22="S",IF($Z22="CP",$X22,IF($Z22="RA",(($X22)*QCI!$AA$3),0)),SomaAgrup) -> 2186.97 | AB22: 0 | AC22: =IF($N22="","",IF(ORÇAMENTO.Descricao="","DESCRIÇÃO",IF(AND($C22="S",ORÇAMENTO.Unidade=""),"UNIDADE",IF($X22<0,"VALOR NEGATIVO",IF(OR(AND(TIPOORCAMENTO="Proposto",$AG22<>"",$AG22>0,ORÇAMENTO.CustoUnitario>$AG22),AND(TIPOORCAMENTO="LICITADO",ORÇAMENTO.PrecoUnitarioLicitado>$AN22)),"ACIMA REF.",""))))) ->  | AD22: =IF(C22<=CRONO.NivelExibicao,MAX($AD$15:OFFSET(AD22,-1,0))+IF($C22<>1,1,MAX(1,COUNTIF(QCI!$A$13:$A$24,OFFSET($E22,-1,0)))),"") ->  | AE22: =IF(AND($C22="S",ORÇAMENTO.CodBarra<>""),IF(ORÇAMENTO.Fonte="",ORÇAMENTO.CodBarra,CONCATENATE(ORÇAMENTO.Fonte," ",ORÇAMENTO.CodBarra))) -> Composição 03 | AF22: =IF(ISERROR(INDIRECT(ORÇAMENTO.BancoRef)),"(abra o arquivo 'Referência "&Excel_BuiltIn_Database&".xlsm)",IF(OR($C22<>"S",ORÇAMENTO.CodBarra=""),"(Sem Código)",IF(ISERROR(MATCH($AE22,INDIRECT(ORÇAMENTO.BancoRef),0)),"(Código não identificado nas referências)",MATCH($AE22,INDIRECT(ORÇAMENTO.BancoRef),0)))) -> 5 | AG22: =ROUND(IF(DESONERACAO="sim",REFERENCIA.Desonerado,REFERENCIA.NaoDesonerado),2) -> 1792.6 | AH22: 0.22 | AM22: 2186.97 | AN22: 2186.97
A23: 2 | B23: 2 | C23: 2 | D23: 2 | E23: =IF($C23=1,OFFSET(E23,-1,0)+MAX(1,COUNTIF(QCI!$A$13:$A$24,OFFSET(ORÇAMENTO!E23,-1,0))),OFFSET(E23,-1,0)) -> 1 | F23: 3 | G23: 0 | H23: 0 | I23: 0 | J23: 34 | K23: =IF(OR($C23="S",$C23=0),0,MATCH(OFFSET($D23,0,$C23)+IF($C23<>1,1,COUNTIF(QCI!$A$13:$A$24,ORÇAMENTO!E23)),OFFSET($D23,1,$C23,ROW($C$57)-ROW($C23)),0)) -> 2 | L23: F | M23: Nível 2 | N23: Nível 2 | O23: 1.3. | P23: SINAPI | R23: Movimentação de terra | S23: =REFERENCIA.Unidade -> - | T23: =OFFSET(CÁLCULO!H$15,ROW($T23)-ROW(T$15),0) -> 0 | U23: 0 | V23: BDI 1 | W23: =IF($C23="S",ROUND(IF(TIPOORCAMENTO="Proposto",ORÇAMENTO.CustoUnitario*(1+$AH23),ORÇAMENTO.PrecoUnitarioLicitado),15-13*$AF$10),0) -> 0 | X23: =IF($C23="S",IF(Import.TipoArredondamento<>"TransfereGOV",VTOTAL1,SUM(OFFSET(CÁLCULO!$AA$15,ROW($X23)-ROW($X$15),1):OFFSET(CÁLCULO!$AL$15,ROW($X23)-ROW($X$15),-1))),IF($C23=0,0,ROUND(SomaAgrup,15-13*$AF$11))) -> 1455.64 | Y23: RA | AA23: =IF($C23="S",IF($Z23="CP",$X23,IF($Z23="RA",(($X23)*QCI!$AA$3),0)),SomaAgrup) -> 1455.64 | AB23: 0 | AC23: =IF($N23="","",IF(ORÇAMENTO.Descricao="","DESCRIÇÃO",IF(AND($C23="S",ORÇAMENTO.Unidade=""),"UNIDADE",IF($X23<0,"VALOR NEGATIVO",IF(OR(AND(TIPOORCAMENTO="Proposto",$AG23<>"",$AG23>0,ORÇAMENTO.CustoUnitario>$AG23),AND(TIPOORCAMENTO="LICITADO",ORÇAMENTO.PrecoUnitarioLicitado>$AN23)),"ACIMA REF.",""))))) ->  | AD23: =IF(C23<=CRONO.NivelExibicao,MAX($AD$15:OFFSET(AD23,-1,0))+IF($C23<>1,1,MAX(1,COUNTIF(QCI!$A$13:$A$24,OFFSET($E23,-1,0)))),"") -> 4 | AE23: =IF(AND($C23="S",ORÇAMENTO.CodBarra<>""),IF(ORÇAMENTO.Fonte="",ORÇAMENTO.CodBarra,CONCATENATE(ORÇAMENTO.Fonte," ",ORÇAMENTO.CodBarra))) -> FALSE | AF23: =IF(ISERROR(INDIRECT(ORÇAMENTO.BancoRef)),"(abra o arquivo 'Referência "&Excel_BuiltIn_Database&".xlsm)",IF(OR($C23<>"S",ORÇAMENTO.CodBarra=""),"(Sem Código)",IF(ISERROR(MATCH($AE23,INDIRECT(ORÇAMENTO.BancoRef),0)),"(Código não identificado nas referências)",MATCH($AE23,INDIRECT(ORÇAMENTO.BancoRef),0)))) -> (Sem Código) | AG23: =ROUND(IF(DESONERACAO="sim",REFERENCIA.Desonerado,REFERENCIA.NaoDesonerado),2) -> 0 | AH23: 0.22 | AM23: 1455.64 | AN23: 0
A24: S | B24: 2 | C24: S | D24: 0 | E24: =IF($C24=1,OFFSET(E24,-1,0)+MAX(1,COUNTIF(QCI!$A$13:$A$24,OFFSET(ORÇAMENTO!E24,-1,0))),OFFSET(E24,-1,0)) -> 1 | F24: 3 | G24: 0 | H24: 0 | I24: 1 | J24: 0 | K24: =IF(OR($C24="S",$C24=0),0,MATCH(OFFSET($D24,0,$C24)+IF($C24<>1,1,COUNTIF(QCI!$A$13:$A$24,ORÇAMENTO!E24)),OFFSET($D24,1,$C24,ROW($C$57)-ROW($C24)),0)) -> 0 | L24: F | M24: Serviço | N24: Serviço | O24: 1.3.1. | P24: SINAPI | Q24: 101127 | R24: =IF($C24="S",REFERENCIA.Descricao,"(digite a descrição aqui)") -> ESCAVAÇÃO HORIZONTAL, INCLUINDO CARGA E DESCARGA EM SOLO DE 1A CATEGORIA COM TRATOR DE ESTEIRAS (347HP/LÂMINA: 8,70M3). AF_07/2020 | S24: =REFERENCIA.Unidade -> M3 | T24: =OFFSET(CÁLCULO!H$15,ROW($T24)-ROW(T$15),0) -> 80.6 | U24: 14.8 | V24: BDI 1 | W24: =IF($C24="S",ROUND(IF(TIPOORCAMENTO="Proposto",ORÇAMENTO.CustoUnitario*(1+$AH24),ORÇAMENTO.PrecoUnitarioLicitado),15-13*$AF$10),0) -> 18.06 | X24: =IF($C24="S",IF(Import.TipoArredondamento<>"TransfereGOV",VTOTAL1,SUM(OFFSET(CÁLCULO!$AA$15,ROW($X24)-ROW($X$15),1):OFFSET(CÁLCULO!$AL$15,ROW($X24)-ROW($X$15),-1))),IF($C24=0,0,ROUND(SomaAgrup,15-13*$AF$11))) -> 1455.64 | Y24: RA | Z24: RA | AA24: =IF($C24="S",IF($Z24="CP",$X24,IF($Z24="RA",(($X24)*QCI!$AA$3),0)),SomaAgrup) -> 1455.64 | AB24: 0 | AC24: =IF($N24="","",IF(ORÇAMENTO.Descricao="","DESCRIÇÃO",IF(AND($C24="S",ORÇAMENTO.Unidade=""),"UNIDADE",IF($X24<0,"VALOR NEGATIVO",IF(OR(AND(TIPOORCAMENTO="Proposto",$AG24<>"",$AG24>0,ORÇAMENTO.CustoUnitario>$AG24),AND(TIPOORCAMENTO="LICITADO",ORÇAMENTO.PrecoUnitarioLicitado>$AN24)),"ACIMA REF.",""))))) ->  | AD24: =IF(C24<=CRONO.NivelExibicao,MAX($AD$15:OFFSET(AD24,-1,0))+IF($C24<>1,1,MAX(1,COUNTIF(QCI!$A$13:$A$24,OFFSET($E24,-1,0)))),"") ->  | AE24: =IF(AND($C24="S",ORÇAMENTO.CodBarra<>""),IF(ORÇAMENTO.Fonte="",ORÇAMENTO.CodBarra,CONCATENATE(ORÇAMENTO.Fonte," ",ORÇAMENTO.CodBarra))) -> SINAPI 101127 | AF24: =IF(ISERROR(INDIRECT(ORÇAMENTO.BancoRef)),"(abra o arquivo 'Referência "&Excel_BuiltIn_Database&".xlsm)",IF(OR($C24<>"S",ORÇAMENTO.CodBarra=""),"(Sem Código)",IF(ISERROR(MATCH($AE24,INDIRECT(ORÇAMENTO.BancoRef),0)),"(Código não identificado nas referências)",MATCH($AE24,INDIRECT(ORÇAMENTO.BancoRef),0)))) -> 5573 | AG24: =ROUND(IF(DESONERACAO="sim",REFERENCIA.Desonerado,REFERENCIA.NaoDesonerado),2) -> 14.8 | AH24: 0.22 | AM24: 1455.64 | AN24: 18.06
A25: 2 | B25: 2 | C25: 2 | D25: 10 | E25: =IF($C25=1,OFFSET(E25,-1,0)+MAX(1,COUNTIF(QCI!$A$13:$A$24,OFFSET(ORÇAMENTO!E25,-1,0))),OFFSET(E25,-1,0)) -> 1 | F25: 4 | G25: 0 | H25: 0 | I25: 0 | J25: 32 | K25: =IF(OR($C25="S",$C25=0),0,MATCH(OFFSET($D25,0,$C25)+IF($C25<>1,1,COUNTIF(QCI!$A$13:$A$24,ORÇAMENTO!E25)),OFFSET($D25,1,$C25,ROW($C$57)-ROW($C25)),0)) -> 10 | L25: F | M25: Nível 2 | N25: Nível 2 | O25: 1.4. | P25: SINAPI | R25: Drenagem | S25: =REFERENCIA.Unidade -> - | T25: =OFFSET(CÁLCULO!H$15,ROW($T25)-ROW(T$15),0) -> 0 | U25: 0 | V25: BDI 1 | W25: =IF($C25="S",ROUND(IF(TIPOORCAMENTO="Proposto",ORÇAMENTO.CustoUnitario*(1+$AH25),ORÇAMENTO.PrecoUnitarioLicitado),15-13*$AF$10),0) -> 0 | X25: =IF($C25="S",IF(Import.TipoArredondamento<>"TransfereGOV",VTOTAL1,SUM(OFFSET(CÁLCULO!$AA$15,ROW($X25)-ROW($X$15),1):OFFSET(CÁLCULO!$AL$15,ROW($X25)-ROW($X$15),-1))),IF($C25=0,0,ROUND(SomaAgrup,15-13*$AF$11))) -> 41893.87 | Y25: RA | AA25: =IF($C25="S",IF($Z25="CP",$X25,IF($Z25="RA",(($X25)*QCI!$AA$3),0)),SomaAgrup) -> 41893.87 | AB25: 0 | AC25: =IF($N25="","",IF(ORÇAMENTO.Descricao="","DESCRIÇÃO",IF(AND($C25="S",ORÇAMENTO.Unidade=""),"UNIDADE",IF($X25<0,"VALOR NEGATIVO",IF(OR(AND(TIPOORCAMENTO="Proposto",$AG25<>"",$AG25>0,ORÇAMENTO.CustoUnitario>$AG25),AND(TIPOORCAMENTO="LICITADO",ORÇAMENTO.PrecoUnitarioLicitado>$AN25)),"ACIMA REF.",""))))) ->  | AD25: =IF(C25<=CRONO.NivelExibicao,MAX($AD$15:OFFSET(AD25,-1,0))+IF($C25<>1,1,MAX(1,COUNTIF(QCI!$A$13:$A$24,OFFSET($E25,-1,0)))),"") -> 5 | AE25: =IF(AND($C25="S",ORÇAMENTO.CodBarra<>""),IF(ORÇAMENTO.Fonte="",ORÇAMENTO.CodBarra,CONCATENATE(ORÇAMENTO.Fonte," ",ORÇAMENTO.CodBarra))) -> FALSE | AF25: =IF(ISERROR(INDIRECT(ORÇAMENTO.BancoRef)),"(abra o arquivo 'Referência "&Excel_BuiltIn_Database&".xlsm)",IF(OR($C25<>"S",ORÇAMENTO.CodBarra=""),"(Sem Código)",IF(ISERROR(MATCH($AE25,INDIRECT(ORÇAMENTO.BancoRef),0)),"(Código não identificado nas referências)",MATCH($AE25,INDIRECT(ORÇAMENTO.BancoRef),0)))) -> (Sem Código) | AG25: =ROUND(IF(DESONERACAO="sim",REFERENCIA.Desonerado,REFERENCIA.NaoDesonerado),2) -> 0 | AH25: 0.22 | AM25: 41893.87 | AN25: 0
A26: S | B26: 2 | C26: S | D26: 0 | E26: =IF($C26=1,OFFSET(E26,-1,0)+MAX(1,COUNTIF(QCI!$A$13:$A$24,OFFSET(ORÇAMENTO!E26,-1,0))),OFFSET(E26,-1,0)) -> 1 | F26: 4 | G26: 0 | H26: 0 | I26: 1 | J26: 0 | K26: =IF(OR($C26="S",$C26=0),0,MATCH(OFFSET($D26,0,$C26)+IF($C26<>1,1,COUNTIF(QCI!$A$13:$A$24,ORÇAMENTO!E26)),OFFSET($D26,1,$C26,ROW($C$57)-ROW($C26)),0)) -> 0 | L26: F | M26: Serviço | N26: Serviço | O26: 1.4.1. | P26: Composição | Q26: 10 | R26: =IF($C26="S",REFERENCIA.Descricao,"(digite a descrição aqui)") -> ENVELOPAMENTO DE SARJETA COM TUBO DE CONCRETO DIÂMETRO 30CM | S26: =REFERENCIA.Unidade -> M | T26: =OFFSET(CÁLCULO!H$15,ROW($T26)-ROW(T$15),0) -> 10 | U26: 110.92 | V26: BDI 1 | W26: =IF($C26="S",ROUND(IF(TIPOORCAMENTO="Proposto",ORÇAMENTO.CustoUnitario*(1+$AH26),ORÇAMENTO.PrecoUnitarioLicitado),15-13*$AF$10),0) -> 135.32 | X26: =IF($C26="S",IF(Import.TipoArredondamento<>"TransfereGOV",VTOTAL1,SUM(OFFSET(CÁLCULO!$AA$15,ROW($X26)-ROW($X$15),1):OFFSET(CÁLCULO!$AL$15,ROW($X26)-ROW($X$15),-1))),IF($C26=0,0,ROUND(SomaAgrup,15-13*$AF$11))) -> 1353.2 | Y26: RA | Z26: RA | AA26: =IF($C26="S",IF($Z26="CP",$X26,IF($Z26="RA",(($X26)*QCI!$AA$3),0)),SomaAgrup) -> 1353.2 | AB26: 0 | AC26: =IF($N26="","",IF(ORÇAMENTO.Descricao="","DESCRIÇÃO",IF(AND($C26="S",ORÇAMENTO.Unidade=""),"UNIDADE",IF($X26<0,"VALOR NEGATIVO",IF(OR(AND(TIPOORCAMENTO="Proposto",$AG26<>"",$AG26>0,ORÇAMENTO.CustoUnitario>$AG26),AND(TIPOORCAMENTO="LICITADO",ORÇAMENTO.PrecoUnitarioLicitado>$AN26)),"ACIMA REF.",""))))) ->  | AD26: =IF(C26<=CRONO.NivelExibicao,MAX($AD$15:OFFSET(AD26,-1,0))+IF($C26<>1,1,MAX(1,COUNTIF(QCI!$A$13:$A$24,OFFSET($E26,-1,0)))),"") ->  | AE26: =IF(AND($C26="S",ORÇAMENTO.CodBarra<>""),IF(ORÇAMENTO.Fonte="",ORÇAMENTO.CodBarra,CONCATENATE(ORÇAMENTO.Fonte," ",ORÇAMENTO.CodBarra))) -> Composição 10 | AF26: =IF(ISERROR(INDIRECT(ORÇAMENTO.BancoRef)),"(abra o arquivo 'Referência "&Excel_BuiltIn_Database&".xlsm)",IF(OR($C26<>"S",ORÇAMENTO.CodBarra=""),"(Sem Código)",IF(ISERROR(MATCH($AE26,INDIRECT(ORÇAMENTO.BancoRef),0)),"(Código não identificado nas referências)",MATCH($AE26,INDIRECT(ORÇAMENTO.BancoRef),0)))) -> 12 | AG26: =ROUND(IF(DESONERACAO="sim",REFERENCIA.Desonerado,REFERENCIA.NaoDesonerado),2) -> 110.92 | AH26: 0.22 | AM26: 1353.2 | AN26: 135.32
A27: S | B27: 2 | C27: S | D27: 0 | E27: =IF($C27=1,OFFSET(E27,-1,0)+MAX(1,COUNTIF(QCI!$A$13:$A$24,OFFSET(ORÇAMENTO!E27,-1,0))),OFFSET(E27,-1,0)) -> 1 | F27: 4 | G27: 0 | H27: 0 | I27: 2 | J27: 0 | K27: =IF(OR($C27="S",$C27=0),0,MATCH(OFFSET($D27,0,$C27)+IF($C27<>1,1,COUNTIF(QCI!$A$13:$A$24,ORÇAMENTO!E27)),OFFSET($D27,1,$C27,ROW($C$57)-ROW($C27)),0)) -> 0 | L27: F | M27: Serviço | N27: Serviço | O27: 1.4.2. | P27: Composição | Q27: 04 | R27: =IF($C27="S",REFERENCIA.Descricao,"(digite a descrição aqui)") -> TRANSPORTE COMERCIAL COM CAMINHÃO CARROCERIA 9T - DMT 40 KM | S27: =REFERENCIA.Unidade -> T X KM | T27: =OFFSET(CÁLCULO!H$15,ROW($T27)-ROW(T$15),0) -> 36.8 | U27: 1.19 | V27: BDI 1 | W27: =IF($C27="S",ROUND(IF(TIPOORCAMENTO="Proposto",ORÇAMENTO.CustoUnitario*(1+$AH27),ORÇAMENTO.PrecoUnitarioLicitado),15-13*$AF$10),0) -> 1.45 | X27: =IF($C27="S",IF(Import.TipoArredondamento<>"TransfereGOV",VTOTAL1,SUM(OFFSET(CÁLCULO!$AA$15,ROW($X27)-ROW($X$15),1):OFFSET(CÁLCULO!$AL$15,ROW($X27)-ROW($X$15),-1))),IF($C27=0,0,ROUND(SomaAgrup,15-13*$AF$11))) -> 53.36 | Y27: RA | Z27: RA | AA27: =IF($C27="S",IF($Z27="CP",$X27,IF($Z27="RA",(($X27)*QCI!$AA$3),0)),SomaAgrup) -> 53.36 | AB27: 0 | AC27: =IF($N27="","",IF(ORÇAMENTO.Descricao="","DESCRIÇÃO",IF(AND($C27="S",ORÇAMENTO.Unidade=""),"UNIDADE",IF($X27<0,"VALOR NEGATIVO",IF(OR(AND(TIPOORCAMENTO="Proposto",$AG27<>"",$AG27>0,ORÇAMENTO.CustoUnitario>$AG27),AND(TIPOORCAMENTO="LICITADO",ORÇAMENTO.PrecoUnitarioLicitado>$AN27)),"ACIMA REF.",""))))) ->  | AD27: =IF(C27<=CRONO.NivelExibicao,MAX($AD$15:OFFSET(AD27,-1,0))+IF($C27<>1,1,MAX(1,COUNTIF(QCI!$A$13:$A$24,OFFSET($E27,-1,0)))),"") ->  | AE27: =IF(AND($C27="S",ORÇAMENTO.CodBarra<>""),IF(ORÇAMENTO.Fonte="",ORÇAMENTO.CodBarra,CONCATENATE(ORÇAMENTO.Fonte," ",ORÇAMENTO.CodBarra))) -> Composição 04 | AF27: =IF(ISERROR(INDIRECT(ORÇAMENTO.BancoRef)),"(abra o arquivo 'Referência "&Excel_BuiltIn_Database&".xlsm)",IF(OR($C27<>"S",ORÇAMENTO.CodBarra=""),"(Sem Código)",IF(ISERROR(MATCH($AE27,INDIRECT(ORÇAMENTO.BancoRef),0)),"(Código não identificado nas referências)",MATCH($AE27,INDIRECT(ORÇAMENTO.BancoRef),0)))) -> 6 | AG27: =ROUND(IF(DESONERACAO="sim",REFERENCIA.Desonerado,REFERENCIA.NaoDesonerado),2) -> 1.19 | AH27: 0.22 | AM27: 53.36 | AN27: 1.45
A28: S | B28: 2 | C28: S | D28: 0 | E28: =IF($C28=1,OFFSET(E28,-1,0)+MAX(1,COUNTIF(QCI!$A$13:$A$24,OFFSET(ORÇAMENTO!E28,-1,0))),OFFSET(E28,-1,0)) -> 1 | F28: 4 | G28: 0 | H28: 0 | I28: 3 | J28: 0 | K28: =IF(OR($C28="S",$C28=0),0,MATCH(OFFSET($D28,0,$C28)+IF($C28<>1,1,COUNTIF(QCI!$A$13:$A$24,ORÇAMENTO!E28)),OFFSET($D28,1,$C28,ROW($C$57)-ROW($C28)),0)) -> 0 | L28: F | M28: Serviço | N28: Serviço | O28: 1.4.3. | P28: SINAPI | Q28: 92214 | R28: =IF($C28="S",REFERENCIA.Descricao,"(digite a descrição aqui)") -> TUBO DE CONCRETO PARA REDES COLETORAS DE ÁGUAS PLUVIAIS, DIÂMETRO DE 800 MM, JUNTA RÍGIDA, INSTALADO EM LOCAL COM BAIXO NÍVEL DE INTERFERÊNCIAS - FORNECIMENTO E ASSENTAMENTO. AF_03/2024 | S28: =REFERENCIA.Unidade -> M | T28: =OFFSET(CÁLCULO!H$15,ROW($T28)-ROW(T$15),0) -> 9 | U28: 495.18 | V28: BDI 1 | W28: =IF($C28="S",ROUND(IF(TIPOORCAMENTO="Proposto",ORÇAMENTO.CustoUnitario*(1+$AH28),ORÇAMENTO.PrecoUnitarioLicitado),15-13*$AF$10),0) -> 604.12 | X28: =IF($C28="S",IF(Import.TipoArredondamento<>"TransfereGOV",VTOTAL1,SUM(OFFSET(CÁLCULO!$AA$15,ROW($X28)-ROW($X$15),1):OFFSET(CÁLCULO!$AL$15,ROW($X28)-ROW($X$15),-1))),IF($C28=0,0,ROUND(SomaAgrup,15-13*$AF$11))) -> 5437.08 | Y28: RA | Z28: RA | AA28: =IF($C28="S",IF($Z28="CP",$X28,IF($Z28="RA",(($X28)*QCI!$AA$3),0)),SomaAgrup) -> 5437.08 | AB28: 0 | AC28: =IF($N28="","",IF(ORÇAMENTO.Descricao="","DESCRIÇÃO",IF(AND($C28="S",ORÇAMENTO.Unidade=""),"UNIDADE",IF($X28<0,"VALOR NEGATIVO",IF(OR(AND(TIPOORCAMENTO="Proposto",$AG28<>"",$AG28>0,ORÇAMENTO.CustoUnitario>$AG28),AND(TIPOORCAMENTO="LICITADO",ORÇAMENTO.PrecoUnitarioLicitado>$AN28)),"ACIMA REF.",""))))) ->  | AD28: =IF(C28<=CRONO.NivelExibicao,MAX($AD$15:OFFSET(AD28,-1,0))+IF($C28<>1,1,MAX(1,COUNTIF(QCI!$A$13:$A$24,OFFSET($E28,-1,0)))),"") ->  | AE28: =IF(AND($C28="S",ORÇAMENTO.CodBarra<>""),IF(ORÇAMENTO.Fonte="",ORÇAMENTO.CodBarra,CONCATENATE(ORÇAMENTO.Fonte," ",ORÇAMENTO.CodBarra))) -> SINAPI 92214 | AF28: =IF(ISERROR(INDIRECT(ORÇAMENTO.BancoRef)),"(abra o arquivo 'Referência "&Excel_BuiltIn_Database&".xlsm)",IF(OR($C28<>"S",ORÇAMENTO.CodBarra=""),"(Sem Código)",IF(ISERROR(MATCH($AE28,INDIRECT(ORÇAMENTO.BancoRef),0)),"(Código não identificado nas referências)",MATCH($AE28,INDIRECT(ORÇAMENTO.BancoRef),0)))) -> 169 | AG28: =ROUND(IF(DESONERACAO="sim",REFERENCIA.Desonerado,REFERENCIA.NaoDesonerado),2) -> 495.18 | AH28: 0.22 | AM28: 5437.08 | AN28: 604.12
A29: S | B29: 2 | C29: S | D29: 0 | E29: =IF($C29=1,OFFSET(E29,-1,0)+MAX(1,COUNTIF(QCI!$A$13:$A$24,OFFSET(ORÇAMENTO!E29,-1,0))),OFFSET(E29,-1,0)) -> 1 | F29: 4 | G29: 0 | H29: 0 | I29: 4 | J29: 0 | K29: =IF(OR($C29="S",$C29=0),0,MATCH(OFFSET($D29,0,$C29)+IF($C29<>1,1,COUNTIF(QCI!$A$13:$A$24,ORÇAMENTO!E29)),OFFSET($D29,1,$C29,ROW($C$57)-ROW($C29)),0)) -> 0 | L29: F | M29: Serviço | N29: Serviço | O29: 1.4.4. | P29: Composição | Q29: 04 | R29: =IF($C29="S",REFERENCIA.Descricao,"(digite a descrição aqui)") -> TRANSPORTE COMERCIAL COM CAMINHÃO CARROCERIA 9T - DMT 40 KM | S29: =REFERENCIA.Unidade -> T X KM | T29: =OFFSET(CÁLCULO!H$15,ROW($T29)-ROW(T$15),0) -> 82.6 | U29: 1.19 | V29: BDI 1 | W29: =IF($C29="S",ROUND(IF(TIPOORCAMENTO="Proposto",ORÇAMENTO.CustoUnitario*(1+$AH29),ORÇAMENTO.PrecoUnitarioLicitado),15-13*$AF$10),0) -> 1.45 | X29: =IF($C29="S",IF(Import.TipoArredondamento<>"TransfereGOV",VTOTAL1,SUM(OFFSET(CÁLCULO!$AA$15,ROW($X29)-ROW($X$15),1):OFFSET(CÁLCULO!$AL$15,ROW($X29)-ROW($X$15),-1))),IF($C29=0,0,ROUND(SomaAgrup,15-13*$AF$11))) -> 119.77 | Y29: RA | Z29: RA | AA29: =IF($C29="S",IF($Z29="CP",$X29,IF($Z29="RA",(($X29)*QCI!$AA$3),0)),SomaAgrup) -> 119.77 | AB29: 0 | AC29: =IF($N29="","",IF(ORÇAMENTO.Descricao="","DESCRIÇÃO",IF(AND($C29="S",ORÇAMENTO.Unidade=""),"UNIDADE",IF($X29<0,"VALOR NEGATIVO",IF(OR(AND(TIPOORCAMENTO="Proposto",$AG29<>"",$AG29>0,ORÇAMENTO.CustoUnitario>$AG29),AND(TIPOORCAMENTO="LICITADO",ORÇAMENTO.PrecoUnitarioLicitado>$AN29)),"ACIMA REF.",""))))) ->  | AD29: =IF(C29<=CRONO.NivelExibicao,MAX($AD$15:OFFSET(AD29,-1,0))+IF($C29<>1,1,MAX(1,COUNTIF(QCI!$A$13:$A$24,OFFSET($E29,-1,0)))),"") ->  | AE29: =IF(AND($C29="S",ORÇAMENTO.CodBarra<>""),IF(ORÇAMENTO.Fonte="",ORÇAMENTO.CodBarra,CONCATENATE(ORÇAMENTO.Fonte," ",ORÇAMENTO.CodBarra))) -> Composição 04 | AF29: =IF(ISERROR(INDIRECT(ORÇAMENTO.BancoRef)),"(abra o arquivo 'Referência "&Excel_BuiltIn_Database&".xlsm)",IF(OR($C29<>"S",ORÇAMENTO.CodBarra=""),"(Sem Código)",IF(ISERROR(MATCH($AE29,INDIRECT(ORÇAMENTO.BancoRef),0)),"(Código não identificado nas referências)",MATCH($AE29,INDIRECT(ORÇAMENTO.BancoRef),0)))) -> 6 | AG29: =ROUND(IF(DESONERACAO="sim",REFERENCIA.Desonerado,REFERENCIA.NaoDesonerado),2) -> 1.19 | AH29: 0.22 | AM29: 119.77 | AN29: 1.45
A30: S | B30: 2 | C30: S | D30: 0 | E30: =IF($C30=1,OFFSET(E30,-1,0)+MAX(1,COUNTIF(QCI!$A$13:$A$24,OFFSET(ORÇAMENTO!E30,-1,0))),OFFSET(E30,-1,0)) -> 1 | F30: 4 | G30: 0 | H30: 0 | I30: 5 | J30: 0 | K30: =IF(OR($C30="S",$C30=0),0,MATCH(OFFSET($D30,0,$C30)+IF($C30<>1,1,COUNTIF(QCI!$A$13:$A$24,ORÇAMENTO!E30)),OFFSET($D30,1,$C30,ROW($C$57)-ROW($C30)),0)) -> 0 | L30: F | M30: Serviço | N30: Serviço | O30: 1.4.5. | P30: SINAPI | Q30: 90106 | R30: =IF($C30="S",REFERENCIA.Descricao,"(digite a descrição aqui)") -> ESCAVAÇÃO MECANIZADA DE VALA COM PROFUNDIDADE ATÉ 1,5 M (MÉDIA MONTANTE E JUSANTE/UMA COMPOSIÇÃO POR TRECHO), RETROESCAV. (0,26 M3), LARGURA DE 0,8 M A 1,5 M, EM SOLO DE 1A CATEGORIA, LOCAIS COM BAIXO NÍVEL DE INTERFERÊNCIA. AF_02/2021 | S30: =REFERENCIA.Unidade -> M3 | T30: =OFFSET(CÁLCULO!H$15,ROW($T30)-ROW(T$15),0) -> 27.36 | U30: 7.69 | V30: BDI 1 | W30: =IF($C30="S",ROUND(IF(TIPOORCAMENTO="Proposto",ORÇAMENTO.CustoUnitario*(1+$AH30),ORÇAMENTO.PrecoUnitarioLicitado),15-13*$AF$10),0) -> 9.38 | X30: =IF($C30="S",IF(Import.TipoArredondamento<>"TransfereGOV",VTOTAL1,SUM(OFFSET(CÁLCULO!$AA$15,ROW($X30)-ROW($X$15),1):OFFSET(CÁLCULO!$AL$15,ROW($X30)-ROW($X$15),-1))),IF($C30=0,0,ROUND(SomaAgrup,15-13*$AF$11))) -> 256.64 | Y30: RA | Z30: RA | AA30: =IF($C30="S",IF($Z30="CP",$X30,IF($Z30="RA",(($X30)*QCI!$AA$3),0)),SomaAgrup) -> 256.64 | AB30: 0 | AC30: =IF($N30="","",IF(ORÇAMENTO.Descricao="","DESCRIÇÃO",IF(AND($C30="S",ORÇAMENTO.Unidade=""),"UNIDADE",IF($X30<0,"VALOR NEGATIVO",IF(OR(AND(TIPOORCAMENTO="Proposto",$AG30<>"",$AG30>0,ORÇAMENTO.CustoUnitario>$AG30),AND(TIPOORCAMENTO="LICITADO",ORÇAMENTO.PrecoUnitarioLicitado>$AN30)),"ACIMA REF.",""))))) ->  | AD30: =IF(C30<=CRONO.NivelExibicao,MAX($AD$15:OFFSET(AD30,-1,0))+IF($C30<>1,1,MAX(1,COUNTIF(QCI!$A$13:$A$24,OFFSET($E30,-1,0)))),"") ->  | AE30: =IF(AND($C30="S",ORÇAMENTO.CodBarra<>""),IF(ORÇAMENTO.Fonte="",ORÇAMENTO.CodBarra,CONCATENATE(ORÇAMENTO.Fonte," ",ORÇAMENTO.CodBarra))) -> SINAPI 90106 | AF30: =IF(ISERROR(INDIRECT(ORÇAMENTO.BancoRef)),"(abra o arquivo 'Referência "&Excel_BuiltIn_Database&".xlsm)",IF(OR($C30<>"S",ORÇAMENTO.CodBarra=""),"(Sem Código)",IF(ISERROR(MATCH($AE30,INDIRECT(ORÇAMENTO.BancoRef),0)),"(Código não identificado nas referências)",MATCH($AE30,INDIRECT(ORÇAMENTO.BancoRef),0)))) -> 5691 | AG30: =ROUND(IF(DESONERACAO="sim",REFERENCIA.Desonerado,REFERENCIA.NaoDesonerado),2) -> 7.69 | AH30: 0.22 | AM30: 256.64 | AN30: 9.38
A31: S | B31: 2 | C31: S | D31: 0 | E31: =IF($C31=1,OFFSET(E31,-1,0)+MAX(1,COUNTIF(QCI!$A$13:$A$24,OFFSET(ORÇAMENTO!E31,-1,0))),OFFSET(E31,-1,0)) -> 1 | F31: 4 | G31: 0 | H31: 0 | I31: 6 | J31: 0 | K31: =IF(OR($C31="S",$C31=0),0,MATCH(OFFSET($D31,0,$C31)+IF($C31<>1,1,COUNTIF(QCI!$A$13:$A$24,ORÇAMENTO!E31)),OFFSET($D31,1,$C31,ROW($C$57)-ROW($C31)),0)) -> 0 | L31: F | M31: Serviço | N31: Serviço | O31: 1.4.6. | P31: SINAPI | Q31: 93379 | R31: =IF($C31="S",REFERENCIA.Descricao,"(digite a descrição aqui)") -> REATERRO MECANIZADO DE VALA COM RETROESCAVADEIRA (CAPACIDADE DA CAÇAMBA DA RETRO: 0,26 M³/POTÊNCIA: 88 HP), LARGURA 0,8 A 1,5 M, PROFUNDIDADE ATÉ 1,5 M, COM SOLO (SEM SUBSTITUIÇÃO) DE 1ª CATEGORIA, COM COMPACTADOR DE SOLOS DE PERCUSSÃO AF_08/2023 | S31: =REFERENCIA.Unidade -> M3 | T31: =OFFSET(CÁLCULO!H$15,ROW($T31)-ROW(T$15),0) -> 22.84 | U31: 18.67 | V31: BDI 1 | W31: =IF($C31="S",ROUND(IF(TIPOORCAMENTO="Proposto",ORÇAMENTO.CustoUnitario*(1+$AH31),ORÇAMENTO.PrecoUnitarioLicitado),15-13*$AF$10),0) -> 22.78 | X31: =IF($C31="S",IF(Import.TipoArredondamento<>"TransfereGOV",VTOTAL1,SUM(OFFSET(CÁLCULO!$AA$15,ROW($X31)-ROW($X$15),1):OFFSET(CÁLCULO!$AL$15,ROW($X31)-ROW($X$15),-1))),IF($C31=0,0,ROUND(SomaAgrup,15-13*$AF$11))) -> 520.3 | Y31: RA | Z31: RA | AA31: =IF($C31="S",IF($Z31="CP",$X31,IF($Z31="RA",(($X31)*QCI!$AA$3),0)),SomaAgrup) -> 520.3 | AB31: 0 | AC31: =IF($N31="","",IF(ORÇAMENTO.Descricao="","DESCRIÇÃO",IF(AND($C31="S",ORÇAMENTO.Unidade=""),"UNIDADE",IF($X31<0,"VALOR NEGATIVO",IF(OR(AND(TIPOORCAMENTO="Proposto",$AG31<>"",$AG31>0,ORÇAMENTO.CustoUnitario>$AG31),AND(TIPOORCAMENTO="LICITADO",ORÇAMENTO.PrecoUnitarioLicitado>$AN31)),"ACIMA REF.",""))))) ->  | AD31: =IF(C31<=CRONO.NivelExibicao,MAX($AD$15:OFFSET(AD31,-1,0))+IF($C31<>1,1,MAX(1,COUNTIF(QCI!$A$13:$A$24,OFFSET($E31,-1,0)))),"") ->  | AE31: =IF(AND($C31="S",ORÇAMENTO.CodBarra<>""),IF(ORÇAMENTO.Fonte="",ORÇAMENTO.CodBarra,CONCATENATE(ORÇAMENTO.Fonte," ",ORÇAMENTO.CodBarra))) -> SINAPI 93379 | AF31: =IF(ISERROR(INDIRECT(ORÇAMENTO.BancoRef)),"(abra o arquivo 'Referência "&Excel_BuiltIn_Database&".xlsm)",IF(OR($C31<>"S",ORÇAMENTO.CodBarra=""),"(Sem Código)",IF(ISERROR(MATCH($AE31,INDIRECT(ORÇAMENTO.BancoRef),0)),"(Código não identificado nas referências)",MATCH($AE31,INDIRECT(ORÇAMENTO.BancoRef),0)))) -> 5769 | AG31: =ROUND(IF(DESONERACAO="sim",REFERENCIA.Desonerado,REFERENCIA.NaoDesonerado),2) -> 18.67 | AH31: 0.22 | AM31: 520.3 | AN31: 22.78
A32: S | B32: 2 | C32: S | D32: 0 | E32: =IF($C32=1,OFFSET(E32,-1,0)+MAX(1,COUNTIF(QCI!$A$13:$A$24,OFFSET(ORÇAMENTO!E32,-1,0))),OFFSET(E32,-1,0)) -> 1 | F32: 4 | G32: 0 | H32: 0 | I32: 7 | J32: 0 | K32: =IF(OR($C32="S",$C32=0),0,MATCH(OFFSET($D32,0,$C32)+IF($C32<>1,1,COUNTIF(QCI!$A$13:$A$24,ORÇAMENTO!E32)),OFFSET($D32,1,$C32,ROW($C$57)-ROW($C32)),0)) -> 0 | L32: F | M32: Serviço | N32: Serviço | O32: 1.4.7. | P32: Composição | Q32: 11 | R32: =IF($C32="S",REFERENCIA.Descricao,"(digite a descrição aqui)") -> CAIXA COLETORA TIPO BOCA DE LOBO COMPLETA | S32: =REFERENCIA.Unidade -> UNID | T32: =OFFSET(CÁLCULO!H$15,ROW($T32)-ROW(T$15),0) -> 2 | U32: 1813.9 | V32: BDI 1 | W32: =IF($C32="S",ROUND(IF(TIPOORCAMENTO="Proposto",ORÇAMENTO.CustoUnitario*(1+$AH32),ORÇAMENTO.PrecoUnitarioLicitado),15-13*$AF$10),0) -> 2212.96 | X32: =IF($C32="S",IF(Import.TipoArredondamento<>"TransfereGOV",VTOTAL1,SUM(OFFSET(CÁLCULO!$AA$15,ROW($X32)-ROW($X$15),1):OFFSET(CÁLCULO!$AL$15,ROW($X32)-ROW($X$15),-1))),IF($C32=0,0,ROUND(SomaAgrup,15-13*$AF$11))) -> 4425.92 | Y32: RA | Z32: RA | AA32: =IF($C32="S",IF($Z32="CP",$X32,IF($Z32="RA",(($X32)*QCI!$AA$3),0)),SomaAgrup) -> 4425.92 | AB32: 0 | AC32: =IF($N32="","",IF(ORÇAMENTO.Descricao="","DESCRIÇÃO",IF(AND($C32="S",ORÇAMENTO.Unidade=""),"UNIDADE",IF($X32<0,"VALOR NEGATIVO",IF(OR(AND(TIPOORCAMENTO="Proposto",$AG32<>"",$AG32>0,ORÇAMENTO.CustoUnitario>$AG32),AND(TIPOORCAMENTO="LICITADO",ORÇAMENTO.PrecoUnitarioLicitado>$AN32)),"ACIMA REF.",""))))) ->  | AD32: =IF(C32<=CRONO.NivelExibicao,MAX($AD$15:OFFSET(AD32,-1,0))+IF($C32<>1,1,MAX(1,COUNTIF(QCI!$A$13:$A$24,OFFSET($E32,-1,0)))),"") ->  | AE32: =IF(AND($C32="S",ORÇAMENTO.CodBarra<>""),IF(ORÇAMENTO.Fonte="",ORÇAMENTO.CodBarra,CONCATENATE(ORÇAMENTO.Fonte," ",ORÇAMENTO.CodBarra))) -> Composição 11 | AF32: =IF(ISERROR(INDIRECT(ORÇAMENTO.BancoRef)),"(abra o arquivo 'Referência "&Excel_BuiltIn_Database&".xlsm)",IF(OR($C32<>"S",ORÇAMENTO.CodBarra=""),"(Sem Código)",IF(ISERROR(MATCH($AE32,INDIRECT(ORÇAMENTO.BancoRef),0)),"(Código não identificado nas referências)",MATCH($AE32,INDIRECT(ORÇAMENTO.BancoRef),0)))) -> 13 | AG32: =ROUND(IF(DESONERACAO="sim",REFERENCIA.Desonerado,REFERENCIA.NaoDesonerado),2) -> 1813.9 | AH32: 0.22 | AM32: 4425.92 | AN32: 2212.96
A33: S | B33: 2 | C33: S | D33: 0 | E33: =IF($C33=1,OFFSET(E33,-1,0)+MAX(1,COUNTIF(QCI!$A$13:$A$24,OFFSET(ORÇAMENTO!E33,-1,0))),OFFSET(E33,-1,0)) -> 1 | F33: 4 | G33: 0 | H33: 0 | I33: 8 | J33: 0 | K33: =IF(OR($C33="S",$C33=0),0,MATCH(OFFSET($D33,0,$C33)+IF($C33<>1,1,COUNTIF(QCI!$A$13:$A$24,ORÇAMENTO!E33)),OFFSET($D33,1,$C33,ROW($C$57)-ROW($C33)),0)) -> 0 | L33: F | M33: Serviço | N33: Serviço | O33: 1.4.8. | P33: SINAPI | Q33: 94284 | R33: =IF($C33="S",REFERENCIA.Descricao,"(digite a descrição aqui)") -> EXECUÇÃO DE SARJETA DE CONCRETO USINADO, MOLDADA IN LOCO EM TRECHO CURVO, 45 CM BASE X 15 CM ALTURA. AF_01/2024 | S33: =REFERENCIA.Unidade -> M | T33: =OFFSET(CÁLCULO!H$15,ROW($T33)-ROW(T$15),0) -> 264 | U33: 70.86 | V33: BDI 1 | W33: =IF($C33="S",ROUND(IF(TIPOORCAMENTO="Proposto",ORÇAMENTO.CustoUnitario*(1+$AH33),ORÇAMENTO.PrecoUnitarioLicitado),15-13*$AF$10),0) -> 86.45 | X33: =IF($C33="S",IF(Import.TipoArredondamento<>"TransfereGOV",VTOTAL1,SUM(OFFSET(CÁLCULO!$AA$15,ROW($X33)-ROW($X$15),1):OFFSET(CÁLCULO!$AL$15,ROW($X33)-ROW($X$15),-1))),IF($C33=0,0,ROUND(SomaAgrup,15-13*$AF$11))) -> 22822.8 | Y33: RA | Z33: RA | AA33: =IF($C33="S",IF($Z33="CP",$X33,IF($Z33="RA",(($X33)*QCI!$AA$3),0)),SomaAgrup) -> 22822.8 | AB33: 0 | AC33: =IF($N33="","",IF(ORÇAMENTO.Descricao="","DESCRIÇÃO",IF(AND($C33="S",ORÇAMENTO.Unidade=""),"UNIDADE",IF($X33<0,"VALOR NEGATIVO",IF(OR(AND(TIPOORCAMENTO="Proposto",$AG33<>"",$AG33>0,ORÇAMENTO.CustoUnitario>$AG33),AND(TIPOORCAMENTO="LICITADO",ORÇAMENTO.PrecoUnitarioLicitado>$AN33)),"ACIMA REF.",""))))) ->  | AD33: =IF(C33<=CRONO.NivelExibicao,MAX($AD$15:OFFSET(AD33,-1,0))+IF($C33<>1,1,MAX(1,COUNTIF(QCI!$A$13:$A$24,OFFSET($E33,-1,0)))),"") ->  | AE33: =IF(AND($C33="S",ORÇAMENTO.CodBarra<>""),IF(ORÇAMENTO.Fonte="",ORÇAMENTO.CodBarra,CONCATENATE(ORÇAMENTO.Fonte," ",ORÇAMENTO.CodBarra))) -> SINAPI 94284 | AF33: =IF(ISERROR(INDIRECT(ORÇAMENTO.BancoRef)),"(abra o arquivo 'Referência "&Excel_BuiltIn_Database&".xlsm)",IF(OR($C33<>"S",ORÇAMENTO.CodBarra=""),"(Sem Código)",IF(ISERROR(MATCH($AE33,INDIRECT(ORÇAMENTO.BancoRef),0)),"(Código não identificado nas referências)",MATCH($AE33,INDIRECT(ORÇAMENTO.BancoRef),0)))) -> 1838 | AG33: =ROUND(IF(DESONERACAO="sim",REFERENCIA.Desonerado,REFERENCIA.NaoDesonerado),2) -> 70.86 | AH33: 0.22 | AM33: 22822.8 | AN33: 86.45
A34: =CHOOSE(1+LOG(1+2*(ORÇAMENTO.Nivel="Meta")+4*(ORÇAMENTO.Nivel="Nível 2")+8*(ORÇAMENTO.Nivel="Nível 3")+16*(ORÇAMENTO.Nivel="Nível 4")+32*(ORÇAMENTO.Nivel="Serviço"),2),0,1,2,3,4,"S") -> S | B34: =IF(OR(C34="s",C34=0),OFFSET(B34,-1,0),C34) -> 2 | C34: =IF(OFFSET(C34,-1,0)="L",1,IF(OFFSET(C34,-1,0)=1,2,IF(OR(A34="s",A34=0),"S",IF(AND(OFFSET(C34,-1,0)=2,A34=4),3,IF(AND(OR(OFFSET(C34,-1,0)="s",OFFSET(C34,-1,0)=0),A34<>"s",A34>OFFSET(B34,-1,0)),OFFSET(B34,-1,0),A34))))) -> S | D34: =IF(OR(C34="S",C34=0),0,IF(ISERROR(K34),J34,SMALL(J34:K34,1))) -> 0 | E34: =IF($C34=1,OFFSET(E34,-1,0)+MAX(1,COUNTIF(QCI!$A$13:$A$24,OFFSET(ORÇAMENTO!E34,-1,0))),OFFSET(E34,-1,0)) -> 1 | F34: =IF($C34=1,0,IF($C34=2,OFFSET(F34,-1,0)+1,OFFSET(F34,-1,0))) -> 4 | G34: =IF(AND($C34<=2,$C34<>0),0,IF($C34=3,OFFSET(G34,-1,0)+1,OFFSET(G34,-1,0))) -> 0 | H34: =IF(AND($C34<=3,$C34<>0),0,IF($C34=4,OFFSET(H34,-1,0)+1,OFFSET(H34,-1,0))) -> 0 | I34: =IF(AND($C34<=4,$C34<>0),0,IF(AND($C34="S",$X34>0),OFFSET(I34,-1,0)+1,OFFSET(I34,-1,0))) -> 9 | J34: 0 | K34: =IF(OR($C34="S",$C34=0),0,MATCH(OFFSET($D34,0,$C34)+IF($C34<>1,1,COUNTIF(QCI!$A$13:$A$24,ORÇAMENTO!E34)),OFFSET($D34,1,$C34,ROW($C$57)-ROW($C34)),0)) -> 0 | L34: =IF(OR($X34>0,$C34=1,$C34=2,$C34=3,$C34=4),"F","") -> F | M34: Serviço | N34: =CHOOSE(1+LOG(1+2*(C34=1)+4*(C34=2)+8*(C34=3)+16*(C34=4)+32*(C34="S"),2),"","Meta","Nível 2","Nível 3","Nível 4","Serviço") -> Serviço | O34: =IF(OR($C34=0,$L34=""),"-",CONCATENATE(E34&".",IF(AND($A$5>=2,$C34>=2),F34&".",""),IF(AND($A$5>=3,$C34>=3),G34&".",""),IF(AND($A$5>=4,$C34>=4),H34&".",""),IF($C34="S",I34&".",""))) -> 1.4.9. | P34: SINAPI | Q34: 94273 | R34: =IF($C34="S",REFERENCIA.Descricao,"(digite a descrição aqui)") -> ASSENTAMENTO DE GUIA (MEIO-FIO) EM TRECHO RETO, CONFECCIONADA EM CONCRETO PRÉ-FABRICADO, DIMENSÕES 100X15X13X30 CM (COMPRIMENTO X BASE INFERIOR X BASE SUPERIOR X ALTURA). AF_01/2024 | S34: =REFERENCIA.Unidade -> M | T34: =OFFSET(CÁLCULO!H$15,ROW($T34)-ROW(T$15),0) -> 126 | U34: 44.92 | V34: BDI 1 | W34: =IF($C34="S",ROUND(IF(TIPOORCAMENTO="Proposto",ORÇAMENTO.CustoUnitario*(1+$AH34),ORÇAMENTO.PrecoUnitarioLicitado),15-13*$AF$10),0) -> 54.8 | X34: =IF($C34="S",IF(Import.TipoArredondamento<>"TransfereGOV",VTOTAL1,SUM(OFFSET(CÁLCULO!$AA$15,ROW($X34)-ROW($X$15),1):OFFSET(CÁLCULO!$AL$15,ROW($X34)-ROW($X$15),-1))),IF($C34=0,0,ROUND(SomaAgrup,15-13*$AF$11))) -> 6904.8 | Y34: RA | Z34: =IF(AND($C34="S",$X34>0),IF(ISBLANK($Y34),"RA",LEFT($Y34,2)),"") -> RA | AA34: =IF($C34="S",IF($Z34="CP",$X34,IF($Z34="RA",(($X34)*QCI!$AA$3),0)),SomaAgrup) -> 6904.8 | AB34: =IF($C34="S",IF($Z34="OU",ROUND($X34,2),0),SomaAgrup) -> 0 | AC34: =IF($N34="","",IF(ORÇAMENTO.Descricao="","DESCRIÇÃO",IF(AND($C34="S",ORÇAMENTO.Unidade=""),"UNIDADE",IF($X34<0,"VALOR NEGATIVO",IF(OR(AND(TIPOORCAMENTO="Proposto",$AG34<>"",$AG34>0,ORÇAMENTO.CustoUnitario>$AG34),AND(TIPOORCAMENTO="LICITADO",ORÇAMENTO.PrecoUnitarioLicitado>$AN34)),"ACIMA REF.",""))))) ->  | AD34: =IF(C34<=CRONO.NivelExibicao,MAX($AD$15:OFFSET(AD34,-1,0))+IF($C34<>1,1,MAX(1,COUNTIF(QCI!$A$13:$A$24,OFFSET($E34,-1,0)))),"") ->  | AE34: =IF(AND($C34="S",ORÇAMENTO.CodBarra<>""),IF(ORÇAMENTO.Fonte="",ORÇAMENTO.CodBarra,CONCATENATE(ORÇAMENTO.Fonte," ",ORÇAMENTO.CodBarra))) -> SINAPI 94273 | AF34: =IF(ISERROR(INDIRECT(ORÇAMENTO.BancoRef)),"(abra o arquivo 'Referência "&Excel_BuiltIn_Database&".xlsm)",IF(OR($C34<>"S",ORÇAMENTO.CodBarra=""),"(Sem Código)",IF(ISERROR(MATCH($AE34,INDIRECT(ORÇAMENTO.BancoRef),0)),"(Código não identificado nas referências)",MATCH($AE34,INDIRECT(ORÇAMENTO.BancoRef),0)))) -> 1827 | AG34: =ROUND(IF(DESONERACAO="sim",REFERENCIA.Desonerado,REFERENCIA.NaoDesonerado),2) -> 44.92 | AH34: =ROUND(IF(ISNUMBER(ORÇAMENTO.OpcaoBDI),ORÇAMENTO.OpcaoBDI,IF(LEFT(ORÇAMENTO.OpcaoBDI,3)="BDI",HLOOKUP(ORÇAMENTO.OpcaoBDI,$F$4:$H$5,2,FALSE),0)),15-11*$AF$9) -> 0.22 | AM34: 6904.8 | AN34: =ROUND(ORÇAMENTO.CustoUnitario*(1+$AH34),2) -> 54.8
A35: 2 | B35: 2 | C35: 2 | D35: 15 | E35: =IF($C35=1,OFFSET(E35,-1,0)+MAX(1,COUNTIF(QCI!$A$13:$A$24,OFFSET(ORÇAMENTO!E35,-1,0))),OFFSET(E35,-1,0)) -> 1 | F35: 5 | G35: 0 | H35: 0 | I35: 0 | J35: 22 | K35: =IF(OR($C35="S",$C35=0),0,MATCH(OFFSET($D35,0,$C35)+IF($C35<>1,1,COUNTIF(QCI!$A$13:$A$24,ORÇAMENTO!E35)),OFFSET($D35,1,$C35,ROW($C$57)-ROW($C35)),0)) -> 15 | L35: F | M35: Nível 2 | N35: Nível 2 | O35: 1.5. | P35: SINAPI | R35: Pavimentação asfáltica | S35: =REFERENCIA.Unidade -> - | T35: =OFFSET(CÁLCULO!H$15,ROW($T35)-ROW(T$15),0) -> 0 | U35: 0 | V35: BDI 1 | W35: =IF($C35="S",ROUND(IF(TIPOORCAMENTO="Proposto",ORÇAMENTO.CustoUnitario*(1+$AH35),ORÇAMENTO.PrecoUnitarioLicitado),15-13*$AF$10),0) -> 0 | X35: =IF($C35="S",IF(Import.TipoArredondamento<>"TransfereGOV",VTOTAL1,SUM(OFFSET(CÁLCULO!$AA$15,ROW($X35)-ROW($X$15),1):OFFSET(CÁLCULO!$AL$15,ROW($X35)-ROW($X$15),-1))),IF($C35=0,0,ROUND(SomaAgrup,15-13*$AF$11))) -> 251978.72 | Y35: RA | AA35: =IF($C35="S",IF($Z35="CP",$X35,IF($Z35="RA",(($X35)*QCI!$AA$3),0)),SomaAgrup) -> 251978.72 | AB35: 0 | AC35: =IF($N35="","",IF(ORÇAMENTO.Descricao="","DESCRIÇÃO",IF(AND($C35="S",ORÇAMENTO.Unidade=""),"UNIDADE",IF($X35<0,"VALOR NEGATIVO",IF(OR(AND(TIPOORCAMENTO="Proposto",$AG35<>"",$AG35>0,ORÇAMENTO.CustoUnitario>$AG35),AND(TIPOORCAMENTO="LICITADO",ORÇAMENTO.PrecoUnitarioLicitado>$AN35)),"ACIMA REF.",""))))) ->  | AD35: =IF(C35<=CRONO.NivelExibicao,MAX($AD$15:OFFSET(AD35,-1,0))+IF($C35<>1,1,MAX(1,COUNTIF(QCI!$A$13:$A$24,OFFSET($E35,-1,0)))),"") -> 6 | AE35: =IF(AND($C35="S",ORÇAMENTO.CodBarra<>""),IF(ORÇAMENTO.Fonte="",ORÇAMENTO.CodBarra,CONCATENATE(ORÇAMENTO.Fonte," ",ORÇAMENTO.CodBarra))) -> FALSE | AF35: =IF(ISERROR(INDIRECT(ORÇAMENTO.BancoRef)),"(abra o arquivo 'Referência "&Excel_BuiltIn_Database&".xlsm)",IF(OR($C35<>"S",ORÇAMENTO.CodBarra=""),"(Sem Código)",IF(ISERROR(MATCH($AE35,INDIRECT(ORÇAMENTO.BancoRef),0)),"(Código não identificado nas referências)",MATCH($AE35,INDIRECT(ORÇAMENTO.BancoRef),0)))) -> (Sem Código) | AG35: =ROUND(IF(DESONERACAO="sim",REFERENCIA.Desonerado,REFERENCIA.NaoDesonerado),2) -> 0 | AH35: 0.22 | AM35: 251978.72 | AN35: 0
A36: S | B36: 2 | C36: S | D36: 0 | E36: =IF($C36=1,OFFSET(E36,-1,0)+MAX(1,COUNTIF(QCI!$A$13:$A$24,OFFSET(ORÇAMENTO!E36,-1,0))),OFFSET(E36,-1,0)) -> 1 | F36: 5 | G36: 0 | H36: 0 | I36: 1 | J36: 0 | K36: =IF(OR($C36="S",$C36=0),0,MATCH(OFFSET($D36,0,$C36)+IF($C36<>1,1,COUNTIF(QCI!$A$13:$A$24,ORÇAMENTO!E36)),OFFSET($D36,1,$C36,ROW($C$57)-ROW($C36)),0)) -> 0 | L36: F | M36: Serviço | N36: Serviço | O36: 1.5.1. | P36: SINAPI | Q36: 100576 | R36: =IF($C36="S",REFERENCIA.Descricao,"(digite a descrição aqui)") -> REGULARIZAÇÃO E COMPACTAÇÃO DE SUBLEITO DE SOLO PREDOMINANTEMENTE ARGILOSO. AF_11/2019 | S36: =REFERENCIA.Unidade -> M2 | T36: =OFFSET(CÁLCULO!H$15,ROW($T36)-ROW(T$15),0) -> 941.86 | U36: 2.65 | V36: BDI 1 | W36: =IF($C36="S",ROUND(IF(TIPOORCAMENTO="Proposto",ORÇAMENTO.CustoUnitario*(1+$AH36),ORÇAMENTO.PrecoUnitarioLicitado),15-13*$AF$10),0) -> 3.23 | X36: =IF($C36="S",IF(Import.TipoArredondamento<>"TransfereGOV",VTOTAL1,SUM(OFFSET(CÁLCULO!$AA$15,ROW($X36)-ROW($X$15),1):OFFSET(CÁLCULO!$AL$15,ROW($X36)-ROW($X$15),-1))),IF($C36=0,0,ROUND(SomaAgrup,15-13*$AF$11))) -> 3042.21 | Y36: RA | Z36: RA | AA36: =IF($C36="S",IF($Z36="CP",$X36,IF($Z36="RA",(($X36)*QCI!$AA$3),0)),SomaAgrup) -> 3042.21 | AB36: 0 | AC36: =IF($N36="","",IF(ORÇAMENTO.Descricao="","DESCRIÇÃO",IF(AND($C36="S",ORÇAMENTO.Unidade=""),"UNIDADE",IF($X36<0,"VALOR NEGATIVO",IF(OR(AND(TIPOORCAMENTO="Proposto",$AG36<>"",$AG36>0,ORÇAMENTO.CustoUnitario>$AG36),AND(TIPOORCAMENTO="LICITADO",ORÇAMENTO.PrecoUnitarioLicitado>$AN36)),"ACIMA REF.",""))))) ->  | AD36: =IF(C36<=CRONO.NivelExibicao,MAX($AD$15:OFFSET(AD36,-1,0))+IF($C36<>1,1,MAX(1,COUNTIF(QCI!$A$13:$A$24,OFFSET($E36,-1,0)))),"") ->  | AE36: =IF(AND($C36="S",ORÇAMENTO.CodBarra<>""),IF(ORÇAMENTO.Fonte="",ORÇAMENTO.CodBarra,CONCATENATE(ORÇAMENTO.Fonte," ",ORÇAMENTO.CodBarra))) -> SINAPI 100576 | AF36: =IF(ISERROR(INDIRECT(ORÇAMENTO.BancoRef)),"(abra o arquivo 'Referência "&Excel_BuiltIn_Database&".xlsm)",IF(OR($C36<>"S",ORÇAMENTO.CodBarra=""),"(Sem Código)",IF(ISERROR(MATCH($AE36,INDIRECT(ORÇAMENTO.BancoRef),0)),"(Código não identificado nas referências)",MATCH($AE36,INDIRECT(ORÇAMENTO.BancoRef),0)))) -> 5944 | AG36: =ROUND(IF(DESONERACAO="sim",REFERENCIA.Desonerado,REFERENCIA.NaoDesonerado),2) -> 2.65 | AH36: 0.22 | AM36: 3042.21 | AN36: 3.23
A37: S | B37: 2 | C37: S | D37: 0 | E37: =IF($C37=1,OFFSET(E37,-1,0)+MAX(1,COUNTIF(QCI!$A$13:$A$24,OFFSET(ORÇAMENTO!E37,-1,0))),OFFSET(E37,-1,0)) -> 1 | F37: 5 | G37: 0 | H37: 0 | I37: 2 | J37: 0 | K37: =IF(OR($C37="S",$C37=0),0,MATCH(OFFSET($D37,0,$C37)+IF($C37<>1,1,COUNTIF(QCI!$A$13:$A$24,ORÇAMENTO!E37)),OFFSET($D37,1,$C37,ROW($C$57)-ROW($C37)),0)) -> 0 | L37: F | M37: Serviço | N37: Serviço | O37: 1.5.2. | P37: SINAPI | Q37: 96399 | R37: =IF($C37="S",REFERENCIA.Descricao,"(digite a descrição aqui)") -> EXECUÇÃO E COMPACTAÇÃO DE BASE E OU SUB BASE PARA PAVIMENTAÇÃO DE PEDRA RACHÃO - EXCLUSIVE CARGA E TRANSPORTE. AF_11/2019 | S37: =REFERENCIA.Unidade -> M3 | T37: =OFFSET(CÁLCULO!H$15,ROW($T37)-ROW(T$15),0) -> 235.47 | U37: 125.87 | V37: BDI 1 | W37: =IF($C37="S",ROUND(IF(TIPOORCAMENTO="Proposto",ORÇAMENTO.CustoUnitario*(1+$AH37),ORÇAMENTO.PrecoUnitarioLicitado),15-13*$AF$10),0) -> 153.56 | X37: =IF($C37="S",IF(Import.TipoArredondamento<>"TransfereGOV",VTOTAL1,SUM(OFFSET(CÁLCULO!$AA$15,ROW($X37)-ROW($X$15),1):OFFSET(CÁLCULO!$AL$15,ROW($X37)-ROW($X$15),-1))),IF($C37=0,0,ROUND(SomaAgrup,15-13*$AF$11))) -> 36158.77 | Y37: RA | Z37: RA | AA37: =IF($C37="S",IF($Z37="CP",$X37,IF($Z37="RA",(($X37)*QCI!$AA$3),0)),SomaAgrup) -> 36158.77 | AB37: 0 | AC37: =IF($N37="","",IF(ORÇAMENTO.Descricao="","DESCRIÇÃO",IF(AND($C37="S",ORÇAMENTO.Unidade=""),"UNIDADE",IF($X37<0,"VALOR NEGATIVO",IF(OR(AND(TIPOORCAMENTO="Proposto",$AG37<>"",$AG37>0,ORÇAMENTO.CustoUnitario>$AG37),AND(TIPOORCAMENTO="LICITADO",ORÇAMENTO.PrecoUnitarioLicitado>$AN37)),"ACIMA REF.",""))))) ->  | AD37: =IF(C37<=CRONO.NivelExibicao,MAX($AD$15:OFFSET(AD37,-1,0))+IF($C37<>1,1,MAX(1,COUNTIF(QCI!$A$13:$A$24,OFFSET($E37,-1,0)))),"") ->  | AE37: =IF(AND($C37="S",ORÇAMENTO.CodBarra<>""),IF(ORÇAMENTO.Fonte="",ORÇAMENTO.CodBarra,CONCATENATE(ORÇAMENTO.Fonte," ",ORÇAMENTO.CodBarra))) -> SINAPI 96399 | AF37: =IF(ISERROR(INDIRECT(ORÇAMENTO.BancoRef)),"(abra o arquivo 'Referência "&Excel_BuiltIn_Database&".xlsm)",IF(OR($C37<>"S",ORÇAMENTO.CodBarra=""),"(Sem Código)",IF(ISERROR(MATCH($AE37,INDIRECT(ORÇAMENTO.BancoRef),0)),"(Código não identificado nas referências)",MATCH($AE37,INDIRECT(ORÇAMENTO.BancoRef),0)))) -> 5954 | AG37: =ROUND(IF(DESONERACAO="sim",REFERENCIA.Desonerado,REFERENCIA.NaoDesonerado),2) -> 125.87 | AH37: 0.22 | AM37: 36158.77 | AN37: 153.56
A38: S | B38: 2 | C38: S | D38: 0 | E38: =IF($C38=1,OFFSET(E38,-1,0)+MAX(1,COUNTIF(QCI!$A$13:$A$24,OFFSET(ORÇAMENTO!E38,-1,0))),OFFSET(E38,-1,0)) -> 1 | F38: 5 | G38: 0 | H38: 0 | I38: 3 | J38: 0 | K38: =IF(OR($C38="S",$C38=0),0,MATCH(OFFSET($D38,0,$C38)+IF($C38<>1,1,COUNTIF(QCI!$A$13:$A$24,ORÇAMENTO!E38)),OFFSET($D38,1,$C38,ROW($C$57)-ROW($C38)),0)) -> 0 | L38: F | M38: Serviço | N38: Serviço | O38: 1.5.3. | P38: SINAPI | Q38: 96396 | R38: =IF($C38="S",REFERENCIA.Descricao,"(digite a descrição aqui)") -> EXECUÇÃO E COMPACTAÇÃO DE BASE E OU SUB BASE PARA PAVIMENTAÇÃO DE BRITA GRADUADA SIMPLES - EXCLUSIVE CARGA E TRANSPORTE. AF_11/2019 | S38: =REFERENCIA.Unidade -> M3 | T38: =OFFSET(CÁLCULO!H$15,ROW($T38)-ROW(T$15),0) -> 94.19 | U38: 183.98 | V38: BDI 1 | W38: =IF($C38="S",ROUND(IF(TIPOORCAMENTO="Proposto",ORÇAMENTO.CustoUnitario*(1+$AH38),ORÇAMENTO.PrecoUnitarioLicitado),15-13*$AF$10),0) -> 224.46 | X38: =IF($C38="S",IF(Import.TipoArredondamento<>"TransfereGOV",VTOTAL1,SUM(OFFSET(CÁLCULO!$AA$15,ROW($X38)-ROW($X$15),1):OFFSET(CÁLCULO!$AL$15,ROW($X38)-ROW($X$15),-1))),IF($C38=0,0,ROUND(SomaAgrup,15-13*$AF$11))) -> 21141.89 | Y38: RA | Z38: RA | AA38: =IF($C38="S",IF($Z38="CP",$X38,IF($Z38="RA",(($X38)*QCI!$AA$3),0)),SomaAgrup) -> 21141.89 | AB38: 0 | AC38: =IF($N38="","",IF(ORÇAMENTO.Descricao="","DESCRIÇÃO",IF(AND($C38="S",ORÇAMENTO.Unidade=""),"UNIDADE",IF($X38<0,"VALOR NEGATIVO",IF(OR(AND(TIPOORCAMENTO="Proposto",$AG38<>"",$AG38>0,ORÇAMENTO.CustoUnitario>$AG38),AND(TIPOORCAMENTO="LICITADO",ORÇAMENTO.PrecoUnitarioLicitado>$AN38)),"ACIMA REF.",""))))) ->  | AD38: =IF(C38<=CRONO.NivelExibicao,MAX($AD$15:OFFSET(AD38,-1,0))+IF($C38<>1,1,MAX(1,COUNTIF(QCI!$A$13:$A$24,OFFSET($E38,-1,0)))),"") ->  | AE38: =IF(AND($C38="S",ORÇAMENTO.CodBarra<>""),IF(ORÇAMENTO.Fonte="",ORÇAMENTO.CodBarra,CONCATENATE(ORÇAMENTO.Fonte," ",ORÇAMENTO.CodBarra))) -> SINAPI 96396 | AF38: =IF(ISERROR(INDIRECT(ORÇAMENTO.BancoRef)),"(abra o arquivo 'Referência "&Excel_BuiltIn_Database&".xlsm)",IF(OR($C38<>"S",ORÇAMENTO.CodBarra=""),"(Sem Código)",IF(ISERROR(MATCH($AE38,INDIRECT(ORÇAMENTO.BancoRef),0)),"(Código não identificado nas referências)",MATCH($AE38,INDIRECT(ORÇAMENTO.BancoRef),0)))) -> 5951 | AG38: =ROUND(IF(DESONERACAO="sim",REFERENCIA.Desonerado,REFERENCIA.NaoDesonerado),2) -> 183.98 | AH38: 0.22 | AM38: 21141.89 | AN38: 224.46
A39: S | B39: 2 | C39: S | D39: 0 | E39: =IF($C39=1,OFFSET(E39,-1,0)+MAX(1,COUNTIF(QCI!$A$13:$A$24,OFFSET(ORÇAMENTO!E39,-1,0))),OFFSET(E39,-1,0)) -> 1 | F39: 5 | G39: 0 | H39: 0 | I39: 4 | J39: 0 | K39: =IF(OR($C39="S",$C39=0),0,MATCH(OFFSET($D39,0,$C39)+IF($C39<>1,1,COUNTIF(QCI!$A$13:$A$24,ORÇAMENTO!E39)),OFFSET($D39,1,$C39,ROW($C$57)-ROW($C39)),0)) -> 0 | L39: F | M39: Serviço | N39: Serviço | O39: 1.5.4. | P39: Composição | Q39: 14 | R39: =IF($C39="S",REFERENCIA.Descricao,"(digite a descrição aqui)") -> TRANSPORTE COMERCIAL DE PEDRA RACHÃO E BRITA GRADUADA | S39: =REFERENCIA.Unidade -> M3 X KM | T39: =OFFSET(CÁLCULO!H$15,ROW($T39)-ROW(T$15),0) -> 8241.5 | U39: 1.22 | V39: BDI 1 | W39: =IF($C39="S",ROUND(IF(TIPOORCAMENTO="Proposto",ORÇAMENTO.CustoUnitario*(1+$AH39),ORÇAMENTO.PrecoUnitarioLicitado),15-13*$AF$10),0) -> 1.49 | X39: =IF($C39="S",IF(Import.TipoArredondamento<>"TransfereGOV",VTOTAL1,SUM(OFFSET(CÁLCULO!$AA$15,ROW($X39)-ROW($X$15),1):OFFSET(CÁLCULO!$AL$15,ROW($X39)-ROW($X$15),-1))),IF($C39=0,0,ROUND(SomaAgrup,15-13*$AF$11))) -> 12279.84 | Y39: RA | Z39: RA | AA39: =IF($C39="S",IF($Z39="CP",$X39,IF($Z39="RA",(($X39)*QCI!$AA$3),0)),SomaAgrup) -> 12279.84 | AB39: 0 | AC39: =IF($N39="","",IF(ORÇAMENTO.Descricao="","DESCRIÇÃO",IF(AND($C39="S",ORÇAMENTO.Unidade=""),"UNIDADE",IF($X39<0,"VALOR NEGATIVO",IF(OR(AND(TIPOORCAMENTO="Proposto",$AG39<>"",$AG39>0,ORÇAMENTO.CustoUnitario>$AG39),AND(TIPOORCAMENTO="LICITADO",ORÇAMENTO.PrecoUnitarioLicitado>$AN39)),"ACIMA REF.",""))))) ->  | AD39: =IF(C39<=CRONO.NivelExibicao,MAX($AD$15:OFFSET(AD39,-1,0))+IF($C39<>1,1,MAX(1,COUNTIF(QCI!$A$13:$A$24,OFFSET($E39,-1,0)))),"") ->  | AE39: =IF(AND($C39="S",ORÇAMENTO.CodBarra<>""),IF(ORÇAMENTO.Fonte="",ORÇAMENTO.CodBarra,CONCATENATE(ORÇAMENTO.Fonte," ",ORÇAMENTO.CodBarra))) -> Composição 14 | AF39: =IF(ISERROR(INDIRECT(ORÇAMENTO.BancoRef)),"(abra o arquivo 'Referência "&Excel_BuiltIn_Database&".xlsm)",IF(OR($C39<>"S",ORÇAMENTO.CodBarra=""),"(Sem Código)",IF(ISERROR(MATCH($AE39,INDIRECT(ORÇAMENTO.BancoRef),0)),"(Código não identificado nas referências)",MATCH($AE39,INDIRECT(ORÇAMENTO.BancoRef),0)))) -> 16 | AG39: =ROUND(IF(DESONERACAO="sim",REFERENCIA.Desonerado,REFERENCIA.NaoDesonerado),2) -> 1.22 | AH39: 0.22 | AM39: 12279.84 | AN39: 1.49
A40: S | B40: 2 | C40: S | D40: 0 | E40: =IF($C40=1,OFFSET(E40,-1,0)+MAX(1,COUNTIF(QCI!$A$13:$A$24,OFFSET(ORÇAMENTO!E40,-1,0))),OFFSET(E40,-1,0)) -> 1 | F40: 5 | G40: 0 | H40: 0 | I40: 5 | J40: 0 | K40: =IF(OR($C40="S",$C40=0),0,MATCH(OFFSET($D40,0,$C40)+IF($C40<>1,1,COUNTIF(QCI!$A$13:$A$24,ORÇAMENTO!E40)),OFFSET($D40,1,$C40,ROW($C$57)-ROW($C40)),0)) -> 0 | L40: F | M40: Serviço | N40: Serviço | O40: 1.5.5. | P40: Composição | Q40: 05 | R40: =IF($C40="S",REFERENCIA.Descricao,"(digite a descrição aqui)") -> IMPRIMAÇÃO COM ASFALTO DILUÍDO TIPO CM 30 - TAXA DE 1,20 L/M² | S40: =REFERENCIA.Unidade -> M2 | T40: =OFFSET(CÁLCULO!H$15,ROW($T40)-ROW(T$15),0) -> 941.86 | U40: 8.8 | V40: BDI 1 | W40: =IF($C40="S",ROUND(IF(TIPOORCAMENTO="Proposto",ORÇAMENTO.CustoUnitario*(1+$AH40),ORÇAMENTO.PrecoUnitarioLicitado),15-13*$AF$10),0) -> 10.74 | X40: =IF($C40="S",IF(Import.TipoArredondamento<>"TransfereGOV",VTOTAL1,SUM(OFFSET(CÁLCULO!$AA$15,ROW($X40)-ROW($X$15),1):OFFSET(CÁLCULO!$AL$15,ROW($X40)-ROW($X$15),-1))),IF($C40=0,0,ROUND(SomaAgrup,15-13*$AF$11))) -> 10115.58 | Y40: RA | Z40: RA | AA40: =IF($C40="S",IF($Z40="CP",$X40,IF($Z40="RA",(($X40)*QCI!$AA$3),0)),SomaAgrup) -> 10115.58 | AB40: 0 | AC40: =IF($N40="","",IF(ORÇAMENTO.Descricao="","DESCRIÇÃO",IF(AND($C40="S",ORÇAMENTO.Unidade=""),"UNIDADE",IF($X40<0,"VALOR NEGATIVO",IF(OR(AND(TIPOORCAMENTO="Proposto",$AG40<>"",$AG40>0,ORÇAMENTO.CustoUnitario>$AG40),AND(TIPOORCAMENTO="LICITADO",ORÇAMENTO.PrecoUnitarioLicitado>$AN40)),"ACIMA REF.",""))))) ->  | AD40: =IF(C40<=CRONO.NivelExibicao,MAX($AD$15:OFFSET(AD40,-1,0))+IF($C40<>1,1,MAX(1,COUNTIF(QCI!$A$13:$A$24,OFFSET($E40,-1,0)))),"") ->  | AE40: =IF(AND($C40="S",ORÇAMENTO.CodBarra<>""),IF(ORÇAMENTO.Fonte="",ORÇAMENTO.CodBarra,CONCATENATE(ORÇAMENTO.Fonte," ",ORÇAMENTO.CodBarra))) -> Composição 05 | AF40: =IF(ISERROR(INDIRECT(ORÇAMENTO.BancoRef)),"(abra o arquivo 'Referência "&Excel_BuiltIn_Database&".xlsm)",IF(OR($C40<>"S",ORÇAMENTO.CodBarra=""),"(Sem Código)",IF(ISERROR(MATCH($AE40,INDIRECT(ORÇAMENTO.BancoRef),0)),"(Código não identificado nas referências)",MATCH($AE40,INDIRECT(ORÇAMENTO.BancoRef),0)))) -> 7 | AG40: =ROUND(IF(DESONERACAO="sim",REFERENCIA.Desonerado,REFERENCIA.NaoDesonerado),2) -> 8.8 | AH40: 0.22 | AM40: 10115.58 | AN40: 10.74
A41: S | B41: 2 | C41: S | D41: 0 | E41: =IF($C41=1,OFFSET(E41,-1,0)+MAX(1,COUNTIF(QCI!$A$13:$A$24,OFFSET(ORÇAMENTO!E41,-1,0))),OFFSET(E41,-1,0)) -> 1 | F41: 5 | G41: 0 | H41: 0 | I41: 6 | J41: 0 | K41: =IF(OR($C41="S",$C41=0),0,MATCH(OFFSET($D41,0,$C41)+IF($C41<>1,1,COUNTIF(QCI!$A$13:$A$24,ORÇAMENTO!E41)),OFFSET($D41,1,$C41,ROW($C$57)-ROW($C41)),0)) -> 0 | L41: F | M41: Serviço | N41: Serviço | O41: 1.5.6. | P41: SINAPI | Q41: 102332 | R41: =IF($C41="S",REFERENCIA.Descricao,"(digite a descrição aqui)") -> TRANSPORTE COM CAMINHÃO TANQUE DE TRANSPORTE DE MATERIAL ASFÁLTICO DE 20000 L, EM VIA URBANA PAVIMENTADA, DMT ATÉ 30KM (UNIDADE: TXKM). AF_07/2020 | S41: =REFERENCIA.Unidade -> TXKM | T41: =OFFSET(CÁLCULO!H$15,ROW($T41)-ROW(T$15),0) -> 45.21 | U41: 1.84 | V41: BDI 1 | W41: =IF($C41="S",ROUND(IF(TIPOORCAMENTO="Proposto",ORÇAMENTO.CustoUnitario*(1+$AH41),ORÇAMENTO.PrecoUnitarioLicitado),15-13*$AF$10),0) -> 2.24 | X41: =IF($C41="S",IF(Import.TipoArredondamento<>"TransfereGOV",VTOTAL1,SUM(OFFSET(CÁLCULO!$AA$15,ROW($X41)-ROW($X$15),1):OFFSET(CÁLCULO!$AL$15,ROW($X41)-ROW($X$15),-1))),IF($C41=0,0,ROUND(SomaAgrup,15-13*$AF$11))) -> 101.27 | Y41: RA | Z41: RA | AA41: =IF($C41="S",IF($Z41="CP",$X41,IF($Z41="RA",(($X41)*QCI!$AA$3),0)),SomaAgrup) -> 101.27 | AB41: 0 | AC41: =IF($N41="","",IF(ORÇAMENTO.Descricao="","DESCRIÇÃO",IF(AND($C41="S",ORÇAMENTO.Unidade=""),"UNIDADE",IF($X41<0,"VALOR NEGATIVO",IF(OR(AND(TIPOORCAMENTO="Proposto",$AG41<>"",$AG41>0,ORÇAMENTO.CustoUnitario>$AG41),AND(TIPOORCAMENTO="LICITADO",ORÇAMENTO.PrecoUnitarioLicitado>$AN41)),"ACIMA REF.",""))))) ->  | AD41: =IF(C41<=CRONO.NivelExibicao,MAX($AD$15:OFFSET(AD41,-1,0))+IF($C41<>1,1,MAX(1,COUNTIF(QCI!$A$13:$A$24,OFFSET($E41,-1,0)))),"") ->  | AE41: =IF(AND($C41="S",ORÇAMENTO.CodBarra<>""),IF(ORÇAMENTO.Fonte="",ORÇAMENTO.CodBarra,CONCATENATE(ORÇAMENTO.Fonte," ",ORÇAMENTO.CodBarra))) -> SINAPI 102332 | AF41: =IF(ISERROR(INDIRECT(ORÇAMENTO.BancoRef)),"(abra o arquivo 'Referência "&Excel_BuiltIn_Database&".xlsm)",IF(OR($C41<>"S",ORÇAMENTO.CodBarra=""),"(Sem Código)",IF(ISERROR(MATCH($AE41,INDIRECT(ORÇAMENTO.BancoRef),0)),"(Código não identificado nas referências)",MATCH($AE41,INDIRECT(ORÇAMENTO.BancoRef),0)))) -> 7048 | AG41: =ROUND(IF(DESONERACAO="sim",REFERENCIA.Desonerado,REFERENCIA.NaoDesonerado),2) -> 1.84 | AH41: 0.22 | AM41: 101.27 | AN41: 2.24
A42: =CHOOSE(1+LOG(1+2*(ORÇAMENTO.Nivel="Meta")+4*(ORÇAMENTO.Nivel="Nível 2")+8*(ORÇAMENTO.Nivel="Nível 3")+16*(ORÇAMENTO.Nivel="Nível 4")+32*(ORÇAMENTO.Nivel="Serviço"),2),0,1,2,3,4,"S") -> S | B42: =IF(OR(C42="s",C42=0),OFFSET(B42,-1,0),C42) -> 2 | C42: =IF(OFFSET(C42,-1,0)="L",1,IF(OFFSET(C42,-1,0)=1,2,IF(OR(A42="s",A42=0),"S",IF(AND(OFFSET(C42,-1,0)=2,A42=4),3,IF(AND(OR(OFFSET(C42,-1,0)="s",OFFSET(C42,-1,0)=0),A42<>"s",A42>OFFSET(B42,-1,0)),OFFSET(B42,-1,0),A42))))) -> S | D42: =IF(OR(C42="S",C42=0),0,IF(ISERROR(K42),J42,SMALL(J42:K42,1))) -> 0 | E42: =IF($C42=1,OFFSET(E42,-1,0)+MAX(1,COUNTIF(QCI!$A$13:$A$24,OFFSET(ORÇAMENTO!E42,-1,0))),OFFSET(E42,-1,0)) -> 1 | F42: =IF($C42=1,0,IF($C42=2,OFFSET(F42,-1,0)+1,OFFSET(F42,-1,0))) -> 5 | G42: =IF(AND($C42<=2,$C42<>0),0,IF($C42=3,OFFSET(G42,-1,0)+1,OFFSET(G42,-1,0))) -> 0 | H42: =IF(AND($C42<=3,$C42<>0),0,IF($C42=4,OFFSET(H42,-1,0)+1,OFFSET(H42,-1,0))) -> 0 | I42: =IF(AND($C42<=4,$C42<>0),0,IF(AND($C42="S",$X42>0),OFFSET(I42,-1,0)+1,OFFSET(I42,-1,0))) -> 7 | J42: 0 | K42: =IF(OR($C42="S",$C42=0),0,MATCH(OFFSET($D42,0,$C42)+IF($C42<>1,1,COUNTIF(QCI!$A$13:$A$24,ORÇAMENTO!E42)),OFFSET($D42,1,$C42,ROW($C$57)-ROW($C42)),0)) -> 0 | L42: =IF(OR($X42>0,$C42=1,$C42=2,$C42=3,$C42=4),"F","") -> F | M42: Serviço | N42: =CHOOSE(1+LOG(1+2*(C42=1)+4*(C42=2)+8*(C42=3)+16*(C42=4)+32*(C42="S"),2),"","Meta","Nível 2","Nível 3","Nível 4","Serviço") -> Serviço | O42: =IF(OR($C42=0,$L42=""),"-",CONCATENATE(E42&".",IF(AND($A$5>=2,$C42>=2),F42&".",""),IF(AND($A$5>=3,$C42>=3),G42&".",""),IF(AND($A$5>=4,$C42>=4),H42&".",""),IF($C42="S",I42&".",""))) -> 1.5.7. | P42: SINAPI | Q42: 99814 | R42: =IF($C42="S",REFERENCIA.Descricao,"(digite a descrição aqui)") -> LIMPEZA DE SUPERFÍCIE COM JATO DE ALTA PRESSÃO. AF_04/2019 | S42: =REFERENCIA.Unidade -> M2 | T42: =OFFSET(CÁLCULO!H$15,ROW($T42)-ROW(T$15),0) -> 418.63 | U42: 2.02 | V42: BDI 1 | W42: =IF($C42="S",ROUND(IF(TIPOORCAMENTO="Proposto",ORÇAMENTO.CustoUnitario*(1+$AH42),ORÇAMENTO.PrecoUnitarioLicitado),15-13*$AF$10),0) -> 2.46 | X42: =IF($C42="S",IF(Import.TipoArredondamento<>"TransfereGOV",VTOTAL1,SUM(OFFSET(CÁLCULO!$AA$15,ROW($X42)-ROW($X$15),1):OFFSET(CÁLCULO!$AL$15,ROW($X42)-ROW($X$15),-1))),IF($C42=0,0,ROUND(SomaAgrup,15-13*$AF$11))) -> 1029.83 | Y42: RA | Z42: =IF(AND($C42="S",$X42>0),IF(ISBLANK($Y42),"RA",LEFT($Y42,2)),"") -> RA | AA42: =IF($C42="S",IF($Z42="CP",$X42,IF($Z42="RA",(($X42)*QCI!$AA$3),0)),SomaAgrup) -> 1029.83 | AB42: =IF($C42="S",IF($Z42="OU",ROUND($X42,2),0),SomaAgrup) -> 0 | AC42: =IF($N42="","",IF(ORÇAMENTO.Descricao="","DESCRIÇÃO",IF(AND($C42="S",ORÇAMENTO.Unidade=""),"UNIDADE",IF($X42<0,"VALOR NEGATIVO",IF(OR(AND(TIPOORCAMENTO="Proposto",$AG42<>"",$AG42>0,ORÇAMENTO.CustoUnitario>$AG42),AND(TIPOORCAMENTO="LICITADO",ORÇAMENTO.PrecoUnitarioLicitado>$AN42)),"ACIMA REF.",""))))) ->  | AD42: =IF(C42<=CRONO.NivelExibicao,MAX($AD$15:OFFSET(AD42,-1,0))+IF($C42<>1,1,MAX(1,COUNTIF(QCI!$A$13:$A$24,OFFSET($E42,-1,0)))),"") ->  | AE42: =IF(AND($C42="S",ORÇAMENTO.CodBarra<>""),IF(ORÇAMENTO.Fonte="",ORÇAMENTO.CodBarra,CONCATENATE(ORÇAMENTO.Fonte," ",ORÇAMENTO.CodBarra))) -> SINAPI 99814 | AF42: =IF(ISERROR(INDIRECT(ORÇAMENTO.BancoRef)),"(abra o arquivo 'Referência "&Excel_BuiltIn_Database&".xlsm)",IF(OR($C42<>"S",ORÇAMENTO.CodBarra=""),"(Sem Código)",IF(ISERROR(MATCH($AE42,INDIRECT(ORÇAMENTO.BancoRef),0)),"(Código não identificado nas referências)",MATCH($AE42,INDIRECT(ORÇAMENTO.BancoRef),0)))) -> 6868 | AG42: =ROUND(IF(DESONERACAO="sim",REFERENCIA.Desonerado,REFERENCIA.NaoDesonerado),2) -> 2.02 | AH42: =ROUND(IF(ISNUMBER(ORÇAMENTO.OpcaoBDI),ORÇAMENTO.OpcaoBDI,IF(LEFT(ORÇAMENTO.OpcaoBDI,3)="BDI",HLOOKUP(ORÇAMENTO.OpcaoBDI,$F$4:$H$5,2,FALSE),0)),15-11*$AF$9) -> 0.22 | AM42: 1029.83 | AN42: =ROUND(ORÇAMENTO.CustoUnitario*(1+$AH42),2) -> 2.46
A43: S | B43: 2 | C43: S | D43: 0 | E43: =IF($C43=1,OFFSET(E43,-1,0)+MAX(1,COUNTIF(QCI!$A$13:$A$24,OFFSET(ORÇAMENTO!E43,-1,0))),OFFSET(E43,-1,0)) -> 1 | F43: 5 | G43: 0 | H43: 0 | I43: 8 | J43: 0 | K43: =IF(OR($C43="S",$C43=0),0,MATCH(OFFSET($D43,0,$C43)+IF($C43<>1,1,COUNTIF(QCI!$A$13:$A$24,ORÇAMENTO!E43)),OFFSET($D43,1,$C43,ROW($C$57)-ROW($C43)),0)) -> 0 | L43: F | M43: Serviço | N43: Serviço | O43: 1.5.8. | P43: Composição | Q43: 06 | R43: =IF($C43="S",REFERENCIA.Descricao,"(digite a descrição aqui)") -> PINTURA DE LIGAÇÃO COM EMULSÃO RR-2C - TAXA DE 0,50L/M² | S43: =REFERENCIA.Unidade -> M2 | T43: =OFFSET(CÁLCULO!H$15,ROW($T43)-ROW(T$15),0) -> 1360.49 | U43: 2.32 | V43: BDI 1 | W43: =IF($C43="S",ROUND(IF(TIPOORCAMENTO="Proposto",ORÇAMENTO.CustoUnitario*(1+$AH43),ORÇAMENTO.PrecoUnitarioLicitado),15-13*$AF$10),0) -> 2.83 | X43: =IF($C43="S",IF(Import.TipoArredondamento<>"TransfereGOV",VTOTAL1,SUM(OFFSET(CÁLCULO!$AA$15,ROW($X43)-ROW($X$15),1):OFFSET(CÁLCULO!$AL$15,ROW($X43)-ROW($X$15),-1))),IF($C43=0,0,ROUND(SomaAgrup,15-13*$AF$11))) -> 3850.19 | Y43: RA | Z43: RA | AA43: =IF($C43="S",IF($Z43="CP",$X43,IF($Z43="RA",(($X43)*QCI!$AA$3),0)),SomaAgrup) -> 3850.19 | AB43: 0 | AC43: =IF($N43="","",IF(ORÇAMENTO.Descricao="","DESCRIÇÃO",IF(AND($C43="S",ORÇAMENTO.Unidade=""),"UNIDADE",IF($X43<0,"VALOR NEGATIVO",IF(OR(AND(TIPOORCAMENTO="Proposto",$AG43<>"",$AG43>0,ORÇAMENTO.CustoUnitario>$AG43),AND(TIPOORCAMENTO="LICITADO",ORÇAMENTO.PrecoUnitarioLicitado>$AN43)),"ACIMA REF.",""))))) ->  | AD43: =IF(C43<=CRONO.NivelExibicao,MAX($AD$15:OFFSET(AD43,-1,0))+IF($C43<>1,1,MAX(1,COUNTIF(QCI!$A$13:$A$24,OFFSET($E43,-1,0)))),"") ->  | AE43: =IF(AND($C43="S",ORÇAMENTO.CodBarra<>""),IF(ORÇAMENTO.Fonte="",ORÇAMENTO.CodBarra,CONCATENATE(ORÇAMENTO.Fonte," ",ORÇAMENTO.CodBarra))) -> Composição 06 | AF43: =IF(ISERROR(INDIRECT(ORÇAMENTO.BancoRef)),"(abra o arquivo 'Referência "&Excel_BuiltIn_Database&".xlsm)",IF(OR($C43<>"S",ORÇAMENTO.CodBarra=""),"(Sem Código)",IF(ISERROR(MATCH($AE43,INDIRECT(ORÇAMENTO.BancoRef),0)),"(Código não identificado nas referências)",MATCH($AE43,INDIRECT(ORÇAMENTO.BancoRef),0)))) -> 8 | AG43: =ROUND(IF(DESONERACAO="sim",REFERENCIA.Desonerado,REFERENCIA.NaoDesonerado),2) -> 2.32 | AH43: 0.22 | AM43: 3850.19 | AN43: 2.83
A44: =CHOOSE(1+LOG(1+2*(ORÇAMENTO.Nivel="Meta")+4*(ORÇAMENTO.Nivel="Nível 2")+8*(ORÇAMENTO.Nivel="Nível 3")+16*(ORÇAMENTO.Nivel="Nível 4")+32*(ORÇAMENTO.Nivel="Serviço"),2),0,1,2,3,4,"S") -> S | B44: =IF(OR(C44="s",C44=0),OFFSET(B44,-1,0),C44) -> 2 | C44: =IF(OFFSET(C44,-1,0)="L",1,IF(OFFSET(C44,-1,0)=1,2,IF(OR(A44="s",A44=0),"S",IF(AND(OFFSET(C44,-1,0)=2,A44=4),3,IF(AND(OR(OFFSET(C44,-1,0)="s",OFFSET(C44,-1,0)=0),A44<>"s",A44>OFFSET(B44,-1,0)),OFFSET(B44,-1,0),A44))))) -> S | D44: =IF(OR(C44="S",C44=0),0,IF(ISERROR(K44),J44,SMALL(J44:K44,1))) -> 0 | E44: =IF($C44=1,OFFSET(E44,-1,0)+MAX(1,COUNTIF(QCI!$A$13:$A$24,OFFSET(ORÇAMENTO!E44,-1,0))),OFFSET(E44,-1,0)) -> 1 | F44: =IF($C44=1,0,IF($C44=2,OFFSET(F44,-1,0)+1,OFFSET(F44,-1,0))) -> 5 | G44: =IF(AND($C44<=2,$C44<>0),0,IF($C44=3,OFFSET(G44,-1,0)+1,OFFSET(G44,-1,0))) -> 0 | H44: =IF(AND($C44<=3,$C44<>0),0,IF($C44=4,OFFSET(H44,-1,0)+1,OFFSET(H44,-1,0))) -> 0 | I44: =IF(AND($C44<=4,$C44<>0),0,IF(AND($C44="S",$X44>0),OFFSET(I44,-1,0)+1,OFFSET(I44,-1,0))) -> 9 | J44: 0 | K44: =IF(OR($C44="S",$C44=0),0,MATCH(OFFSET($D44,0,$C44)+IF($C44<>1,1,COUNTIF(QCI!$A$13:$A$24,ORÇAMENTO!E44)),OFFSET($D44,1,$C44,ROW($C$57)-ROW($C44)),0)) -> 0 | L44: =IF(OR($X44>0,$C44=1,$C44=2,$C44=3,$C44=4),"F","") -> F | M44: Serviço | N44: =CHOOSE(1+LOG(1+2*(C44=1)+4*(C44=2)+8*(C44=3)+16*(C44=4)+32*(C44="S"),2),"","Meta","Nível 2","Nível 3","Nível 4","Serviço") -> Serviço | O44: =IF(OR($C44=0,$L44=""),"-",CONCATENATE(E44&".",IF(AND($A$5>=2,$C44>=2),F44&".",""),IF(AND($A$5>=3,$C44>=3),G44&".",""),IF(AND($A$5>=4,$C44>=4),H44&".",""),IF($C44="S",I44&".",""))) -> 1.5.9. | P44: Composição | Q44: 07 | R44: =IF($C44="S",REFERENCIA.Descricao,"(digite a descrição aqui)") -> PINTURA DE LIGAÇÃO COM EMULSÃO RR-2C - TAXA DE 0,30L/M² | S44: =REFERENCIA.Unidade -> M2 | T44: =OFFSET(CÁLCULO!H$15,ROW($T44)-ROW(T$15),0) -> 418.63 | U44: 1.58 | V44: BDI 1 | W44: =IF($C44="S",ROUND(IF(TIPOORCAMENTO="Proposto",ORÇAMENTO.CustoUnitario*(1+$AH44),ORÇAMENTO.PrecoUnitarioLicitado),15-13*$AF$10),0) -> 1.93 | X44: =IF($C44="S",IF(Import.TipoArredondamento<>"TransfereGOV",VTOTAL1,SUM(OFFSET(CÁLCULO!$AA$15,ROW($X44)-ROW($X$15),1):OFFSET(CÁLCULO!$AL$15,ROW($X44)-ROW($X$15),-1))),IF($C44=0,0,ROUND(SomaAgrup,15-13*$AF$11))) -> 807.96 | Y44: RA | Z44: =IF(AND($C44="S",$X44>0),IF(ISBLANK($Y44),"RA",LEFT($Y44,2)),"") -> RA | AA44: =IF($C44="S",IF($Z44="CP",$X44,IF($Z44="RA",(($X44)*QCI!$AA$3),0)),SomaAgrup) -> 807.96 | AB44: =IF($C44="S",IF($Z44="OU",ROUND($X44,2),0),SomaAgrup) -> 0 | AC44: =IF($N44="","",IF(ORÇAMENTO.Descricao="","DESCRIÇÃO",IF(AND($C44="S",ORÇAMENTO.Unidade=""),"UNIDADE",IF($X44<0,"VALOR NEGATIVO",IF(OR(AND(TIPOORCAMENTO="Proposto",$AG44<>"",$AG44>0,ORÇAMENTO.CustoUnitario>$AG44),AND(TIPOORCAMENTO="LICITADO",ORÇAMENTO.PrecoUnitarioLicitado>$AN44)),"ACIMA REF.",""))))) ->  | AD44: =IF(C44<=CRONO.NivelExibicao,MAX($AD$15:OFFSET(AD44,-1,0))+IF($C44<>1,1,MAX(1,COUNTIF(QCI!$A$13:$A$24,OFFSET($E44,-1,0)))),"") ->  | AE44: =IF(AND($C44="S",ORÇAMENTO.CodBarra<>""),IF(ORÇAMENTO.Fonte="",ORÇAMENTO.CodBarra,CONCATENATE(ORÇAMENTO.Fonte," ",ORÇAMENTO.CodBarra))) -> Composição 07 | AF44: =IF(ISERROR(INDIRECT(ORÇAMENTO.BancoRef)),"(abra o arquivo 'Referência "&Excel_BuiltIn_Database&".xlsm)",IF(OR($C44<>"S",ORÇAMENTO.CodBarra=""),"(Sem Código)",IF(ISERROR(MATCH($AE44,INDIRECT(ORÇAMENTO.BancoRef),0)),"(Código não identificado nas referências)",MATCH($AE44,INDIRECT(ORÇAMENTO.BancoRef),0)))) -> 9 | AG44: =ROUND(IF(DESONERACAO="sim",REFERENCIA.Desonerado,REFERENCIA.NaoDesonerado),2) -> 1.58 | AH44: =ROUND(IF(ISNUMBER(ORÇAMENTO.OpcaoBDI),ORÇAMENTO.OpcaoBDI,IF(LEFT(ORÇAMENTO.OpcaoBDI,3)="BDI",HLOOKUP(ORÇAMENTO.OpcaoBDI,$F$4:$H$5,2,FALSE),0)),15-11*$AF$9) -> 0.22 | AM44: 807.96 | AN44: =ROUND(ORÇAMENTO.CustoUnitario*(1+$AH44),2) -> 1.93
A45: S | B45: 2 | C45: S | D45: 0 | E45: =IF($C45=1,OFFSET(E45,-1,0)+MAX(1,COUNTIF(QCI!$A$13:$A$24,OFFSET(ORÇAMENTO!E45,-1,0))),OFFSET(E45,-1,0)) -> 1 | F45: 5 | G45: 0 | H45: 0 | I45: 10 | J45: 0 | K45: =IF(OR($C45="S",$C45=0),0,MATCH(OFFSET($D45,0,$C45)+IF($C45<>1,1,COUNTIF(QCI!$A$13:$A$24,ORÇAMENTO!E45)),OFFSET($D45,1,$C45,ROW($C$57)-ROW($C45)),0)) -> 0 | L45: F | M45: Serviço | N45: Serviço | O45: 1.5.10. | P45: SINAPI | Q45: 102332 | R45: =IF($C45="S",REFERENCIA.Descricao,"(digite a descrição aqui)") -> TRANSPORTE COM CAMINHÃO TANQUE DE TRANSPORTE DE MATERIAL ASFÁLTICO DE 20000 L, EM VIA URBANA PAVIMENTADA, DMT ATÉ 30KM (UNIDADE: TXKM). AF_07/2020 | S45: =REFERENCIA.Unidade -> TXKM | T45: =OFFSET(CÁLCULO!H$15,ROW($T45)-ROW(T$15),0) -> 32.23 | U45: 1.84 | V45: BDI 1 | W45: =IF($C45="S",ROUND(IF(TIPOORCAMENTO="Proposto",ORÇAMENTO.CustoUnitario*(1+$AH45),ORÇAMENTO.PrecoUnitarioLicitado),15-13*$AF$10),0) -> 2.24 | X45: =IF($C45="S",IF(Import.TipoArredondamento<>"TransfereGOV",VTOTAL1,SUM(OFFSET(CÁLCULO!$AA$15,ROW($X45)-ROW($X$15),1):OFFSET(CÁLCULO!$AL$15,ROW($X45)-ROW($X$15),-1))),IF($C45=0,0,ROUND(SomaAgrup,15-13*$AF$11))) -> 72.2 | Y45: RA | Z45: RA | AA45: =IF($C45="S",IF($Z45="CP",$X45,IF($Z45="RA",(($X45)*QCI!$AA$3),0)),SomaAgrup) -> 72.2 | AB45: 0 | AC45: =IF($N45="","",IF(ORÇAMENTO.Descricao="","DESCRIÇÃO",IF(AND($C45="S",ORÇAMENTO.Unidade=""),"UNIDADE",IF($X45<0,"VALOR NEGATIVO",IF(OR(AND(TIPOORCAMENTO="Proposto",$AG45<>"",$AG45>0,ORÇAMENTO.CustoUnitario>$AG45),AND(TIPOORCAMENTO="LICITADO",ORÇAMENTO.PrecoUnitarioLicitado>$AN45)),"ACIMA REF.",""))))) ->  | AD45: =IF(C45<=CRONO.NivelExibicao,MAX($AD$15:OFFSET(AD45,-1,0))+IF($C45<>1,1,MAX(1,COUNTIF(QCI!$A$13:$A$24,OFFSET($E45,-1,0)))),"") ->  | AE45: =IF(AND($C45="S",ORÇAMENTO.CodBarra<>""),IF(ORÇAMENTO.Fonte="",ORÇAMENTO.CodBarra,CONCATENATE(ORÇAMENTO.Fonte," ",ORÇAMENTO.CodBarra))) -> SINAPI 102332 | AF45: =IF(ISERROR(INDIRECT(ORÇAMENTO.BancoRef)),"(abra o arquivo 'Referência "&Excel_BuiltIn_Database&".xlsm)",IF(OR($C45<>"S",ORÇAMENTO.CodBarra=""),"(Sem Código)",IF(ISERROR(MATCH($AE45,INDIRECT(ORÇAMENTO.BancoRef),0)),"(Código não identificado nas referências)",MATCH($AE45,INDIRECT(ORÇAMENTO.BancoRef),0)))) -> 7048 | AG45: =ROUND(IF(DESONERACAO="sim",REFERENCIA.Desonerado,REFERENCIA.NaoDesonerado),2) -> 1.84 | AH45: 0.22 | AM45: 72.2 | AN45: 2.24
A46: S | B46: 2 | C46: S | D46: 0 | E46: =IF($C46=1,OFFSET(E46,-1,0)+MAX(1,COUNTIF(QCI!$A$13:$A$24,OFFSET(ORÇAMENTO!E46,-1,0))),OFFSET(E46,-1,0)) -> 1 | F46: 5 | G46: 0 | H46: 0 | I46: 11 | J46: 0 | K46: =IF(OR($C46="S",$C46=0),0,MATCH(OFFSET($D46,0,$C46)+IF($C46<>1,1,COUNTIF(QCI!$A$13:$A$24,ORÇAMENTO!E46)),OFFSET($D46,1,$C46,ROW($C$57)-ROW($C46)),0)) -> 0 | L46: F | M46: Serviço | N46: Serviço | O46: 1.5.11. | P46: SINAPI | Q46: 95995 | R46: =IF($C46="S",REFERENCIA.Descricao,"(digite a descrição aqui)") -> EXECUÇÃO DE PAVIMENTO COM APLICAÇÃO DE CONCRETO ASFÁLTICO, CAMADA DE ROLAMENTO - EXCLUSIVE CARGA E TRANSPORTE. AF_11/2019 | S46: =REFERENCIA.Unidade -> M3 | T46: =OFFSET(CÁLCULO!H$15,ROW($T46)-ROW(T$15),0) -> 56.51 | U46: 1530.28 | V46: BDI 1 | W46: =IF($C46="S",ROUND(IF(TIPOORCAMENTO="Proposto",ORÇAMENTO.CustoUnitario*(1+$AH46),ORÇAMENTO.PrecoUnitarioLicitado),15-13*$AF$10),0) -> 1866.94 | X46: =IF($C46="S",IF(Import.TipoArredondamento<>"TransfereGOV",VTOTAL1,SUM(OFFSET(CÁLCULO!$AA$15,ROW($X46)-ROW($X$15),1):OFFSET(CÁLCULO!$AL$15,ROW($X46)-ROW($X$15),-1))),IF($C46=0,0,ROUND(SomaAgrup,15-13*$AF$11))) -> 105500.78 | Y46: RA | Z46: RA | AA46: =IF($C46="S",IF($Z46="CP",$X46,IF($Z46="RA",(($X46)*QCI!$AA$3),0)),SomaAgrup) -> 105500.78 | AB46: 0 | AC46: =IF($N46="","",IF(ORÇAMENTO.Descricao="","DESCRIÇÃO",IF(AND($C46="S",ORÇAMENTO.Unidade=""),"UNIDADE",IF($X46<0,"VALOR NEGATIVO",IF(OR(AND(TIPOORCAMENTO="Proposto",$AG46<>"",$AG46>0,ORÇAMENTO.CustoUnitario>$AG46),AND(TIPOORCAMENTO="LICITADO",ORÇAMENTO.PrecoUnitarioLicitado>$AN46)),"ACIMA REF.",""))))) ->  | AD46: =IF(C46<=CRONO.NivelExibicao,MAX($AD$15:OFFSET(AD46,-1,0))+IF($C46<>1,1,MAX(1,COUNTIF(QCI!$A$13:$A$24,OFFSET($E46,-1,0)))),"") ->  | AE46: =IF(AND($C46="S",ORÇAMENTO.CodBarra<>""),IF(ORÇAMENTO.Fonte="",ORÇAMENTO.CodBarra,CONCATENATE(ORÇAMENTO.Fonte," ",ORÇAMENTO.CodBarra))) -> SINAPI 95995 | AF46: =IF(ISERROR(INDIRECT(ORÇAMENTO.BancoRef)),"(abra o arquivo 'Referência "&Excel_BuiltIn_Database&".xlsm)",IF(OR($C46<>"S",ORÇAMENTO.CodBarra=""),"(Sem Código)",IF(ISERROR(MATCH($AE46,INDIRECT(ORÇAMENTO.BancoRef),0)),"(Código não identificado nas referências)",MATCH($AE46,INDIRECT(ORÇAMENTO.BancoRef),0)))) -> 6027 | AG46: =ROUND(IF(DESONERACAO="sim",REFERENCIA.Desonerado,REFERENCIA.NaoDesonerado),2) -> 1530.28 | AH46: 0.22 | AM46: 105500.78 | AN46: 1866.94
A47: S | B47: 2 | C47: S | D47: 0 | E47: =IF($C47=1,OFFSET(E47,-1,0)+MAX(1,COUNTIF(QCI!$A$13:$A$24,OFFSET(ORÇAMENTO!E47,-1,0))),OFFSET(E47,-1,0)) -> 1 | F47: 5 | G47: 0 | H47: 0 | I47: 12 | J47: 0 | K47: =IF(OR($C47="S",$C47=0),0,MATCH(OFFSET($D47,0,$C47)+IF($C47<>1,1,COUNTIF(QCI!$A$13:$A$24,ORÇAMENTO!E47)),OFFSET($D47,1,$C47,ROW($C$57)-ROW($C47)),0)) -> 0 | L47: F | M47: Serviço | N47: Serviço | O47: 1.5.12. | P47: SINAPI | Q47: 95995 | R47: =IF($C47="S",REFERENCIA.Descricao,"(digite a descrição aqui)") -> EXECUÇÃO DE PAVIMENTO COM APLICAÇÃO DE CONCRETO ASFÁLTICO, CAMADA DE ROLAMENTO - EXCLUSIVE CARGA E TRANSPORTE. AF_11/2019 | S47: =REFERENCIA.Unidade -> M3 | T47: =OFFSET(CÁLCULO!H$15,ROW($T47)-ROW(T$15),0) -> 12.56 | U47: 1530.28 | V47: BDI 1 | W47: =IF($C47="S",ROUND(IF(TIPOORCAMENTO="Proposto",ORÇAMENTO.CustoUnitario*(1+$AH47),ORÇAMENTO.PrecoUnitarioLicitado),15-13*$AF$10),0) -> 1866.94 | X47: =IF($C47="S",IF(Import.TipoArredondamento<>"TransfereGOV",VTOTAL1,SUM(OFFSET(CÁLCULO!$AA$15,ROW($X47)-ROW($X$15),1):OFFSET(CÁLCULO!$AL$15,ROW($X47)-ROW($X$15),-1))),IF($C47=0,0,ROUND(SomaAgrup,15-13*$AF$11))) -> 23448.77 | Y47: RA | Z47: RA | AA47: =IF($C47="S",IF($Z47="CP",$X47,IF($Z47="RA",(($X47)*QCI!$AA$3),0)),SomaAgrup) -> 23448.77 | AB47: 0 | AC47: =IF($N47="","",IF(ORÇAMENTO.Descricao="","DESCRIÇÃO",IF(AND($C47="S",ORÇAMENTO.Unidade=""),"UNIDADE",IF($X47<0,"VALOR NEGATIVO",IF(OR(AND(TIPOORCAMENTO="Proposto",$AG47<>"",$AG47>0,ORÇAMENTO.CustoUnitario>$AG47),AND(TIPOORCAMENTO="LICITADO",ORÇAMENTO.PrecoUnitarioLicitado>$AN47)),"ACIMA REF.",""))))) ->  | AD47: =IF(C47<=CRONO.NivelExibicao,MAX($AD$15:OFFSET(AD47,-1,0))+IF($C47<>1,1,MAX(1,COUNTIF(QCI!$A$13:$A$24,OFFSET($E47,-1,0)))),"") ->  | AE47: =IF(AND($C47="S",ORÇAMENTO.CodBarra<>""),IF(ORÇAMENTO.Fonte="",ORÇAMENTO.CodBarra,CONCATENATE(ORÇAMENTO.Fonte," ",ORÇAMENTO.CodBarra))) -> SINAPI 95995 | AF47: =IF(ISERROR(INDIRECT(ORÇAMENTO.BancoRef)),"(abra o arquivo 'Referência "&Excel_BuiltIn_Database&".xlsm)",IF(OR($C47<>"S",ORÇAMENTO.CodBarra=""),"(Sem Código)",IF(ISERROR(MATCH($AE47,INDIRECT(ORÇAMENTO.BancoRef),0)),"(Código não identificado nas referências)",MATCH($AE47,INDIRECT(ORÇAMENTO.BancoRef),0)))) -> 6027 | AG47: =ROUND(IF(DESONERACAO="sim",REFERENCIA.Desonerado,REFERENCIA.NaoDesonerado),2) -> 1530.28 | AH47: 0.22 | AM47: 23448.77 | AN47: 1866.94
A48: S | B48: 2 | C48: S | D48: 0 | E48: =IF($C48=1,OFFSET(E48,-1,0)+MAX(1,COUNTIF(QCI!$A$13:$A$24,OFFSET(ORÇAMENTO!E48,-1,0))),OFFSET(E48,-1,0)) -> 1 | F48: 5 | G48: 0 | H48: 0 | I48: 13 | J48: 0 | K48: =IF(OR($C48="S",$C48=0),0,MATCH(OFFSET($D48,0,$C48)+IF($C48<>1,1,COUNTIF(QCI!$A$13:$A$24,ORÇAMENTO!E48)),OFFSET($D48,1,$C48,ROW($C$57)-ROW($C48)),0)) -> 0 | L48: F | M48: Serviço | N48: Serviço | O48: 1.5.13. | P48: SINAPI | Q48: 95995 | R48: =IF($C48="S",REFERENCIA.Descricao,"(digite a descrição aqui)") -> EXECUÇÃO DE PAVIMENTO COM APLICAÇÃO DE CONCRETO ASFÁLTICO, CAMADA DE ROLAMENTO - EXCLUSIVE CARGA E TRANSPORTE. AF_11/2019 | S48: =REFERENCIA.Unidade -> M3 | T48: =OFFSET(CÁLCULO!H$15,ROW($T48)-ROW(T$15),0) -> 16.75 | U48: 1530.28 | V48: BDI 1 | W48: =IF($C48="S",ROUND(IF(TIPOORCAMENTO="Proposto",ORÇAMENTO.CustoUnitario*(1+$AH48),ORÇAMENTO.PrecoUnitarioLicitado),15-13*$AF$10),0) -> 1866.94 | X48: =IF($C48="S",IF(Import.TipoArredondamento<>"TransfereGOV",VTOTAL1,SUM(OFFSET(CÁLCULO!$AA$15,ROW($X48)-ROW($X$15),1):OFFSET(CÁLCULO!$AL$15,ROW($X48)-ROW($X$15),-1))),IF($C48=0,0,ROUND(SomaAgrup,15-13*$AF$11))) -> 31271.25 | Y48: RA | Z48: RA | AA48: =IF($C48="S",IF($Z48="CP",$X48,IF($Z48="RA",(($X48)*QCI!$AA$3),0)),SomaAgrup) -> 31271.25 | AB48: 0 | AC48: =IF($N48="","",IF(ORÇAMENTO.Descricao="","DESCRIÇÃO",IF(AND($C48="S",ORÇAMENTO.Unidade=""),"UNIDADE",IF($X48<0,"VALOR NEGATIVO",IF(OR(AND(TIPOORCAMENTO="Proposto",$AG48<>"",$AG48>0,ORÇAMENTO.CustoUnitario>$AG48),AND(TIPOORCAMENTO="LICITADO",ORÇAMENTO.PrecoUnitarioLicitado>$AN48)),"ACIMA REF.",""))))) ->  | AD48: =IF(C48<=CRONO.NivelExibicao,MAX($AD$15:OFFSET(AD48,-1,0))+IF($C48<>1,1,MAX(1,COUNTIF(QCI!$A$13:$A$24,OFFSET($E48,-1,0)))),"") ->  | AE48: =IF(AND($C48="S",ORÇAMENTO.CodBarra<>""),IF(ORÇAMENTO.Fonte="",ORÇAMENTO.CodBarra,CONCATENATE(ORÇAMENTO.Fonte," ",ORÇAMENTO.CodBarra))) -> SINAPI 95995 | AF48: =IF(ISERROR(INDIRECT(ORÇAMENTO.BancoRef)),"(abra o arquivo 'Referência "&Excel_BuiltIn_Database&".xlsm)",IF(OR($C48<>"S",ORÇAMENTO.CodBarra=""),"(Sem Código)",IF(ISERROR(MATCH($AE48,INDIRECT(ORÇAMENTO.BancoRef),0)),"(Código não identificado nas referências)",MATCH($AE48,INDIRECT(ORÇAMENTO.BancoRef),0)))) -> 6027 | AG48: =ROUND(IF(DESONERACAO="sim",REFERENCIA.Desonerado,REFERENCIA.NaoDesonerado),2) -> 1530.28 | AH48: 0.22 | AM48: 31271.25 | AN48: 1866.94
A49: S | B49: 2 | C49: S | D49: 0 | E49: =IF($C49=1,OFFSET(E49,-1,0)+MAX(1,COUNTIF(QCI!$A$13:$A$24,OFFSET(ORÇAMENTO!E49,-1,0))),OFFSET(E49,-1,0)) -> 1 | F49: 5 | G49: 0 | H49: 0 | I49: 14 | J49: 0 | K49: =IF(OR($C49="S",$C49=0),0,MATCH(OFFSET($D49,0,$C49)+IF($C49<>1,1,COUNTIF(QCI!$A$13:$A$24,ORÇAMENTO!E49)),OFFSET($D49,1,$C49,ROW($C$57)-ROW($C49)),0)) -> 0 | L49: F | M49: Serviço | N49: Serviço | O49: 1.5.14. | P49: SINAPI | Q49: 95427 | R49: =IF($C49="S",REFERENCIA.Descricao,"(digite a descrição aqui)") -> TRANSPORTE COM CAMINHÃO BASCULANTE DE 18 M³, EM VIA URBANA PAVIMENTADA, ADICIONAL PARA DMT EXCEDENTE A 30 KM (UNIDADE: M3XKM). AF_07/2020 | S49: =REFERENCIA.Unidade -> M3XKM | T49: =OFFSET(CÁLCULO!H$15,ROW($T49)-ROW(T$15),0) -> 3432.8 | U49: 0.75 | V49: BDI 1 | W49: =IF($C49="S",ROUND(IF(TIPOORCAMENTO="Proposto",ORÇAMENTO.CustoUnitario*(1+$AH49),ORÇAMENTO.PrecoUnitarioLicitado),15-13*$AF$10),0) -> 0.92 | X49: =IF($C49="S",IF(Import.TipoArredondamento<>"TransfereGOV",VTOTAL1,SUM(OFFSET(CÁLCULO!$AA$15,ROW($X49)-ROW($X$15),1):OFFSET(CÁLCULO!$AL$15,ROW($X49)-ROW($X$15),-1))),IF($C49=0,0,ROUND(SomaAgrup,15-13*$AF$11))) -> 3158.18 | Y49: RA | Z49: RA | AA49: =IF($C49="S",IF($Z49="CP",$X49,IF($Z49="RA",(($X49)*QCI!$AA$3),0)),SomaAgrup) -> 3158.18 | AB49: 0 | AC49: =IF($N49="","",IF(ORÇAMENTO.Descricao="","DESCRIÇÃO",IF(AND($C49="S",ORÇAMENTO.Unidade=""),"UNIDADE",IF($X49<0,"VALOR NEGATIVO",IF(OR(AND(TIPOORCAMENTO="Proposto",$AG49<>"",$AG49>0,ORÇAMENTO.CustoUnitario>$AG49),AND(TIPOORCAMENTO="LICITADO",ORÇAMENTO.PrecoUnitarioLicitado>$AN49)),"ACIMA REF.",""))))) ->  | AD49: =IF(C49<=CRONO.NivelExibicao,MAX($AD$15:OFFSET(AD49,-1,0))+IF($C49<>1,1,MAX(1,COUNTIF(QCI!$A$13:$A$24,OFFSET($E49,-1,0)))),"") ->  | AE49: =IF(AND($C49="S",ORÇAMENTO.CodBarra<>""),IF(ORÇAMENTO.Fonte="",ORÇAMENTO.CodBarra,CONCATENATE(ORÇAMENTO.Fonte," ",ORÇAMENTO.CodBarra))) -> SINAPI 95427 | AF49: =IF(ISERROR(INDIRECT(ORÇAMENTO.BancoRef)),"(abra o arquivo 'Referência "&Excel_BuiltIn_Database&".xlsm)",IF(OR($C49<>"S",ORÇAMENTO.CodBarra=""),"(Sem Código)",IF(ISERROR(MATCH($AE49,INDIRECT(ORÇAMENTO.BancoRef),0)),"(Código não identificado nas referências)",MATCH($AE49,INDIRECT(ORÇAMENTO.BancoRef),0)))) -> 6997 | AG49: =ROUND(IF(DESONERACAO="sim",REFERENCIA.Desonerado,REFERENCIA.NaoDesonerado),2) -> 0.75 | AH49: 0.22 | AM49: 3158.18 | AN49: 0.92
A50: 2 | B50: 2 | C50: 2 | D50: 7 | E50: =IF($C50=1,OFFSET(E50,-1,0)+MAX(1,COUNTIF(QCI!$A$13:$A$24,OFFSET(ORÇAMENTO!E50,-1,0))),OFFSET(E50,-1,0)) -> 1 | F50: 6 | G50: 0 | H50: 0 | I50: 0 | J50: 7 | K50: =IF(OR($C50="S",$C50=0),0,MATCH(OFFSET($D50,0,$C50)+IF($C50<>1,1,COUNTIF(QCI!$A$13:$A$24,ORÇAMENTO!E50)),OFFSET($D50,1,$C50,ROW($C$57)-ROW($C50)),0)) ->  | L50: F | M50: Nível 2 | N50: Nível 2 | O50: 1.6. | P50: SINAPI | R50: Sinalização viária | S50: =REFERENCIA.Unidade -> - | T50: =OFFSET(CÁLCULO!H$15,ROW($T50)-ROW(T$15),0) -> 0 | U50: 0 | V50: BDI 1 | W50: =IF($C50="S",ROUND(IF(TIPOORCAMENTO="Proposto",ORÇAMENTO.CustoUnitario*(1+$AH50),ORÇAMENTO.PrecoUnitarioLicitado),15-13*$AF$10),0) -> 0 | X50: =IF($C50="S",IF(Import.TipoArredondamento<>"TransfereGOV",VTOTAL1,SUM(OFFSET(CÁLCULO!$AA$15,ROW($X50)-ROW($X$15),1):OFFSET(CÁLCULO!$AL$15,ROW($X50)-ROW($X$15),-1))),IF($C50=0,0,ROUND(SomaAgrup,15-13*$AF$11))) -> 3881.09 | Y50: RA | AA50: =IF($C50="S",IF($Z50="CP",$X50,IF($Z50="RA",(($X50)*QCI!$AA$3),0)),SomaAgrup) -> 3881.09 | AB50: 0 | AC50: =IF($N50="","",IF(ORÇAMENTO.Descricao="","DESCRIÇÃO",IF(AND($C50="S",ORÇAMENTO.Unidade=""),"UNIDADE",IF($X50<0,"VALOR NEGATIVO",IF(OR(AND(TIPOORCAMENTO="Proposto",$AG50<>"",$AG50>0,ORÇAMENTO.CustoUnitario>$AG50),AND(TIPOORCAMENTO="LICITADO",ORÇAMENTO.PrecoUnitarioLicitado>$AN50)),"ACIMA REF.",""))))) ->  | AD50: =IF(C50<=CRONO.NivelExibicao,MAX($AD$15:OFFSET(AD50,-1,0))+IF($C50<>1,1,MAX(1,COUNTIF(QCI!$A$13:$A$24,OFFSET($E50,-1,0)))),"") -> 7 | AE50: =IF(AND($C50="S",ORÇAMENTO.CodBarra<>""),IF(ORÇAMENTO.Fonte="",ORÇAMENTO.CodBarra,CONCATENATE(ORÇAMENTO.Fonte," ",ORÇAMENTO.CodBarra))) -> FALSE | AF50: =IF(ISERROR(INDIRECT(ORÇAMENTO.BancoRef)),"(abra o arquivo 'Referência "&Excel_BuiltIn_Database&".xlsm)",IF(OR($C50<>"S",ORÇAMENTO.CodBarra=""),"(Sem Código)",IF(ISERROR(MATCH($AE50,INDIRECT(ORÇAMENTO.BancoRef),0)),"(Código não identificado nas referências)",MATCH($AE50,INDIRECT(ORÇAMENTO.BancoRef),0)))) -> (Sem Código) | AG50: =ROUND(IF(DESONERACAO="sim",REFERENCIA.Desonerado,REFERENCIA.NaoDesonerado),2) -> 0 | AH50: 0.22 | AM50: 3881.09 | AN50: 0
A51: S | B51: 2 | C51: S | D51: 0 | E51: =IF($C51=1,OFFSET(E51,-1,0)+MAX(1,COUNTIF(QCI!$A$13:$A$24,OFFSET(ORÇAMENTO!E51,-1,0))),OFFSET(E51,-1,0)) -> 1 | F51: 6 | G51: 0 | H51: 0 | I51: 1 | J51: 0 | K51: =IF(OR($C51="S",$C51=0),0,MATCH(OFFSET($D51,0,$C51)+IF($C51<>1,1,COUNTIF(QCI!$A$13:$A$24,ORÇAMENTO!E51)),OFFSET($D51,1,$C51,ROW($C$57)-ROW($C51)),0)) -> 0 | L51: F | M51: Serviço | N51: Serviço | O51: 1.6.1. | P51: SINAPI | Q51: 102512 | R51: =IF($C51="S",REFERENCIA.Descricao,"(digite a descrição aqui)") -> PINTURA DE EIXO VIÁRIO SOBRE ASFALTO COM TINTA RETRORREFLETIVA A BASE DE RESINA ACRÍLICA COM MICROESFERAS DE VIDRO, APLICAÇÃO MECÂNICA COM DEMARCADORA AUTOPROPELIDA. AF_05/2021 | S51: =REFERENCIA.Unidade -> M | T51: =OFFSET(CÁLCULO!H$15,ROW($T51)-ROW(T$15),0) -> 25.21 | U51: 5.63 | V51: BDI 1 | W51: =IF($C51="S",ROUND(IF(TIPOORCAMENTO="Proposto",ORÇAMENTO.CustoUnitario*(1+$AH51),ORÇAMENTO.PrecoUnitarioLicitado),15-13*$AF$10),0) -> 6.87 | X51: =IF($C51="S",IF(Import.TipoArredondamento<>"TransfereGOV",VTOTAL1,SUM(OFFSET(CÁLCULO!$AA$15,ROW($X51)-ROW($X$15),1):OFFSET(CÁLCULO!$AL$15,ROW($X51)-ROW($X$15),-1))),IF($C51=0,0,ROUND(SomaAgrup,15-13*$AF$11))) -> 173.19 | Y51: RA | Z51: RA | AA51: =IF($C51="S",IF($Z51="CP",$X51,IF($Z51="RA",(($X51)*QCI!$AA$3),0)),SomaAgrup) -> 173.19 | AB51: 0 | AC51: =IF($N51="","",IF(ORÇAMENTO.Descricao="","DESCRIÇÃO",IF(AND($C51="S",ORÇAMENTO.Unidade=""),"UNIDADE",IF($X51<0,"VALOR NEGATIVO",IF(OR(AND(TIPOORCAMENTO="Proposto",$AG51<>"",$AG51>0,ORÇAMENTO.CustoUnitario>$AG51),AND(TIPOORCAMENTO="LICITADO",ORÇAMENTO.PrecoUnitarioLicitado>$AN51)),"ACIMA REF.",""))))) ->  | AD51: =IF(C51<=CRONO.NivelExibicao,MAX($AD$15:OFFSET(AD51,-1,0))+IF($C51<>1,1,MAX(1,COUNTIF(QCI!$A$13:$A$24,OFFSET($E51,-1,0)))),"") ->  | AE51: =IF(AND($C51="S",ORÇAMENTO.CodBarra<>""),IF(ORÇAMENTO.Fonte="",ORÇAMENTO.CodBarra,CONCATENATE(ORÇAMENTO.Fonte," ",ORÇAMENTO.CodBarra))) -> SINAPI 102512 | AF51: =IF(ISERROR(INDIRECT(ORÇAMENTO.BancoRef)),"(abra o arquivo 'Referência "&Excel_BuiltIn_Database&".xlsm)",IF(OR($C51<>"S",ORÇAMENTO.CodBarra=""),"(Sem Código)",IF(ISERROR(MATCH($AE51,INDIRECT(ORÇAMENTO.BancoRef),0)),"(Código não identificado nas referências)",MATCH($AE51,INDIRECT(ORÇAMENTO.BancoRef),0)))) -> 6165 | AG51: =ROUND(IF(DESONERACAO="sim",REFERENCIA.Desonerado,REFERENCIA.NaoDesonerado),2) -> 5.63 | AH51: 0.22 | AM51: 173.19 | AN51: 6.87
A52: S | B52: 2 | C52: S | D52: 0 | E52: =IF($C52=1,OFFSET(E52,-1,0)+MAX(1,COUNTIF(QCI!$A$13:$A$24,OFFSET(ORÇAMENTO!E52,-1,0))),OFFSET(E52,-1,0)) -> 1 | F52: 6 | G52: 0 | H52: 0 | I52: 2 | J52: 0 | K52: =IF(OR($C52="S",$C52=0),0,MATCH(OFFSET($D52,0,$C52)+IF($C52<>1,1,COUNTIF(QCI!$A$13:$A$24,ORÇAMENTO!E52)),OFFSET($D52,1,$C52,ROW($C$57)-ROW($C52)),0)) -> 0 | L52: F | M52: Serviço | N52: Serviço | O52: 1.6.2. | P52: SINAPI | Q52: 102509 | R52: =IF($C52="S",REFERENCIA.Descricao,"(digite a descrição aqui)") -> PINTURA DE FAIXA DE PEDESTRE OU ZEBRADA TINTA RETRORREFLETIVA A BASE DE RESINA ACRÍLICA COM MICROESFERAS DE VIDRO, E = 30 CM, APLICAÇÃO MANUAL. AF_05/2021 | S52: =REFERENCIA.Unidade -> M2 | T52: =OFFSET(CÁLCULO!H$15,ROW($T52)-ROW(T$15),0) -> 3.1 | U52: 24.44 | V52: BDI 1 | W52: =IF($C52="S",ROUND(IF(TIPOORCAMENTO="Proposto",ORÇAMENTO.CustoUnitario*(1+$AH52),ORÇAMENTO.PrecoUnitarioLicitado),15-13*$AF$10),0) -> 29.82 | X52: =IF($C52="S",IF(Import.TipoArredondamento<>"TransfereGOV",VTOTAL1,SUM(OFFSET(CÁLCULO!$AA$15,ROW($X52)-ROW($X$15),1):OFFSET(CÁLCULO!$AL$15,ROW($X52)-ROW($X$15),-1))),IF($C52=0,0,ROUND(SomaAgrup,15-13*$AF$11))) -> 92.44 | Y52: RA | Z52: RA | AA52: =IF($C52="S",IF($Z52="CP",$X52,IF($Z52="RA",(($X52)*QCI!$AA$3),0)),SomaAgrup) -> 92.44 | AB52: 0 | AC52: =IF($N52="","",IF(ORÇAMENTO.Descricao="","DESCRIÇÃO",IF(AND($C52="S",ORÇAMENTO.Unidade=""),"UNIDADE",IF($X52<0,"VALOR NEGATIVO",IF(OR(AND(TIPOORCAMENTO="Proposto",$AG52<>"",$AG52>0,ORÇAMENTO.CustoUnitario>$AG52),AND(TIPOORCAMENTO="LICITADO",ORÇAMENTO.PrecoUnitarioLicitado>$AN52)),"ACIMA REF.",""))))) ->  | AD52: =IF(C52<=CRONO.NivelExibicao,MAX($AD$15:OFFSET(AD52,-1,0))+IF($C52<>1,1,MAX(1,COUNTIF(QCI!$A$13:$A$24,OFFSET($E52,-1,0)))),"") ->  | AE52: =IF(AND($C52="S",ORÇAMENTO.CodBarra<>""),IF(ORÇAMENTO.Fonte="",ORÇAMENTO.CodBarra,CONCATENATE(ORÇAMENTO.Fonte," ",ORÇAMENTO.CodBarra))) -> SINAPI 102509 | AF52: =IF(ISERROR(INDIRECT(ORÇAMENTO.BancoRef)),"(abra o arquivo 'Referência "&Excel_BuiltIn_Database&".xlsm)",IF(OR($C52<>"S",ORÇAMENTO.CodBarra=""),"(Sem Código)",IF(ISERROR(MATCH($AE52,INDIRECT(ORÇAMENTO.BancoRef),0)),"(Código não identificado nas referências)",MATCH($AE52,INDIRECT(ORÇAMENTO.BancoRef),0)))) -> 6164 | AG52: =ROUND(IF(DESONERACAO="sim",REFERENCIA.Desonerado,REFERENCIA.NaoDesonerado),2) -> 24.44 | AH52: 0.22 | AM52: 92.44 | AN52: 29.82
A53: S | B53: 2 | C53: S | D53: 0 | E53: =IF($C53=1,OFFSET(E53,-1,0)+MAX(1,COUNTIF(QCI!$A$13:$A$24,OFFSET(ORÇAMENTO!E53,-1,0))),OFFSET(E53,-1,0)) -> 1 | F53: 6 | G53: 0 | H53: 0 | I53: 3 | J53: 0 | K53: =IF(OR($C53="S",$C53=0),0,MATCH(OFFSET($D53,0,$C53)+IF($C53<>1,1,COUNTIF(QCI!$A$13:$A$24,ORÇAMENTO!E53)),OFFSET($D53,1,$C53,ROW($C$57)-ROW($C53)),0)) -> 0 | L53: F | M53: Serviço | N53: Serviço | O53: 1.6.3. | P53: SINAPI | Q53: 102512 | R53: =IF($C53="S",REFERENCIA.Descricao,"(digite a descrição aqui)") -> PINTURA DE EIXO VIÁRIO SOBRE ASFALTO COM TINTA RETRORREFLETIVA A BASE DE RESINA ACRÍLICA COM MICROESFERAS DE VIDRO, APLICAÇÃO MECÂNICA COM DEMARCADORA AUTOPROPELIDA. AF_05/2021 | S53: =REFERENCIA.Unidade -> M | T53: =OFFSET(CÁLCULO!H$15,ROW($T53)-ROW(T$15),0) -> 42.32 | U53: 5.63 | V53: BDI 1 | W53: =IF($C53="S",ROUND(IF(TIPOORCAMENTO="Proposto",ORÇAMENTO.CustoUnitario*(1+$AH53),ORÇAMENTO.PrecoUnitarioLicitado),15-13*$AF$10),0) -> 6.87 | X53: =IF($C53="S",IF(Import.TipoArredondamento<>"TransfereGOV",VTOTAL1,SUM(OFFSET(CÁLCULO!$AA$15,ROW($X53)-ROW($X$15),1):OFFSET(CÁLCULO!$AL$15,ROW($X53)-ROW($X$15),-1))),IF($C53=0,0,ROUND(SomaAgrup,15-13*$AF$11))) -> 290.74 | Y53: RA | Z53: RA | AA53: =IF($C53="S",IF($Z53="CP",$X53,IF($Z53="RA",(($X53)*QCI!$AA$3),0)),SomaAgrup) -> 290.74 | AB53: 0 | AC53: =IF($N53="","",IF(ORÇAMENTO.Descricao="","DESCRIÇÃO",IF(AND($C53="S",ORÇAMENTO.Unidade=""),"UNIDADE",IF($X53<0,"VALOR NEGATIVO",IF(OR(AND(TIPOORCAMENTO="Proposto",$AG53<>"",$AG53>0,ORÇAMENTO.CustoUnitario>$AG53),AND(TIPOORCAMENTO="LICITADO",ORÇAMENTO.PrecoUnitarioLicitado>$AN53)),"ACIMA REF.",""))))) ->  | AD53: =IF(C53<=CRONO.NivelExibicao,MAX($AD$15:OFFSET(AD53,-1,0))+IF($C53<>1,1,MAX(1,COUNTIF(QCI!$A$13:$A$24,OFFSET($E53,-1,0)))),"") ->  | AE53: =IF(AND($C53="S",ORÇAMENTO.CodBarra<>""),IF(ORÇAMENTO.Fonte="",ORÇAMENTO.CodBarra,CONCATENATE(ORÇAMENTO.Fonte," ",ORÇAMENTO.CodBarra))) -> SINAPI 102512 | AF53: =IF(ISERROR(INDIRECT(ORÇAMENTO.BancoRef)),"(abra o arquivo 'Referência "&Excel_BuiltIn_Database&".xlsm)",IF(OR($C53<>"S",ORÇAMENTO.CodBarra=""),"(Sem Código)",IF(ISERROR(MATCH($AE53,INDIRECT(ORÇAMENTO.BancoRef),0)),"(Código não identificado nas referências)",MATCH($AE53,INDIRECT(ORÇAMENTO.BancoRef),0)))) -> 6165 | AG53: =ROUND(IF(DESONERACAO="sim",REFERENCIA.Desonerado,REFERENCIA.NaoDesonerado),2) -> 5.63 | AH53: 0.22 | AM53: 290.74 | AN53: 6.87
A54: S | B54: 2 | C54: S | D54: 0 | E54: =IF($C54=1,OFFSET(E54,-1,0)+MAX(1,COUNTIF(QCI!$A$13:$A$24,OFFSET(ORÇAMENTO!E54,-1,0))),OFFSET(E54,-1,0)) -> 1 | F54: 6 | G54: 0 | H54: 0 | I54: 4 | J54: 0 | K54: =IF(OR($C54="S",$C54=0),0,MATCH(OFFSET($D54,0,$C54)+IF($C54<>1,1,COUNTIF(QCI!$A$13:$A$24,ORÇAMENTO!E54)),OFFSET($D54,1,$C54,ROW($C$57)-ROW($C54)),0)) -> 0 | L54: F | M54: Serviço | N54: Serviço | O54: 1.6.4. | P54: Composição | Q54: 08 | R54: =IF($C54="S",REFERENCIA.Descricao,"(digite a descrição aqui)") -> PLACA INDICATIVA DE LOMBADA | S54: =REFERENCIA.Unidade -> UNID | T54: =OFFSET(CÁLCULO!H$15,ROW($T54)-ROW(T$15),0) -> 2 | U54: 392.95 | V54: BDI 1 | W54: =IF($C54="S",ROUND(IF(TIPOORCAMENTO="Proposto",ORÇAMENTO.CustoUnitario*(1+$AH54),ORÇAMENTO.PrecoUnitarioLicitado),15-13*$AF$10),0) -> 479.4 | X54: =IF($C54="S",IF(Import.TipoArredondamento<>"TransfereGOV",VTOTAL1,SUM(OFFSET(CÁLCULO!$AA$15,ROW($X54)-ROW($X$15),1):OFFSET(CÁLCULO!$AL$15,ROW($X54)-ROW($X$15),-1))),IF($C54=0,0,ROUND(SomaAgrup,15-13*$AF$11))) -> 958.8 | Y54: RA | Z54: RA | AA54: =IF($C54="S",IF($Z54="CP",$X54,IF($Z54="RA",(($X54)*QCI!$AA$3),0)),SomaAgrup) -> 958.8 | AB54: 0 | AC54: =IF($N54="","",IF(ORÇAMENTO.Descricao="","DESCRIÇÃO",IF(AND($C54="S",ORÇAMENTO.Unidade=""),"UNIDADE",IF($X54<0,"VALOR NEGATIVO",IF(OR(AND(TIPOORCAMENTO="Proposto",$AG54<>"",$AG54>0,ORÇAMENTO.CustoUnitario>$AG54),AND(TIPOORCAMENTO="LICITADO",ORÇAMENTO.PrecoUnitarioLicitado>$AN54)),"ACIMA REF.",""))))) ->  | AD54: =IF(C54<=CRONO.NivelExibicao,MAX($AD$15:OFFSET(AD54,-1,0))+IF($C54<>1,1,MAX(1,COUNTIF(QCI!$A$13:$A$24,OFFSET($E54,-1,0)))),"") ->  | AE54: =IF(AND($C54="S",ORÇAMENTO.CodBarra<>""),IF(ORÇAMENTO.Fonte="",ORÇAMENTO.CodBarra,CONCATENATE(ORÇAMENTO.Fonte," ",ORÇAMENTO.CodBarra))) -> Composição 08 | AF54: =IF(ISERROR(INDIRECT(ORÇAMENTO.BancoRef)),"(abra o arquivo 'Referência "&Excel_BuiltIn_Database&".xlsm)",IF(OR($C54<>"S",ORÇAMENTO.CodBarra=""),"(Sem Código)",IF(ISERROR(MATCH($AE54,INDIRECT(ORÇAMENTO.BancoRef),0)),"(Código não identificado nas referências)",MATCH($AE54,INDIRECT(ORÇAMENTO.BancoRef),0)))) -> 10 | AG54: =ROUND(IF(DESONERACAO="sim",REFERENCIA.Desonerado,REFERENCIA.NaoDesonerado),2) -> 392.95 | AH54: 0.22 | AM54: 958.8 | AN54: 479.4
A55: S | B55: 2 | C55: S | D55: 0 | E55: =IF($C55=1,OFFSET(E55,-1,0)+MAX(1,COUNTIF(QCI!$A$13:$A$24,OFFSET(ORÇAMENTO!E55,-1,0))),OFFSET(E55,-1,0)) -> 1 | F55: 6 | G55: 0 | H55: 0 | I55: 5 | J55: 0 | K55: =IF(OR($C55="S",$C55=0),0,MATCH(OFFSET($D55,0,$C55)+IF($C55<>1,1,COUNTIF(QCI!$A$13:$A$24,ORÇAMENTO!E55)),OFFSET($D55,1,$C55,ROW($C$57)-ROW($C55)),0)) -> 0 | L55: F | M55: Serviço | N55: Serviço | O55: 1.6.5. | P55: Composição | Q55: 13 | R55: =IF($C55="S",REFERENCIA.Descricao,"(digite a descrição aqui)") -> PLACA REDONDA DE REGULAMENTAÇÃO DE VELOCIDADE | S55: =REFERENCIA.Unidade -> UNID | T55: =OFFSET(CÁLCULO!H$15,ROW($T55)-ROW(T$15),0) -> 2 | U55: 392.95 | V55: BDI 1 | W55: =IF($C55="S",ROUND(IF(TIPOORCAMENTO="Proposto",ORÇAMENTO.CustoUnitario*(1+$AH55),ORÇAMENTO.PrecoUnitarioLicitado),15-13*$AF$10),0) -> 479.4 | X55: =IF($C55="S",IF(Import.TipoArredondamento<>"TransfereGOV",VTOTAL1,SUM(OFFSET(CÁLCULO!$AA$15,ROW($X55)-ROW($X$15),1):OFFSET(CÁLCULO!$AL$15,ROW($X55)-ROW($X$15),-1))),IF($C55=0,0,ROUND(SomaAgrup,15-13*$AF$11))) -> 958.8 | Y55: RA | Z55: RA | AA55: =IF($C55="S",IF($Z55="CP",$X55,IF($Z55="RA",(($X55)*QCI!$AA$3),0)),SomaAgrup) -> 958.8 | AB55: 0 | AC55: =IF($N55="","",IF(ORÇAMENTO.Descricao="","DESCRIÇÃO",IF(AND($C55="S",ORÇAMENTO.Unidade=""),"UNIDADE",IF($X55<0,"VALOR NEGATIVO",IF(OR(AND(TIPOORCAMENTO="Proposto",$AG55<>"",$AG55>0,ORÇAMENTO.CustoUnitario>$AG55),AND(TIPOORCAMENTO="LICITADO",ORÇAMENTO.PrecoUnitarioLicitado>$AN55)),"ACIMA REF.",""))))) ->  | AD55: =IF(C55<=CRONO.NivelExibicao,MAX($AD$15:OFFSET(AD55,-1,0))+IF($C55<>1,1,MAX(1,COUNTIF(QCI!$A$13:$A$24,OFFSET($E55,-1,0)))),"") ->  | AE55: =IF(AND($C55="S",ORÇAMENTO.CodBarra<>""),IF(ORÇAMENTO.Fonte="",ORÇAMENTO.CodBarra,CONCATENATE(ORÇAMENTO.Fonte," ",ORÇAMENTO.CodBarra))) -> Composição 13 | AF55: =IF(ISERROR(INDIRECT(ORÇAMENTO.BancoRef)),"(abra o arquivo 'Referência "&Excel_BuiltIn_Database&".xlsm)",IF(OR($C55<>"S",ORÇAMENTO.CodBarra=""),"(Sem Código)",IF(ISERROR(MATCH($AE55,INDIRECT(ORÇAMENTO.BancoRef),0)),"(Código não identificado nas referências)",MATCH($AE55,INDIRECT(ORÇAMENTO.BancoRef),0)))) -> 15 | AG55: =ROUND(IF(DESONERACAO="sim",REFERENCIA.Desonerado,REFERENCIA.NaoDesonerado),2) -> 392.95 | AH55: 0.22 | AM55: 958.8 | AN55: 479.4
A56: S | B56: 2 | C56: S | D56: 0 | E56: =IF($C56=1,OFFSET(E56,-1,0)+MAX(1,COUNTIF(QCI!$A$13:$A$24,OFFSET(ORÇAMENTO!E56,-1,0))),OFFSET(E56,-1,0)) -> 1 | F56: 6 | G56: 0 | H56: 0 | I56: 6 | J56: 0 | K56: =IF(OR($C56="S",$C56=0),0,MATCH(OFFSET($D56,0,$C56)+IF($C56<>1,1,COUNTIF(QCI!$A$13:$A$24,ORÇAMENTO!E56)),OFFSET($D56,1,$C56,ROW($C$57)-ROW($C56)),0)) -> 0 | L56: F | M56: Serviço | N56: Serviço | O56: 1.6.6. | P56: Composição | Q56: 12 | R56: =IF($C56="S",REFERENCIA.Descricao,"(digite a descrição aqui)") -> PINTURA DE SARJETA DE FORMA MECÂNICA, COM TINTA APROPRIADA PARA MATERIAIS CIMENTÍCIOS | S56: =REFERENCIA.Unidade -> M | T56: =OFFSET(CÁLCULO!H$15,ROW($T56)-ROW(T$15),0) -> 264 | U56: 4.37 | V56: BDI 1 | W56: =IF($C56="S",ROUND(IF(TIPOORCAMENTO="Proposto",ORÇAMENTO.CustoUnitario*(1+$AH56),ORÇAMENTO.PrecoUnitarioLicitado),15-13*$AF$10),0) -> 5.33 | X56: =IF($C56="S",IF(Import.TipoArredondamento<>"TransfereGOV",VTOTAL1,SUM(OFFSET(CÁLCULO!$AA$15,ROW($X56)-ROW($X$15),1):OFFSET(CÁLCULO!$AL$15,ROW($X56)-ROW($X$15),-1))),IF($C56=0,0,ROUND(SomaAgrup,15-13*$AF$11))) -> 1407.12 | Y56: RA | Z56: RA | AA56: =IF($C56="S",IF($Z56="CP",$X56,IF($Z56="RA",(($X56)*QCI!$AA$3),0)),SomaAgrup) -> 1407.12 | AB56: 0 | AC56: =IF($N56="","",IF(ORÇAMENTO.Descricao="","DESCRIÇÃO",IF(AND($C56="S",ORÇAMENTO.Unidade=""),"UNIDADE",IF($X56<0,"VALOR NEGATIVO",IF(OR(AND(TIPOORCAMENTO="Proposto",$AG56<>"",$AG56>0,ORÇAMENTO.CustoUnitario>$AG56),AND(TIPOORCAMENTO="LICITADO",ORÇAMENTO.PrecoUnitarioLicitado>$AN56)),"ACIMA REF.",""))))) ->  | AD56: =IF(C56<=CRONO.NivelExibicao,MAX($AD$15:OFFSET(AD56,-1,0))+IF($C56<>1,1,MAX(1,COUNTIF(QCI!$A$13:$A$24,OFFSET($E56,-1,0)))),"") ->  | AE56: =IF(AND($C56="S",ORÇAMENTO.CodBarra<>""),IF(ORÇAMENTO.Fonte="",ORÇAMENTO.CodBarra,CONCATENATE(ORÇAMENTO.Fonte," ",ORÇAMENTO.CodBarra))) -> Composição 12 | AF56: =IF(ISERROR(INDIRECT(ORÇAMENTO.BancoRef)),"(abra o arquivo 'Referência "&Excel_BuiltIn_Database&".xlsm)",IF(OR($C56<>"S",ORÇAMENTO.CodBarra=""),"(Sem Código)",IF(ISERROR(MATCH($AE56,INDIRECT(ORÇAMENTO.BancoRef),0)),"(Código não identificado nas referências)",MATCH($AE56,INDIRECT(ORÇAMENTO.BancoRef),0)))) -> 14 | AG56: =ROUND(IF(DESONERACAO="sim",REFERENCIA.Desonerado,REFERENCIA.NaoDesonerado),2) -> 4.37 | AH56: 0.22 | AM56: 1407.12 | AN56: 5.33
A57: -1 | C57: -1 | E57: 0 | F57: 0 | G57: 0 | H57: 0 | I57: 0 | L57: F
O60: Encargos sociais: | Q60: Para elaboração deste orçamento, foram utilizados os encargos sociais do SINAPI para a Unidade da Federação indicada.
O62: Observações:
O67: =IF(AND($AF$7=FALSE,$AF$8=FALSE,$AF$9=FALSE,$AF$10=FALSE,$AF$11=FALSE),"Não foi considerado arredondamento nos valores da planilha.",CONCATENATE("Foi considerado arredondamento de duas casas decimais para ",IF($AF$7=TRUE,"Quantidade; ",""),IF($AF$8=TRUE,"Custo Unitário; ",""),IF($AF$9=TRUE,"BDI; ",""),IF($AF$10=TRUE,"Preço Unitário; ",""),IF($AF$11=TRUE,"Preço Total.",""))) -> Foi considerado arredondamento de duas casas decimais para Quantidade; Custo Unitário; BDI; Preço Unitário; Preço Total.
O68: Siglas da Composição do Investimento: RA - Rateio proporcional entre Repasse e Contrapartida; RP - 100% Repasse; CP - 100% Contrapartida; OU - 100% Outros.
O70: =Import.Município -> São Domingos
O71: Local | S71: Responsável Técnico
S72: Nome: | T72: =Import.RespOrçamento -> Ana Letícia Bodanese
O73: =DADOS!$F$25 -> 2024-05-14 | S73: CREA/CAU: | T73: CREA-SC 163.144-8
O74: Data | S74: ART/RRT: | T74: 9151068-4

Sheet CÁLCULO
F1: =IF(ACOMPANHAMENTO="BM","MEMÓRIA DE CÁLCULO","PLQ - PLANILHA DE LEVANTAMENTO DE QUANTIDADES") -> PLQ - PLANILHA DE LEVANTAMENTO DE QUANTIDADES | Q1: Grau de Sigilo | Y1: Grau de Sigilo
F2: =IF(ACOMPANHAMENTO="BM","","Memória de Cálculo")&" - "&import.recurso -> Memória de Cálculo - (SELECIONAR) | Q2: #PUBLICO | Y2: #PUBLICO
AB3: =ROUND(ROUND(OFFSET(#REF!,0,AB$13),15-13*ORÇAMENTO!$AF$7)*OFFSET(ORÇAMENTO!$W$15,ROW(#REF!)-ROW(AB$15),0),15-13*ORÇAMENTO!$AF$11) ->  | AC3: =ROUND(ROUND(OFFSET(#REF!,0,AC$13),15-13*ORÇAMENTO!$AF$7)*OFFSET(ORÇAMENTO!$W$15,ROW(#REF!)-ROW(AC$15),0),15-13*ORÇAMENTO!$AF$11) ->  | AD3: =ROUND(ROUND(OFFSET(#REF!,0,AD$13),15-13*ORÇAMENTO!$AF$7)*OFFSET(ORÇAMENTO!$W$15,ROW(#REF!)-ROW(AD$15),0),15-13*ORÇAMENTO!$AF$11) ->  | AE3: =SUM(AB3:AD3)-SUM(#REF!) -> 
E4: APELIDO DO EMPREENDIMENTO | G4: Nº TransfereGOV | I4: Nº OPERAÇÃO | K4: PROPONENTE / TOMADOR | S4: Nº OPERAÇÃO | U4: PROPONENTE / TOMADOR
E5: =Import.Apelido -> Pavimentação asfáltica - Linha Imigra | G5: =Import.TransfereGOV -> 0 | I5: =Import.CR -> 0 | K5: =Import.Proponente -> Município de São Domingos | S5: =Import.CR -> 0 | U5: =Import.Proponente -> Município de São Domingos
T6: =AE3 ->  | AB6: Preços dos serviços por frente | AM6: Mês do cronograma | AX6: Número da Medição
A12: =IF(OFFSET(EVENTOS!$C$5,1,0)="Automática, conforme os agrupadores Nível 4 do Orçamento",4,IF(OFFSET(EVENTOS!$C$5,1,0)="Automática, conforme os agrupadores Nível 3 do Orçamento",3,IF(OFFSET(EVENTOS!$C$5,1,0)="Definir Manualmente","Manual",2))) -> Manual | B12: Empty | J12: . | K12: Nº AGRUPADOR DE EVENTOS | L12: . | M12: =IF(ACOMPANHAMENTO="BM",0,COUNTIF(M15:M57,0)) -> 1 | N12: FRENTES DE OBRA: | P12: . | Q12: Linha Imigra | AA12: . | AB12: =OFFSET($P$12,0,AB$13) -> Linha Imigra | AC12: =OFFSET($P$12,0,AC$13) -> 0 | AD12: 0 | AE12: 0 | AF12: 0 | AG12: 0 | AH12: 0 | AI12: 0 | AJ12: 0 | AK12: 0 | AM12: =OFFSET($P$12,0,AM$13) -> Linha Imigra | AN12: =OFFSET($P$12,0,AN$13) -> 0 | AO12: 0 | AP12: 0 | AQ12: 0 | AR12: 0 | AS12: 0 | AT12: 0 | AU12: 0 | AV12: 0 | AX12: =OFFSET($P$12,0,AX$13) -> Linha Imigra | AY12: =OFFSET($P$12,0,AY$13) -> 0 | AZ12: 0 | BA12: 0 | BB12: 0 | BC12: 0 | BD12: 0 | BE12: 0 | BF12: 0 | BG12: 0
A13: AUTOEVENTO | B13: Empty | D13: Nível | E13: Item | F13: Descrição | G13: Unidade | H13: Quantidade | I13: Memória de Cálculo | K13: Nº | M13: # Evento | N13: Agrupador de Eventos | O13: =OFFSET(O13,0,-1)+1 ->  | Q13: =OFFSET(Q13,0,-1)+1 -> 1 | R13: 2 | S13: 3 | T13: 4 | U13: 5 | V13: 6 | W13: 7 | X13: 8 | Y13: 9 | Z13: 10 | AB13: =OFFSET(AB13,0,-1)+1 -> 1 | AC13: 2 | AD13: 3 | AE13: 4 | AF13: 5 | AG13: 6 | AH13: 7 | AI13: 8 | AJ13: 9 | AK13: 10 | AM13: 1 | AN13: 2 | AO13: 3 | AP13: 4 | AQ13: 5 | AR13: 6 | AS13: 7 | AT13: 8 | AU13: 9 | AV13: 10 | AX13: 1 | AY13: 2 | AZ13: 3 | BA13: 4 | BB13: 5 | BC13: 6 | BD13: 7 | BE13: 8 | BF13: 9 | BG13: 10
A14: =IF(AUTOEVENTO="Manual",IF(K14<>"",MIN(VALUE(LEFT(K14,FIND(".",K14)-1)),COUNTA(EVENTOS.Lista)),0),IF(OR($B14>AUTOEVENTO,$B14="S",$B14=0),SUBSTITUTE(OFFSET($A14,-1,0),IF($D14="Serviço",".",""),""),ROW(A14)-ROW($A$15)&".")) -> 0 | B14: =OFFSET(ORÇAMENTO!C$15,ROW(B14)-ROW(B$15),0) -> S | C14: =OFFSET(ORÇAMENTO!L$15,ROW(C14)-ROW(C$15),0) ->  | D14: =OFFSET(ORÇAMENTO!N$15,ROW(D14)-ROW(D$15),0) -> Serviço | E14: =OFFSET(ORÇAMENTO!O$15,ROW(E14)-ROW(E$15),0) -> - | F14: =OFFSET(ORÇAMENTO!R$15,ROW(F14)-ROW(F$15),0) -> (Sem Código) | G14: =IF($D14<>"Serviço","",OFFSET(ORÇAMENTO!S$15,ROW(G14)-ROW(G$15),0)) -> - | H14: =IF($D14<>"Serviço",0,IF(ACOMPANHAMENTO="BM",ROUND(OFFSET(ORÇAMENTO!AJ$15,ROW(H14)-ROW(H$15),0),15-13*ORÇAMENTO!$AF$7),SUMPRODUCT(($Q$12:$AA$12<>"")*ROUND($Q14:$AA14,15-13*ORÇAMENTO!$AF$7)))) -> 0 | L14: . | M14: =IF($D14<>"Serviço","",IF(AUTOEVENTO="manual",$A14,IF(ISERROR(MATCH($A14,$A$15:OFFSET($A14,-1,0),0)),MAX($M$15:OFFSET(M14,-1,0))+1,INDEX($M$15:OFFSET(M14,-1,0),MATCH($A14,$A$15:OFFSET($A14,-1,0),0))))) -> 0 | N14: =IF($D14<>"Serviço","",IF(AUTOEVENTO="Manual",IF($A14=0,"<-- defina o número do agrupador",OFFSET(EVENTOS!$D$14,$A14,0)),OFFSET($F$15,$A14,0))) -> <-- defina o número do agrupador | AB14: =IF(AND($D14="Serviço",AB$12<>0,$H14>0,OR(AUTOEVENTO<>"manual",$M14<>1)), IF(Import.TipoArredondamento<>"TransfereGOV", ROUND(OFFSET($P14,0,AB$13),15-13*ORÇAMENTO!$AF$7)/$H14*OFFSET(ORÇAMENTO!$X$15,ROW(AB14)-ROW(AB$15),0), ROUND(ROUND(OFFSET($P14,0,AB$13),15-13*ORÇAMENTO!$AF$7)*OFFSET(ORÇAMENTO!$W$15,ROW(AB14)-ROW(AB$15),0),15-13*ORÇAMENTO!$AF$11)),0) -> 0 | AC14: =IF(AND($D14="Serviço",AC$12<>0,$H14>0,OR(AUTOEVENTO<>"manual",$M14<>1)), IF(Import.TipoArredondamento<>"TransfereGOV", ROUND(OFFSET($P14,0,AC$13),15-13*ORÇAMENTO!$AF$7)/$H14*OFFSET(ORÇAMENTO!$X$15,ROW(AC14)-ROW(AC$15),0), ROUND(ROUND(OFFSET($P14,0,AC$13),15-13*ORÇAMENTO!$AF$7)*OFFSET(ORÇAMENTO!$W$15,ROW(AC14)-ROW(AC$15),0),15-13*ORÇAMENTO!$AF$11)),0) -> 0 | AD14: =IF(AND($D14="Serviço",AD$12<>0,$H14>0,OR(AUTOEVENTO<>"manual",$M14<>1)), IF(Import.TipoArredondamento<>"TransfereGOV", ROUND(OFFSET($P14,0,AD$13),15-13*ORÇAMENTO!$AF$7)/$H14*OFFSET(ORÇAMENTO!$X$15,ROW(AD14)-ROW(AD$15),0), ROUND(ROUND(OFFSET($P14,0,AD$13),15-13*ORÇAMENTO!$AF$7)*OFFSET(ORÇAMENTO!$W$15,ROW(AD14)-ROW(AD$15),0),15-13*ORÇAMENTO!$AF$11)),0) -> 0 | AE14: =IF(AND($D14="Serviço",AE$12<>0,$H14>0,OR(AUTOEVENTO<>"manual",$M14<>1)), IF(Import.TipoArredondamento<>"TransfereGOV", ROUND(OFFSET($P14,0,AE$13),15-13*ORÇAMENTO!$AF$7)/$H14*OFFSET(ORÇAMENTO!$X$15,ROW(AE14)-ROW(AE$15),0), ROUND(ROUND(OFFSET($P14,0,AE$13),15-13*ORÇAMENTO!$AF$7)*OFFSET(ORÇAMENTO!$W$15,ROW(AE14)-ROW(AE$15),0),15-13*ORÇAMENTO!$AF$11)),0) -> 0 | AF14: =IF(AND($D14="Serviço",AF$12<>0,$H14>0,OR(AUTOEVENTO<>"manual",$M14<>1)), IF(Import.TipoArredondamento<>"TransfereGOV", ROUND(OFFSET($P14,0,AF$13),15-13*ORÇAMENTO!$AF$7)/$H14*OFFSET(ORÇAMENTO!$X$15,ROW(AF14)-ROW(AF$15),0), ROUND(ROUND(OFFSET($P14,0,AF$13),15-13*ORÇAMENTO!$AF$7)*OFFSET(ORÇAMENTO!$W$15,ROW(AF14)-ROW(AF$15),0),15-13*ORÇAMENTO!$AF$11)),0) -> 0 | AG14: =IF(AND($D14="Serviço",AG$12<>0,$H14>0,OR(AUTOEVENTO<>"manual",$M14<>1)), IF(Import.TipoArredondamento<>"TransfereGOV", ROUND(OFFSET($P14,0,AG$13),15-13*ORÇAMENTO!$AF$7)/$H14*OFFSET(ORÇAMENTO!$X$15,ROW(AG14)-ROW(AG$15),0), ROUND(ROUND(OFFSET($P14,0,AG$13),15-13*ORÇAMENTO!$AF$7)*OFFSET(ORÇAMENTO!$W$15,ROW(AG14)-ROW(AG$15),0),15-13*ORÇAMENTO!$AF$11)),0) -> 0 | AH14: =IF(AND($D14="Serviço",AH$12<>0,$H14>0,OR(AUTOEVENTO<>"manual",$M14<>1)), IF(Import.TipoArredondamento<>"TransfereGOV", ROUND(OFFSET($P14,0,AH$13),15-13*ORÇAMENTO!$AF$7)/$H14*OFFSET(ORÇAMENTO!$X$15,ROW(AH14)-ROW(AH$15),0), ROUND(ROUND(OFFSET($P14,0,AH$13),15-13*ORÇAMENTO!$AF$7)*OFFSET(ORÇAMENTO!$W$15,ROW(AH14)-ROW(AH$15),0),15-13*ORÇAMENTO!$AF$11)),0) -> 0 | AI14: =IF(AND($D14="Serviço",AI$12<>0,$H14>0,OR(AUTOEVENTO<>"manual",$M14<>1)), IF(Import.TipoArredondamento<>"TransfereGOV", ROUND(OFFSET($P14,0,AI$13),15-13*ORÇAMENTO!$AF$7)/$H14*OFFSET(ORÇAMENTO!$X$15,ROW(AI14)-ROW(AI$15),0), ROUND(ROUND(OFFSET($P14,0,AI$13),15-13*ORÇAMENTO!$AF$7)*OFFSET(ORÇAMENTO!$W$15,ROW(AI14)-ROW(AI$15),0),15-13*ORÇAMENTO!$AF$11)),0) -> 0 | AJ14: =IF(AND($D14="Serviço",AJ$12<>0,$H14>0,OR(AUTOEVENTO<>"manual",$M14<>1)), IF(Import.TipoArredondamento<>"TransfereGOV", ROUND(OFFSET($P14,0,AJ$13),15-13*ORÇAMENTO!$AF$7)/$H14*OFFSET(ORÇAMENTO!$X$15,ROW(AJ14)-ROW(AJ$15),0), ROUND(ROUND(OFFSET($P14,0,AJ$13),15-13*ORÇAMENTO!$AF$7)*OFFSET(ORÇAMENTO!$W$15,ROW(AJ14)-ROW(AJ$15),0),15-13*ORÇAMENTO!$AF$11)),0) -> 0 | AK14: =IF(AND($D14="Serviço",AK$12<>0,$H14>0,OR(AUTOEVENTO<>"manual",$M14<>1)), IF(Import.TipoArredondamento<>"TransfereGOV", ROUND(OFFSET($P14,0,AK$13),15-13*ORÇAMENTO!$AF$7)/$H14*OFFSET(ORÇAMENTO!$X$15,ROW(AK14)-ROW(AK$15),0), ROUND(ROUND(OFFSET($P14,0,AK$13),15-13*ORÇAMENTO!$AF$7)*OFFSET(ORÇAMENTO!$W$15,ROW(AK14)-ROW(AK$15),0),15-13*ORÇAMENTO!$AF$11)),0) -> 0 | AM14: =IF($D14<>"Serviço",0,IF(AND(AUTOEVENTO="Manual",$M14=1),0,IF(OFFSET(CRONOPLE!$F$14,$M14,AM$13)="",10^12,OFFSET(CRONOPLE!$F$14,$M14,AM$13)))) -> 1000000000000 | AN14: =IF($D14<>"Serviço",0,IF(AND(AUTOEVENTO="Manual",$M14=1),0,IF(OFFSET(CRONOPLE!$F$14,$M14,AN$13)="",10^12,OFFSET(CRONOPLE!$F$14,$M14,AN$13)))) -> 1000000000000 | AO14: =IF($D14<>"Serviço",0,IF(AND(AUTOEVENTO="Manual",$M14=1),0,IF(OFFSET(CRONOPLE!$F$14,$M14,AO$13)="",10^12,OFFSET(CRONOPLE!$F$14,$M14,AO$13)))) -> 1000000000000 | AP14: =IF($D14<>"Serviço",0,IF(AND(AUTOEVENTO="Manual",$M14=1),0,IF(OFFSET(CRONOPLE!$F$14,$M14,AP$13)="",10^12,OFFSET(CRONOPLE!$F$14,$M14,AP$13)))) -> 1000000000000 | AQ14: =IF($D14<>"Serviço",0,IF(AND(AUTOEVENTO="Manual",$M14=1),0,IF(OFFSET(CRONOPLE!$F$14,$M14,AQ$13)="",10^12,OFFSET(CRONOPLE!$F$14,$M14,AQ$13)))) -> 1000000000000 | AR14: =IF($D14<>"Serviço",0,IF(AND(AUTOEVENTO="Manual",$M14=1),0,IF(OFFSET(CRONOPLE!$F$14,$M14,AR$13)="",10^12,OFFSET(CRONOPLE!$F$14,$M14,AR$13)))) -> 1000000000000 | AS14: =IF($D14<>"Serviço",0,IF(AND(AUTOEVENTO="Manual",$M14=1),0,IF(OFFSET(CRONOPLE!$F$14,$M14,AS$13)="",10^12,OFFSET(CRONOPLE!$F$14,$M14,AS$13)))) -> 1000000000000 | AT14: =IF($D14<>"Serviço",0,IF(AND(AUTOEVENTO="Manual",$M14=1),0,IF(OFFSET(CRONOPLE!$F$14,$M14,AT$13)="",10^12,OFFSET(CRONOPLE!$F$14,$M14,AT$13)))) -> 1000000000000 | AU14: =IF($D14<>"Serviço",0,IF(AND(AUTOEVENTO="Manual",$M14=1),0,IF(OFFSET(CRONOPLE!$F$14,$M14,AU$13)="",10^12,OFFSET(CRONOPLE!$F$14,$M14,AU$13)))) -> 1000000000000 | AV14: =IF($D14<>"Serviço",0,IF(AND(AUTOEVENTO="Manual",$M14=1),0,IF(OFFSET(CRONOPLE!$F$14,$M14,AV$13)="",10^12,OFFSET(CRONOPLE!$F$14,$M14,AV$13)))) -> 1000000000000 | AX14: =IF($D14<>"Serviço",0,IF(OR(AND(AUTOEVENTO="Manual",$M14=1),$M14>(ROW(PLE.lastrow)-ROW(PLE.firstrow))),0,IF(OFFSET(PLE!$G$14,$M14,AX$13)="",10^12,OFFSET(PLE!$G$14,$M14,AX$13)))) -> 1000000000000 | AY14: =IF($D14<>"Serviço",0,IF(OR(AND(AUTOEVENTO="Manual",$M14=1),$M14>(ROW(PLE.lastrow)-ROW(PLE.firstrow))),0,IF(OFFSET(PLE!$G$14,$M14,AY$13)="",10^12,OFFSET(PLE!$G$14,$M14,AY$13)))) -> 1000000000000 | AZ14: =IF($D14<>"Serviço",0,IF(OR(AND(AUTOEVENTO="Manual",$M14=1),$M14>(ROW(PLE.lastrow)-ROW(PLE.firstrow))),0,IF(OFFSET(PLE!$G$14,$M14,AZ$13)="",10^12,OFFSET(PLE!$G$14,$M14,AZ$13)))) -> 1000000000000 | BA14: =IF($D14<>"Serviço",0,IF(OR(AND(AUTOEVENTO="Manual",$M14=1),$M14>(ROW(PLE.lastrow)-ROW(PLE.firstrow))),0,IF(OFFSET(PLE!$G$14,$M14,BA$13)="",10^12,OFFSET(PLE!$G$14,$M14,BA$13)))) -> 1000000000000 | BB14: =IF($D14<>"Serviço",0,IF(OR(AND(AUTOEVENTO="Manual",$M14=1),$M14>(ROW(PLE.lastrow)-ROW(PLE.firstrow))),0,IF(OFFSET(PLE!$G$14,$M14,BB$13)="",10^12,OFFSET(PLE!$G$14,$M14,BB$13)))) -> 1000000000000 | BC14: =IF($D14<>"Serviço",0,IF(OR(AND(AUTOEVENTO="Manual",$M14=1),$M14>(ROW(PLE.lastrow)-ROW(PLE.firstrow))),0,IF(OFFSET(PLE!$G$14,$M14,BC$13)="",10^12,OFFSET(PLE!$G$14,$M14,BC$13)))) -> 1000000000000 | BD14: =IF($D14<>"Serviço",0,IF(OR(AND(AUTOEVENTO="Manual",$M14=1),$M14>(ROW(PLE.lastrow)-ROW(PLE.firstrow))),0,IF(OFFSET(PLE!$G$14,$M14,BD$13)="",10^12,OFFSET(PLE!$G$14,$M14,BD$13)))) -> 1000000000000 | BE14: =IF($D14<>"Serviço",0,IF(OR(AND(AUTOEVENTO="Manual",$M14=1),$M14>(ROW(PLE.lastrow)-ROW(PLE.firstrow))),0,IF(OFFSET(PLE!$G$14,$M14,BE$13)="",10^12,OFFSET(PLE!$G$14,$M14,BE$13)))) -> 1000000000000 | BF14: =IF($D14<>"Serviço",0,IF(OR(AND(AUTOEVENTO="Manual",$M14=1),$M14>(ROW(PLE.lastrow)-ROW(PLE.firstrow))),0,IF(OFFSET(PLE!$G$14,$M14,BF$13)="",10^12,OFFSET(PLE!$G$14,$M14,BF$13)))) -> 1000000000000 | BG14: =IF($D14<>"Serviço",0,IF(OR(AND(AUTOEVENTO="Manual",$M14=1),$M14>(ROW(PLE.lastrow)-ROW(PLE.firstrow))),0,IF(OFFSET(PLE!$G$14,$M14,BG$13)="",10^12,OFFSET(PLE!$G$14,$M14,BG$13)))) -> 1000000000000
B15: =OFFSET(ORÇAMENTO!C$15,ROW(B15)-ROW(B$15),0) -> L | C15: =OFFSET(ORÇAMENTO!L$15,ROW(C15)-ROW(C$15),0) -> F | D15: =IF(TIPOORCAMENTO="LICITADO","CTEF","LOTE") -> LOTE | E15: =Import.DescLote -> Pavimentação asfáltica - Linha Imigra | L15: . | M15: =IF(AUTOEVENTO="MANUAL",0,1) -> 0 | N15: TOTAL FINANC. POR FRENTE (R$): | O15: =OFFSET($AA$15,0,O$13) ->  | Q15: =OFFSET($AA$15,0,Q$13) -> 310649.07 | R15: 0 | S15: 0 | T15: 0 | U15: 0 | V15: 0 | W15: 0 | X15: 0 | Y15: 0 | Z15: 0 | AB15: =ROUND(SUM(OFFSET(AB$15,1,0):AB$57),2) -> 310649.07 | AC15: =SUM(OFFSET(AC$15,1,0):AC$57) -> 0 | AD15: =SUM(OFFSET(AD$15,1,0):AD$57) -> 0 | AE15: =SUM(OFFSET(AE$15,1,0):AE$57) -> 0 | AF15: =SUM(OFFSET(AF$15,1,0):AF$57) -> 0 | AG15: =SUM(OFFSET(AG$15,1,0):AG$57) -> 0 | AH15: =SUM(OFFSET(AH$15,1,0):AH$57) -> 0 | AI15: =SUM(OFFSET(AI$15,1,0):AI$57) -> 0 | AJ15: =SUM(OFFSET(AJ$15,1,0):AJ$57) -> 0 | AK15: =SUM(OFFSET(AK$15,1,0):AK$57) -> 0 | AM15: =10^12 -> 1000000000000 | AN15: =10^12 -> 1000000000000 | AO15: 1000000000000 | AP15: 1000000000000 | AQ15: 1000000000000 | AR15: 1000000000000 | AS15: 1000000000000 | AT15: 1000000000000 | AU15: 1000000000000 | AV15: 1000000000000 | AX15: =10^12 -> 1000000000000 | AY15: 1000000000000 | AZ15: 1000000000000 | BA15: 1000000000000 | BB15: 1000000000000 | BC15: 1000000000000 | BD15: 1000000000000 | BE15: 1000000000000 | BF15: 1000000000000 | BG15: 1000000000000
A16: =IF(AUTOEVENTO="Manual",IF(K16<>"",MIN(VALUE(LEFT(K16,FIND(".",K16)-1)),COUNTA(EVENTOS.Lista)),0),IF(OR($B16>AUTOEVENTO,$B16="S",$B16=0),SUBSTITUTE(OFFSET($A16,-1,0),IF($D16="Serviço",".",""),""),ROW(A16)-ROW($A$15)&".")) -> 0 | B16: =OFFSET(ORÇAMENTO!C$15,ROW(B16)-ROW(B$15),0) -> 1 | C16: =OFFSET(ORÇAMENTO!L$15,ROW(C16)-ROW(C$15),0) -> F | D16: =OFFSET(ORÇAMENTO!N$15,ROW(D16)-ROW(D$15),0) -> Meta | E16: =OFFSET(ORÇAMENTO!O$15,ROW(E16)-ROW(E$15),0) -> 1. | F16: =OFFSET(ORÇAMENTO!R$15,ROW(F16)-ROW(F$15),0) -> Pavimentação asfáltica no acesso a Linha Imigra | G16: =IF($D16<>"Serviço","",OFFSET(ORÇAMENTO!S$15,ROW(G16)-ROW(G$15),0)) ->  | H16: =IF($D16<>"Serviço",0,IF(ACOMPANHAMENTO="BM",ROUND(OFFSET(ORÇAMENTO!AJ$15,ROW(H16)-ROW(H$15),0),15-13*ORÇAMENTO!$AF$7),SUMPRODUCT(($Q$12:$AA$12<>"")*ROUND($Q16:$AA16,15-13*ORÇAMENTO!$AF$7)))) -> 0 | L16: . | M16: =IF($D16<>"Serviço","",IF(AUTOEVENTO="manual",$A16,IF(ISERROR(MATCH($A16,$A$15:OFFSET($A16,-1,0),0)),MAX($M$15:OFFSET(M16,-1,0))+1,INDEX($M$15:OFFSET(M16,-1,0),MATCH($A16,$A$15:OFFSET($A16,-1,0),0))))) ->  | N16: =IF($D16<>"Serviço","",IF(AUTOEVENTO="Manual",IF($A16=0,"<-- defina o número do agrupador",OFFSET(EVENTOS!$D$14,$A16,0)),OFFSET($F$15,$A16,0))) ->  | AB16: =IF(AND($D16="Serviço",AB$12<>0,$H16>0,OR(AUTOEVENTO<>"manual",$M16<>1)), IF(Import.TipoArredondamento<>"TransfereGOV", ROUND(OFFSET($P16,0,AB$13),15-13*ORÇAMENTO!$AF$7)/$H16*OFFSET(ORÇAMENTO!$X$15,ROW(AB16)-ROW(AB$15),0), ROUND(ROUND(OFFSET($P16,0,AB$13),15-13*ORÇAMENTO!$AF$7)*OFFSET(ORÇAMENTO!$W$15,ROW(AB16)-ROW(AB$15),0),15-13*ORÇAMENTO!$AF$11)),0) -> 0 | AC16: =IF(AND($D16="Serviço",AC$12<>0,$H16>0,OR(AUTOEVENTO<>"manual",$M16<>1)), IF(Import.TipoArredondamento<>"TransfereGOV", ROUND(OFFSET($P16,0,AC$13),15-13*ORÇAMENTO!$AF$7)/$H16*OFFSET(ORÇAMENTO!$X$15,ROW(AC16)-ROW(AC$15),0), ROUND(ROUND(OFFSET($P16,0,AC$13),15-13*ORÇAMENTO!$AF$7)*OFFSET(ORÇAMENTO!$W$15,ROW(AC16)-ROW(AC$15),0),15-13*ORÇAMENTO!$AF$11)),0) -> 0 | AD16: =IF(AND($D16="Serviço",AD$12<>0,$H16>0,OR(AUTOEVENTO<>"manual",$M16<>1)), IF(Import.TipoArredondamento<>"TransfereGOV", ROUND(OFFSET($P16,0,AD$13),15-13*ORÇAMENTO!$AF$7)/$H16*OFFSET(ORÇAMENTO!$X$15,ROW(AD16)-ROW(AD$15),0), ROUND(ROUND(OFFSET($P16,0,AD$13),15-13*ORÇAMENTO!$AF$7)*OFFSET(ORÇAMENTO!$W$15,ROW(AD16)-ROW(AD$15),0),15-13*ORÇAMENTO!$AF$11)),0) -> 0 | AE16: =IF(AND($D16="Serviço",AE$12<>0,$H16>0,OR(AUTOEVENTO<>"manual",$M16<>1)), IF(Import.TipoArredondamento<>"TransfereGOV", ROUND(OFFSET($P16,0,AE$13),15-13*ORÇAMENTO!$AF$7)/$H16*OFFSET(ORÇAMENTO!$X$15,ROW(AE16)-ROW(AE$15),0), ROUND(ROUND(OFFSET($P16,0,AE$13),15-13*ORÇAMENTO!$AF$7)*OFFSET(ORÇAMENTO!$W$15,ROW(AE16)-ROW(AE$15),0),15-13*ORÇAMENTO!$AF$11)),0) -> 0 | AF16: =IF(AND($D16="Serviço",AF$12<>0,$H16>0,OR(AUTOEVENTO<>"manual",$M16<>1)), IF(Import.TipoArredondamento<>"TransfereGOV", ROUND(OFFSET($P16,0,AF$13),15-13*ORÇAMENTO!$AF$7)/$H16*OFFSET(ORÇAMENTO!$X$15,ROW(AF16)-ROW(AF$15),0), ROUND(ROUND(OFFSET($P16,0,AF$13),15-13*ORÇAMENTO!$AF$7)*OFFSET(ORÇAMENTO!$W$15,ROW(AF16)-ROW(AF$15),0),15-13*ORÇAMENTO!$AF$11)),0) -> 0 | AG16: =IF(AND($D16="Serviço",AG$12<>0,$H16>0,OR(AUTOEVENTO<>"manual",$M16<>1)), IF(Import.TipoArredondamento<>"TransfereGOV", ROUND(OFFSET($P16,0,AG$13),15-13*ORÇAMENTO!$AF$7)/$H16*OFFSET(ORÇAMENTO!$X$15,ROW(AG16)-ROW(AG$15),0), ROUND(ROUND(OFFSET($P16,0,AG$13),15-13*ORÇAMENTO!$AF$7)*OFFSET(ORÇAMENTO!$W$15,ROW(AG16)-ROW(AG$15),0),15-13*ORÇAMENTO!$AF$11)),0) -> 0 | AH16: =IF(AND($D16="Serviço",AH$12<>0,$H16>0,OR(AUTOEVENTO<>"manual",$M16<>1)), IF(Import.TipoArredondamento<>"TransfereGOV", ROUND(OFFSET($P16,0,AH$13),15-13*ORÇAMENTO!$AF$7)/$H16*OFFSET(ORÇAMENTO!$X$15,ROW(AH16)-ROW(AH$15),0), ROUND(ROUND(OFFSET($P16,0,AH$13),15-13*ORÇAMENTO!$AF$7)*OFFSET(ORÇAMENTO!$W$15,ROW(AH16)-ROW(AH$15),0),15-13*ORÇAMENTO!$AF$11)),0) -> 0 | AI16: =IF(AND($D16="Serviço",AI$12<>0,$H16>0,OR(AUTOEVENTO<>"manual",$M16<>1)), IF(Import.TipoArredondamento<>"TransfereGOV", ROUND(OFFSET($P16,0,AI$13),15-13*ORÇAMENTO!$AF$7)/$H16*OFFSET(ORÇAMENTO!$X$15,ROW(AI16)-ROW(AI$15),0), ROUND(ROUND(OFFSET($P16,0,AI$13),15-13*ORÇAMENTO!$AF$7)*OFFSET(ORÇAMENTO!$W$15,ROW(AI16)-ROW(AI$15),0),15-13*ORÇAMENTO!$AF$11)),0) -> 0 | AJ16: =IF(AND($D16="Serviço",AJ$12<>0,$H16>0,OR(AUTOEVENTO<>"manual",$M16<>1)), IF(Import.TipoArredondamento<>"TransfereGOV", ROUND(OFFSET($P16,0,AJ$13),15-13*ORÇAMENTO!$AF$7)/$H16*OFFSET(ORÇAMENTO!$X$15,ROW(AJ16)-ROW(AJ$15),0), ROUND(ROUND(OFFSET($P16,0,AJ$13),15-13*ORÇAMENTO!$AF$7)*OFFSET(ORÇAMENTO!$W$15,ROW(AJ16)-ROW(AJ$15),0),15-13*ORÇAMENTO!$AF$11)),0) -> 0 | AK16: =IF(AND($D16="Serviço",AK$12<>0,$H16>0,OR(AUTOEVENTO<>"manual",$M16<>1)), IF(Import.TipoArredondamento<>"TransfereGOV", ROUND(OFFSET($P16,0,AK$13),15-13*ORÇAMENTO!$AF$7)/$H16*OFFSET(ORÇAMENTO!$X$15,ROW(AK16)-ROW(AK$15),0), ROUND(ROUND(OFFSET($P16,0,AK$13),15-13*ORÇAMENTO!$AF$7)*OFFSET(ORÇAMENTO!$W$15,ROW(AK16)-ROW(AK$15),0),15-13*ORÇAMENTO!$AF$11)),0) -> 0 | AM16: =IF($D16<>"Serviço",0,IF(AND(AUTOEVENTO="Manual",$M16=1),0,IF(OFFSET(CRONOPLE!$F$14,$M16,AM$13)="",10^12,OFFSET(CRONOPLE!$F$14,$M16,AM$13)))) -> 0 | AN16: =IF($D16<>"Serviço",0,IF(AND(AUTOEVENTO="Manual",$M16=1),0,IF(OFFSET(CRONOPLE!$F$14,$M16,AN$13)="",10^12,OFFSET(CRONOPLE!$F$14,$M16,AN$13)))) -> 0 | AO16: =IF($D16<>"Serviço",0,IF(AND(AUTOEVENTO="Manual",$M16=1),0,IF(OFFSET(CRONOPLE!$F$14,$M16,AO$13)="",10^12,OFFSET(CRONOPLE!$F$14,$M16,AO$13)))) -> 0 | AP16: =IF($D16<>"Serviço",0,IF(AND(AUTOEVENTO="Manual",$M16=1),0,IF(OFFSET(CRONOPLE!$F$14,$M16,AP$13)="",10^12,OFFSET(CRONOPLE!$F$14,$M16,AP$13)))) -> 0 | AQ16: =IF($D16<>"Serviço",0,IF(AND(AUTOEVENTO="Manual",$M16=1),0,IF(OFFSET(CRONOPLE!$F$14,$M16,AQ$13)="",10^12,OFFSET(CRONOPLE!$F$14,$M16,AQ$13)))) -> 0 | AR16: =IF($D16<>"Serviço",0,IF(AND(AUTOEVENTO="Manual",$M16=1),0,IF(OFFSET(CRONOPLE!$F$14,$M16,AR$13)="",10^12,OFFSET(CRONOPLE!$F$14,$M16,AR$13)))) -> 0 | AS16: =IF($D16<>"Serviço",0,IF(AND(AUTOEVENTO="Manual",$M16=1),0,IF(OFFSET(CRONOPLE!$F$14,$M16,AS$13)="",10^12,OFFSET(CRONOPLE!$F$14,$M16,AS$13)))) -> 0 | AT16: =IF($D16<>"Serviço",0,IF(AND(AUTOEVENTO="Manual",$M16=1),0,IF(OFFSET(CRONOPLE!$F$14,$M16,AT$13)="",10^12,OFFSET(CRONOPLE!$F$14,$M16,AT$13)))) -> 0 | AU16: =IF($D16<>"Serviço",0,IF(AND(AUTOEVENTO="Manual",$M16=1),0,IF(OFFSET(CRONOPLE!$F$14,$M16,AU$13)="",10^12,OFFSET(CRONOPLE!$F$14,$M16,AU$13)))) -> 0 | AV16: =IF($D16<>"Serviço",0,IF(AND(AUTOEVENTO="Manual",$M16=1),0,IF(OFFSET(CRONOPLE!$F$14,$M16,AV$13)="",10^12,OFFSET(CRONOPLE!$F$14,$M16,AV$13)))) -> 0 | AX16: =IF($D16<>"Serviço",0,IF(OR(AND(AUTOEVENTO="Manual",$M16=1),$M16>(ROW(PLE.lastrow)-ROW(PLE.firstrow))),0,IF(OFFSET(PLE!$G$14,$M16,AX$13)="",10^12,OFFSET(PLE!$G$14,$M16,AX$13)))) -> 0 | AY16: =IF($D16<>"Serviço",0,IF(OR(AND(AUTOEVENTO="Manual",$M16=1),$M16>(ROW(PLE.lastrow)-ROW(PLE.firstrow))),0,IF(OFFSET(PLE!$G$14,$M16,AY$13)="",10^12,OFFSET(PLE!$G$14,$M16,AY$13)))) -> 0 | AZ16: =IF($D16<>"Serviço",0,IF(OR(AND(AUTOEVENTO="Manual",$M16=1),$M16>(ROW(PLE.lastrow)-ROW(PLE.firstrow))),0,IF(OFFSET(PLE!$G$14,$M16,AZ$13)="",10^12,OFFSET(PLE!$G$14,$M16,AZ$13)))) -> 0 | BA16: =IF($D16<>"Serviço",0,IF(OR(AND(AUTOEVENTO="Manual",$M16=1),$M16>(ROW(PLE.lastrow)-ROW(PLE.firstrow))),0,IF(OFFSET(PLE!$G$14,$M16,BA$13)="",10^12,OFFSET(PLE!$G$14,$M16,BA$13)))) -> 0 | BB16: =IF($D16<>"Serviço",0,IF(OR(AND(AUTOEVENTO="Manual",$M16=1),$M16>(ROW(PLE.lastrow)-ROW(PLE.firstrow))),0,IF(OFFSET(PLE!$G$14,$M16,BB$13)="",10^12,OFFSET(PLE!$G$14,$M16,BB$13)))) -> 0 | BC16: =IF($D16<>"Serviço",0,IF(OR(AND(AUTOEVENTO="Manual",$M16=1),$M16>(ROW(PLE.lastrow)-ROW(PLE.firstrow))),0,IF(OFFSET(PLE!$G$14,$M16,BC$13)="",10^12,OFFSET(PLE!$G$14,$M16,BC$13)))) -> 0 | BD16: =IF($D16<>"Serviço",0,IF(OR(AND(AUTOEVENTO="Manual",$M16=1),$M16>(ROW(PLE.lastrow)-ROW(PLE.firstrow))),0,IF(OFFSET(PLE!$G$14,$M16,BD$13)="",10^12,OFFSET(PLE!$G$14,$M16,BD$13)))) -> 0 | BE16: =IF($D16<>"Serviço",0,IF(OR(AND(AUTOEVENTO="Manual",$M16=1),$M16>(ROW(PLE.lastrow)-ROW(PLE.firstrow))),0,IF(OFFSET(PLE!$G$14,$M16,BE$13)="",10^12,OFFSET(PLE!$G$14,$M16,BE$13)))) -> 0 | BF16: =IF($D16<>"Serviço",0,IF(OR(AND(AUTOEVENTO="Manual",$M16=1),$M16>(ROW(PLE.lastrow)-ROW(PLE.firstrow))),0,IF(OFFSET(PLE!$G$14,$M16,BF$13)="",10^12,OFFSET(PLE!$G$14,$M16,BF$13)))) -> 0 | BG16: =IF($D16<>"Serviço",0,IF(OR(AND(AUTOEVENTO="Manual",$M16=1),$M16>(ROW(PLE.lastrow)-ROW(PLE.firstrow))),0,IF(OFFSET(PLE!$G$14,$M16,BG$13)="",10^12,OFFSET(PLE!$G$14,$M16,BG$13)))) -> 0
A17: 0 | B17: =OFFSET(ORÇAMENTO!C$15,ROW(B17)-ROW(B$15),0) -> 2 | C17: =OFFSET(ORÇAMENTO!L$15,ROW(C17)-ROW(C$15),0) -> F | D17: =OFFSET(ORÇAMENTO!N$15,ROW(D17)-ROW(D$15),0) -> Nível 2 | E17: =OFFSET(ORÇAMENTO!O$15,ROW(E17)-ROW(E$15),0) -> 1.1. | F17: =OFFSET(ORÇAMENTO!R$15,ROW(F17)-ROW(F$15),0) -> Serviços Iniciais | G17: =IF($D17<>"Serviço","",OFFSET(ORÇAMENTO!S$15,ROW(G17)-ROW(G$15),0)) ->  | H17: =IF($D17<>"Serviço",0,IF(ACOMPANHAMENTO="BM",ROUND(OFFSET(ORÇAMENTO!AJ$15,ROW(H17)-ROW(H$15),0),15-13*ORÇAMENTO!$AF$7),SUMPRODUCT(($Q$12:$AA$12<>"")*ROUND($Q17:$AA17,15-13*ORÇAMENTO!$AF$7)))) -> 0 | L17: . | M17: =IF($D17<>"Serviço","",IF(AUTOEVENTO="manual",$A17,IF(ISERROR(MATCH($A17,$A$15:OFFSET($A17,-1,0),0)),MAX($M$15:OFFSET(M17,-1,0))+1,INDEX($M$15:OFFSET(M17,-1,0),MATCH($A17,$A$15:OFFSET($A17,-1,0),0))))) ->  | N17: =IF($D17<>"Serviço","",IF(AUTOEVENTO="Manual",IF($A17=0,"<-- defina o número do agrupador",OFFSET(EVENTOS!$D$14,$A17,0)),OFFSET($F$15,$A17,0))) ->  | AB17: =IF(AND($D17="Serviço",AB$12<>0,$H17>0,OR(AUTOEVENTO<>"manual",$M17<>1)), IF(Import.TipoArredondamento<>"TransfereGOV", ROUND(OFFSET($P17,0,AB$13),15-13*ORÇAMENTO!$AF$7)/$H17*OFFSET(ORÇAMENTO!$X$15,ROW(AB17)-ROW(AB$15),0), ROUND(ROUND(OFFSET($P17,0,AB$13),15-13*ORÇAMENTO!$AF$7)*OFFSET(ORÇAMENTO!$W$15,ROW(AB17)-ROW(AB$15),0),15-13*ORÇAMENTO!$AF$11)),0) -> 0 | AC17: =IF(AND($D17="Serviço",AC$12<>0,$H17>0,OR(AUTOEVENTO<>"manual",$M17<>1)), IF(Import.TipoArredondamento<>"TransfereGOV", ROUND(OFFSET($P17,0,AC$13),15-13*ORÇAMENTO!$AF$7)/$H17*OFFSET(ORÇAMENTO!$X$15,ROW(AC17)-ROW(AC$15),0), ROUND(ROUND(OFFSET($P17,0,AC$13),15-13*ORÇAMENTO!$AF$7)*OFFSET(ORÇAMENTO!$W$15,ROW(AC17)-ROW(AC$15),0),15-13*ORÇAMENTO!$AF$11)),0) -> 0 | AD17: =IF(AND($D17="Serviço",AD$12<>0,$H17>0,OR(AUTOEVENTO<>"manual",$M17<>1)), IF(Import.TipoArredondamento<>"TransfereGOV", ROUND(OFFSET($P17,0,AD$13),15-13*ORÇAMENTO!$AF$7)/$H17*OFFSET(ORÇAMENTO!$X$15,ROW(AD17)-ROW(AD$15),0), ROUND(ROUND(OFFSET($P17,0,AD$13),15-13*ORÇAMENTO!$AF$7)*OFFSET(ORÇAMENTO!$W$15,ROW(AD17)-ROW(AD$15),0),15-13*ORÇAMENTO!$AF$11)),0) -> 0 | AE17: =IF(AND($D17="Serviço",AE$12<>0,$H17>0,OR(AUTOEVENTO<>"manual",$M17<>1)), IF(Import.TipoArredondamento<>"TransfereGOV", ROUND(OFFSET($P17,0,AE$13),15-13*ORÇAMENTO!$AF$7)/$H17*OFFSET(ORÇAMENTO!$X$15,ROW(AE17)-ROW(AE$15),0), ROUND(ROUND(OFFSET($P17,0,AE$13),15-13*ORÇAMENTO!$AF$7)*OFFSET(ORÇAMENTO!$W$15,ROW(AE17)-ROW(AE$15),0),15-13*ORÇAMENTO!$AF$11)),0) -> 0 | AF17: =IF(AND($D17="Serviço",AF$12<>0,$H17>0,OR(AUTOEVENTO<>"manual",$M17<>1)), IF(Import.TipoArredondamento<>"TransfereGOV", ROUND(OFFSET($P17,0,AF$13),15-13*ORÇAMENTO!$AF$7)/$H17*OFFSET(ORÇAMENTO!$X$15,ROW(AF17)-ROW(AF$15),0), ROUND(ROUND(OFFSET($P17,0,AF$13),15-13*ORÇAMENTO!$AF$7)*OFFSET(ORÇAMENTO!$W$15,ROW(AF17)-ROW(AF$15),0),15-13*ORÇAMENTO!$AF$11)),0) -> 0 | AG17: =IF(AND($D17="Serviço",AG$12<>0,$H17>0,OR(AUTOEVENTO<>"manual",$M17<>1)), IF(Import.TipoArredondamento<>"TransfereGOV", ROUND(OFFSET($P17,0,AG$13),15-13*ORÇAMENTO!$AF$7)/$H17*OFFSET(ORÇAMENTO!$X$15,ROW(AG17)-ROW(AG$15),0), ROUND(ROUND(OFFSET($P17,0,AG$13),15-13*ORÇAMENTO!$AF$7)*OFFSET(ORÇAMENTO!$W$15,ROW(AG17)-ROW(AG$15),0),15-13*ORÇAMENTO!$AF$11)),0) -> 0 | AH17: =IF(AND($D17="Serviço",AH$12<>0,$H17>0,OR(AUTOEVENTO<>"manual",$M17<>1)), IF(Import.TipoArredondamento<>"TransfereGOV", ROUND(OFFSET($P17,0,AH$13),15-13*ORÇAMENTO!$AF$7)/$H17*OFFSET(ORÇAMENTO!$X$15,ROW(AH17)-ROW(AH$15),0), ROUND(ROUND(OFFSET($P17,0,AH$13),15-13*ORÇAMENTO!$AF$7)*OFFSET(ORÇAMENTO!$W$15,ROW(AH17)-ROW(AH$15),0),15-13*ORÇAMENTO!$AF$11)),0) -> 0 | AI17: =IF(AND($D17="Serviço",AI$12<>0,$H17>0,OR(AUTOEVENTO<>"manual",$M17<>1)), IF(Import.TipoArredondamento<>"TransfereGOV", ROUND(OFFSET($P17,0,AI$13),15-13*ORÇAMENTO!$AF$7)/$H17*OFFSET(ORÇAMENTO!$X$15,ROW(AI17)-ROW(AI$15),0), ROUND(ROUND(OFFSET($P17,0,AI$13),15-13*ORÇAMENTO!$AF$7)*OFFSET(ORÇAMENTO!$W$15,ROW(AI17)-ROW(AI$15),0),15-13*ORÇAMENTO!$AF$11)),0) -> 0 | AJ17: =IF(AND($D17="Serviço",AJ$12<>0,$H17>0,OR(AUTOEVENTO<>"manual",$M17<>1)), IF(Import.TipoArredondamento<>"TransfereGOV", ROUND(OFFSET($P17,0,AJ$13),15-13*ORÇAMENTO!$AF$7)/$H17*OFFSET(ORÇAMENTO!$X$15,ROW(AJ17)-ROW(AJ$15),0), ROUND(ROUND(OFFSET($P17,0,AJ$13),15-13*ORÇAMENTO!$AF$7)*OFFSET(ORÇAMENTO!$W$15,ROW(AJ17)-ROW(AJ$15),0),15-13*ORÇAMENTO!$AF$11)),0) -> 0 | AK17: =IF(AND($D17="Serviço",AK$12<>0,$H17>0,OR(AUTOEVENTO<>"manual",$M17<>1)), IF(Import.TipoArredondamento<>"TransfereGOV", ROUND(OFFSET($P17,0,AK$13),15-13*ORÇAMENTO!$AF$7)/$H17*OFFSET(ORÇAMENTO!$X$15,ROW(AK17)-ROW(AK$15),0), ROUND(ROUND(OFFSET($P17,0,AK$13),15-13*ORÇAMENTO!$AF$7)*OFFSET(ORÇAMENTO!$W$15,ROW(AK17)-ROW(AK$15),0),15-13*ORÇAMENTO!$AF$11)),0) -> 0 | AM17: =IF($D17<>"Serviço",0,IF(AND(AUTOEVENTO="Manual",$M17=1),0,IF(OFFSET(CRONOPLE!$F$14,$M17,AM$13)="",10^12,OFFSET(CRONOPLE!$F$14,$M17,AM$13)))) -> 0 | AN17: =IF($D17<>"Serviço",0,IF(AND(AUTOEVENTO="Manual",$M17=1),0,IF(OFFSET(CRONOPLE!$F$14,$M17,AN$13)="",10^12,OFFSET(CRONOPLE!$F$14,$M17,AN$13)))) -> 0 | AO17: =IF($D17<>"Serviço",0,IF(AND(AUTOEVENTO="Manual",$M17=1),0,IF(OFFSET(CRONOPLE!$F$14,$M17,AO$13)="",10^12,OFFSET(CRONOPLE!$F$14,$M17,AO$13)))) -> 0 | AP17: =IF($D17<>"Serviço",0,IF(AND(AUTOEVENTO="Manual",$M17=1),0,IF(OFFSET(CRONOPLE!$F$14,$M17,AP$13)="",10^12,OFFSET(CRONOPLE!$F$14,$M17,AP$13)))) -> 0 | AQ17: =IF($D17<>"Serviço",0,IF(AND(AUTOEVENTO="Manual",$M17=1),0,IF(OFFSET(CRONOPLE!$F$14,$M17,AQ$13)="",10^12,OFFSET(CRONOPLE!$F$14,$M17,AQ$13)))) -> 0 | AR17: =IF($D17<>"Serviço",0,IF(AND(AUTOEVENTO="Manual",$M17=1),0,IF(OFFSET(CRONOPLE!$F$14,$M17,AR$13)="",10^12,OFFSET(CRONOPLE!$F$14,$M17,AR$13)))) -> 0 | AS17: =IF($D17<>"Serviço",0,IF(AND(AUTOEVENTO="Manual",$M17=1),0,IF(OFFSET(CRONOPLE!$F$14,$M17,AS$13)="",10^12,OFFSET(CRONOPLE!$F$14,$M17,AS$13)))) -> 0 | AT17: =IF($D17<>"Serviço",0,IF(AND(AUTOEVENTO="Manual",$M17=1),0,IF(OFFSET(CRONOPLE!$F$14,$M17,AT$13)="",10^12,OFFSET(CRONOPLE!$F$14,$M17,AT$13)))) -> 0 | AU17: =IF($D17<>"Serviço",0,IF(AND(AUTOEVENTO="Manual",$M17=1),0,IF(OFFSET(CRONOPLE!$F$14,$M17,AU$13)="",10^12,OFFSET(CRONOPLE!$F$14,$M17,AU$13)))) -> 0 | AV17: =IF($D17<>"Serviço",0,IF(AND(AUTOEVENTO="Manual",$M17=1),0,IF(OFFSET(CRONOPLE!$F$14,$M17,AV$13)="",10^12,OFFSET(CRONOPLE!$F$14,$M17,AV$13)))) -> 0 | AX17: =IF($D17<>"Serviço",0,IF(OR(AND(AUTOEVENTO="Manual",$M17=1),$M17>(ROW(PLE.lastrow)-ROW(PLE.firstrow))),0,IF(OFFSET(PLE!$G$14,$M17,AX$13)="",10^12,OFFSET(PLE!$G$14,$M17,AX$13)))) -> 0 | AY17: =IF($D17<>"Serviço",0,IF(OR(AND(AUTOEVENTO="Manual",$M17=1),$M17>(ROW(PLE.lastrow)-ROW(PLE.firstrow))),0,IF(OFFSET(PLE!$G$14,$M17,AY$13)="",10^12,OFFSET(PLE!$G$14,$M17,AY$13)))) -> 0 | AZ17: =IF($D17<>"Serviço",0,IF(OR(AND(AUTOEVENTO="Manual",$M17=1),$M17>(ROW(PLE.lastrow)-ROW(PLE.firstrow))),0,IF(OFFSET(PLE!$G$14,$M17,AZ$13)="",10^12,OFFSET(PLE!$G$14,$M17,AZ$13)))) -> 0 | BA17: =IF($D17<>"Serviço",0,IF(OR(AND(AUTOEVENTO="Manual",$M17=1),$M17>(ROW(PLE.lastrow)-ROW(PLE.firstrow))),0,IF(OFFSET(PLE!$G$14,$M17,BA$13)="",10^12,OFFSET(PLE!$G$14,$M17,BA$13)))) -> 0 | BB17: =IF($D17<>"Serviço",0,IF(OR(AND(AUTOEVENTO="Manual",$M17=1),$M17>(ROW(PLE.lastrow)-ROW(PLE.firstrow))),0,IF(OFFSET(PLE!$G$14,$M17,BB$13)="",10^12,OFFSET(PLE!$G$14,$M17,BB$13)))) -> 0 | BC17: =IF($D17<>"Serviço",0,IF(OR(AND(AUTOEVENTO="Manual",$M17=1),$M17>(ROW(PLE.lastrow)-ROW(PLE.firstrow))),0,IF(OFFSET(PLE!$G$14,$M17,BC$13)="",10^12,OFFSET(PLE!$G$14,$M17,BC$13)))) -> 0 | BD17: =IF($D17<>"Serviço",0,IF(OR(AND(AUTOEVENTO="Manual",$M17=1),$M17>(ROW(PLE.lastrow)-ROW(PLE.firstrow))),0,IF(OFFSET(PLE!$G$14,$M17,BD$13)="",10^12,OFFSET(PLE!$G$14,$M17,BD$13)))) -> 0 | BE17: =IF($D17<>"Serviço",0,IF(OR(AND(AUTOEVENTO="Manual",$M17=1),$M17>(ROW(PLE.lastrow)-ROW(PLE.firstrow))),0,IF(OFFSET(PLE!$G$14,$M17,BE$13)="",10^12,OFFSET(PLE!$G$14,$M17,BE$13)))) -> 0 | BF17: =IF($D17<>"Serviço",0,IF(OR(AND(AUTOEVENTO="Manual",$M17=1),$M17>(ROW(PLE.lastrow)-ROW(PLE.firstrow))),0,IF(OFFSET(PLE!$G$14,$M17,BF$13)="",10^12,OFFSET(PLE!$G$14,$M17,BF$13)))) -> 0 | BG17: =IF($D17<>"Serviço",0,IF(OR(AND(AUTOEVENTO="Manual",$M17=1),$M17>(ROW(PLE.lastrow)-ROW(PLE.firstrow))),0,IF(OFFSET(PLE!$G$14,$M17,BG$13)="",10^12,OFFSET(PLE!$G$14,$M17,BG$13)))) -> 0
A18: 2 | B18: =OFFSET(ORÇAMENTO!C$15,ROW(B18)-ROW(B$15),0) -> S | C18: =OFFSET(ORÇAMENTO!L$15,ROW(C18)-ROW(C$15),0) -> F | D18: =OFFSET(ORÇAMENTO!N$15,ROW(D18)-ROW(D$15),0) -> Serviço | E18: =OFFSET(ORÇAMENTO!O$15,ROW(E18)-ROW(E$15),0) -> 1.1.1. | F18: =OFFSET(ORÇAMENTO!R$15,ROW(F18)-ROW(F$15),0) -> PLACA DE OBRA EM AÇO GALVANIZADO 1,00X3,00M | G18: =IF($D18<>"Serviço","",OFFSET(ORÇAMENTO!S$15,ROW(G18)-ROW(G$15),0)) -> M2 | H18: =IF($D18<>"Serviço",0,IF(ACOMPANHAMENTO="BM",ROUND(OFFSET(ORÇAMENTO!AJ$15,ROW(H18)-ROW(H$15),0),15-13*ORÇAMENTO!$AF$7),SUMPRODUCT(($Q$12:$AA$12<>"")*ROUND($Q18:$AA18,15-13*ORÇAMENTO!$AF$7)))) -> 3 | K18: 2.Serviços Iniciais | L18: . | M18: =IF($D18<>"Serviço","",IF(AUTOEVENTO="manual",$A18,IF(ISERROR(MATCH($A18,$A$15:OFFSET($A18,-1,0),0)),MAX($M$15:OFFSET(M18,-1,0))+1,INDEX($M$15:OFFSET(M18,-1,0),MATCH($A18,$A$15:OFFSET($A18,-1,0),0))))) -> 2 | N18: =IF($D18<>"Serviço","",IF(AUTOEVENTO="Manual",IF($A18=0,"<-- defina o número do agrupador",OFFSET(EVENTOS!$D$14,$A18,0)),OFFSET($F$15,$A18,0))) -> Serviços Iniciais | Q18: 3 | AB18: =IF(AND($D18="Serviço",AB$12<>0,$H18>0,OR(AUTOEVENTO<>"manual",$M18<>1)), IF(Import.TipoArredondamento<>"TransfereGOV", ROUND(OFFSET($P18,0,AB$13),15-13*ORÇAMENTO!$AF$7)/$H18*OFFSET(ORÇAMENTO!$X$15,ROW(AB18)-ROW(AB$15),0), ROUND(ROUND(OFFSET($P18,0,AB$13),15-13*ORÇAMENTO!$AF$7)*OFFSET(ORÇAMENTO!$W$15,ROW(AB18)-ROW(AB$15),0),15-13*ORÇAMENTO!$AF$11)),0) -> 1405.59 | AC18: =IF(AND($D18="Serviço",AC$12<>0,$H18>0,OR(AUTOEVENTO<>"manual",$M18<>1)), IF(Import.TipoArredondamento<>"TransfereGOV", ROUND(OFFSET($P18,0,AC$13),15-13*ORÇAMENTO!$AF$7)/$H18*OFFSET(ORÇAMENTO!$X$15,ROW(AC18)-ROW(AC$15),0), ROUND(ROUND(OFFSET($P18,0,AC$13),15-13*ORÇAMENTO!$AF$7)*OFFSET(ORÇAMENTO!$W$15,ROW(AC18)-ROW(AC$15),0),15-13*ORÇAMENTO!$AF$11)),0) -> 0 | AD18: =IF(AND($D18="Serviço",AD$12<>0,$H18>0,OR(AUTOEVENTO<>"manual",$M18<>1)), IF(Import.TipoArredondamento<>"TransfereGOV", ROUND(OFFSET($P18,0,AD$13),15-13*ORÇAMENTO!$AF$7)/$H18*OFFSET(ORÇAMENTO!$X$15,ROW(AD18)-ROW(AD$15),0), ROUND(ROUND(OFFSET($P18,0,AD$13),15-13*ORÇAMENTO!$AF$7)*OFFSET(ORÇAMENTO!$W$15,ROW(AD18)-ROW(AD$15),0),15-13*ORÇAMENTO!$AF$11)),0) -> 0 | AE18: =IF(AND($D18="Serviço",AE$12<>0,$H18>0,OR(AUTOEVENTO<>"manual",$M18<>1)), IF(Import.TipoArredondamento<>"TransfereGOV", ROUND(OFFSET($P18,0,AE$13),15-13*ORÇAMENTO!$AF$7)/$H18*OFFSET(ORÇAMENTO!$X$15,ROW(AE18)-ROW(AE$15),0), ROUND(ROUND(OFFSET($P18,0,AE$13),15-13*ORÇAMENTO!$AF$7)*OFFSET(ORÇAMENTO!$W$15,ROW(AE18)-ROW(AE$15),0),15-13*ORÇAMENTO!$AF$11)),0) -> 0 | AF18: =IF(AND($D18="Serviço",AF$12<>0,$H18>0,OR(AUTOEVENTO<>"manual",$M18<>1)), IF(Import.TipoArredondamento<>"TransfereGOV", ROUND(OFFSET($P18,0,AF$13),15-13*ORÇAMENTO!$AF$7)/$H18*OFFSET(ORÇAMENTO!$X$15,ROW(AF18)-ROW(AF$15),0), ROUND(ROUND(OFFSET($P18,0,AF$13),15-13*ORÇAMENTO!$AF$7)*OFFSET(ORÇAMENTO!$W$15,ROW(AF18)-ROW(AF$15),0),15-13*ORÇAMENTO!$AF$11)),0) -> 0 | AG18: =IF(AND($D18="Serviço",AG$12<>0,$H18>0,OR(AUTOEVENTO<>"manual",$M18<>1)), IF(Import.TipoArredondamento<>"TransfereGOV", ROUND(OFFSET($P18,0,AG$13),15-13*ORÇAMENTO!$AF$7)/$H18*OFFSET(ORÇAMENTO!$X$15,ROW(AG18)-ROW(AG$15),0), ROUND(ROUND(OFFSET($P18,0,AG$13),15-13*ORÇAMENTO!$AF$7)*OFFSET(ORÇAMENTO!$W$15,ROW(AG18)-ROW(AG$15),0),15-13*ORÇAMENTO!$AF$11)),0) -> 0 | AH18: =IF(AND($D18="Serviço",AH$12<>0,$H18>0,OR(AUTOEVENTO<>"manual",$M18<>1)), IF(Import.TipoArredondamento<>"TransfereGOV", ROUND(OFFSET($P18,0,AH$13),15-13*ORÇAMENTO!$AF$7)/$H18*OFFSET(ORÇAMENTO!$X$15,ROW(AH18)-ROW(AH$15),0), ROUND(ROUND(OFFSET($P18,0,AH$13),15-13*ORÇAMENTO!$AF$7)*OFFSET(ORÇAMENTO!$W$15,ROW(AH18)-ROW(AH$15),0),15-13*ORÇAMENTO!$AF$11)),0) -> 0 | AI18: =IF(AND($D18="Serviço",AI$12<>0,$H18>0,OR(AUTOEVENTO<>"manual",$M18<>1)), IF(Import.TipoArredondamento<>"TransfereGOV", ROUND(OFFSET($P18,0,AI$13),15-13*ORÇAMENTO!$AF$7)/$H18*OFFSET(ORÇAMENTO!$X$15,ROW(AI18)-ROW(AI$15),0), ROUND(ROUND(OFFSET($P18,0,AI$13),15-13*ORÇAMENTO!$AF$7)*OFFSET(ORÇAMENTO!$W$15,ROW(AI18)-ROW(AI$15),0),15-13*ORÇAMENTO!$AF$11)),0) -> 0 | AJ18: =IF(AND($D18="Serviço",AJ$12<>0,$H18>0,OR(AUTOEVENTO<>"manual",$M18<>1)), IF(Import.TipoArredondamento<>"TransfereGOV", ROUND(OFFSET($P18,0,AJ$13),15-13*ORÇAMENTO!$AF$7)/$H18*OFFSET(ORÇAMENTO!$X$15,ROW(AJ18)-ROW(AJ$15),0), ROUND(ROUND(OFFSET($P18,0,AJ$13),15-13*ORÇAMENTO!$AF$7)*OFFSET(ORÇAMENTO!$W$15,ROW(AJ18)-ROW(AJ$15),0),15-13*ORÇAMENTO!$AF$11)),0) -> 0 | AK18: =IF(AND($D18="Serviço",AK$12<>0,$H18>0,OR(AUTOEVENTO<>"manual",$M18<>1)), IF(Import.TipoArredondamento<>"TransfereGOV", ROUND(OFFSET($P18,0,AK$13),15-13*ORÇAMENTO!$AF$7)/$H18*OFFSET(ORÇAMENTO!$X$15,ROW(AK18)-ROW(AK$15),0), ROUND(ROUND(OFFSET($P18,0,AK$13),15-13*ORÇAMENTO!$AF$7)*OFFSET(ORÇAMENTO!$W$15,ROW(AK18)-ROW(AK$15),0),15-13*ORÇAMENTO!$AF$11)),0) -> 0 | AM18: =IF($D18<>"Serviço",0,IF(AND(AUTOEVENTO="Manual",$M18=1),0,IF(OFFSET(CRONOPLE!$F$14,$M18,AM$13)="",10^12,OFFSET(CRONOPLE!$F$14,$M18,AM$13)))) -> 1 | AN18: =IF($D18<>"Serviço",0,IF(AND(AUTOEVENTO="Manual",$M18=1),0,IF(OFFSET(CRONOPLE!$F$14,$M18,AN$13)="",10^12,OFFSET(CRONOPLE!$F$14,$M18,AN$13)))) -> 1000000000000 | AO18: =IF($D18<>"Serviço",0,IF(AND(AUTOEVENTO="Manual",$M18=1),0,IF(OFFSET(CRONOPLE!$F$14,$M18,AO$13)="",10^12,OFFSET(CRONOPLE!$F$14,$M18,AO$13)))) -> 1000000000000 | AP18: =IF($D18<>"Serviço",0,IF(AND(AUTOEVENTO="Manual",$M18=1),0,IF(OFFSET(CRONOPLE!$F$14,$M18,AP$13)="",10^12,OFFSET(CRONOPLE!$F$14,$M18,AP$13)))) -> 1000000000000 | AQ18: =IF($D18<>"Serviço",0,IF(AND(AUTOEVENTO="Manual",$M18=1),0,IF(OFFSET(CRONOPLE!$F$14,$M18,AQ$13)="",10^12,OFFSET(CRONOPLE!$F$14,$M18,AQ$13)))) -> 1000000000000 | AR18: =IF($D18<>"Serviço",0,IF(AND(AUTOEVENTO="Manual",$M18=1),0,IF(OFFSET(CRONOPLE!$F$14,$M18,AR$13)="",10^12,OFFSET(CRONOPLE!$F$14,$M18,AR$13)))) -> 1000000000000 | AS18: =IF($D18<>"Serviço",0,IF(AND(AUTOEVENTO="Manual",$M18=1),0,IF(OFFSET(CRONOPLE!$F$14,$M18,AS$13)="",10^12,OFFSET(CRONOPLE!$F$14,$M18,AS$13)))) -> 1000000000000 | AT18: =IF($D18<>"Serviço",0,IF(AND(AUTOEVENTO="Manual",$M18=1),0,IF(OFFSET(CRONOPLE!$F$14,$M18,AT$13)="",10^12,OFFSET(CRONOPLE!$F$14,$M18,AT$13)))) -> 1000000000000 | AU18: =IF($D18<>"Serviço",0,IF(AND(AUTOEVENTO="Manual",$M18=1),0,IF(OFFSET(CRONOPLE!$F$14,$M18,AU$13)="",10^12,OFFSET(CRONOPLE!$F$14,$M18,AU$13)))) -> 1000000000000 | AV18: =IF($D18<>"Serviço",0,IF(AND(AUTOEVENTO="Manual",$M18=1),0,IF(OFFSET(CRONOPLE!$F$14,$M18,AV$13)="",10^12,OFFSET(CRONOPLE!$F$14,$M18,AV$13)))) -> 1000000000000 | AX18: =IF($D18<>"Serviço",0,IF(OR(AND(AUTOEVENTO="Manual",$M18=1),$M18>(ROW(PLE.lastrow)-ROW(PLE.firstrow))),0,IF(OFFSET(PLE!$G$14,$M18,AX$13)="",10^12,OFFSET(PLE!$G$14,$M18,AX$13)))) -> 1000000000000 | AY18: =IF($D18<>"Serviço",0,IF(OR(AND(AUTOEVENTO="Manual",$M18=1),$M18>(ROW(PLE.lastrow)-ROW(PLE.firstrow))),0,IF(OFFSET(PLE!$G$14,$M18,AY$13)="",10^12,OFFSET(PLE!$G$14,$M18,AY$13)))) -> 1000000000000 | AZ18: =IF($D18<>"Serviço",0,IF(OR(AND(AUTOEVENTO="Manual",$M18=1),$M18>(ROW(PLE.lastrow)-ROW(PLE.firstrow))),0,IF(OFFSET(PLE!$G$14,$M18,AZ$13)="",10^12,OFFSET(PLE!$G$14,$M18,AZ$13)))) -> 1000000000000 | BA18: =IF($D18<>"Serviço",0,IF(OR(AND(AUTOEVENTO="Manual",$M18=1),$M18>(ROW(PLE.lastrow)-ROW(PLE.firstrow))),0,IF(OFFSET(PLE!$G$14,$M18,BA$13)="",10^12,OFFSET(PLE!$G$14,$M18,BA$13)))) -> 1000000000000 | BB18: =IF($D18<>"Serviço",0,IF(OR(AND(AUTOEVENTO="Manual",$M18=1),$M18>(ROW(PLE.lastrow)-ROW(PLE.firstrow))),0,IF(OFFSET(PLE!$G$14,$M18,BB$13)="",10^12,OFFSET(PLE!$G$14,$M18,BB$13)))) -> 1000000000000 | BC18: =IF($D18<>"Serviço",0,IF(OR(AND(AUTOEVENTO="Manual",$M18=1),$M18>(ROW(PLE.lastrow)-ROW(PLE.firstrow))),0,IF(OFFSET(PLE!$G$14,$M18,BC$13)="",10^12,OFFSET(PLE!$G$14,$M18,BC$13)))) -> 1000000000000 | BD18: =IF($D18<>"Serviço",0,IF(OR(AND(AUTOEVENTO="Manual",$M18=1),$M18>(ROW(PLE.lastrow)-ROW(PLE.firstrow))),0,IF(OFFSET(PLE!$G$14,$M18,BD$13)="",10^12,OFFSET(PLE!$G$14,$M18,BD$13)))) -> 1000000000000 | BE18: =IF($D18<>"Serviço",0,IF(OR(AND(AUTOEVENTO="Manual",$M18=1),$M18>(ROW(PLE.lastrow)-ROW(PLE.firstrow))),0,IF(OFFSET(PLE!$G$14,$M18,BE$13)="",10^12,OFFSET(PLE!$G$14,$M18,BE$13)))) -> 1000000000000 | BF18: =IF($D18<>"Serviço",0,IF(OR(AND(AUTOEVENTO="Manual",$M18=1),$M18>(ROW(PLE.lastrow)-ROW(PLE.firstrow))),0,IF(OFFSET(PLE!$G$14,$M18,BF$13)="",10^12,OFFSET(PLE!$G$14,$M18,BF$13)))) -> 1000000000000 | BG18: =IF($D18<>"Serviço",0,IF(OR(AND(AUTOEVENTO="Manual",$M18=1),$M18>(ROW(PLE.lastrow)-ROW(PLE.firstrow))),0,IF(OFFSET(PLE!$G$14,$M18,BG$13)="",10^12,OFFSET(PLE!$G$14,$M18,BG$13)))) -> 1000000000000
A19: =IF(AUTOEVENTO="Manual",IF(K19<>"",MIN(VALUE(LEFT(K19,FIND(".",K19)-1)),COUNTA(EVENTOS.Lista)),0),IF(OR($B19>AUTOEVENTO,$B19="S",$B19=0),SUBSTITUTE(OFFSET($A19,-1,0),IF($D19="Serviço",".",""),""),ROW(A19)-ROW($A$15)&".")) -> 2 | B19: =OFFSET(ORÇAMENTO!C$15,ROW(B19)-ROW(B$15),0) -> S | C19: =OFFSET(ORÇAMENTO!L$15,ROW(C19)-ROW(C$15),0) -> F | D19: =OFFSET(ORÇAMENTO!N$15,ROW(D19)-ROW(D$15),0) -> Serviço | E19: =OFFSET(ORÇAMENTO!O$15,ROW(E19)-ROW(E$15),0) -> 1.1.2. | F19: =OFFSET(ORÇAMENTO!R$15,ROW(F19)-ROW(F$15),0) -> ADMINISTRAÇÃO DA OBRA | G19: =IF($D19<>"Serviço","",OFFSET(ORÇAMENTO!S$15,ROW(G19)-ROW(G$15),0)) -> MÊS | H19: =IF($D19<>"Serviço",0,IF(ACOMPANHAMENTO="BM",ROUND(OFFSET(ORÇAMENTO!AJ$15,ROW(H19)-ROW(H$15),0),15-13*ORÇAMENTO!$AF$7),SUMPRODUCT(($Q$12:$AA$12<>"")*ROUND($Q19:$AA19,15-13*ORÇAMENTO!$AF$7)))) -> 2 | K19: 2.Serviços Iniciais | L19: . | M19: =IF($D19<>"Serviço","",IF(AUTOEVENTO="manual",$A19,IF(ISERROR(MATCH($A19,$A$15:OFFSET($A19,-1,0),0)),MAX($M$15:OFFSET(M19,-1,0))+1,INDEX($M$15:OFFSET(M19,-1,0),MATCH($A19,$A$15:OFFSET($A19,-1,0),0))))) -> 2 | N19: =IF($D19<>"Serviço","",IF(AUTOEVENTO="Manual",IF($A19=0,"<-- defina o número do agrupador",OFFSET(EVENTOS!$D$14,$A19,0)),OFFSET($F$15,$A19,0))) -> Serviços Iniciais | Q19: 2 | AB19: =IF(AND($D19="Serviço",AB$12<>0,$H19>0,OR(AUTOEVENTO<>"manual",$M19<>1)), IF(Import.TipoArredondamento<>"TransfereGOV", ROUND(OFFSET($P19,0,AB$13),15-13*ORÇAMENTO!$AF$7)/$H19*OFFSET(ORÇAMENTO!$X$15,ROW(AB19)-ROW(AB$15),0), ROUND(ROUND(OFFSET($P19,0,AB$13),15-13*ORÇAMENTO!$AF$7)*OFFSET(ORÇAMENTO!$W$15,ROW(AB19)-ROW(AB$15),0),15-13*ORÇAMENTO!$AF$11)),0) -> 5660.22 | AC19: =IF(AND($D19="Serviço",AC$12<>0,$H19>0,OR(AUTOEVENTO<>"manual",$M19<>1)), IF(Import.TipoArredondamento<>"TransfereGOV", ROUND(OFFSET($P19,0,AC$13),15-13*ORÇAMENTO!$AF$7)/$H19*OFFSET(ORÇAMENTO!$X$15,ROW(AC19)-ROW(AC$15),0), ROUND(ROUND(OFFSET($P19,0,AC$13),15-13*ORÇAMENTO!$AF$7)*OFFSET(ORÇAMENTO!$W$15,ROW(AC19)-ROW(AC$15),0),15-13*ORÇAMENTO!$AF$11)),0) -> 0 | AD19: =IF(AND($D19="Serviço",AD$12<>0,$H19>0,OR(AUTOEVENTO<>"manual",$M19<>1)), IF(Import.TipoArredondamento<>"TransfereGOV", ROUND(OFFSET($P19,0,AD$13),15-13*ORÇAMENTO!$AF$7)/$H19*OFFSET(ORÇAMENTO!$X$15,ROW(AD19)-ROW(AD$15),0), ROUND(ROUND(OFFSET($P19,0,AD$13),15-13*ORÇAMENTO!$AF$7)*OFFSET(ORÇAMENTO!$W$15,ROW(AD19)-ROW(AD$15),0),15-13*ORÇAMENTO!$AF$11)),0) -> 0 | AE19: =IF(AND($D19="Serviço",AE$12<>0,$H19>0,OR(AUTOEVENTO<>"manual",$M19<>1)), IF(Import.TipoArredondamento<>"TransfereGOV", ROUND(OFFSET($P19,0,AE$13),15-13*ORÇAMENTO!$AF$7)/$H19*OFFSET(ORÇAMENTO!$X$15,ROW(AE19)-ROW(AE$15),0), ROUND(ROUND(OFFSET($P19,0,AE$13),15-13*ORÇAMENTO!$AF$7)*OFFSET(ORÇAMENTO!$W$15,ROW(AE19)-ROW(AE$15),0),15-13*ORÇAMENTO!$AF$11)),0) -> 0 | AF19: =IF(AND($D19="Serviço",AF$12<>0,$H19>0,OR(AUTOEVENTO<>"manual",$M19<>1)), IF(Import.TipoArredondamento<>"TransfereGOV", ROUND(OFFSET($P19,0,AF$13),15-13*ORÇAMENTO!$AF$7)/$H19*OFFSET(ORÇAMENTO!$X$15,ROW(AF19)-ROW(AF$15),0), ROUND(ROUND(OFFSET($P19,0,AF$13),15-13*ORÇAMENTO!$AF$7)*OFFSET(ORÇAMENTO!$W$15,ROW(AF19)-ROW(AF$15),0),15-13*ORÇAMENTO!$AF$11)),0) -> 0 | AG19: =IF(AND($D19="Serviço",AG$12<>0,$H19>0,OR(AUTOEVENTO<>"manual",$M19<>1)), IF(Import.TipoArredondamento<>"TransfereGOV", ROUND(OFFSET($P19,0,AG$13),15-13*ORÇAMENTO!$AF$7)/$H19*OFFSET(ORÇAMENTO!$X$15,ROW(AG19)-ROW(AG$15),0), ROUND(ROUND(OFFSET($P19,0,AG$13),15-13*ORÇAMENTO!$AF$7)*OFFSET(ORÇAMENTO!$W$15,ROW(AG19)-ROW(AG$15),0),15-13*ORÇAMENTO!$AF$11)),0) -> 0 | AH19: =IF(AND($D19="Serviço",AH$12<>0,$H19>0,OR(AUTOEVENTO<>"manual",$M19<>1)), IF(Import.TipoArredondamento<>"TransfereGOV", ROUND(OFFSET($P19,0,AH$13),15-13*ORÇAMENTO!$AF$7)/$H19*OFFSET(ORÇAMENTO!$X$15,ROW(AH19)-ROW(AH$15),0), ROUND(ROUND(OFFSET($P19,0,AH$13),15-13*ORÇAMENTO!$AF$7)*OFFSET(ORÇAMENTO!$W$15,ROW(AH19)-ROW(AH$15),0),15-13*ORÇAMENTO!$AF$11)),0) -> 0 | AI19: =IF(AND($D19="Serviço",AI$12<>0,$H19>0,OR(AUTOEVENTO<>"manual",$M19<>1)), IF(Import.TipoArredondamento<>"TransfereGOV", ROUND(OFFSET($P19,0,AI$13),15-13*ORÇAMENTO!$AF$7)/$H19*OFFSET(ORÇAMENTO!$X$15,ROW(AI19)-ROW(AI$15),0), ROUND(ROUND(OFFSET($P19,0,AI$13),15-13*ORÇAMENTO!$AF$7)*OFFSET(ORÇAMENTO!$W$15,ROW(AI19)-ROW(AI$15),0),15-13*ORÇAMENTO!$AF$11)),0) -> 0 | AJ19: =IF(AND($D19="Serviço",AJ$12<>0,$H19>0,OR(AUTOEVENTO<>"manual",$M19<>1)), IF(Import.TipoArredondamento<>"TransfereGOV", ROUND(OFFSET($P19,0,AJ$13),15-13*ORÇAMENTO!$AF$7)/$H19*OFFSET(ORÇAMENTO!$X$15,ROW(AJ19)-ROW(AJ$15),0), ROUND(ROUND(OFFSET($P19,0,AJ$13),15-13*ORÇAMENTO!$AF$7)*OFFSET(ORÇAMENTO!$W$15,ROW(AJ19)-ROW(AJ$15),0),15-13*ORÇAMENTO!$AF$11)),0) -> 0 | AK19: =IF(AND($D19="Serviço",AK$12<>0,$H19>0,OR(AUTOEVENTO<>"manual",$M19<>1)), IF(Import.TipoArredondamento<>"TransfereGOV", ROUND(OFFSET($P19,0,AK$13),15-13*ORÇAMENTO!$AF$7)/$H19*OFFSET(ORÇAMENTO!$X$15,ROW(AK19)-ROW(AK$15),0), ROUND(ROUND(OFFSET($P19,0,AK$13),15-13*ORÇAMENTO!$AF$7)*OFFSET(ORÇAMENTO!$W$15,ROW(AK19)-ROW(AK$15),0),15-13*ORÇAMENTO!$AF$11)),0) -> 0 | AM19: =IF($D19<>"Serviço",0,IF(AND(AUTOEVENTO="Manual",$M19=1),0,IF(OFFSET(CRONOPLE!$F$14,$M19,AM$13)="",10^12,OFFSET(CRONOPLE!$F$14,$M19,AM$13)))) -> 1 | AN19: =IF($D19<>"Serviço",0,IF(AND(AUTOEVENTO="Manual",$M19=1),0,IF(OFFSET(CRONOPLE!$F$14,$M19,AN$13)="",10^12,OFFSET(CRONOPLE!$F$14,$M19,AN$13)))) -> 1000000000000 | AO19: =IF($D19<>"Serviço",0,IF(AND(AUTOEVENTO="Manual",$M19=1),0,IF(OFFSET(CRONOPLE!$F$14,$M19,AO$13)="",10^12,OFFSET(CRONOPLE!$F$14,$M19,AO$13)))) -> 1000000000000 | AP19: =IF($D19<>"Serviço",0,IF(AND(AUTOEVENTO="Manual",$M19=1),0,IF(OFFSET(CRONOPLE!$F$14,$M19,AP$13)="",10^12,OFFSET(CRONOPLE!$F$14,$M19,AP$13)))) -> 1000000000000 | AQ19: =IF($D19<>"Serviço",0,IF(AND(AUTOEVENTO="Manual",$M19=1),0,IF(OFFSET(CRONOPLE!$F$14,$M19,AQ$13)="",10^12,OFFSET(CRONOPLE!$F$14,$M19,AQ$13)))) -> 1000000000000 | AR19: =IF($D19<>"Serviço",0,IF(AND(AUTOEVENTO="Manual",$M19=1),0,IF(OFFSET(CRONOPLE!$F$14,$M19,AR$13)="",10^12,OFFSET(CRONOPLE!$F$14,$M19,AR$13)))) -> 1000000000000 | AS19: =IF($D19<>"Serviço",0,IF(AND(AUTOEVENTO="Manual",$M19=1),0,IF(OFFSET(CRONOPLE!$F$14,$M19,AS$13)="",10^12,OFFSET(CRONOPLE!$F$14,$M19,AS$13)))) -> 1000000000000 | AT19: =IF($D19<>"Serviço",0,IF(AND(AUTOEVENTO="Manual",$M19=1),0,IF(OFFSET(CRONOPLE!$F$14,$M19,AT$13)="",10^12,OFFSET(CRONOPLE!$F$14,$M19,AT$13)))) -> 1000000000000 | AU19: =IF($D19<>"Serviço",0,IF(AND(AUTOEVENTO="Manual",$M19=1),0,IF(OFFSET(CRONOPLE!$F$14,$M19,AU$13)="",10^12,OFFSET(CRONOPLE!$F$14,$M19,AU$13)))) -> 1000000000000 | AV19: =IF($D19<>"Serviço",0,IF(AND(AUTOEVENTO="Manual",$M19=1),0,IF(OFFSET(CRONOPLE!$F$14,$M19,AV$13)="",10^12,OFFSET(CRONOPLE!$F$14,$M19,AV$13)))) -> 1000000000000 | AX19: =IF($D19<>"Serviço",0,IF(OR(AND(AUTOEVENTO="Manual",$M19=1),$M19>(ROW(PLE.lastrow)-ROW(PLE.firstrow))),0,IF(OFFSET(PLE!$G$14,$M19,AX$13)="",10^12,OFFSET(PLE!$G$14,$M19,AX$13)))) -> 1000000000000 | AY19: =IF($D19<>"Serviço",0,IF(OR(AND(AUTOEVENTO="Manual",$M19=1),$M19>(ROW(PLE.lastrow)-ROW(PLE.firstrow))),0,IF(OFFSET(PLE!$G$14,$M19,AY$13)="",10^12,OFFSET(PLE!$G$14,$M19,AY$13)))) -> 1000000000000 | AZ19: =IF($D19<>"Serviço",0,IF(OR(AND(AUTOEVENTO="Manual",$M19=1),$M19>(ROW(PLE.lastrow)-ROW(PLE.firstrow))),0,IF(OFFSET(PLE!$G$14,$M19,AZ$13)="",10^12,OFFSET(PLE!$G$14,$M19,AZ$13)))) -> 1000000000000 | BA19: =IF($D19<>"Serviço",0,IF(OR(AND(AUTOEVENTO="Manual",$M19=1),$M19>(ROW(PLE.lastrow)-ROW(PLE.firstrow))),0,IF(OFFSET(PLE!$G$14,$M19,BA$13)="",10^12,OFFSET(PLE!$G$14,$M19,BA$13)))) -> 1000000000000 | BB19: =IF($D19<>"Serviço",0,IF(OR(AND(AUTOEVENTO="Manual",$M19=1),$M19>(ROW(PLE.lastrow)-ROW(PLE.firstrow))),0,IF(OFFSET(PLE!$G$14,$M19,BB$13)="",10^12,OFFSET(PLE!$G$14,$M19,BB$13)))) -> 1000000000000 | BC19: =IF($D19<>"Serviço",0,IF(OR(AND(AUTOEVENTO="Manual",$M19=1),$M19>(ROW(PLE.lastrow)-ROW(PLE.firstrow))),0,IF(OFFSET(PLE!$G$14,$M19,BC$13)="",10^12,OFFSET(PLE!$G$14,$M19,BC$13)))) -> 1000000000000 | BD19: =IF($D19<>"Serviço",0,IF(OR(AND(AUTOEVENTO="Manual",$M19=1),$M19>(ROW(PLE.lastrow)-ROW(PLE.firstrow))),0,IF(OFFSET(PLE!$G$14,$M19,BD$13)="",10^12,OFFSET(PLE!$G$14,$M19,BD$13)))) -> 1000000000000 | BE19: =IF($D19<>"Serviço",0,IF(OR(AND(AUTOEVENTO="Manual",$M19=1),$M19>(ROW(PLE.lastrow)-ROW(PLE.firstrow))),0,IF(OFFSET(PLE!$G$14,$M19,BE$13)="",10^12,OFFSET(PLE!$G$14,$M19,BE$13)))) -> 1000000000000 | BF19: =IF($D19<>"Serviço",0,IF(OR(AND(AUTOEVENTO="Manual",$M19=1),$M19>(ROW(PLE.lastrow)-ROW(PLE.firstrow))),0,IF(OFFSET(PLE!$G$14,$M19,BF$13)="",10^12,OFFSET(PLE!$G$14,$M19,BF$13)))) -> 1000000000000 | BG19: =IF($D19<>"Serviço",0,IF(OR(AND(AUTOEVENTO="Manual",$M19=1),$M19>(ROW(PLE.lastrow)-ROW(PLE.firstrow))),0,IF(OFFSET(PLE!$G$14,$M19,BG$13)="",10^12,OFFSET(PLE!$G$14,$M19,BG$13)))) -> 1000000000000
A20: 0 | B20: =OFFSET(ORÇAMENTO!C$15,ROW(B20)-ROW(B$15),0) -> 2 | C20: =OFFSET(ORÇAMENTO!L$15,ROW(C20)-ROW(C$15),0) -> F | D20: =OFFSET(ORÇAMENTO!N$15,ROW(D20)-ROW(D$15),0) -> Nível 2 | E20: =OFFSET(ORÇAMENTO!O$15,ROW(E20)-ROW(E$15),0) -> 1.2. | F20: =OFFSET(ORÇAMENTO!R$15,ROW(F20)-ROW(F$15),0) -> Mobilização e desmobilização de equipamentos | G20: =IF($D20<>"Serviço","",OFFSET(ORÇAMENTO!S$15,ROW(G20)-ROW(G$15),0)) ->  | H20: =IF($D20<>"Serviço",0,IF(ACOMPANHAMENTO="BM",ROUND(OFFSET(ORÇAMENTO!AJ$15,ROW(H20)-ROW(H$15),0),15-13*ORÇAMENTO!$AF$7),SUMPRODUCT(($Q$12:$AA$12<>"")*ROUND($Q20:$AA20,15-13*ORÇAMENTO!$AF$7)))) -> 0 | L20: . | M20: =IF($D20<>"Serviço","",IF(AUTOEVENTO="manual",$A20,IF(ISERROR(MATCH($A20,$A$15:OFFSET($A20,-1,0),0)),MAX($M$15:OFFSET(M20,-1,0))+1,INDEX($M$15:OFFSET(M20,-1,0),MATCH($A20,$A$15:OFFSET($A20,-1,0),0))))) ->  | N20: =IF($D20<>"Serviço","",IF(AUTOEVENTO="Manual",IF($A20=0,"<-- defina o número do agrupador",OFFSET(EVENTOS!$D$14,$A20,0)),OFFSET($F$15,$A20,0))) ->  | AB20: =IF(AND($D20="Serviço",AB$12<>0,$H20>0,OR(AUTOEVENTO<>"manual",$M20<>1)), IF(Import.TipoArredondamento<>"TransfereGOV", ROUND(OFFSET($P20,0,AB$13),15-13*ORÇAMENTO!$AF$7)/$H20*OFFSET(ORÇAMENTO!$X$15,ROW(AB20)-ROW(AB$15),0), ROUND(ROUND(OFFSET($P20,0,AB$13),15-13*ORÇAMENTO!$AF$7)*OFFSET(ORÇAMENTO!$W$15,ROW(AB20)-ROW(AB$15),0),15-13*ORÇAMENTO!$AF$11)),0) -> 0 | AC20: =IF(AND($D20="Serviço",AC$12<>0,$H20>0,OR(AUTOEVENTO<>"manual",$M20<>1)), IF(Import.TipoArredondamento<>"TransfereGOV", ROUND(OFFSET($P20,0,AC$13),15-13*ORÇAMENTO!$AF$7)/$H20*OFFSET(ORÇAMENTO!$X$15,ROW(AC20)-ROW(AC$15),0), ROUND(ROUND(OFFSET($P20,0,AC$13),15-13*ORÇAMENTO!$AF$7)*OFFSET(ORÇAMENTO!$W$15,ROW(AC20)-ROW(AC$15),0),15-13*ORÇAMENTO!$AF$11)),0) -> 0 | AD20: =IF(AND($D20="Serviço",AD$12<>0,$H20>0,OR(AUTOEVENTO<>"manual",$M20<>1)), IF(Import.TipoArredondamento<>"TransfereGOV", ROUND(OFFSET($P20,0,AD$13),15-13*ORÇAMENTO!$AF$7)/$H20*OFFSET(ORÇAMENTO!$X$15,ROW(AD20)-ROW(AD$15),0), ROUND(ROUND(OFFSET($P20,0,AD$13),15-13*ORÇAMENTO!$AF$7)*OFFSET(ORÇAMENTO!$W$15,ROW(AD20)-ROW(AD$15),0),15-13*ORÇAMENTO!$AF$11)),0) -> 0 | AE20: =IF(AND($D20="Serviço",AE$12<>0,$H20>0,OR(AUTOEVENTO<>"manual",$M20<>1)), IF(Import.TipoArredondamento<>"TransfereGOV", ROUND(OFFSET($P20,0,AE$13),15-13*ORÇAMENTO!$AF$7)/$H20*OFFSET(ORÇAMENTO!$X$15,ROW(AE20)-ROW(AE$15),0), ROUND(ROUND(OFFSET($P20,0,AE$13),15-13*ORÇAMENTO!$AF$7)*OFFSET(ORÇAMENTO!$W$15,ROW(AE20)-ROW(AE$15),0),15-13*ORÇAMENTO!$AF$11)),0) -> 0 | AF20: =IF(AND($D20="Serviço",AF$12<>0,$H20>0,OR(AUTOEVENTO<>"manual",$M20<>1)), IF(Import.TipoArredondamento<>"TransfereGOV", ROUND(OFFSET($P20,0,AF$13),15-13*ORÇAMENTO!$AF$7)/$H20*OFFSET(ORÇAMENTO!$X$15,ROW(AF20)-ROW(AF$15),0), ROUND(ROUND(OFFSET($P20,0,AF$13),15-13*ORÇAMENTO!$AF$7)*OFFSET(ORÇAMENTO!$W$15,ROW(AF20)-ROW(AF$15),0),15-13*ORÇAMENTO!$AF$11)),0) -> 0 | AG20: =IF(AND($D20="Serviço",AG$12<>0,$H20>0,OR(AUTOEVENTO<>"manual",$M20<>1)), IF(Import.TipoArredondamento<>"TransfereGOV", ROUND(OFFSET($P20,0,AG$13),15-13*ORÇAMENTO!$AF$7)/$H20*OFFSET(ORÇAMENTO!$X$15,ROW(AG20)-ROW(AG$15),0), ROUND(ROUND(OFFSET($P20,0,AG$13),15-13*ORÇAMENTO!$AF$7)*OFFSET(ORÇAMENTO!$W$15,ROW(AG20)-ROW(AG$15),0),15-13*ORÇAMENTO!$AF$11)),0) -> 0 | AH20: =IF(AND($D20="Serviço",AH$12<>0,$H20>0,OR(AUTOEVENTO<>"manual",$M20<>1)), IF(Import.TipoArredondamento<>"TransfereGOV", ROUND(OFFSET($P20,0,AH$13),15-13*ORÇAMENTO!$AF$7)/$H20*OFFSET(ORÇAMENTO!$X$15,ROW(AH20)-ROW(AH$15),0), ROUND(ROUND(OFFSET($P20,0,AH$13),15-13*ORÇAMENTO!$AF$7)*OFFSET(ORÇAMENTO!$W$15,ROW(AH20)-ROW(AH$15),0),15-13*ORÇAMENTO!$AF$11)),0) -> 0 | AI20: =IF(AND($D20="Serviço",AI$12<>0,$H20>0,OR(AUTOEVENTO<>"manual",$M20<>1)), IF(Import.TipoArredondamento<>"TransfereGOV", ROUND(OFFSET($P20,0,AI$13),15-13*ORÇAMENTO!$AF$7)/$H20*OFFSET(ORÇAMENTO!$X$15,ROW(AI20)-ROW(AI$15),0), ROUND(ROUND(OFFSET($P20,0,AI$13),15-13*ORÇAMENTO!$AF$7)*OFFSET(ORÇAMENTO!$W$15,ROW(AI20)-ROW(AI$15),0),15-13*ORÇAMENTO!$AF$11)),0) -> 0 | AJ20: =IF(AND($D20="Serviço",AJ$12<>0,$H20>0,OR(AUTOEVENTO<>"manual",$M20<>1)), IF(Import.TipoArredondamento<>"TransfereGOV", ROUND(OFFSET($P20,0,AJ$13),15-13*ORÇAMENTO!$AF$7)/$H20*OFFSET(ORÇAMENTO!$X$15,ROW(AJ20)-ROW(AJ$15),0), ROUND(ROUND(OFFSET($P20,0,AJ$13),15-13*ORÇAMENTO!$AF$7)*OFFSET(ORÇAMENTO!$W$15,ROW(AJ20)-ROW(AJ$15),0),15-13*ORÇAMENTO!$AF$11)),0) -> 0 | AK20: =IF(AND($D20="Serviço",AK$12<>0,$H20>0,OR(AUTOEVENTO<>"manual",$M20<>1)), IF(Import.TipoArredondamento<>"TransfereGOV", ROUND(OFFSET($P20,0,AK$13),15-13*ORÇAMENTO!$AF$7)/$H20*OFFSET(ORÇAMENTO!$X$15,ROW(AK20)-ROW(AK$15),0), ROUND(ROUND(OFFSET($P20,0,AK$13),15-13*ORÇAMENTO!$AF$7)*OFFSET(ORÇAMENTO!$W$15,ROW(AK20)-ROW(AK$15),0),15-13*ORÇAMENTO!$AF$11)),0) -> 0 | AM20: =IF($D20<>"Serviço",0,IF(AND(AUTOEVENTO="Manual",$M20=1),0,IF(OFFSET(CRONOPLE!$F$14,$M20,AM$13)="",10^12,OFFSET(CRONOPLE!$F$14,$M20,AM$13)))) -> 0 | AN20: =IF($D20<>"Serviço",0,IF(AND(AUTOEVENTO="Manual",$M20=1),0,IF(OFFSET(CRONOPLE!$F$14,$M20,AN$13)="",10^12,OFFSET(CRONOPLE!$F$14,$M20,AN$13)))) -> 0 | AO20: =IF($D20<>"Serviço",0,IF(AND(AUTOEVENTO="Manual",$M20=1),0,IF(OFFSET(CRONOPLE!$F$14,$M20,AO$13)="",10^12,OFFSET(CRONOPLE!$F$14,$M20,AO$13)))) -> 0 | AP20: =IF($D20<>"Serviço",0,IF(AND(AUTOEVENTO="Manual",$M20=1),0,IF(OFFSET(CRONOPLE!$F$14,$M20,AP$13)="",10^12,OFFSET(CRONOPLE!$F$14,$M20,AP$13)))) -> 0 | AQ20: =IF($D20<>"Serviço",0,IF(AND(AUTOEVENTO="Manual",$M20=1),0,IF(OFFSET(CRONOPLE!$F$14,$M20,AQ$13)="",10^12,OFFSET(CRONOPLE!$F$14,$M20,AQ$13)))) -> 0 | AR20: =IF($D20<>"Serviço",0,IF(AND(AUTOEVENTO="Manual",$M20=1),0,IF(OFFSET(CRONOPLE!$F$14,$M20,AR$13)="",10^12,OFFSET(CRONOPLE!$F$14,$M20,AR$13)))) -> 0 | AS20: =IF($D20<>"Serviço",0,IF(AND(AUTOEVENTO="Manual",$M20=1),0,IF(OFFSET(CRONOPLE!$F$14,$M20,AS$13)="",10^12,OFFSET(CRONOPLE!$F$14,$M20,AS$13)))) -> 0 | AT20: =IF($D20<>"Serviço",0,IF(AND(AUTOEVENTO="Manual",$M20=1),0,IF(OFFSET(CRONOPLE!$F$14,$M20,AT$13)="",10^12,OFFSET(CRONOPLE!$F$14,$M20,AT$13)))) -> 0 | AU20: =IF($D20<>"Serviço",0,IF(AND(AUTOEVENTO="Manual",$M20=1),0,IF(OFFSET(CRONOPLE!$F$14,$M20,AU$13)="",10^12,OFFSET(CRONOPLE!$F$14,$M20,AU$13)))) -> 0 | AV20: =IF($D20<>"Serviço",0,IF(AND(AUTOEVENTO="Manual",$M20=1),0,IF(OFFSET(CRONOPLE!$F$14,$M20,AV$13)="",10^12,OFFSET(CRONOPLE!$F$14,$M20,AV$13)))) -> 0 | AX20: =IF($D20<>"Serviço",0,IF(OR(AND(AUTOEVENTO="Manual",$M20=1),$M20>(ROW(PLE.lastrow)-ROW(PLE.firstrow))),0,IF(OFFSET(PLE!$G$14,$M20,AX$13)="",10^12,OFFSET(PLE!$G$14,$M20,AX$13)))) -> 0 | AY20: =IF($D20<>"Serviço",0,IF(OR(AND(AUTOEVENTO="Manual",$M20=1),$M20>(ROW(PLE.lastrow)-ROW(PLE.firstrow))),0,IF(OFFSET(PLE!$G$14,$M20,AY$13)="",10^12,OFFSET(PLE!$G$14,$M20,AY$13)))) -> 0 | AZ20: =IF($D20<>"Serviço",0,IF(OR(AND(AUTOEVENTO="Manual",$M20=1),$M20>(ROW(PLE.lastrow)-ROW(PLE.firstrow))),0,IF(OFFSET(PLE!$G$14,$M20,AZ$13)="",10^12,OFFSET(PLE!$G$14,$M20,AZ$13)))) -> 0 | BA20: =IF($D20<>"Serviço",0,IF(OR(AND(AUTOEVENTO="Manual",$M20=1),$M20>(ROW(PLE.lastrow)-ROW(PLE.firstrow))),0,IF(OFFSET(PLE!$G$14,$M20,BA$13)="",10^12,OFFSET(PLE!$G$14,$M20,BA$13)))) -> 0 | BB20: =IF($D20<>"Serviço",0,IF(OR(AND(AUTOEVENTO="Manual",$M20=1),$M20>(ROW(PLE.lastrow)-ROW(PLE.firstrow))),0,IF(OFFSET(PLE!$G$14,$M20,BB$13)="",10^12,OFFSET(PLE!$G$14,$M20,BB$13)))) -> 0 | BC20: =IF($D20<>"Serviço",0,IF(OR(AND(AUTOEVENTO="Manual",$M20=1),$M20>(ROW(PLE.lastrow)-ROW(PLE.firstrow))),0,IF(OFFSET(PLE!$G$14,$M20,BC$13)="",10^12,OFFSET(PLE!$G$14,$M20,BC$13)))) -> 0 | BD20: =IF($D20<>"Serviço",0,IF(OR(AND(AUTOEVENTO="Manual",$M20=1),$M20>(ROW(PLE.lastrow)-ROW(PLE.firstrow))),0,IF(OFFSET(PLE!$G$14,$M20,BD$13)="",10^12,OFFSET(PLE!$G$14,$M20,BD$13)))) -> 0 | BE20: =IF($D20<>"Serviço",0,IF(OR(AND(AUTOEVENTO="Manual",$M20=1),$M20>(ROW(PLE.lastrow)-ROW(PLE.firstrow))),0,IF(OFFSET(PLE!$G$14,$M20,BE$13)="",10^12,OFFSET(PLE!$G$14,$M20,BE$13)))) -> 0 | BF20: =IF($D20<>"Serviço",0,IF(OR(AND(AUTOEVENTO="Manual",$M20=1),$M20>(ROW(PLE.lastrow)-ROW(PLE.firstrow))),0,IF(OFFSET(PLE!$G$14,$M20,BF$13)="",10^12,OFFSET(PLE!$G$14,$M20,BF$13)))) -> 0 | BG20: =IF($D20<>"Serviço",0,IF(OR(AND(AUTOEVENTO="Manual",$M20=1),$M20>(ROW(PLE.lastrow)-ROW(PLE.firstrow))),0,IF(OFFSET(PLE!$G$14,$M20,BG$13)="",10^12,OFFSET(PLE!$G$14,$M20,BG$13)))) -> 0
A21: 3 | B21: =OFFSET(ORÇAMENTO!C$15,ROW(B21)-ROW(B$15),0) -> S | C21: =OFFSET(ORÇAMENTO!L$15,ROW(C21)-ROW(C$15),0) -> F | D21: =OFFSET(ORÇAMENTO!N$15,ROW(D21)-ROW(D$15),0) -> Serviço | E21: =OFFSET(ORÇAMENTO!O$15,ROW(E21)-ROW(E$15),0) -> 1.2.1. | F21: =OFFSET(ORÇAMENTO!R$15,ROW(F21)-ROW(F$15),0) -> MOBILIZAÇÃO | G21: =IF($D21<>"Serviço","",OFFSET(ORÇAMENTO!S$15,ROW(G21)-ROW(G$15),0)) -> UNID | H21: =IF($D21<>"Serviço",0,IF(ACOMPANHAMENTO="BM",ROUND(OFFSET(ORÇAMENTO!AJ$15,ROW(H21)-ROW(H$15),0),15-13*ORÇAMENTO!$AF$7),SUMPRODUCT(($Q$12:$AA$12<>"")*ROUND($Q21:$AA21,15-13*ORÇAMENTO!$AF$7)))) -> 1 | K21: 3.Mobilização | L21: . | M21: =IF($D21<>"Serviço","",IF(AUTOEVENTO="manual",$A21,IF(ISERROR(MATCH($A21,$A$15:OFFSET($A21,-1,0),0)),MAX($M$15:OFFSET(M21,-1,0))+1,INDEX($M$15:OFFSET(M21,-1,0),MATCH($A21,$A$15:OFFSET($A21,-1,0),0))))) -> 3 | N21: =IF($D21<>"Serviço","",IF(AUTOEVENTO="Manual",IF($A21=0,"<-- defina o número do agrupador",OFFSET(EVENTOS!$D$14,$A21,0)),OFFSET($F$15,$A21,0))) -> Mobilização | Q21: 1 | AB21: =IF(AND($D21="Serviço",AB$12<>0,$H21>0,OR(AUTOEVENTO<>"manual",$M21<>1)), IF(Import.TipoArredondamento<>"TransfereGOV", ROUND(OFFSET($P21,0,AB$13),15-13*ORÇAMENTO!$AF$7)/$H21*OFFSET(ORÇAMENTO!$X$15,ROW(AB21)-ROW(AB$15),0), ROUND(ROUND(OFFSET($P21,0,AB$13),15-13*ORÇAMENTO!$AF$7)*OFFSET(ORÇAMENTO!$W$15,ROW(AB21)-ROW(AB$15),0),15-13*ORÇAMENTO!$AF$11)),0) -> 2186.97 | AC21: =IF(AND($D21="Serviço",AC$12<>0,$H21>0,OR(AUTOEVENTO<>"manual",$M21<>1)), IF(Import.TipoArredondamento<>"TransfereGOV", ROUND(OFFSET($P21,0,AC$13),15-13*ORÇAMENTO!$AF$7)/$H21*OFFSET(ORÇAMENTO!$X$15,ROW(AC21)-ROW(AC$15),0), ROUND(ROUND(OFFSET($P21,0,AC$13),15-13*ORÇAMENTO!$AF$7)*OFFSET(ORÇAMENTO!$W$15,ROW(AC21)-ROW(AC$15),0),15-13*ORÇAMENTO!$AF$11)),0) -> 0 | AD21: =IF(AND($D21="Serviço",AD$12<>0,$H21>0,OR(AUTOEVENTO<>"manual",$M21<>1)), IF(Import.TipoArredondamento<>"TransfereGOV", ROUND(OFFSET($P21,0,AD$13),15-13*ORÇAMENTO!$AF$7)/$H21*OFFSET(ORÇAMENTO!$X$15,ROW(AD21)-ROW(AD$15),0), ROUND(ROUND(OFFSET($P21,0,AD$13),15-13*ORÇAMENTO!$AF$7)*OFFSET(ORÇAMENTO!$W$15,ROW(AD21)-ROW(AD$15),0),15-13*ORÇAMENTO!$AF$11)),0) -> 0 | AE21: =IF(AND($D21="Serviço",AE$12<>0,$H21>0,OR(AUTOEVENTO<>"manual",$M21<>1)), IF(Import.TipoArredondamento<>"TransfereGOV", ROUND(OFFSET($P21,0,AE$13),15-13*ORÇAMENTO!$AF$7)/$H21*OFFSET(ORÇAMENTO!$X$15,ROW(AE21)-ROW(AE$15),0), ROUND(ROUND(OFFSET($P21,0,AE$13),15-13*ORÇAMENTO!$AF$7)*OFFSET(ORÇAMENTO!$W$15,ROW(AE21)-ROW(AE$15),0),15-13*ORÇAMENTO!$AF$11)),0) -> 0 | AF21: =IF(AND($D21="Serviço",AF$12<>0,$H21>0,OR(AUTOEVENTO<>"manual",$M21<>1)), IF(Import.TipoArredondamento<>"TransfereGOV", ROUND(OFFSET($P21,0,AF$13),15-13*ORÇAMENTO!$AF$7)/$H21*OFFSET(ORÇAMENTO!$X$15,ROW(AF21)-ROW(AF$15),0), ROUND(ROUND(OFFSET($P21,0,AF$13),15-13*ORÇAMENTO!$AF$7)*OFFSET(ORÇAMENTO!$W$15,ROW(AF21)-ROW(AF$15),0),15-13*ORÇAMENTO!$AF$11)),0) -> 0 | AG21: =IF(AND($D21="Serviço",AG$12<>0,$H21>0,OR(AUTOEVENTO<>"manual",$M21<>1)), IF(Import.TipoArredondamento<>"TransfereGOV", ROUND(OFFSET($P21,0,AG$13),15-13*ORÇAMENTO!$AF$7)/$H21*OFFSET(ORÇAMENTO!$X$15,ROW(AG21)-ROW(AG$15),0), ROUND(ROUND(OFFSET($P21,0,AG$13),15-13*ORÇAMENTO!$AF$7)*OFFSET(ORÇAMENTO!$W$15,ROW(AG21)-ROW(AG$15),0),15-13*ORÇAMENTO!$AF$11)),0) -> 0 | AH21: =IF(AND($D21="Serviço",AH$12<>0,$H21>0,OR(AUTOEVENTO<>"manual",$M21<>1)), IF(Import.TipoArredondamento<>"TransfereGOV", ROUND(OFFSET($P21,0,AH$13),15-13*ORÇAMENTO!$AF$7)/$H21*OFFSET(ORÇAMENTO!$X$15,ROW(AH21)-ROW(AH$15),0), ROUND(ROUND(OFFSET($P21,0,AH$13),15-13*ORÇAMENTO!$AF$7)*OFFSET(ORÇAMENTO!$W$15,ROW(AH21)-ROW(AH$15),0),15-13*ORÇAMENTO!$AF$11)),0) -> 0 | AI21: =IF(AND($D21="Serviço",AI$12<>0,$H21>0,OR(AUTOEVENTO<>"manual",$M21<>1)), IF(Import.TipoArredondamento<>"TransfereGOV", ROUND(OFFSET($P21,0,AI$13),15-13*ORÇAMENTO!$AF$7)/$H21*OFFSET(ORÇAMENTO!$X$15,ROW(AI21)-ROW(AI$15),0), ROUND(ROUND(OFFSET($P21,0,AI$13),15-13*ORÇAMENTO!$AF$7)*OFFSET(ORÇAMENTO!$W$15,ROW(AI21)-ROW(AI$15),0),15-13*ORÇAMENTO!$AF$11)),0) -> 0 | AJ21: =IF(AND($D21="Serviço",AJ$12<>0,$H21>0,OR(AUTOEVENTO<>"manual",$M21<>1)), IF(Import.TipoArredondamento<>"TransfereGOV", ROUND(OFFSET($P21,0,AJ$13),15-13*ORÇAMENTO!$AF$7)/$H21*OFFSET(ORÇAMENTO!$X$15,ROW(AJ21)-ROW(AJ$15),0), ROUND(ROUND(OFFSET($P21,0,AJ$13),15-13*ORÇAMENTO!$AF$7)*OFFSET(ORÇAMENTO!$W$15,ROW(AJ21)-ROW(AJ$15),0),15-13*ORÇAMENTO!$AF$11)),0) -> 0 | AK21: =IF(AND($D21="Serviço",AK$12<>0,$H21>0,OR(AUTOEVENTO<>"manual",$M21<>1)), IF(Import.TipoArredondamento<>"TransfereGOV", ROUND(OFFSET($P21,0,AK$13),15-13*ORÇAMENTO!$AF$7)/$H21*OFFSET(ORÇAMENTO!$X$15,ROW(AK21)-ROW(AK$15),0), ROUND(ROUND(OFFSET($P21,0,AK$13),15-13*ORÇAMENTO!$AF$7)*OFFSET(ORÇAMENTO!$W$15,ROW(AK21)-ROW(AK$15),0),15-13*ORÇAMENTO!$AF$11)),0) -> 0 | AM21: =IF($D21<>"Serviço",0,IF(AND(AUTOEVENTO="Manual",$M21=1),0,IF(OFFSET(CRONOPLE!$F$14,$M21,AM$13)="",10^12,OFFSET(CRONOPLE!$F$14,$M21,AM$13)))) -> 1 | AN21: =IF($D21<>"Serviço",0,IF(AND(AUTOEVENTO="Manual",$M21=1),0,IF(OFFSET(CRONOPLE!$F$14,$M21,AN$13)="",10^12,OFFSET(CRONOPLE!$F$14,$M21,AN$13)))) -> 1000000000000 | AO21: =IF($D21<>"Serviço",0,IF(AND(AUTOEVENTO="Manual",$M21=1),0,IF(OFFSET(CRONOPLE!$F$14,$M21,AO$13)="",10^12,OFFSET(CRONOPLE!$F$14,$M21,AO$13)))) -> 1000000000000 | AP21: =IF($D21<>"Serviço",0,IF(AND(AUTOEVENTO="Manual",$M21=1),0,IF(OFFSET(CRONOPLE!$F$14,$M21,AP$13)="",10^12,OFFSET(CRONOPLE!$F$14,$M21,AP$13)))) -> 1000000000000 | AQ21: =IF($D21<>"Serviço",0,IF(AND(AUTOEVENTO="Manual",$M21=1),0,IF(OFFSET(CRONOPLE!$F$14,$M21,AQ$13)="",10^12,OFFSET(CRONOPLE!$F$14,$M21,AQ$13)))) -> 1000000000000 | AR21: =IF($D21<>"Serviço",0,IF(AND(AUTOEVENTO="Manual",$M21=1),0,IF(OFFSET(CRONOPLE!$F$14,$M21,AR$13)="",10^12,OFFSET(CRONOPLE!$F$14,$M21,AR$13)))) -> 1000000000000 | AS21: =IF($D21<>"Serviço",0,IF(AND(AUTOEVENTO="Manual",$M21=1),0,IF(OFFSET(CRONOPLE!$F$14,$M21,AS$13)="",10^12,OFFSET(CRONOPLE!$F$14,$M21,AS$13)))) -> 1000000000000 | AT21: =IF($D21<>"Serviço",0,IF(AND(AUTOEVENTO="Manual",$M21=1),0,IF(OFFSET(CRONOPLE!$F$14,$M21,AT$13)="",10^12,OFFSET(CRONOPLE!$F$14,$M21,AT$13)))) -> 1000000000000 | AU21: =IF($D21<>"Serviço",0,IF(AND(AUTOEVENTO="Manual",$M21=1),0,IF(OFFSET(CRONOPLE!$F$14,$M21,AU$13)="",10^12,OFFSET(CRONOPLE!$F$14,$M21,AU$13)))) -> 1000000000000 | AV21: =IF($D21<>"Serviço",0,IF(AND(AUTOEVENTO="Manual",$M21=1),0,IF(OFFSET(CRONOPLE!$F$14,$M21,AV$13)="",10^12,OFFSET(CRONOPLE!$F$14,$M21,AV$13)))) -> 1000000000000 | AX21: =IF($D21<>"Serviço",0,IF(OR(AND(AUTOEVENTO="Manual",$M21=1),$M21>(ROW(PLE.lastrow)-ROW(PLE.firstrow))),0,IF(OFFSET(PLE!$G$14,$M21,AX$13)="",10^12,OFFSET(PLE!$G$14,$M21,AX$13)))) -> 1000000000000 | AY21: =IF($D21<>"Serviço",0,IF(OR(AND(AUTOEVENTO="Manual",$M21=1),$M21>(ROW(PLE.lastrow)-ROW(PLE.firstrow))),0,IF(OFFSET(PLE!$G$14,$M21,AY$13)="",10^12,OFFSET(PLE!$G$14,$M21,AY$13)))) -> 1000000000000 | AZ21: =IF($D21<>"Serviço",0,IF(OR(AND(AUTOEVENTO="Manual",$M21=1),$M21>(ROW(PLE.lastrow)-ROW(PLE.firstrow))),0,IF(OFFSET(PLE!$G$14,$M21,AZ$13)="",10^12,OFFSET(PLE!$G$14,$M21,AZ$13)))) -> 1000000000000 | BA21: =IF($D21<>"Serviço",0,IF(OR(AND(AUTOEVENTO="Manual",$M21=1),$M21>(ROW(PLE.lastrow)-ROW(PLE.firstrow))),0,IF(OFFSET(PLE!$G$14,$M21,BA$13)="",10^12,OFFSET(PLE!$G$14,$M21,BA$13)))) -> 1000000000000 | BB21: =IF($D21<>"Serviço",0,IF(OR(AND(AUTOEVENTO="Manual",$M21=1),$M21>(ROW(PLE.lastrow)-ROW(PLE.firstrow))),0,IF(OFFSET(PLE!$G$14,$M21,BB$13)="",10^12,OFFSET(PLE!$G$14,$M21,BB$13)))) -> 1000000000000 | BC21: =IF($D21<>"Serviço",0,IF(OR(AND(AUTOEVENTO="Manual",$M21=1),$M21>(ROW(PLE.lastrow)-ROW(PLE.firstrow))),0,IF(OFFSET(PLE!$G$14,$M21,BC$13)="",10^12,OFFSET(PLE!$G$14,$M21,BC$13)))) -> 1000000000000 | BD21: =IF($D21<>"Serviço",0,IF(OR(AND(AUTOEVENTO="Manual",$M21=1),$M21>(ROW(PLE.lastrow)-ROW(PLE.firstrow))),0,IF(OFFSET(PLE!$G$14,$M21,BD$13)="",10^12,OFFSET(PLE!$G$14,$M21,BD$13)))) -> 1000000000000 | BE21: =IF($D21<>"Serviço",0,IF(OR(AND(AUTOEVENTO="Manual",$M21=1),$M21>(ROW(PLE.lastrow)-ROW(PLE.firstrow))),0,IF(OFFSET(PLE!$G$14,$M21,BE$13)="",10^12,OFFSET(PLE!$G$14,$M21,BE$13)))) -> 1000000000000 | BF21: =IF($D21<>"Serviço",0,IF(OR(AND(AUTOEVENTO="Manual",$M21=1),$M21>(ROW(PLE.lastrow)-ROW(PLE.firstrow))),0,IF(OFFSET(PLE!$G$14,$M21,BF$13)="",10^12,OFFSET(PLE!$G$14,$M21,BF$13)))) -> 1000000000000 | BG21: =IF($D21<>"Serviço",0,IF(OR(AND(AUTOEVENTO="Manual",$M21=1),$M21>(ROW(PLE.lastrow)-ROW(PLE.firstrow))),0,IF(OFFSET(PLE!$G$14,$M21,BG$13)="",10^12,OFFSET(PLE!$G$14,$M21,BG$13)))) -> 1000000000000
A22: 4 | B22: =OFFSET(ORÇAMENTO!C$15,ROW(B22)-ROW(B$15),0) -> S | C22: =OFFSET(ORÇAMENTO!L$15,ROW(C22)-ROW(C$15),0) -> F | D22: =OFFSET(ORÇAMENTO!N$15,ROW(D22)-ROW(D$15),0) -> Serviço | E22: =OFFSET(ORÇAMENTO!O$15,ROW(E22)-ROW(E$15),0) -> 1.2.2. | F22: =OFFSET(ORÇAMENTO!R$15,ROW(F22)-ROW(F$15),0) -> DESMOBILIZAÇÃO | G22: =IF($D22<>"Serviço","",OFFSET(ORÇAMENTO!S$15,ROW(G22)-ROW(G$15),0)) -> UNID | H22: =IF($D22<>"Serviço",0,IF(ACOMPANHAMENTO="BM",ROUND(OFFSET(ORÇAMENTO!AJ$15,ROW(H22)-ROW(H$15),0),15-13*ORÇAMENTO!$AF$7),SUMPRODUCT(($Q$12:$AA$12<>"")*ROUND($Q22:$AA22,15-13*ORÇAMENTO!$AF$7)))) -> 1 | K22: 4.Desmobilização | L22: . | M22: =IF($D22<>"Serviço","",IF(AUTOEVENTO="manual",$A22,IF(ISERROR(MATCH($A22,$A$15:OFFSET($A22,-1,0),0)),MAX($M$15:OFFSET(M22,-1,0))+1,INDEX($M$15:OFFSET(M22,-1,0),MATCH($A22,$A$15:OFFSET($A22,-1,0),0))))) -> 4 | N22: =IF($D22<>"Serviço","",IF(AUTOEVENTO="Manual",IF($A22=0,"<-- defina o número do agrupador",OFFSET(EVENTOS!$D$14,$A22,0)),OFFSET($F$15,$A22,0))) -> Desmobilização | Q22: 1 | AB22: =IF(AND($D22="Serviço",AB$12<>0,$H22>0,OR(AUTOEVENTO<>"manual",$M22<>1)), IF(Import.TipoArredondamento<>"TransfereGOV", ROUND(OFFSET($P22,0,AB$13),15-13*ORÇAMENTO!$AF$7)/$H22*OFFSET(ORÇAMENTO!$X$15,ROW(AB22)-ROW(AB$15),0), ROUND(ROUND(OFFSET($P22,0,AB$13),15-13*ORÇAMENTO!$AF$7)*OFFSET(ORÇAMENTO!$W$15,ROW(AB22)-ROW(AB$15),0),15-13*ORÇAMENTO!$AF$11)),0) -> 2186.97 | AC22: =IF(AND($D22="Serviço",AC$12<>0,$H22>0,OR(AUTOEVENTO<>"manual",$M22<>1)), IF(Import.TipoArredondamento<>"TransfereGOV", ROUND(OFFSET($P22,0,AC$13),15-13*ORÇAMENTO!$AF$7)/$H22*OFFSET(ORÇAMENTO!$X$15,ROW(AC22)-ROW(AC$15),0), ROUND(ROUND(OFFSET($P22,0,AC$13),15-13*ORÇAMENTO!$AF$7)*OFFSET(ORÇAMENTO!$W$15,ROW(AC22)-ROW(AC$15),0),15-13*ORÇAMENTO!$AF$11)),0) -> 0 | AD22: =IF(AND($D22="Serviço",AD$12<>0,$H22>0,OR(AUTOEVENTO<>"manual",$M22<>1)), IF(Import.TipoArredondamento<>"TransfereGOV", ROUND(OFFSET($P22,0,AD$13),15-13*ORÇAMENTO!$AF$7)/$H22*OFFSET(ORÇAMENTO!$X$15,ROW(AD22)-ROW(AD$15),0), ROUND(ROUND(OFFSET($P22,0,AD$13),15-13*ORÇAMENTO!$AF$7)*OFFSET(ORÇAMENTO!$W$15,ROW(AD22)-ROW(AD$15),0),15-13*ORÇAMENTO!$AF$11)),0) -> 0 | AE22: =IF(AND($D22="Serviço",AE$12<>0,$H22>0,OR(AUTOEVENTO<>"manual",$M22<>1)), IF(Import.TipoArredondamento<>"TransfereGOV", ROUND(OFFSET($P22,0,AE$13),15-13*ORÇAMENTO!$AF$7)/$H22*OFFSET(ORÇAMENTO!$X$15,ROW(AE22)-ROW(AE$15),0), ROUND(ROUND(OFFSET($P22,0,AE$13),15-13*ORÇAMENTO!$AF$7)*OFFSET(ORÇAMENTO!$W$15,ROW(AE22)-ROW(AE$15),0),15-13*ORÇAMENTO!$AF$11)),0) -> 0 | AF22: =IF(AND($D22="Serviço",AF$12<>0,$H22>0,OR(AUTOEVENTO<>"manual",$M22<>1)), IF(Import.TipoArredondamento<>"TransfereGOV", ROUND(OFFSET($P22,0,AF$13),15-13*ORÇAMENTO!$AF$7)/$H22*OFFSET(ORÇAMENTO!$X$15,ROW(AF22)-ROW(AF$15),0), ROUND(ROUND(OFFSET($P22,0,AF$13),15-13*ORÇAMENTO!$AF$7)*OFFSET(ORÇAMENTO!$W$15,ROW(AF22)-ROW(AF$15),0),15-13*ORÇAMENTO!$AF$11)),0) -> 0 | AG22: =IF(AND($D22="Serviço",AG$12<>0,$H22>0,OR(AUTOEVENTO<>"manual",$M22<>1)), IF(Import.TipoArredondamento<>"TransfereGOV", ROUND(OFFSET($P22,0,AG$13),15-13*ORÇAMENTO!$AF$7)/$H22*OFFSET(ORÇAMENTO!$X$15,ROW(AG22)-ROW(AG$15),0), ROUND(ROUND(OFFSET($P22,0,AG$13),15-13*ORÇAMENTO!$AF$7)*OFFSET(ORÇAMENTO!$W$15,ROW(AG22)-ROW(AG$15),0),15-13*ORÇAMENTO!$AF$11)),0) -> 0 | AH22: =IF(AND($D22="Serviço",AH$12<>0,$H22>0,OR(AUTOEVENTO<>"manual",$M22<>1)), IF(Import.TipoArredondamento<>"TransfereGOV", ROUND(OFFSET($P22,0,AH$13),15-13*ORÇAMENTO!$AF$7)/$H22*OFFSET(ORÇAMENTO!$X$15,ROW(AH22)-ROW(AH$15),0), ROUND(ROUND(OFFSET($P22,0,AH$13),15-13*ORÇAMENTO!$AF$7)*OFFSET(ORÇAMENTO!$W$15,ROW(AH22)-ROW(AH$15),0),15-13*ORÇAMENTO!$AF$11)),0) -> 0 | AI22: =IF(AND($D22="Serviço",AI$12<>0,$H22>0,OR(AUTOEVENTO<>"manual",$M22<>1)), IF(Import.TipoArredondamento<>"TransfereGOV", ROUND(OFFSET($P22,0,AI$13),15-13*ORÇAMENTO!$AF$7)/$H22*OFFSET(ORÇAMENTO!$X$15,ROW(AI22)-ROW(AI$15),0), ROUND(ROUND(OFFSET($P22,0,AI$13),15-13*ORÇAMENTO!$AF$7)*OFFSET(ORÇAMENTO!$W$15,ROW(AI22)-ROW(AI$15),0),15-13*ORÇAMENTO!$AF$11)),0) -> 0 | AJ22: =IF(AND($D22="Serviço",AJ$12<>0,$H22>0,OR(AUTOEVENTO<>"manual",$M22<>1)), IF(Import.TipoArredondamento<>"TransfereGOV", ROUND(OFFSET($P22,0,AJ$13),15-13*ORÇAMENTO!$AF$7)/$H22*OFFSET(ORÇAMENTO!$X$15,ROW(AJ22)-ROW(AJ$15),0), ROUND(ROUND(OFFSET($P22,0,AJ$13),15-13*ORÇAMENTO!$AF$7)*OFFSET(ORÇAMENTO!$W$15,ROW(AJ22)-ROW(AJ$15),0),15-13*ORÇAMENTO!$AF$11)),0) -> 0 | AK22: =IF(AND($D22="Serviço",AK$12<>0,$H22>0,OR(AUTOEVENTO<>"manual",$M22<>1)), IF(Import.TipoArredondamento<>"TransfereGOV", ROUND(OFFSET($P22,0,AK$13),15-13*ORÇAMENTO!$AF$7)/$H22*OFFSET(ORÇAMENTO!$X$15,ROW(AK22)-ROW(AK$15),0), ROUND(ROUND(OFFSET($P22,0,AK$13),15-13*ORÇAMENTO!$AF$7)*OFFSET(ORÇAMENTO!$W$15,ROW(AK22)-ROW(AK$15),0),15-13*ORÇAMENTO!$AF$11)),0) -> 0 | AM22: =IF($D22<>"Serviço",0,IF(AND(AUTOEVENTO="Manual",$M22=1),0,IF(OFFSET(CRONOPLE!$F$14,$M22,AM$13)="",10^12,OFFSET(CRONOPLE!$F$14,$M22,AM$13)))) -> 2 | AN22: =IF($D22<>"Serviço",0,IF(AND(AUTOEVENTO="Manual",$M22=1),0,IF(OFFSET(CRONOPLE!$F$14,$M22,AN$13)="",10^12,OFFSET(CRONOPLE!$F$14,$M22,AN$13)))) -> 1000000000000 | AO22: =IF($D22<>"Serviço",0,IF(AND(AUTOEVENTO="Manual",$M22=1),0,IF(OFFSET(CRONOPLE!$F$14,$M22,AO$13)="",10^12,OFFSET(CRONOPLE!$F$14,$M22,AO$13)))) -> 1000000000000 | AP22: =IF($D22<>"Serviço",0,IF(AND(AUTOEVENTO="Manual",$M22=1),0,IF(OFFSET(CRONOPLE!$F$14,$M22,AP$13)="",10^12,OFFSET(CRONOPLE!$F$14,$M22,AP$13)))) -> 1000000000000 | AQ22: =IF($D22<>"Serviço",0,IF(AND(AUTOEVENTO="Manual",$M22=1),0,IF(OFFSET(CRONOPLE!$F$14,$M22,AQ$13)="",10^12,OFFSET(CRONOPLE!$F$14,$M22,AQ$13)))) -> 1000000000000 | AR22: =IF($D22<>"Serviço",0,IF(AND(AUTOEVENTO="Manual",$M22=1),0,IF(OFFSET(CRONOPLE!$F$14,$M22,AR$13)="",10^12,OFFSET(CRONOPLE!$F$14,$M22,AR$13)))) -> 1000000000000 | AS22: =IF($D22<>"Serviço",0,IF(AND(AUTOEVENTO="Manual",$M22=1),0,IF(OFFSET(CRONOPLE!$F$14,$M22,AS$13)="",10^12,OFFSET(CRONOPLE!$F$14,$M22,AS$13)))) -> 1000000000000 | AT22: =IF($D22<>"Serviço",0,IF(AND(AUTOEVENTO="Manual",$M22=1),0,IF(OFFSET(CRONOPLE!$F$14,$M22,AT$13)="",10^12,OFFSET(CRONOPLE!$F$14,$M22,AT$13)))) -> 1000000000000 | AU22: =IF($D22<>"Serviço",0,IF(AND(AUTOEVENTO="Manual",$M22=1),0,IF(OFFSET(CRONOPLE!$F$14,$M22,AU$13)="",10^12,OFFSET(CRONOPLE!$F$14,$M22,AU$13)))) -> 1000000000000 | AV22: =IF($D22<>"Serviço",0,IF(AND(AUTOEVENTO="Manual",$M22=1),0,IF(OFFSET(CRONOPLE!$F$14,$M22,AV$13)="",10^12,OFFSET(CRONOPLE!$F$14,$M22,AV$13)))) -> 1000000000000 | AX22: =IF($D22<>"Serviço",0,IF(OR(AND(AUTOEVENTO="Manual",$M22=1),$M22>(ROW(PLE.lastrow)-ROW(PLE.firstrow))),0,IF(OFFSET(PLE!$G$14,$M22,AX$13)="",10^12,OFFSET(PLE!$G$14,$M22,AX$13)))) -> 1000000000000 | AY22: =IF($D22<>"Serviço",0,IF(OR(AND(AUTOEVENTO="Manual",$M22=1),$M22>(ROW(PLE.lastrow)-ROW(PLE.firstrow))),0,IF(OFFSET(PLE!$G$14,$M22,AY$13)="",10^12,OFFSET(PLE!$G$14,$M22,AY$13)))) -> 1000000000000 | AZ22: =IF($D22<>"Serviço",0,IF(OR(AND(AUTOEVENTO="Manual",$M22=1),$M22>(ROW(PLE.lastrow)-ROW(PLE.firstrow))),0,IF(OFFSET(PLE!$G$14,$M22,AZ$13)="",10^12,OFFSET(PLE!$G$14,$M22,AZ$13)))) -> 1000000000000 | BA22: =IF($D22<>"Serviço",0,IF(OR(AND(AUTOEVENTO="Manual",$M22=1),$M22>(ROW(PLE.lastrow)-ROW(PLE.firstrow))),0,IF(OFFSET(PLE!$G$14,$M22,BA$13)="",10^12,OFFSET(PLE!$G$14,$M22,BA$13)))) -> 1000000000000 | BB22: =IF($D22<>"Serviço",0,IF(OR(AND(AUTOEVENTO="Manual",$M22=1),$M22>(ROW(PLE.lastrow)-ROW(PLE.firstrow))),0,IF(OFFSET(PLE!$G$14,$M22,BB$13)="",10^12,OFFSET(PLE!$G$14,$M22,BB$13)))) -> 1000000000000 | BC22: =IF($D22<>"Serviço",0,IF(OR(AND(AUTOEVENTO="Manual",$M22=1),$M22>(ROW(PLE.lastrow)-ROW(PLE.firstrow))),0,IF(OFFSET(PLE!$G$14,$M22,BC$13)="",10^12,OFFSET(PLE!$G$14,$M22,BC$13)))) -> 1000000000000 | BD22: =IF($D22<>"Serviço",0,IF(OR(AND(AUTOEVENTO="Manual",$M22=1),$M22>(ROW(PLE.lastrow)-ROW(PLE.firstrow))),0,IF(OFFSET(PLE!$G$14,$M22,BD$13)="",10^12,OFFSET(PLE!$G$14,$M22,BD$13)))) -> 1000000000000 | BE22: =IF($D22<>"Serviço",0,IF(OR(AND(AUTOEVENTO="Manual",$M22=1),$M22>(ROW(PLE.lastrow)-ROW(PLE.firstrow))),0,IF(OFFSET(PLE!$G$14,$M22,BE$13)="",10^12,OFFSET(PLE!$G$14,$M22,BE$13)))) -> 1000000000000 | BF22: =IF($D22<>"Serviço",0,IF(OR(AND(AUTOEVENTO="Manual",$M22=1),$M22>(ROW(PLE.lastrow)-ROW(PLE.firstrow))),0,IF(OFFSET(PLE!$G$14,$M22,BF$13)="",10^12,OFFSET(PLE!$G$14,$M22,BF$13)))) -> 1000000000000 | BG22: =IF($D22<>"Serviço",0,IF(OR(AND(AUTOEVENTO="Manual",$M22=1),$M22>(ROW(PLE.lastrow)-ROW(PLE.firstrow))),0,IF(OFFSET(PLE!$G$14,$M22,BG$13)="",10^12,OFFSET(PLE!$G$14,$M22,BG$13)))) -> 1000000000000
A23: 0 | B23: =OFFSET(ORÇAMENTO!C$15,ROW(B23)-ROW(B$15),0) -> 2 | C23: =OFFSET(ORÇAMENTO!L$15,ROW(C23)-ROW(C$15),0) -> F | D23: =OFFSET(ORÇAMENTO!N$15,ROW(D23)-ROW(D$15),0) -> Nível 2 | E23: =OFFSET(ORÇAMENTO!O$15,ROW(E23)-ROW(E$15),0) -> 1.3. | F23: =OFFSET(ORÇAMENTO!R$15,ROW(F23)-ROW(F$15),0) -> Movimentação de terra | G23: =IF($D23<>"Serviço","",OFFSET(ORÇAMENTO!S$15,ROW(G23)-ROW(G$15),0)) ->  | H23: =IF($D23<>"Serviço",0,IF(ACOMPANHAMENTO="BM",ROUND(OFFSET(ORÇAMENTO!AJ$15,ROW(H23)-ROW(H$15),0),15-13*ORÇAMENTO!$AF$7),SUMPRODUCT(($Q$12:$AA$12<>"")*ROUND($Q23:$AA23,15-13*ORÇAMENTO!$AF$7)))) -> 0 | L23: . | M23: =IF($D23<>"Serviço","",IF(AUTOEVENTO="manual",$A23,IF(ISERROR(MATCH($A23,$A$15:OFFSET($A23,-1,0),0)),MAX($M$15:OFFSET(M23,-1,0))+1,INDEX($M$15:OFFSET(M23,-1,0),MATCH($A23,$A$15:OFFSET($A23,-1,0),0))))) ->  | N23: =IF($D23<>"Serviço","",IF(AUTOEVENTO="Manual",IF($A23=0,"<-- defina o número do agrupador",OFFSET(EVENTOS!$D$14,$A23,0)),OFFSET($F$15,$A23,0))) ->  | AB23: =IF(AND($D23="Serviço",AB$12<>0,$H23>0,OR(AUTOEVENTO<>"manual",$M23<>1)), IF(Import.TipoArredondamento<>"TransfereGOV", ROUND(OFFSET($P23,0,AB$13),15-13*ORÇAMENTO!$AF$7)/$H23*OFFSET(ORÇAMENTO!$X$15,ROW(AB23)-ROW(AB$15),0), ROUND(ROUND(OFFSET($P23,0,AB$13),15-13*ORÇAMENTO!$AF$7)*OFFSET(ORÇAMENTO!$W$15,ROW(AB23)-ROW(AB$15),0),15-13*ORÇAMENTO!$AF$11)),0) -> 0 | AC23: =IF(AND($D23="Serviço",AC$12<>0,$H23>0,OR(AUTOEVENTO<>"manual",$M23<>1)), IF(Import.TipoArredondamento<>"TransfereGOV", ROUND(OFFSET($P23,0,AC$13),15-13*ORÇAMENTO!$AF$7)/$H23*OFFSET(ORÇAMENTO!$X$15,ROW(AC23)-ROW(AC$15),0), ROUND(ROUND(OFFSET($P23,0,AC$13),15-13*ORÇAMENTO!$AF$7)*OFFSET(ORÇAMENTO!$W$15,ROW(AC23)-ROW(AC$15),0),15-13*ORÇAMENTO!$AF$11)),0) -> 0 | AD23: =IF(AND($D23="Serviço",AD$12<>0,$H23>0,OR(AUTOEVENTO<>"manual",$M23<>1)), IF(Import.TipoArredondamento<>"TransfereGOV", ROUND(OFFSET($P23,0,AD$13),15-13*ORÇAMENTO!$AF$7)/$H23*OFFSET(ORÇAMENTO!$X$15,ROW(AD23)-ROW(AD$15),0), ROUND(ROUND(OFFSET($P23,0,AD$13),15-13*ORÇAMENTO!$AF$7)*OFFSET(ORÇAMENTO!$W$15,ROW(AD23)-ROW(AD$15),0),15-13*ORÇAMENTO!$AF$11)),0) -> 0 | AE23: =IF(AND($D23="Serviço",AE$12<>0,$H23>0,OR(AUTOEVENTO<>"manual",$M23<>1)), IF(Import.TipoArredondamento<>"TransfereGOV", ROUND(OFFSET($P23,0,AE$13),15-13*ORÇAMENTO!$AF$7)/$H23*OFFSET(ORÇAMENTO!$X$15,ROW(AE23)-ROW(AE$15),0), ROUND(ROUND(OFFSET($P23,0,AE$13),15-13*ORÇAMENTO!$AF$7)*OFFSET(ORÇAMENTO!$W$15,ROW(AE23)-ROW(AE$15),0),15-13*ORÇAMENTO!$AF$11)),0) -> 0 | AF23: =IF(AND($D23="Serviço",AF$12<>0,$H23>0,OR(AUTOEVENTO<>"manual",$M23<>1)), IF(Import.TipoArredondamento<>"TransfereGOV", ROUND(OFFSET($P23,0,AF$13),15-13*ORÇAMENTO!$AF$7)/$H23*OFFSET(ORÇAMENTO!$X$15,ROW(AF23)-ROW(AF$15),0), ROUND(ROUND(OFFSET($P23,0,AF$13),15-13*ORÇAMENTO!$AF$7)*OFFSET(ORÇAMENTO!$W$15,ROW(AF23)-ROW(AF$15),0),15-13*ORÇAMENTO!$AF$11)),0) -> 0 | AG23: =IF(AND($D23="Serviço",AG$12<>0,$H23>0,OR(AUTOEVENTO<>"manual",$M23<>1)), IF(Import.TipoArredondamento<>"TransfereGOV", ROUND(OFFSET($P23,0,AG$13),15-13*ORÇAMENTO!$AF$7)/$H23*OFFSET(ORÇAMENTO!$X$15,ROW(AG23)-ROW(AG$15),0), ROUND(ROUND(OFFSET($P23,0,AG$13),15-13*ORÇAMENTO!$AF$7)*OFFSET(ORÇAMENTO!$W$15,ROW(AG23)-ROW(AG$15),0),15-13*ORÇAMENTO!$AF$11)),0) -> 0 | AH23: =IF(AND($D23="Serviço",AH$12<>0,$H23>0,OR(AUTOEVENTO<>"manual",$M23<>1)), IF(Import.TipoArredondamento<>"TransfereGOV", ROUND(OFFSET($P23,0,AH$13),15-13*ORÇAMENTO!$AF$7)/$H23*OFFSET(ORÇAMENTO!$X$15,ROW(AH23)-ROW(AH$15),0), ROUND(ROUND(OFFSET($P23,0,AH$13),15-13*ORÇAMENTO!$AF$7)*OFFSET(ORÇAMENTO!$W$15,ROW(AH23)-ROW(AH$15),0),15-13*ORÇAMENTO!$AF$11)),0) -> 0 | AI23: =IF(AND($D23="Serviço",AI$12<>0,$H23>0,OR(AUTOEVENTO<>"manual",$M23<>1)), IF(Import.TipoArredondamento<>"TransfereGOV", ROUND(OFFSET($P23,0,AI$13),15-13*ORÇAMENTO!$AF$7)/$H23*OFFSET(ORÇAMENTO!$X$15,ROW(AI23)-ROW(AI$15),0), ROUND(ROUND(OFFSET($P23,0,AI$13),15-13*ORÇAMENTO!$AF$7)*OFFSET(ORÇAMENTO!$W$15,ROW(AI23)-ROW(AI$15),0),15-13*ORÇAMENTO!$AF$11)),0) -> 0 | AJ23: =IF(AND($D23="Serviço",AJ$12<>0,$H23>0,OR(AUTOEVENTO<>"manual",$M23<>1)), IF(Import.TipoArredondamento<>"TransfereGOV", ROUND(OFFSET($P23,0,AJ$13),15-13*ORÇAMENTO!$AF$7)/$H23*OFFSET(ORÇAMENTO!$X$15,ROW(AJ23)-ROW(AJ$15),0), ROUND(ROUND(OFFSET($P23,0,AJ$13),15-13*ORÇAMENTO!$AF$7)*OFFSET(ORÇAMENTO!$W$15,ROW(AJ23)-ROW(AJ$15),0),15-13*ORÇAMENTO!$AF$11)),0) -> 0 | AK23: =IF(AND($D23="Serviço",AK$12<>0,$H23>0,OR(AUTOEVENTO<>"manual",$M23<>1)), IF(Import.TipoArredondamento<>"TransfereGOV", ROUND(OFFSET($P23,0,AK$13),15-13*ORÇAMENTO!$AF$7)/$H23*OFFSET(ORÇAMENTO!$X$15,ROW(AK23)-ROW(AK$15),0), ROUND(ROUND(OFFSET($P23,0,AK$13),15-13*ORÇAMENTO!$AF$7)*OFFSET(ORÇAMENTO!$W$15,ROW(AK23)-ROW(AK$15),0),15-13*ORÇAMENTO!$AF$11)),0) -> 0 | AM23: =IF($D23<>"Serviço",0,IF(AND(AUTOEVENTO="Manual",$M23=1),0,IF(OFFSET(CRONOPLE!$F$14,$M23,AM$13)="",10^12,OFFSET(CRONOPLE!$F$14,$M23,AM$13)))) -> 0 | AN23: =IF($D23<>"Serviço",0,IF(AND(AUTOEVENTO="Manual",$M23=1),0,IF(OFFSET(CRONOPLE!$F$14,$M23,AN$13)="",10^12,OFFSET(CRONOPLE!$F$14,$M23,AN$13)))) -> 0 | AO23: =IF($D23<>"Serviço",0,IF(AND(AUTOEVENTO="Manual",$M23=1),0,IF(OFFSET(CRONOPLE!$F$14,$M23,AO$13)="",10^12,OFFSET(CRONOPLE!$F$14,$M23,AO$13)))) -> 0 | AP23: =IF($D23<>"Serviço",0,IF(AND(AUTOEVENTO="Manual",$M23=1),0,IF(OFFSET(CRONOPLE!$F$14,$M23,AP$13)="",10^12,OFFSET(CRONOPLE!$F$14,$M23,AP$13)))) -> 0 | AQ23: =IF($D23<>"Serviço",0,IF(AND(AUTOEVENTO="Manual",$M23=1),0,IF(OFFSET(CRONOPLE!$F$14,$M23,AQ$13)="",10^12,OFFSET(CRONOPLE!$F$14,$M23,AQ$13)))) -> 0 | AR23: =IF($D23<>"Serviço",0,IF(AND(AUTOEVENTO="Manual",$M23=1),0,IF(OFFSET(CRONOPLE!$F$14,$M23,AR$13)="",10^12,OFFSET(CRONOPLE!$F$14,$M23,AR$13)))) -> 0 | AS23: =IF($D23<>"Serviço",0,IF(AND(AUTOEVENTO="Manual",$M23=1),0,IF(OFFSET(CRONOPLE!$F$14,$M23,AS$13)="",10^12,OFFSET(CRONOPLE!$F$14,$M23,AS$13)))) -> 0 | AT23: =IF($D23<>"Serviço",0,IF(AND(AUTOEVENTO="Manual",$M23=1),0,IF(OFFSET(CRONOPLE!$F$14,$M23,AT$13)="",10^12,OFFSET(CRONOPLE!$F$14,$M23,AT$13)))) -> 0 | AU23: =IF($D23<>"Serviço",0,IF(AND(AUTOEVENTO="Manual",$M23=1),0,IF(OFFSET(CRONOPLE!$F$14,$M23,AU$13)="",10^12,OFFSET(CRONOPLE!$F$14,$M23,AU$13)))) -> 0 | AV23: =IF($D23<>"Serviço",0,IF(AND(AUTOEVENTO="Manual",$M23=1),0,IF(OFFSET(CRONOPLE!$F$14,$M23,AV$13)="",10^12,OFFSET(CRONOPLE!$F$14,$M23,AV$13)))) -> 0 | AX23: =IF($D23<>"Serviço",0,IF(OR(AND(AUTOEVENTO="Manual",$M23=1),$M23>(ROW(PLE.lastrow)-ROW(PLE.firstrow))),0,IF(OFFSET(PLE!$G$14,$M23,AX$13)="",10^12,OFFSET(PLE!$G$14,$M23,AX$13)))) -> 0 | AY23: =IF($D23<>"Serviço",0,IF(OR(AND(AUTOEVENTO="Manual",$M23=1),$M23>(ROW(PLE.lastrow)-ROW(PLE.firstrow))),0,IF(OFFSET(PLE!$G$14,$M23,AY$13)="",10^12,OFFSET(PLE!$G$14,$M23,AY$13)))) -> 0 | AZ23: =IF($D23<>"Serviço",0,IF(OR(AND(AUTOEVENTO="Manual",$M23=1),$M23>(ROW(PLE.lastrow)-ROW(PLE.firstrow))),0,IF(OFFSET(PLE!$G$14,$M23,AZ$13)="",10^12,OFFSET(PLE!$G$14,$M23,AZ$13)))) -> 0 | BA23: =IF($D23<>"Serviço",0,IF(OR(AND(AUTOEVENTO="Manual",$M23=1),$M23>(ROW(PLE.lastrow)-ROW(PLE.firstrow))),0,IF(OFFSET(PLE!$G$14,$M23,BA$13)="",10^12,OFFSET(PLE!$G$14,$M23,BA$13)))) -> 0 | BB23: =IF($D23<>"Serviço",0,IF(OR(AND(AUTOEVENTO="Manual",$M23=1),$M23>(ROW(PLE.lastrow)-ROW(PLE.firstrow))),0,IF(OFFSET(PLE!$G$14,$M23,BB$13)="",10^12,OFFSET(PLE!$G$14,$M23,BB$13)))) -> 0 | BC23: =IF($D23<>"Serviço",0,IF(OR(AND(AUTOEVENTO="Manual",$M23=1),$M23>(ROW(PLE.lastrow)-ROW(PLE.firstrow))),0,IF(OFFSET(PLE!$G$14,$M23,BC$13)="",10^12,OFFSET(PLE!$G$14,$M23,BC$13)))) -> 0 | BD23: =IF($D23<>"Serviço",0,IF(OR(AND(AUTOEVENTO="Manual",$M23=1),$M23>(ROW(PLE.lastrow)-ROW(PLE.firstrow))),0,IF(OFFSET(PLE!$G$14,$M23,BD$13)="",10^12,OFFSET(PLE!$G$14,$M23,BD$13)))) -> 0 | BE23: =IF($D23<>"Serviço",0,IF(OR(AND(AUTOEVENTO="Manual",$M23=1),$M23>(ROW(PLE.lastrow)-ROW(PLE.firstrow))),0,IF(OFFSET(PLE!$G$14,$M23,BE$13)="",10^12,OFFSET(PLE!$G$14,$M23,BE$13)))) -> 0 | BF23: =IF($D23<>"Serviço",0,IF(OR(AND(AUTOEVENTO="Manual",$M23=1),$M23>(ROW(PLE.lastrow)-ROW(PLE.firstrow))),0,IF(OFFSET(PLE!$G$14,$M23,BF$13)="",10^12,OFFSET(PLE!$G$14,$M23,BF$13)))) -> 0 | BG23: =IF($D23<>"Serviço",0,IF(OR(AND(AUTOEVENTO="Manual",$M23=1),$M23>(ROW(PLE.lastrow)-ROW(PLE.firstrow))),0,IF(OFFSET(PLE!$G$14,$M23,BG$13)="",10^12,OFFSET(PLE!$G$14,$M23,BG$13)))) -> 0
A24: 5 | B24: =OFFSET(ORÇAMENTO!C$15,ROW(B24)-ROW(B$15),0) -> S | C24: =OFFSET(ORÇAMENTO!L$15,ROW(C24)-ROW(C$15),0) -> F | D24: =OFFSET(ORÇAMENTO!N$15,ROW(D24)-ROW(D$15),0) -> Serviço | E24: =OFFSET(ORÇAMENTO!O$15,ROW(E24)-ROW(E$15),0) -> 1.3.1. | F24: =OFFSET(ORÇAMENTO!R$15,ROW(F24)-ROW(F$15),0) -> ESCAVAÇÃO HORIZONTAL, INCLUINDO CARGA E DESCARGA EM SOLO DE 1A CATEGORIA COM TRATOR DE ESTEIRAS (347HP/LÂMINA: 8,70M3). AF_07/2020 | G24: =IF($D24<>"Serviço","",OFFSET(ORÇAMENTO!S$15,ROW(G24)-ROW(G$15),0)) -> M3 | H24: =IF($D24<>"Serviço",0,IF(ACOMPANHAMENTO="BM",ROUND(OFFSET(ORÇAMENTO!AJ$15,ROW(H24)-ROW(H$15),0),15-13*ORÇAMENTO!$AF$7),SUMPRODUCT(($Q$12:$AA$12<>"")*ROUND($Q24:$AA24,15-13*ORÇAMENTO!$AF$7)))) -> 80.6 | K24: 5.Movimentação de Terra | L24: . | M24: =IF($D24<>"Serviço","",IF(AUTOEVENTO="manual",$A24,IF(ISERROR(MATCH($A24,$A$15:OFFSET($A24,-1,0),0)),MAX($M$15:OFFSET(M24,-1,0))+1,INDEX($M$15:OFFSET(M24,-1,0),MATCH($A24,$A$15:OFFSET($A24,-1,0),0))))) -> 5 | N24: =IF($D24<>"Serviço","",IF(AUTOEVENTO="Manual",IF($A24=0,"<-- defina o número do agrupador",OFFSET(EVENTOS!$D$14,$A24,0)),OFFSET($F$15,$A24,0))) -> Movimentação de Terra | Q24: 80.6 | AB24: =IF(AND($D24="Serviço",AB$12<>0,$H24>0,OR(AUTOEVENTO<>"manual",$M24<>1)), IF(Import.TipoArredondamento<>"TransfereGOV", ROUND(OFFSET($P24,0,AB$13),15-13*ORÇAMENTO!$AF$7)/$H24*OFFSET(ORÇAMENTO!$X$15,ROW(AB24)-ROW(AB$15),0), ROUND(ROUND(OFFSET($P24,0,AB$13),15-13*ORÇAMENTO!$AF$7)*OFFSET(ORÇAMENTO!$W$15,ROW(AB24)-ROW(AB$15),0),15-13*ORÇAMENTO!$AF$11)),0) -> 1455.64 | AC24: =IF(AND($D24="Serviço",AC$12<>0,$H24>0,OR(AUTOEVENTO<>"manual",$M24<>1)), IF(Import.TipoArredondamento<>"TransfereGOV", ROUND(OFFSET($P24,0,AC$13),15-13*ORÇAMENTO!$AF$7)/$H24*OFFSET(ORÇAMENTO!$X$15,ROW(AC24)-ROW(AC$15),0), ROUND(ROUND(OFFSET($P24,0,AC$13),15-13*ORÇAMENTO!$AF$7)*OFFSET(ORÇAMENTO!$W$15,ROW(AC24)-ROW(AC$15),0),15-13*ORÇAMENTO!$AF$11)),0) -> 0 | AD24: =IF(AND($D24="Serviço",AD$12<>0,$H24>0,OR(AUTOEVENTO<>"manual",$M24<>1)), IF(Import.TipoArredondamento<>"TransfereGOV", ROUND(OFFSET($P24,0,AD$13),15-13*ORÇAMENTO!$AF$7)/$H24*OFFSET(ORÇAMENTO!$X$15,ROW(AD24)-ROW(AD$15),0), ROUND(ROUND(OFFSET($P24,0,AD$13),15-13*ORÇAMENTO!$AF$7)*OFFSET(ORÇAMENTO!$W$15,ROW(AD24)-ROW(AD$15),0),15-13*ORÇAMENTO!$AF$11)),0) -> 0 | AE24: =IF(AND($D24="Serviço",AE$12<>0,$H24>0,OR(AUTOEVENTO<>"manual",$M24<>1)), IF(Import.TipoArredondamento<>"TransfereGOV", ROUND(OFFSET($P24,0,AE$13),15-13*ORÇAMENTO!$AF$7)/$H24*OFFSET(ORÇAMENTO!$X$15,ROW(AE24)-ROW(AE$15),0), ROUND(ROUND(OFFSET($P24,0,AE$13),15-13*ORÇAMENTO!$AF$7)*OFFSET(ORÇAMENTO!$W$15,ROW(AE24)-ROW(AE$15),0),15-13*ORÇAMENTO!$AF$11)),0) -> 0 | AF24: =IF(AND($D24="Serviço",AF$12<>0,$H24>0,OR(AUTOEVENTO<>"manual",$M24<>1)), IF(Import.TipoArredondamento<>"TransfereGOV", ROUND(OFFSET($P24,0,AF$13),15-13*ORÇAMENTO!$AF$7)/$H24*OFFSET(ORÇAMENTO!$X$15,ROW(AF24)-ROW(AF$15),0), ROUND(ROUND(OFFSET($P24,0,AF$13),15-13*ORÇAMENTO!$AF$7)*OFFSET(ORÇAMENTO!$W$15,ROW(AF24)-ROW(AF$15),0),15-13*ORÇAMENTO!$AF$11)),0) -> 0 | AG24: =IF(AND($D24="Serviço",AG$12<>0,$H24>0,OR(AUTOEVENTO<>"manual",$M24<>1)), IF(Import.TipoArredondamento<>"TransfereGOV", ROUND(OFFSET($P24,0,AG$13),15-13*ORÇAMENTO!$AF$7)/$H24*OFFSET(ORÇAMENTO!$X$15,ROW(AG24)-ROW(AG$15),0), ROUND(ROUND(OFFSET($P24,0,AG$13),15-13*ORÇAMENTO!$AF$7)*OFFSET(ORÇAMENTO!$W$15,ROW(AG24)-ROW(AG$15),0),15-13*ORÇAMENTO!$AF$11)),0) -> 0 | AH24: =IF(AND($D24="Serviço",AH$12<>0,$H24>0,OR(AUTOEVENTO<>"manual",$M24<>1)), IF(Import.TipoArredondamento<>"TransfereGOV", ROUND(OFFSET($P24,0,AH$13),15-13*ORÇAMENTO!$AF$7)/$H24*OFFSET(ORÇAMENTO!$X$15,ROW(AH24)-ROW(AH$15),0), ROUND(ROUND(OFFSET($P24,0,AH$13),15-13*ORÇAMENTO!$AF$7)*OFFSET(ORÇAMENTO!$W$15,ROW(AH24)-ROW(AH$15),0),15-13*ORÇAMENTO!$AF$11)),0) -> 0 | AI24: =IF(AND($D24="Serviço",AI$12<>0,$H24>0,OR(AUTOEVENTO<>"manual",$M24<>1)), IF(Import.TipoArredondamento<>"TransfereGOV", ROUND(OFFSET($P24,0,AI$13),15-13*ORÇAMENTO!$AF$7)/$H24*OFFSET(ORÇAMENTO!$X$15,ROW(AI24)-ROW(AI$15),0), ROUND(ROUND(OFFSET($P24,0,AI$13),15-13*ORÇAMENTO!$AF$7)*OFFSET(ORÇAMENTO!$W$15,ROW(AI24)-ROW(AI$15),0),15-13*ORÇAMENTO!$AF$11)),0) -> 0 | AJ24: =IF(AND($D24="Serviço",AJ$12<>0,$H24>0,OR(AUTOEVENTO<>"manual",$M24<>1)), IF(Import.TipoArredondamento<>"TransfereGOV", ROUND(OFFSET($P24,0,AJ$13),15-13*ORÇAMENTO!$AF$7)/$H24*OFFSET(ORÇAMENTO!$X$15,ROW(AJ24)-ROW(AJ$15),0), ROUND(ROUND(OFFSET($P24,0,AJ$13),15-13*ORÇAMENTO!$AF$7)*OFFSET(ORÇAMENTO!$W$15,ROW(AJ24)-ROW(AJ$15),0),15-13*ORÇAMENTO!$AF$11)),0) -> 0 | AK24: =IF(AND($D24="Serviço",AK$12<>0,$H24>0,OR(AUTOEVENTO<>"manual",$M24<>1)), IF(Import.TipoArredondamento<>"TransfereGOV", ROUND(OFFSET($P24,0,AK$13),15-13*ORÇAMENTO!$AF$7)/$H24*OFFSET(ORÇAMENTO!$X$15,ROW(AK24)-ROW(AK$15),0), ROUND(ROUND(OFFSET($P24,0,AK$13),15-13*ORÇAMENTO!$AF$7)*OFFSET(ORÇAMENTO!$W$15,ROW(AK24)-ROW(AK$15),0),15-13*ORÇAMENTO!$AF$11)),0) -> 0 | AM24: =IF($D24<>"Serviço",0,IF(AND(AUTOEVENTO="Manual",$M24=1),0,IF(OFFSET(CRONOPLE!$F$14,$M24,AM$13)="",10^12,OFFSET(CRONOPLE!$F$14,$M24,AM$13)))) -> 1 | AN24: =IF($D24<>"Serviço",0,IF(AND(AUTOEVENTO="Manual",$M24=1),0,IF(OFFSET(CRONOPLE!$F$14,$M24,AN$13)="",10^12,OFFSET(CRONOPLE!$F$14,$M24,AN$13)))) -> 1000000000000 | AO24: =IF($D24<>"Serviço",0,IF(AND(AUTOEVENTO="Manual",$M24=1),0,IF(OFFSET(CRONOPLE!$F$14,$M24,AO$13)="",10^12,OFFSET(CRONOPLE!$F$14,$M24,AO$13)))) -> 1000000000000 | AP24: =IF($D24<>"Serviço",0,IF(AND(AUTOEVENTO="Manual",$M24=1),0,IF(OFFSET(CRONOPLE!$F$14,$M24,AP$13)="",10^12,OFFSET(CRONOPLE!$F$14,$M24,AP$13)))) -> 1000000000000 | AQ24: =IF($D24<>"Serviço",0,IF(AND(AUTOEVENTO="Manual",$M24=1),0,IF(OFFSET(CRONOPLE!$F$14,$M24,AQ$13)="",10^12,OFFSET(CRONOPLE!$F$14,$M24,AQ$13)))) -> 1000000000000 | AR24: =IF($D24<>"Serviço",0,IF(AND(AUTOEVENTO="Manual",$M24=1),0,IF(OFFSET(CRONOPLE!$F$14,$M24,AR$13)="",10^12,OFFSET(CRONOPLE!$F$14,$M24,AR$13)))) -> 1000000000000 | AS24: =IF($D24<>"Serviço",0,IF(AND(AUTOEVENTO="Manual",$M24=1),0,IF(OFFSET(CRONOPLE!$F$14,$M24,AS$13)="",10^12,OFFSET(CRONOPLE!$F$14,$M24,AS$13)))) -> 1000000000000 | AT24: =IF($D24<>"Serviço",0,IF(AND(AUTOEVENTO="Manual",$M24=1),0,IF(OFFSET(CRONOPLE!$F$14,$M24,AT$13)="",10^12,OFFSET(CRONOPLE!$F$14,$M24,AT$13)))) -> 1000000000000 | AU24: =IF($D24<>"Serviço",0,IF(AND(AUTOEVENTO="Manual",$M24=1),0,IF(OFFSET(CRONOPLE!$F$14,$M24,AU$13)="",10^12,OFFSET(CRONOPLE!$F$14,$M24,AU$13)))) -> 1000000000000 | AV24: =IF($D24<>"Serviço",0,IF(AND(AUTOEVENTO="Manual",$M24=1),0,IF(OFFSET(CRONOPLE!$F$14,$M24,AV$13)="",10^12,OFFSET(CRONOPLE!$F$14,$M24,AV$13)))) -> 1000000000000 | AX24: =IF($D24<>"Serviço",0,IF(OR(AND(AUTOEVENTO="Manual",$M24=1),$M24>(ROW(PLE.lastrow)-ROW(PLE.firstrow))),0,IF(OFFSET(PLE!$G$14,$M24,AX$13)="",10^12,OFFSET(PLE!$G$14,$M24,AX$13)))) -> 1000000000000 | AY24: =IF($D24<>"Serviço",0,IF(OR(AND(AUTOEVENTO="Manual",$M24=1),$M24>(ROW(PLE.lastrow)-ROW(PLE.firstrow))),0,IF(OFFSET(PLE!$G$14,$M24,AY$13)="",10^12,OFFSET(PLE!$G$14,$M24,AY$13)))) -> 1000000000000 | AZ24: =IF($D24<>"Serviço",0,IF(OR(AND(AUTOEVENTO="Manual",$M24=1),$M24>(ROW(PLE.lastrow)-ROW(PLE.firstrow))),0,IF(OFFSET(PLE!$G$14,$M24,AZ$13)="",10^12,OFFSET(PLE!$G$14,$M24,AZ$13)))) -> 1000000000000 | BA24: =IF($D24<>"Serviço",0,IF(OR(AND(AUTOEVENTO="Manual",$M24=1),$M24>(ROW(PLE.lastrow)-ROW(PLE.firstrow))),0,IF(OFFSET(PLE!$G$14,$M24,BA$13)="",10^12,OFFSET(PLE!$G$14,$M24,BA$13)))) -> 1000000000000 | BB24: =IF($D24<>"Serviço",0,IF(OR(AND(AUTOEVENTO="Manual",$M24=1),$M24>(ROW(PLE.lastrow)-ROW(PLE.firstrow))),0,IF(OFFSET(PLE!$G$14,$M24,BB$13)="",10^12,OFFSET(PLE!$G$14,$M24,BB$13)))) -> 1000000000000 | BC24: =IF($D24<>"Serviço",0,IF(OR(AND(AUTOEVENTO="Manual",$M24=1),$M24>(ROW(PLE.lastrow)-ROW(PLE.firstrow))),0,IF(OFFSET(PLE!$G$14,$M24,BC$13)="",10^12,OFFSET(PLE!$G$14,$M24,BC$13)))) -> 1000000000000 | BD24: =IF($D24<>"Serviço",0,IF(OR(AND(AUTOEVENTO="Manual",$M24=1),$M24>(ROW(PLE.lastrow)-ROW(PLE.firstrow))),0,IF(OFFSET(PLE!$G$14,$M24,BD$13)="",10^12,OFFSET(PLE!$G$14,$M24,BD$13)))) -> 1000000000000 | BE24: =IF($D24<>"Serviço",0,IF(OR(AND(AUTOEVENTO="Manual",$M24=1),$M24>(ROW(PLE.lastrow)-ROW(PLE.firstrow))),0,IF(OFFSET(PLE!$G$14,$M24,BE$13)="",10^12,OFFSET(PLE!$G$14,$M24,BE$13)))) -> 1000000000000 | BF24: =IF($D24<>"Serviço",0,IF(OR(AND(AUTOEVENTO="Manual",$M24=1),$M24>(ROW(PLE.lastrow)-ROW(PLE.firstrow))),0,IF(OFFSET(PLE!$G$14,$M24,BF$13)="",10^12,OFFSET(PLE!$G$14,$M24,BF$13)))) -> 1000000000000 | BG24: =IF($D24<>"Serviço",0,IF(OR(AND(AUTOEVENTO="Manual",$M24=1),$M24>(ROW(PLE.lastrow)-ROW(PLE.firstrow))),0,IF(OFFSET(PLE!$G$14,$M24,BG$13)="",10^12,OFFSET(PLE!$G$14,$M24,BG$13)))) -> 1000000000000
A25: 0 | B25: =OFFSET(ORÇAMENTO!C$15,ROW(B25)-ROW(B$15),0) -> 2 | C25: =OFFSET(ORÇAMENTO!L$15,ROW(C25)-ROW(C$15),0) -> F | D25: =OFFSET(ORÇAMENTO!N$15,ROW(D25)-ROW(D$15),0) -> Nível 2 | E25: =OFFSET(ORÇAMENTO!O$15,ROW(E25)-ROW(E$15),0) -> 1.4. | F25: =OFFSET(ORÇAMENTO!R$15,ROW(F25)-ROW(F$15),0) -> Drenagem | G25: =IF($D25<>"Serviço","",OFFSET(ORÇAMENTO!S$15,ROW(G25)-ROW(G$15),0)) ->  | H25: =IF($D25<>"Serviço",0,IF(ACOMPANHAMENTO="BM",ROUND(OFFSET(ORÇAMENTO!AJ$15,ROW(H25)-ROW(H$15),0),15-13*ORÇAMENTO!$AF$7),SUMPRODUCT(($Q$12:$AA$12<>"")*ROUND($Q25:$AA25,15-13*ORÇAMENTO!$AF$7)))) -> 0 | L25: . | M25: =IF($D25<>"Serviço","",IF(AUTOEVENTO="manual",$A25,IF(ISERROR(MATCH($A25,$A$15:OFFSET($A25,-1,0),0)),MAX($M$15:OFFSET(M25,-1,0))+1,INDEX($M$15:OFFSET(M25,-1,0),MATCH($A25,$A$15:OFFSET($A25,-1,0),0))))) ->  | N25: =IF($D25<>"Serviço","",IF(AUTOEVENTO="Manual",IF($A25=0,"<-- defina o número do agrupador",OFFSET(EVENTOS!$D$14,$A25,0)),OFFSET($F$15,$A25,0))) ->  | AB25: =IF(AND($D25="Serviço",AB$12<>0,$H25>0,OR(AUTOEVENTO<>"manual",$M25<>1)), IF(Import.TipoArredondamento<>"TransfereGOV", ROUND(OFFSET($P25,0,AB$13),15-13*ORÇAMENTO!$AF$7)/$H25*OFFSET(ORÇAMENTO!$X$15,ROW(AB25)-ROW(AB$15),0), ROUND(ROUND(OFFSET($P25,0,AB$13),15-13*ORÇAMENTO!$AF$7)*OFFSET(ORÇAMENTO!$W$15,ROW(AB25)-ROW(AB$15),0),15-13*ORÇAMENTO!$AF$11)),0) -> 0 | AC25: =IF(AND($D25="Serviço",AC$12<>0,$H25>0,OR(AUTOEVENTO<>"manual",$M25<>1)), IF(Import.TipoArredondamento<>"TransfereGOV", ROUND(OFFSET($P25,0,AC$13),15-13*ORÇAMENTO!$AF$7)/$H25*OFFSET(ORÇAMENTO!$X$15,ROW(AC25)-ROW(AC$15),0), ROUND(ROUND(OFFSET($P25,0,AC$13),15-13*ORÇAMENTO!$AF$7)*OFFSET(ORÇAMENTO!$W$15,ROW(AC25)-ROW(AC$15),0),15-13*ORÇAMENTO!$AF$11)),0) -> 0 | AD25: =IF(AND($D25="Serviço",AD$12<>0,$H25>0,OR(AUTOEVENTO<>"manual",$M25<>1)), IF(Import.TipoArredondamento<>"TransfereGOV", ROUND(OFFSET($P25,0,AD$13),15-13*ORÇAMENTO!$AF$7)/$H25*OFFSET(ORÇAMENTO!$X$15,ROW(AD25)-ROW(AD$15),0), ROUND(ROUND(OFFSET($P25,0,AD$13),15-13*ORÇAMENTO!$AF$7)*OFFSET(ORÇAMENTO!$W$15,ROW(AD25)-ROW(AD$15),0),15-13*ORÇAMENTO!$AF$11)),0) -> 0 | AE25: =IF(AND($D25="Serviço",AE$12<>0,$H25>0,OR(AUTOEVENTO<>"manual",$M25<>1)), IF(Import.TipoArredondamento<>"TransfereGOV", ROUND(OFFSET($P25,0,AE$13),15-13*ORÇAMENTO!$AF$7)/$H25*OFFSET(ORÇAMENTO!$X$15,ROW(AE25)-ROW(AE$15),0), ROUND(ROUND(OFFSET($P25,0,AE$13),15-13*ORÇAMENTO!$AF$7)*OFFSET(ORÇAMENTO!$W$15,ROW(AE25)-ROW(AE$15),0),15-13*ORÇAMENTO!$AF$11)),0) -> 0 | AF25: =IF(AND($D25="Serviço",AF$12<>0,$H25>0,OR(AUTOEVENTO<>"manual",$M25<>1)), IF(Import.TipoArredondamento<>"TransfereGOV", ROUND(OFFSET($P25,0,AF$13),15-13*ORÇAMENTO!$AF$7)/$H25*OFFSET(ORÇAMENTO!$X$15,ROW(AF25)-ROW(AF$15),0), ROUND(ROUND(OFFSET($P25,0,AF$13),15-13*ORÇAMENTO!$AF$7)*OFFSET(ORÇAMENTO!$W$15,ROW(AF25)-ROW(AF$15),0),15-13*ORÇAMENTO!$AF$11)),0) -> 0 | AG25: =IF(AND($D25="Serviço",AG$12<>0,$H25>0,OR(AUTOEVENTO<>"manual",$M25<>1)), IF(Import.TipoArredondamento<>"TransfereGOV", ROUND(OFFSET($P25,0,AG$13),15-13*ORÇAMENTO!$AF$7)/$H25*OFFSET(ORÇAMENTO!$X$15,ROW(AG25)-ROW(AG$15),0), ROUND(ROUND(OFFSET($P25,0,AG$13),15-13*ORÇAMENTO!$AF$7)*OFFSET(ORÇAMENTO!$W$15,ROW(AG25)-ROW(AG$15),0),15-13*ORÇAMENTO!$AF$11)),0) -> 0 | AH25: =IF(AND($D25="Serviço",AH$12<>0,$H25>0,OR(AUTOEVENTO<>"manual",$M25<>1)), IF(Import.TipoArredondamento<>"TransfereGOV", ROUND(OFFSET($P25,0,AH$13),15-13*ORÇAMENTO!$AF$7)/$H25*OFFSET(ORÇAMENTO!$X$15,ROW(AH25)-ROW(AH$15),0), ROUND(ROUND(OFFSET($P25,0,AH$13),15-13*ORÇAMENTO!$AF$7)*OFFSET(ORÇAMENTO!$W$15,ROW(AH25)-ROW(AH$15),0),15-13*ORÇAMENTO!$AF$11)),0) -> 0 | AI25: =IF(AND($D25="Serviço",AI$12<>0,$H25>0,OR(AUTOEVENTO<>"manual",$M25<>1)), IF(Import.TipoArredondamento<>"TransfereGOV", ROUND(OFFSET($P25,0,AI$13),15-13*ORÇAMENTO!$AF$7)/$H25*OFFSET(ORÇAMENTO!$X$15,ROW(AI25)-ROW(AI$15),0), ROUND(ROUND(OFFSET($P25,0,AI$13),15-13*ORÇAMENTO!$AF$7)*OFFSET(ORÇAMENTO!$W$15,ROW(AI25)-ROW(AI$15),0),15-13*ORÇAMENTO!$AF$11)),0) -> 0 | AJ25: =IF(AND($D25="Serviço",AJ$12<>0,$H25>0,OR(AUTOEVENTO<>"manual",$M25<>1)), IF(Import.TipoArredondamento<>"TransfereGOV", ROUND(OFFSET($P25,0,AJ$13),15-13*ORÇAMENTO!$AF$7)/$H25*OFFSET(ORÇAMENTO!$X$15,ROW(AJ25)-ROW(AJ$15),0), ROUND(ROUND(OFFSET($P25,0,AJ$13),15-13*ORÇAMENTO!$AF$7)*OFFSET(ORÇAMENTO!$W$15,ROW(AJ25)-ROW(AJ$15),0),15-13*ORÇAMENTO!$AF$11)),0) -> 0 | AK25: =IF(AND($D25="Serviço",AK$12<>0,$H25>0,OR(AUTOEVENTO<>"manual",$M25<>1)), IF(Import.TipoArredondamento<>"TransfereGOV", ROUND(OFFSET($P25,0,AK$13),15-13*ORÇAMENTO!$AF$7)/$H25*OFFSET(ORÇAMENTO!$X$15,ROW(AK25)-ROW(AK$15),0), ROUND(ROUND(OFFSET($P25,0,AK$13),15-13*ORÇAMENTO!$AF$7)*OFFSET(ORÇAMENTO!$W$15,ROW(AK25)-ROW(AK$15),0),15-13*ORÇAMENTO!$AF$11)),0) -> 0 | AM25: =IF($D25<>"Serviço",0,IF(AND(AUTOEVENTO="Manual",$M25=1),0,IF(OFFSET(CRONOPLE!$F$14,$M25,AM$13)="",10^12,OFFSET(CRONOPLE!$F$14,$M25,AM$13)))) -> 0 | AN25: =IF($D25<>"Serviço",0,IF(AND(AUTOEVENTO="Manual",$M25=1),0,IF(OFFSET(CRONOPLE!$F$14,$M25,AN$13)="",10^12,OFFSET(CRONOPLE!$F$14,$M25,AN$13)))) -> 0 | AO25: =IF($D25<>"Serviço",0,IF(AND(AUTOEVENTO="Manual",$M25=1),0,IF(OFFSET(CRONOPLE!$F$14,$M25,AO$13)="",10^12,OFFSET(CRONOPLE!$F$14,$M25,AO$13)))) -> 0 | AP25: =IF($D25<>"Serviço",0,IF(AND(AUTOEVENTO="Manual",$M25=1),0,IF(OFFSET(CRONOPLE!$F$14,$M25,AP$13)="",10^12,OFFSET(CRONOPLE!$F$14,$M25,AP$13)))) -> 0 | AQ25: =IF($D25<>"Serviço",0,IF(AND(AUTOEVENTO="Manual",$M25=1),0,IF(OFFSET(CRONOPLE!$F$14,$M25,AQ$13)="",10^12,OFFSET(CRONOPLE!$F$14,$M25,AQ$13)))) -> 0 | AR25: =IF($D25<>"Serviço",0,IF(AND(AUTOEVENTO="Manual",$M25=1),0,IF(OFFSET(CRONOPLE!$F$14,$M25,AR$13)="",10^12,OFFSET(CRONOPLE!$F$14,$M25,AR$13)))) -> 0 | AS25: =IF($D25<>"Serviço",0,IF(AND(AUTOEVENTO="Manual",$M25=1),0,IF(OFFSET(CRONOPLE!$F$14,$M25,AS$13)="",10^12,OFFSET(CRONOPLE!$F$14,$M25,AS$13)))) -> 0 | AT25: =IF($D25<>"Serviço",0,IF(AND(AUTOEVENTO="Manual",$M25=1),0,IF(OFFSET(CRONOPLE!$F$14,$M25,AT$13)="",10^12,OFFSET(CRONOPLE!$F$14,$M25,AT$13)))) -> 0 | AU25: =IF($D25<>"Serviço",0,IF(AND(AUTOEVENTO="Manual",$M25=1),0,IF(OFFSET(CRONOPLE!$F$14,$M25,AU$13)="",10^12,OFFSET(CRONOPLE!$F$14,$M25,AU$13)))) -> 0 | AV25: =IF($D25<>"Serviço",0,IF(AND(AUTOEVENTO="Manual",$M25=1),0,IF(OFFSET(CRONOPLE!$F$14,$M25,AV$13)="",10^12,OFFSET(CRONOPLE!$F$14,$M25,AV$13)))) -> 0 | AX25: =IF($D25<>"Serviço",0,IF(OR(AND(AUTOEVENTO="Manual",$M25=1),$M25>(ROW(PLE.lastrow)-ROW(PLE.firstrow))),0,IF(OFFSET(PLE!$G$14,$M25,AX$13)="",10^12,OFFSET(PLE!$G$14,$M25,AX$13)))) -> 0 | AY25: =IF($D25<>"Serviço",0,IF(OR(AND(AUTOEVENTO="Manual",$M25=1),$M25>(ROW(PLE.lastrow)-ROW(PLE.firstrow))),0,IF(OFFSET(PLE!$G$14,$M25,AY$13)="",10^12,OFFSET(PLE!$G$14,$M25,AY$13)))) -> 0 | AZ25: =IF($D25<>"Serviço",0,IF(OR(AND(AUTOEVENTO="Manual",$M25=1),$M25>(ROW(PLE.lastrow)-ROW(PLE.firstrow))),0,IF(OFFSET(PLE!$G$14,$M25,AZ$13)="",10^12,OFFSET(PLE!$G$14,$M25,AZ$13)))) -> 0 | BA25: =IF($D25<>"Serviço",0,IF(OR(AND(AUTOEVENTO="Manual",$M25=1),$M25>(ROW(PLE.lastrow)-ROW(PLE.firstrow))),0,IF(OFFSET(PLE!$G$14,$M25,BA$13)="",10^12,OFFSET(PLE!$G$14,$M25,BA$13)))) -> 0 | BB25: =IF($D25<>"Serviço",0,IF(OR(AND(AUTOEVENTO="Manual",$M25=1),$M25>(ROW(PLE.lastrow)-ROW(PLE.firstrow))),0,IF(OFFSET(PLE!$G$14,$M25,BB$13)="",10^12,OFFSET(PLE!$G$14,$M25,BB$13)))) -> 0 | BC25: =IF($D25<>"Serviço",0,IF(OR(AND(AUTOEVENTO="Manual",$M25=1),$M25>(ROW(PLE.lastrow)-ROW(PLE.firstrow))),0,IF(OFFSET(PLE!$G$14,$M25,BC$13)="",10^12,OFFSET(PLE!$G$14,$M25,BC$13)))) -> 0 | BD25: =IF($D25<>"Serviço",0,IF(OR(AND(AUTOEVENTO="Manual",$M25=1),$M25>(ROW(PLE.lastrow)-ROW(PLE.firstrow))),0,IF(OFFSET(PLE!$G$14,$M25,BD$13)="",10^12,OFFSET(PLE!$G$14,$M25,BD$13)))) -> 0 | BE25: =IF($D25<>"Serviço",0,IF(OR(AND(AUTOEVENTO="Manual",$M25=1),$M25>(ROW(PLE.lastrow)-ROW(PLE.firstrow))),0,IF(OFFSET(PLE!$G$14,$M25,BE$13)="",10^12,OFFSET(PLE!$G$14,$M25,BE$13)))) -> 0 | BF25: =IF($D25<>"Serviço",0,IF(OR(AND(AUTOEVENTO="Manual",$M25=1),$M25>(ROW(PLE.lastrow)-ROW(PLE.firstrow))),0,IF(OFFSET(PLE!$G$14,$M25,BF$13)="",10^12,OFFSET(PLE!$G$14,$M25,BF$13)))) -> 0 | BG25: =IF($D25<>"Serviço",0,IF(OR(AND(AUTOEVENTO="Manual",$M25=1),$M25>(ROW(PLE.lastrow)-ROW(PLE.firstrow))),0,IF(OFFSET(PLE!$G$14,$M25,BG$13)="",10^12,OFFSET(PLE!$G$14,$M25,BG$13)))) -> 0
A26: 6 | B26: =OFFSET(ORÇAMENTO!C$15,ROW(B26)-ROW(B$15),0) -> S | C26: =OFFSET(ORÇAMENTO!L$15,ROW(C26)-ROW(C$15),0) -> F | D26: =OFFSET(ORÇAMENTO!N$15,ROW(D26)-ROW(D$15),0) -> Serviço | E26: =OFFSET(ORÇAMENTO!O$15,ROW(E26)-ROW(E$15),0) -> 1.4.1. | F26: =OFFSET(ORÇAMENTO!R$15,ROW(F26)-ROW(F$15),0) -> ENVELOPAMENTO DE SARJETA COM TUBO DE CONCRETO DIÂMETRO 30CM | G26: =IF($D26<>"Serviço","",OFFSET(ORÇAMENTO!S$15,ROW(G26)-ROW(G$15),0)) -> M | H26: =IF($D26<>"Serviço",0,IF(ACOMPANHAMENTO="BM",ROUND(OFFSET(ORÇAMENTO!AJ$15,ROW(H26)-ROW(H$15),0),15-13*ORÇAMENTO!$AF$7),SUMPRODUCT(($Q$12:$AA$12<>"")*ROUND($Q26:$AA26,15-13*ORÇAMENTO!$AF$7)))) -> 10 | K26: 6.Drenagem | L26: . | M26: =IF($D26<>"Serviço","",IF(AUTOEVENTO="manual",$A26,IF(ISERROR(MATCH($A26,$A$15:OFFSET($A26,-1,0),0)),MAX($M$15:OFFSET(M26,-1,0))+1,INDEX($M$15:OFFSET(M26,-1,0),MATCH($A26,$A$15:OFFSET($A26,-1,0),0))))) -> 6 | N26: =IF($D26<>"Serviço","",IF(AUTOEVENTO="Manual",IF($A26=0,"<-- defina o número do agrupador",OFFSET(EVENTOS!$D$14,$A26,0)),OFFSET($F$15,$A26,0))) -> Drenagem | Q26: 10 | AB26: =IF(AND($D26="Serviço",AB$12<>0,$H26>0,OR(AUTOEVENTO<>"manual",$M26<>1)), IF(Import.TipoArredondamento<>"TransfereGOV", ROUND(OFFSET($P26,0,AB$13),15-13*ORÇAMENTO!$AF$7)/$H26*OFFSET(ORÇAMENTO!$X$15,ROW(AB26)-ROW(AB$15),0), ROUND(ROUND(OFFSET($P26,0,AB$13),15-13*ORÇAMENTO!$AF$7)*OFFSET(ORÇAMENTO!$W$15,ROW(AB26)-ROW(AB$15),0),15-13*ORÇAMENTO!$AF$11)),0) -> 1353.2 | AC26: =IF(AND($D26="Serviço",AC$12<>0,$H26>0,OR(AUTOEVENTO<>"manual",$M26<>1)), IF(Import.TipoArredondamento<>"TransfereGOV", ROUND(OFFSET($P26,0,AC$13),15-13*ORÇAMENTO!$AF$7)/$H26*OFFSET(ORÇAMENTO!$X$15,ROW(AC26)-ROW(AC$15),0), ROUND(ROUND(OFFSET($P26,0,AC$13),15-13*ORÇAMENTO!$AF$7)*OFFSET(ORÇAMENTO!$W$15,ROW(AC26)-ROW(AC$15),0),15-13*ORÇAMENTO!$AF$11)),0) -> 0 | AD26: =IF(AND($D26="Serviço",AD$12<>0,$H26>0,OR(AUTOEVENTO<>"manual",$M26<>1)), IF(Import.TipoArredondamento<>"TransfereGOV", ROUND(OFFSET($P26,0,AD$13),15-13*ORÇAMENTO!$AF$7)/$H26*OFFSET(ORÇAMENTO!$X$15,ROW(AD26)-ROW(AD$15),0), ROUND(ROUND(OFFSET($P26,0,AD$13),15-13*ORÇAMENTO!$AF$7)*OFFSET(ORÇAMENTO!$W$15,ROW(AD26)-ROW(AD$15),0),15-13*ORÇAMENTO!$AF$11)),0) -> 0 | AE26: =IF(AND($D26="Serviço",AE$12<>0,$H26>0,OR(AUTOEVENTO<>"manual",$M26<>1)), IF(Import.TipoArredondamento<>"TransfereGOV", ROUND(OFFSET($P26,0,AE$13),15-13*ORÇAMENTO!$AF$7)/$H26*OFFSET(ORÇAMENTO!$X$15,ROW(AE26)-ROW(AE$15),0), ROUND(ROUND(OFFSET($P26,0,AE$13),15-13*ORÇAMENTO!$AF$7)*OFFSET(ORÇAMENTO!$W$15,ROW(AE26)-ROW(AE$15),0),15-13*ORÇAMENTO!$AF$11)),0) -> 0 | AF26: =IF(AND($D26="Serviço",AF$12<>0,$H26>0,OR(AUTOEVENTO<>"manual",$M26<>1)), IF(Import.TipoArredondamento<>"TransfereGOV", ROUND(OFFSET($P26,0,AF$13),15-13*ORÇAMENTO!$AF$7)/$H26*OFFSET(ORÇAMENTO!$X$15,ROW(AF26)-ROW(AF$15),0), ROUND(ROUND(OFFSET($P26,0,AF$13),15-13*ORÇAMENTO!$AF$7)*OFFSET(ORÇAMENTO!$W$15,ROW(AF26)-ROW(AF$15),0),15-13*ORÇAMENTO!$AF$11)),0) -> 0 | AG26: =IF(AND($D26="Serviço",AG$12<>0,$H26>0,OR(AUTOEVENTO<>"manual",$M26<>1)), IF(Import.TipoArredondamento<>"TransfereGOV", ROUND(OFFSET($P26,0,AG$13),15-13*ORÇAMENTO!$AF$7)/$H26*OFFSET(ORÇAMENTO!$X$15,ROW(AG26)-ROW(AG$15),0), ROUND(ROUND(OFFSET($P26,0,AG$13),15-13*ORÇAMENTO!$AF$7)*OFFSET(ORÇAMENTO!$W$15,ROW(AG26)-ROW(AG$15),0),15-13*ORÇAMENTO!$AF$11)),0) -> 0 | AH26: =IF(AND($D26="Serviço",AH$12<>0,$H26>0,OR(AUTOEVENTO<>"manual",$M26<>1)), IF(Import.TipoArredondamento<>"TransfereGOV", ROUND(OFFSET($P26,0,AH$13),15-13*ORÇAMENTO!$AF$7)/$H26*OFFSET(ORÇAMENTO!$X$15,ROW(AH26)-ROW(AH$15),0), ROUND(ROUND(OFFSET($P26,0,AH$13),15-13*ORÇAMENTO!$AF$7)*OFFSET(ORÇAMENTO!$W$15,ROW(AH26)-ROW(AH$15),0),15-13*ORÇAMENTO!$AF$11)),0) -> 0 | AI26: =IF(AND($D26="Serviço",AI$12<>0,$H26>0,OR(AUTOEVENTO<>"manual",$M26<>1)), IF(Import.TipoArredondamento<>"TransfereGOV", ROUND(OFFSET($P26,0,AI$13),15-13*ORÇAMENTO!$AF$7)/$H26*OFFSET(ORÇAMENTO!$X$15,ROW(AI26)-ROW(AI$15),0), ROUND(ROUND(OFFSET($P26,0,AI$13),15-13*ORÇAMENTO!$AF$7)*OFFSET(ORÇAMENTO!$W$15,ROW(AI26)-ROW(AI$15),0),15-13*ORÇAMENTO!$AF$11)),0) -> 0 | AJ26: =IF(AND($D26="Serviço",AJ$12<>0,$H26>0,OR(AUTOEVENTO<>"manual",$M26<>1)), IF(Import.TipoArredondamento<>"TransfereGOV", ROUND(OFFSET($P26,0,AJ$13),15-13*ORÇAMENTO!$AF$7)/$H26*OFFSET(ORÇAMENTO!$X$15,ROW(AJ26)-ROW(AJ$15),0), ROUND(ROUND(OFFSET($P26,0,AJ$13),15-13*ORÇAMENTO!$AF$7)*OFFSET(ORÇAMENTO!$W$15,ROW(AJ26)-ROW(AJ$15),0),15-13*ORÇAMENTO!$AF$11)),0) -> 0 | AK26: =IF(AND($D26="Serviço",AK$12<>0,$H26>0,OR(AUTOEVENTO<>"manual",$M26<>1)), IF(Import.TipoArredondamento<>"TransfereGOV", ROUND(OFFSET($P26,0,AK$13),15-13*ORÇAMENTO!$AF$7)/$H26*OFFSET(ORÇAMENTO!$X$15,ROW(AK26)-ROW(AK$15),0), ROUND(ROUND(OFFSET($P26,0,AK$13),15-13*ORÇAMENTO!$AF$7)*OFFSET(ORÇAMENTO!$W$15,ROW(AK26)-ROW(AK$15),0),15-13*ORÇAMENTO!$AF$11)),0) -> 0 | AM26: =IF($D26<>"Serviço",0,IF(AND(AUTOEVENTO="Manual",$M26=1),0,IF(OFFSET(CRONOPLE!$F$14,$M26,AM$13)="",10^12,OFFSET(CRONOPLE!$F$14,$M26,AM$13)))) -> 1 | AN26: =IF($D26<>"Serviço",0,IF(AND(AUTOEVENTO="Manual",$M26=1),0,IF(OFFSET(CRONOPLE!$F$14,$M26,AN$13)="",10^12,OFFSET(CRONOPLE!$F$14,$M26,AN$13)))) -> 1000000000000 | AO26: =IF($D26<>"Serviço",0,IF(AND(AUTOEVENTO="Manual",$M26=1),0,IF(OFFSET(CRONOPLE!$F$14,$M26,AO$13)="",10^12,OFFSET(CRONOPLE!$F$14,$M26,AO$13)))) -> 1000000000000 | AP26: =IF($D26<>"Serviço",0,IF(AND(AUTOEVENTO="Manual",$M26=1),0,IF(OFFSET(CRONOPLE!$F$14,$M26,AP$13)="",10^12,OFFSET(CRONOPLE!$F$14,$M26,AP$13)))) -> 1000000000000 | AQ26: =IF($D26<>"Serviço",0,IF(AND(AUTOEVENTO="Manual",$M26=1),0,IF(OFFSET(CRONOPLE!$F$14,$M26,AQ$13)="",10^12,OFFSET(CRONOPLE!$F$14,$M26,AQ$13)))) -> 1000000000000 | AR26: =IF($D26<>"Serviço",0,IF(AND(AUTOEVENTO="Manual",$M26=1),0,IF(OFFSET(CRONOPLE!$F$14,$M26,AR$13)="",10^12,OFFSET(CRONOPLE!$F$14,$M26,AR$13)))) -> 1000000000000 | AS26: =IF($D26<>"Serviço",0,IF(AND(AUTOEVENTO="Manual",$M26=1),0,IF(OFFSET(CRONOPLE!$F$14,$M26,AS$13)="",10^12,OFFSET(CRONOPLE!$F$14,$M26,AS$13)))) -> 1000000000000 | AT26: =IF($D26<>"Serviço",0,IF(AND(AUTOEVENTO="Manual",$M26=1),0,IF(OFFSET(CRONOPLE!$F$14,$M26,AT$13)="",10^12,OFFSET(CRONOPLE!$F$14,$M26,AT$13)))) -> 1000000000000 | AU26: =IF($D26<>"Serviço",0,IF(AND(AUTOEVENTO="Manual",$M26=1),0,IF(OFFSET(CRONOPLE!$F$14,$M26,AU$13)="",10^12,OFFSET(CRONOPLE!$F$14,$M26,AU$13)))) -> 1000000000000 | AV26: =IF($D26<>"Serviço",0,IF(AND(AUTOEVENTO="Manual",$M26=1),0,IF(OFFSET(CRONOPLE!$F$14,$M26,AV$13)="",10^12,OFFSET(CRONOPLE!$F$14,$M26,AV$13)))) -> 1000000000000 | AX26: =IF($D26<>"Serviço",0,IF(OR(AND(AUTOEVENTO="Manual",$M26=1),$M26>(ROW(PLE.lastrow)-ROW(PLE.firstrow))),0,IF(OFFSET(PLE!$G$14,$M26,AX$13)="",10^12,OFFSET(PLE!$G$14,$M26,AX$13)))) -> 1000000000000 | AY26: =IF($D26<>"Serviço",0,IF(OR(AND(AUTOEVENTO="Manual",$M26=1),$M26>(ROW(PLE.lastrow)-ROW(PLE.firstrow))),0,IF(OFFSET(PLE!$G$14,$M26,AY$13)="",10^12,OFFSET(PLE!$G$14,$M26,AY$13)))) -> 1000000000000 | AZ26: =IF($D26<>"Serviço",0,IF(OR(AND(AUTOEVENTO="Manual",$M26=1),$M26>(ROW(PLE.lastrow)-ROW(PLE.firstrow))),0,IF(OFFSET(PLE!$G$14,$M26,AZ$13)="",10^12,OFFSET(PLE!$G$14,$M26,AZ$13)))) -> 1000000000000 | BA26: =IF($D26<>"Serviço",0,IF(OR(AND(AUTOEVENTO="Manual",$M26=1),$M26>(ROW(PLE.lastrow)-ROW(PLE.firstrow))),0,IF(OFFSET(PLE!$G$14,$M26,BA$13)="",10^12,OFFSET(PLE!$G$14,$M26,BA$13)))) -> 1000000000000 | BB26: =IF($D26<>"Serviço",0,IF(OR(AND(AUTOEVENTO="Manual",$M26=1),$M26>(ROW(PLE.lastrow)-ROW(PLE.firstrow))),0,IF(OFFSET(PLE!$G$14,$M26,BB$13)="",10^12,OFFSET(PLE!$G$14,$M26,BB$13)))) -> 1000000000000 | BC26: =IF($D26<>"Serviço",0,IF(OR(AND(AUTOEVENTO="Manual",$M26=1),$M26>(ROW(PLE.lastrow)-ROW(PLE.firstrow))),0,IF(OFFSET(PLE!$G$14,$M26,BC$13)="",10^12,OFFSET(PLE!$G$14,$M26,BC$13)))) -> 1000000000000 | BD26: =IF($D26<>"Serviço",0,IF(OR(AND(AUTOEVENTO="Manual",$M26=1),$M26>(ROW(PLE.lastrow)-ROW(PLE.firstrow))),0,IF(OFFSET(PLE!$G$14,$M26,BD$13)="",10^12,OFFSET(PLE!$G$14,$M26,BD$13)))) -> 1000000000000 | BE26: =IF($D26<>"Serviço",0,IF(OR(AND(AUTOEVENTO="Manual",$M26=1),$M26>(ROW(PLE.lastrow)-ROW(PLE.firstrow))),0,IF(OFFSET(PLE!$G$14,$M26,BE$13)="",10^12,OFFSET(PLE!$G$14,$M26,BE$13)))) -> 1000000000000 | BF26: =IF($D26<>"Serviço",0,IF(OR(AND(AUTOEVENTO="Manual",$M26=1),$M26>(ROW(PLE.lastrow)-ROW(PLE.firstrow))),0,IF(OFFSET(PLE!$G$14,$M26,BF$13)="",10^12,OFFSET(PLE!$G$14,$M26,BF$13)))) -> 1000000000000 | BG26: =IF($D26<>"Serviço",0,IF(OR(AND(AUTOEVENTO="Manual",$M26=1),$M26>(ROW(PLE.lastrow)-ROW(PLE.firstrow))),0,IF(OFFSET(PLE!$G$14,$M26,BG$13)="",10^12,OFFSET(PLE!$G$14,$M26,BG$13)))) -> 1000000000000
A27: 6 | B27: =OFFSET(ORÇAMENTO!C$15,ROW(B27)-ROW(B$15),0) -> S | C27: =OFFSET(ORÇAMENTO!L$15,ROW(C27)-ROW(C$15),0) -> F | D27: =OFFSET(ORÇAMENTO!N$15,ROW(D27)-ROW(D$15),0) -> Serviço | E27: =OFFSET(ORÇAMENTO!O$15,ROW(E27)-ROW(E$15),0) -> 1.4.2. | F27: =OFFSET(ORÇAMENTO!R$15,ROW(F27)-ROW(F$15),0) -> TRANSPORTE COMERCIAL COM CAMINHÃO CARROCERIA 9T - DMT 40 KM | G27: =IF($D27<>"Serviço","",OFFSET(ORÇAMENTO!S$15,ROW(G27)-ROW(G$15),0)) -> T X KM | H27: =IF($D27<>"Serviço",0,IF(ACOMPANHAMENTO="BM",ROUND(OFFSET(ORÇAMENTO!AJ$15,ROW(H27)-ROW(H$15),0),15-13*ORÇAMENTO!$AF$7),SUMPRODUCT(($Q$12:$AA$12<>"")*ROUND($Q27:$AA27,15-13*ORÇAMENTO!$AF$7)))) -> 36.8 | K27: 6.Drenagem | L27: . | M27: =IF($D27<>"Serviço","",IF(AUTOEVENTO="manual",$A27,IF(ISERROR(MATCH($A27,$A$15:OFFSET($A27,-1,0),0)),MAX($M$15:OFFSET(M27,-1,0))+1,INDEX($M$15:OFFSET(M27,-1,0),MATCH($A27,$A$15:OFFSET($A27,-1,0),0))))) -> 6 | N27: =IF($D27<>"Serviço","",IF(AUTOEVENTO="Manual",IF($A27=0,"<-- defina o número do agrupador",OFFSET(EVENTOS!$D$14,$A27,0)),OFFSET($F$15,$A27,0))) -> Drenagem | Q27: 36.8 | AB27: =IF(AND($D27="Serviço",AB$12<>0,$H27>0,OR(AUTOEVENTO<>"manual",$M27<>1)), IF(Import.TipoArredondamento<>"TransfereGOV", ROUND(OFFSET($P27,0,AB$13),15-13*ORÇAMENTO!$AF$7)/$H27*OFFSET(ORÇAMENTO!$X$15,ROW(AB27)-ROW(AB$15),0), ROUND(ROUND(OFFSET($P27,0,AB$13),15-13*ORÇAMENTO!$AF$7)*OFFSET(ORÇAMENTO!$W$15,ROW(AB27)-ROW(AB$15),0),15-13*ORÇAMENTO!$AF$11)),0) -> 53.36 | AC27: =IF(AND($D27="Serviço",AC$12<>0,$H27>0,OR(AUTOEVENTO<>"manual",$M27<>1)), IF(Import.TipoArredondamento<>"TransfereGOV", ROUND(OFFSET($P27,0,AC$13),15-13*ORÇAMENTO!$AF$7)/$H27*OFFSET(ORÇAMENTO!$X$15,ROW(AC27)-ROW(AC$15),0), ROUND(ROUND(OFFSET($P27,0,AC$13),15-13*ORÇAMENTO!$AF$7)*OFFSET(ORÇAMENTO!$W$15,ROW(AC27)-ROW(AC$15),0),15-13*ORÇAMENTO!$AF$11)),0) -> 0 | AD27: =IF(AND($D27="Serviço",AD$12<>0,$H27>0,OR(AUTOEVENTO<>"manual",$M27<>1)), IF(Import.TipoArredondamento<>"TransfereGOV", ROUND(OFFSET($P27,0,AD$13),15-13*ORÇAMENTO!$AF$7)/$H27*OFFSET(ORÇAMENTO!$X$15,ROW(AD27)-ROW(AD$15),0), ROUND(ROUND(OFFSET($P27,0,AD$13),15-13*ORÇAMENTO!$AF$7)*OFFSET(ORÇAMENTO!$W$15,ROW(AD27)-ROW(AD$15),0),15-13*ORÇAMENTO!$AF$11)),0) -> 0 | AE27: =IF(AND($D27="Serviço",AE$12<>0,$H27>0,OR(AUTOEVENTO<>"manual",$M27<>1)), IF(Import.TipoArredondamento<>"TransfereGOV", ROUND(OFFSET($P27,0,AE$13),15-13*ORÇAMENTO!$AF$7)/$H27*OFFSET(ORÇAMENTO!$X$15,ROW(AE27)-ROW(AE$15),0), ROUND(ROUND(OFFSET($P27,0,AE$13),15-13*ORÇAMENTO!$AF$7)*OFFSET(ORÇAMENTO!$W$15,ROW(AE27)-ROW(AE$15),0),15-13*ORÇAMENTO!$AF$11)),0) -> 0 | AF27: =IF(AND($D27="Serviço",AF$12<>0,$H27>0,OR(AUTOEVENTO<>"manual",$M27<>1)), IF(Import.TipoArredondamento<>"TransfereGOV", ROUND(OFFSET($P27,0,AF$13),15-13*ORÇAMENTO!$AF$7)/$H27*OFFSET(ORÇAMENTO!$X$15,ROW(AF27)-ROW(AF$15),0), ROUND(ROUND(OFFSET($P27,0,AF$13),15-13*ORÇAMENTO!$AF$7)*OFFSET(ORÇAMENTO!$W$15,ROW(AF27)-ROW(AF$15),0),15-13*ORÇAMENTO!$AF$11)),0) -> 0 | AG27: =IF(AND($D27="Serviço",AG$12<>0,$H27>0,OR(AUTOEVENTO<>"manual",$M27<>1)), IF(Import.TipoArredondamento<>"TransfereGOV", ROUND(OFFSET($P27,0,AG$13),15-13*ORÇAMENTO!$AF$7)/$H27*OFFSET(ORÇAMENTO!$X$15,ROW(AG27)-ROW(AG$15),0), ROUND(ROUND(OFFSET($P27,0,AG$13),15-13*ORÇAMENTO!$AF$7)*OFFSET(ORÇAMENTO!$W$15,ROW(AG27)-ROW(AG$15),0),15-13*ORÇAMENTO!$AF$11)),0) -> 0 | AH27: =IF(AND($D27="Serviço",AH$12<>0,$H27>0,OR(AUTOEVENTO<>"manual",$M27<>1)), IF(Import.TipoArredondamento<>"TransfereGOV", ROUND(OFFSET($P27,0,AH$13),15-13*ORÇAMENTO!$AF$7)/$H27*OFFSET(ORÇAMENTO!$X$15,ROW(AH27)-ROW(AH$15),0), ROUND(ROUND(OFFSET($P27,0,AH$13),15-13*ORÇAMENTO!$AF$7)*OFFSET(ORÇAMENTO!$W$15,ROW(AH27)-ROW(AH$15),0),15-13*ORÇAMENTO!$AF$11)),0) -> 0 | AI27: =IF(AND($D27="Serviço",AI$12<>0,$H27>0,OR(AUTOEVENTO<>"manual",$M27<>1)), IF(Import.TipoArredondamento<>"TransfereGOV", ROUND(OFFSET($P27,0,AI$13),15-13*ORÇAMENTO!$AF$7)/$H27*OFFSET(ORÇAMENTO!$X$15,ROW(AI27)-ROW(AI$15),0), ROUND(ROUND(OFFSET($P27,0,AI$13),15-13*ORÇAMENTO!$AF$7)*OFFSET(ORÇAMENTO!$W$15,ROW(AI27)-ROW(AI$15),0),15-13*ORÇAMENTO!$AF$11)),0) -> 0 | AJ27: =IF(AND($D27="Serviço",AJ$12<>0,$H27>0,OR(AUTOEVENTO<>"manual",$M27<>1)), IF(Import.TipoArredondamento<>"TransfereGOV", ROUND(OFFSET($P27,0,AJ$13),15-13*ORÇAMENTO!$AF$7)/$H27*OFFSET(ORÇAMENTO!$X$15,ROW(AJ27)-ROW(AJ$15),0), ROUND(ROUND(OFFSET($P27,0,AJ$13),15-13*ORÇAMENTO!$AF$7)*OFFSET(ORÇAMENTO!$W$15,ROW(AJ27)-ROW(AJ$15),0),15-13*ORÇAMENTO!$AF$11)),0) -> 0 | AK27: =IF(AND($D27="Serviço",AK$12<>0,$H27>0,OR(AUTOEVENTO<>"manual",$M27<>1)), IF(Import.TipoArredondamento<>"TransfereGOV", ROUND(OFFSET($P27,0,AK$13),15-13*ORÇAMENTO!$AF$7)/$H27*OFFSET(ORÇAMENTO!$X$15,ROW(AK27)-ROW(AK$15),0), ROUND(ROUND(OFFSET($P27,0,AK$13),15-13*ORÇAMENTO!$AF$7)*OFFSET(ORÇAMENTO!$W$15,ROW(AK27)-ROW(AK$15),0),15-13*ORÇAMENTO!$AF$11)),0) -> 0 | AM27: =IF($D27<>"Serviço",0,IF(AND(AUTOEVENTO="Manual",$M27=1),0,IF(OFFSET(CRONOPLE!$F$14,$M27,AM$13)="",10^12,OFFSET(CRONOPLE!$F$14,$M27,AM$13)))) -> 1 | AN27: =IF($D27<>"Serviço",0,IF(AND(AUTOEVENTO="Manual",$M27=1),0,IF(OFFSET(CRONOPLE!$F$14,$M27,AN$13)="",10^12,OFFSET(CRONOPLE!$F$14,$M27,AN$13)))) -> 1000000000000 | AO27: =IF($D27<>"Serviço",0,IF(AND(AUTOEVENTO="Manual",$M27=1),0,IF(OFFSET(CRONOPLE!$F$14,$M27,AO$13)="",10^12,OFFSET(CRONOPLE!$F$14,$M27,AO$13)))) -> 1000000000000 | AP27: =IF($D27<>"Serviço",0,IF(AND(AUTOEVENTO="Manual",$M27=1),0,IF(OFFSET(CRONOPLE!$F$14,$M27,AP$13)="",10^12,OFFSET(CRONOPLE!$F$14,$M27,AP$13)))) -> 1000000000000 | AQ27: =IF($D27<>"Serviço",0,IF(AND(AUTOEVENTO="Manual",$M27=1),0,IF(OFFSET(CRONOPLE!$F$14,$M27,AQ$13)="",10^12,OFFSET(CRONOPLE!$F$14,$M27,AQ$13)))) -> 1000000000000 | AR27: =IF($D27<>"Serviço",0,IF(AND(AUTOEVENTO="Manual",$M27=1),0,IF(OFFSET(CRONOPLE!$F$14,$M27,AR$13)="",10^12,OFFSET(CRONOPLE!$F$14,$M27,AR$13)))) -> 1000000000000 | AS27: =IF($D27<>"Serviço",0,IF(AND(AUTOEVENTO="Manual",$M27=1),0,IF(OFFSET(CRONOPLE!$F$14,$M27,AS$13)="",10^12,OFFSET(CRONOPLE!$F$14,$M27,AS$13)))) -> 1000000000000 | AT27: =IF($D27<>"Serviço",0,IF(AND(AUTOEVENTO="Manual",$M27=1),0,IF(OFFSET(CRONOPLE!$F$14,$M27,AT$13)="",10^12,OFFSET(CRONOPLE!$F$14,$M27,AT$13)))) -> 1000000000000 | AU27: =IF($D27<>"Serviço",0,IF(AND(AUTOEVENTO="Manual",$M27=1),0,IF(OFFSET(CRONOPLE!$F$14,$M27,AU$13)="",10^12,OFFSET(CRONOPLE!$F$14,$M27,AU$13)))) -> 1000000000000 | AV27: =IF($D27<>"Serviço",0,IF(AND(AUTOEVENTO="Manual",$M27=1),0,IF(OFFSET(CRONOPLE!$F$14,$M27,AV$13)="",10^12,OFFSET(CRONOPLE!$F$14,$M27,AV$13)))) -> 1000000000000 | AX27: =IF($D27<>"Serviço",0,IF(OR(AND(AUTOEVENTO="Manual",$M27=1),$M27>(ROW(PLE.lastrow)-ROW(PLE.firstrow))),0,IF(OFFSET(PLE!$G$14,$M27,AX$13)="",10^12,OFFSET(PLE!$G$14,$M27,AX$13)))) -> 1000000000000 | AY27: =IF($D27<>"Serviço",0,IF(OR(AND(AUTOEVENTO="Manual",$M27=1),$M27>(ROW(PLE.lastrow)-ROW(PLE.firstrow))),0,IF(OFFSET(PLE!$G$14,$M27,AY$13)="",10^12,OFFSET(PLE!$G$14,$M27,AY$13)))) -> 1000000000000 | AZ27: =IF($D27<>"Serviço",0,IF(OR(AND(AUTOEVENTO="Manual",$M27=1),$M27>(ROW(PLE.lastrow)-ROW(PLE.firstrow))),0,IF(OFFSET(PLE!$G$14,$M27,AZ$13)="",10^12,OFFSET(PLE!$G$14,$M27,AZ$13)))) -> 1000000000000 | BA27: =IF($D27<>"Serviço",0,IF(OR(AND(AUTOEVENTO="Manual",$M27=1),$M27>(ROW(PLE.lastrow)-ROW(PLE.firstrow))),0,IF(OFFSET(PLE!$G$14,$M27,BA$13)="",10^12,OFFSET(PLE!$G$14,$M27,BA$13)))) -> 1000000000000 | BB27: =IF($D27<>"Serviço",0,IF(OR(AND(AUTOEVENTO="Manual",$M27=1),$M27>(ROW(PLE.lastrow)-ROW(PLE.firstrow))),0,IF(OFFSET(PLE!$G$14,$M27,BB$13)="",10^12,OFFSET(PLE!$G$14,$M27,BB$13)))) -> 1000000000000 | BC27: =IF($D27<>"Serviço",0,IF(OR(AND(AUTOEVENTO="Manual",$M27=1),$M27>(ROW(PLE.lastrow)-ROW(PLE.firstrow))),0,IF(OFFSET(PLE!$G$14,$M27,BC$13)="",10^12,OFFSET(PLE!$G$14,$M27,BC$13)))) -> 1000000000000 | BD27: =IF($D27<>"Serviço",0,IF(OR(AND(AUTOEVENTO="Manual",$M27=1),$M27>(ROW(PLE.lastrow)-ROW(PLE.firstrow))),0,IF(OFFSET(PLE!$G$14,$M27,BD$13)="",10^12,OFFSET(PLE!$G$14,$M27,BD$13)))) -> 1000000000000 | BE27: =IF($D27<>"Serviço",0,IF(OR(AND(AUTOEVENTO="Manual",$M27=1),$M27>(ROW(PLE.lastrow)-ROW(PLE.firstrow))),0,IF(OFFSET(PLE!$G$14,$M27,BE$13)="",10^12,OFFSET(PLE!$G$14,$M27,BE$13)))) -> 1000000000000 | BF27: =IF($D27<>"Serviço",0,IF(OR(AND(AUTOEVENTO="Manual",$M27=1),$M27>(ROW(PLE.lastrow)-ROW(PLE.firstrow))),0,IF(OFFSET(PLE!$G$14,$M27,BF$13)="",10^12,OFFSET(PLE!$G$14,$M27,BF$13)))) -> 1000000000000 | BG27: =IF($D27<>"Serviço",0,IF(OR(AND(AUTOEVENTO="Manual",$M27=1),$M27>(ROW(PLE.lastrow)-ROW(PLE.firstrow))),0,IF(OFFSET(PLE!$G$14,$M27,BG$13)="",10^12,OFFSET(PLE!$G$14,$M27,BG$13)))) -> 1000000000000
A28: 6 | B28: =OFFSET(ORÇAMENTO!C$15,ROW(B28)-ROW(B$15),0) -> S | C28: =OFFSET(ORÇAMENTO!L$15,ROW(C28)-ROW(C$15),0) -> F | D28: =OFFSET(ORÇAMENTO!N$15,ROW(D28)-ROW(D$15),0) -> Serviço | E28: =OFFSET(ORÇAMENTO!O$15,ROW(E28)-ROW(E$15),0) -> 1.4.3. | F28: =OFFSET(ORÇAMENTO!R$15,ROW(F28)-ROW(F$15),0) -> TUBO DE CONCRETO PARA REDES COLETORAS DE ÁGUAS PLUVIAIS, DIÂMETRO DE 800 MM, JUNTA RÍGIDA, INSTALADO EM LOCAL COM BAIXO NÍVEL DE INTERFERÊNCIAS - FORNECIMENTO E ASSENTAMENTO. AF_03/2024 | G28: =IF($D28<>"Serviço","",OFFSET(ORÇAMENTO!S$15,ROW(G28)-ROW(G$15),0)) -> M | H28: =IF($D28<>"Serviço",0,IF(ACOMPANHAMENTO="BM",ROUND(OFFSET(ORÇAMENTO!AJ$15,ROW(H28)-ROW(H$15),0),15-13*ORÇAMENTO!$AF$7),SUMPRODUCT(($Q$12:$AA$12<>"")*ROUND($Q28:$AA28,15-13*ORÇAMENTO!$AF$7)))) -> 9 | K28: 6.Drenagem | L28: . | M28: =IF($D28<>"Serviço","",IF(AUTOEVENTO="manual",$A28,IF(ISERROR(MATCH($A28,$A$15:OFFSET($A28,-1,0),0)),MAX($M$15:OFFSET(M28,-1,0))+1,INDEX($M$15:OFFSET(M28,-1,0),MATCH($A28,$A$15:OFFSET($A28,-1,0),0))))) -> 6 | N28: =IF($D28<>"Serviço","",IF(AUTOEVENTO="Manual",IF($A28=0,"<-- defina o número do agrupador",OFFSET(EVENTOS!$D$14,$A28,0)),OFFSET($F$15,$A28,0))) -> Drenagem | Q28: 9 | AB28: =IF(AND($D28="Serviço",AB$12<>0,$H28>0,OR(AUTOEVENTO<>"manual",$M28<>1)), IF(Import.TipoArredondamento<>"TransfereGOV", ROUND(OFFSET($P28,0,AB$13),15-13*ORÇAMENTO!$AF$7)/$H28*OFFSET(ORÇAMENTO!$X$15,ROW(AB28)-ROW(AB$15),0), ROUND(ROUND(OFFSET($P28,0,AB$13),15-13*ORÇAMENTO!$AF$7)*OFFSET(ORÇAMENTO!$W$15,ROW(AB28)-ROW(AB$15),0),15-13*ORÇAMENTO!$AF$11)),0) -> 5437.08 | AC28: =IF(AND($D28="Serviço",AC$12<>0,$H28>0,OR(AUTOEVENTO<>"manual",$M28<>1)), IF(Import.TipoArredondamento<>"TransfereGOV", ROUND(OFFSET($P28,0,AC$13),15-13*ORÇAMENTO!$AF$7)/$H28*OFFSET(ORÇAMENTO!$X$15,ROW(AC28)-ROW(AC$15),0), ROUND(ROUND(OFFSET($P28,0,AC$13),15-13*ORÇAMENTO!$AF$7)*OFFSET(ORÇAMENTO!$W$15,ROW(AC28)-ROW(AC$15),0),15-13*ORÇAMENTO!$AF$11)),0) -> 0 | AD28: =IF(AND($D28="Serviço",AD$12<>0,$H28>0,OR(AUTOEVENTO<>"manual",$M28<>1)), IF(Import.TipoArredondamento<>"TransfereGOV", ROUND(OFFSET($P28,0,AD$13),15-13*ORÇAMENTO!$AF$7)/$H28*OFFSET(ORÇAMENTO!$X$15,ROW(AD28)-ROW(AD$15),0), ROUND(ROUND(OFFSET($P28,0,AD$13),15-13*ORÇAMENTO!$AF$7)*OFFSET(ORÇAMENTO!$W$15,ROW(AD28)-ROW(AD$15),0),15-13*ORÇAMENTO!$AF$11)),0) -> 0 | AE28: =IF(AND($D28="Serviço",AE$12<>0,$H28>0,OR(AUTOEVENTO<>"manual",$M28<>1)), IF(Import.TipoArredondamento<>"TransfereGOV", ROUND(OFFSET($P28,0,AE$13),15-13*ORÇAMENTO!$AF$7)/$H28*OFFSET(ORÇAMENTO!$X$15,ROW(AE28)-ROW(AE$15),0), ROUND(ROUND(OFFSET($P28,0,AE$13),15-13*ORÇAMENTO!$AF$7)*OFFSET(ORÇAMENTO!$W$15,ROW(AE28)-ROW(AE$15),0),15-13*ORÇAMENTO!$AF$11)),0) -> 0 | AF28: =IF(AND($D28="Serviço",AF$12<>0,$H28>0,OR(AUTOEVENTO<>"manual",$M28<>1)), IF(Import.TipoArredondamento<>"TransfereGOV", ROUND(OFFSET($P28,0,AF$13),15-13*ORÇAMENTO!$AF$7)/$H28*OFFSET(ORÇAMENTO!$X$15,ROW(AF28)-ROW(AF$15),0), ROUND(ROUND(OFFSET($P28,0,AF$13),15-13*ORÇAMENTO!$AF$7)*OFFSET(ORÇAMENTO!$W$15,ROW(AF28)-ROW(AF$15),0),15-13*ORÇAMENTO!$AF$11)),0) -> 0 | AG28: =IF(AND($D28="Serviço",AG$12<>0,$H28>0,OR(AUTOEVENTO<>"manual",$M28<>1)), IF(Import.TipoArredondamento<>"TransfereGOV", ROUND(OFFSET($P28,0,AG$13),15-13*ORÇAMENTO!$AF$7)/$H28*OFFSET(ORÇAMENTO!$X$15,ROW(AG28)-ROW(AG$15),0), ROUND(ROUND(OFFSET($P28,0,AG$13),15-13*ORÇAMENTO!$AF$7)*OFFSET(ORÇAMENTO!$W$15,ROW(AG28)-ROW(AG$15),0),15-13*ORÇAMENTO!$AF$11)),0) -> 0 | AH28: =IF(AND($D28="Serviço",AH$12<>0,$H28>0,OR(AUTOEVENTO<>"manual",$M28<>1)), IF(Import.TipoArredondamento<>"TransfereGOV", ROUND(OFFSET($P28,0,AH$13),15-13*ORÇAMENTO!$AF$7)/$H28*OFFSET(ORÇAMENTO!$X$15,ROW(AH28)-ROW(AH$15),0), ROUND(ROUND(OFFSET($P28,0,AH$13),15-13*ORÇAMENTO!$AF$7)*OFFSET(ORÇAMENTO!$W$15,ROW(AH28)-ROW(AH$15),0),15-13*ORÇAMENTO!$AF$11)),0) -> 0 | AI28: =IF(AND($D28="Serviço",AI$12<>0,$H28>0,OR(AUTOEVENTO<>"manual",$M28<>1)), IF(Import.TipoArredondamento<>"TransfereGOV", ROUND(OFFSET($P28,0,AI$13),15-13*ORÇAMENTO!$AF$7)/$H28*OFFSET(ORÇAMENTO!$X$15,ROW(AI28)-ROW(AI$15),0), ROUND(ROUND(OFFSET($P28,0,AI$13),15-13*ORÇAMENTO!$AF$7)*OFFSET(ORÇAMENTO!$W$15,ROW(AI28)-ROW(AI$15),0),15-13*ORÇAMENTO!$AF$11)),0) -> 0 | AJ28: =IF(AND($D28="Serviço",AJ$12<>0,$H28>0,OR(AUTOEVENTO<>"manual",$M28<>1)), IF(Import.TipoArredondamento<>"TransfereGOV", ROUND(OFFSET($P28,0,AJ$13),15-13*ORÇAMENTO!$AF$7)/$H28*OFFSET(ORÇAMENTO!$X$15,ROW(AJ28)-ROW(AJ$15),0), ROUND(ROUND(OFFSET($P28,0,AJ$13),15-13*ORÇAMENTO!$AF$7)*OFFSET(ORÇAMENTO!$W$15,ROW(AJ28)-ROW(AJ$15),0),15-13*ORÇAMENTO!$AF$11)),0) -> 0 | AK28: =IF(AND($D28="Serviço",AK$12<>0,$H28>0,OR(AUTOEVENTO<>"manual",$M28<>1)), IF(Import.TipoArredondamento<>"TransfereGOV", ROUND(OFFSET($P28,0,AK$13),15-13*ORÇAMENTO!$AF$7)/$H28*OFFSET(ORÇAMENTO!$X$15,ROW(AK28)-ROW(AK$15),0), ROUND(ROUND(OFFSET($P28,0,AK$13),15-13*ORÇAMENTO!$AF$7)*OFFSET(ORÇAMENTO!$W$15,ROW(AK28)-ROW(AK$15),0),15-13*ORÇAMENTO!$AF$11)),0) -> 0 | AM28: =IF($D28<>"Serviço",0,IF(AND(AUTOEVENTO="Manual",$M28=1),0,IF(OFFSET(CRONOPLE!$F$14,$M28,AM$13)="",10^12,OFFSET(CRONOPLE!$F$14,$M28,AM$13)))) -> 1 | AN28: =IF($D28<>"Serviço",0,IF(AND(AUTOEVENTO="Manual",$M28=1),0,IF(OFFSET(CRONOPLE!$F$14,$M28,AN$13)="",10^12,OFFSET(CRONOPLE!$F$14,$M28,AN$13)))) -> 1000000000000 | AO28: =IF($D28<>"Serviço",0,IF(AND(AUTOEVENTO="Manual",$M28=1),0,IF(OFFSET(CRONOPLE!$F$14,$M28,AO$13)="",10^12,OFFSET(CRONOPLE!$F$14,$M28,AO$13)))) -> 1000000000000 | AP28: =IF($D28<>"Serviço",0,IF(AND(AUTOEVENTO="Manual",$M28=1),0,IF(OFFSET(CRONOPLE!$F$14,$M28,AP$13)="",10^12,OFFSET(CRONOPLE!$F$14,$M28,AP$13)))) -> 1000000000000 | AQ28: =IF($D28<>"Serviço",0,IF(AND(AUTOEVENTO="Manual",$M28=1),0,IF(OFFSET(CRONOPLE!$F$14,$M28,AQ$13)="",10^12,OFFSET(CRONOPLE!$F$14,$M28,AQ$13)))) -> 1000000000000 | AR28: =IF($D28<>"Serviço",0,IF(AND(AUTOEVENTO="Manual",$M28=1),0,IF(OFFSET(CRONOPLE!$F$14,$M28,AR$13)="",10^12,OFFSET(CRONOPLE!$F$14,$M28,AR$13)))) -> 1000000000000 | AS28: =IF($D28<>"Serviço",0,IF(AND(AUTOEVENTO="Manual",$M28=1),0,IF(OFFSET(CRONOPLE!$F$14,$M28,AS$13)="",10^12,OFFSET(CRONOPLE!$F$14,$M28,AS$13)))) -> 1000000000000 | AT28: =IF($D28<>"Serviço",0,IF(AND(AUTOEVENTO="Manual",$M28=1),0,IF(OFFSET(CRONOPLE!$F$14,$M28,AT$13)="",10^12,OFFSET(CRONOPLE!$F$14,$M28,AT$13)))) -> 1000000000000 | AU28: =IF($D28<>"Serviço",0,IF(AND(AUTOEVENTO="Manual",$M28=1),0,IF(OFFSET(CRONOPLE!$F$14,$M28,AU$13)="",10^12,OFFSET(CRONOPLE!$F$14,$M28,AU$13)))) -> 1000000000000 | AV28: =IF($D28<>"Serviço",0,IF(AND(AUTOEVENTO="Manual",$M28=1),0,IF(OFFSET(CRONOPLE!$F$14,$M28,AV$13)="",10^12,OFFSET(CRONOPLE!$F$14,$M28,AV$13)))) -> 1000000000000 | AX28: =IF($D28<>"Serviço",0,IF(OR(AND(AUTOEVENTO="Manual",$M28=1),$M28>(ROW(PLE.lastrow)-ROW(PLE.firstrow))),0,IF(OFFSET(PLE!$G$14,$M28,AX$13)="",10^12,OFFSET(PLE!$G$14,$M28,AX$13)))) -> 1000000000000 | AY28: =IF($D28<>"Serviço",0,IF(OR(AND(AUTOEVENTO="Manual",$M28=1),$M28>(ROW(PLE.lastrow)-ROW(PLE.firstrow))),0,IF(OFFSET(PLE!$G$14,$M28,AY$13)="",10^12,OFFSET(PLE!$G$14,$M28,AY$13)))) -> 1000000000000 | AZ28: =IF($D28<>"Serviço",0,IF(OR(AND(AUTOEVENTO="Manual",$M28=1),$M28>(ROW(PLE.lastrow)-ROW(PLE.firstrow))),0,IF(OFFSET(PLE!$G$14,$M28,AZ$13)="",10^12,OFFSET(PLE!$G$14,$M28,AZ$13)))) -> 1000000000000 | BA28: =IF($D28<>"Serviço",0,IF(OR(AND(AUTOEVENTO="Manual",$M28=1),$M28>(ROW(PLE.lastrow)-ROW(PLE.firstrow))),0,IF(OFFSET(PLE!$G$14,$M28,BA$13)="",10^12,OFFSET(PLE!$G$14,$M28,BA$13)))) -> 1000000000000 | BB28: =IF($D28<>"Serviço",0,IF(OR(AND(AUTOEVENTO="Manual",$M28=1),$M28>(ROW(PLE.lastrow)-ROW(PLE.firstrow))),0,IF(OFFSET(PLE!$G$14,$M28,BB$13)="",10^12,OFFSET(PLE!$G$14,$M28,BB$13)))) -> 1000000000000 | BC28: =IF($D28<>"Serviço",0,IF(OR(AND(AUTOEVENTO="Manual",$M28=1),$M28>(ROW(PLE.lastrow)-ROW(PLE.firstrow))),0,IF(OFFSET(PLE!$G$14,$M28,BC$13)="",10^12,OFFSET(PLE!$G$14,$M28,BC$13)))) -> 1000000000000 | BD28: =IF($D28<>"Serviço",0,IF(OR(AND(AUTOEVENTO="Manual",$M28=1),$M28>(ROW(PLE.lastrow)-ROW(PLE.firstrow))),0,IF(OFFSET(PLE!$G$14,$M28,BD$13)="",10^12,OFFSET(PLE!$G$14,$M28,BD$13)))) -> 1000000000000 | BE28: =IF($D28<>"Serviço",0,IF(OR(AND(AUTOEVENTO="Manual",$M28=1),$M28>(ROW(PLE.lastrow)-ROW(PLE.firstrow))),0,IF(OFFSET(PLE!$G$14,$M28,BE$13)="",10^12,OFFSET(PLE!$G$14,$M28,BE$13)))) -> 1000000000000 | BF28: =IF($D28<>"Serviço",0,IF(OR(AND(AUTOEVENTO="Manual",$M28=1),$M28>(ROW(PLE.lastrow)-ROW(PLE.firstrow))),0,IF(OFFSET(PLE!$G$14,$M28,BF$13)="",10^12,OFFSET(PLE!$G$14,$M28,BF$13)))) -> 1000000000000 | BG28: =IF($D28<>"Serviço",0,IF(OR(AND(AUTOEVENTO="Manual",$M28=1),$M28>(ROW(PLE.lastrow)-ROW(PLE.firstrow))),0,IF(OFFSET(PLE!$G$14,$M28,BG$13)="",10^12,OFFSET(PLE!$G$14,$M28,BG$13)))) -> 1000000000000
A29: 6 | B29: =OFFSET(ORÇAMENTO!C$15,ROW(B29)-ROW(B$15),0) -> S | C29: =OFFSET(ORÇAMENTO!L$15,ROW(C29)-ROW(C$15),0) -> F | D29: =OFFSET(ORÇAMENTO!N$15,ROW(D29)-ROW(D$15),0) -> Serviço | E29: =OFFSET(ORÇAMENTO!O$15,ROW(E29)-ROW(E$15),0) -> 1.4.4. | F29: =OFFSET(ORÇAMENTO!R$15,ROW(F29)-ROW(F$15),0) -> TRANSPORTE COMERCIAL COM CAMINHÃO CARROCERIA 9T - DMT 40 KM | G29: =IF($D29<>"Serviço","",OFFSET(ORÇAMENTO!S$15,ROW(G29)-ROW(G$15),0)) -> T X KM | H29: =IF($D29<>"Serviço",0,IF(ACOMPANHAMENTO="BM",ROUND(OFFSET(ORÇAMENTO!AJ$15,ROW(H29)-ROW(H$15),0),15-13*ORÇAMENTO!$AF$7),SUMPRODUCT(($Q$12:$AA$12<>"")*ROUND($Q29:$AA29,15-13*ORÇAMENTO!$AF$7)))) -> 82.6 | K29: 6.Drenagem | L29: . | M29: =IF($D29<>"Serviço","",IF(AUTOEVENTO="manual",$A29,IF(ISERROR(MATCH($A29,$A$15:OFFSET($A29,-1,0),0)),MAX($M$15:OFFSET(M29,-1,0))+1,INDEX($M$15:OFFSET(M29,-1,0),MATCH($A29,$A$15:OFFSET($A29,-1,0),0))))) -> 6 | N29: =IF($D29<>"Serviço","",IF(AUTOEVENTO="Manual",IF($A29=0,"<-- defina o número do agrupador",OFFSET(EVENTOS!$D$14,$A29,0)),OFFSET($F$15,$A29,0))) -> Drenagem | Q29: 82.6 | AB29: =IF(AND($D29="Serviço",AB$12<>0,$H29>0,OR(AUTOEVENTO<>"manual",$M29<>1)), IF(Import.TipoArredondamento<>"TransfereGOV", ROUND(OFFSET($P29,0,AB$13),15-13*ORÇAMENTO!$AF$7)/$H29*OFFSET(ORÇAMENTO!$X$15,ROW(AB29)-ROW(AB$15),0), ROUND(ROUND(OFFSET($P29,0,AB$13),15-13*ORÇAMENTO!$AF$7)*OFFSET(ORÇAMENTO!$W$15,ROW(AB29)-ROW(AB$15),0),15-13*ORÇAMENTO!$AF$11)),0) -> 119.77 | AC29: =IF(AND($D29="Serviço",AC$12<>0,$H29>0,OR(AUTOEVENTO<>"manual",$M29<>1)), IF(Import.TipoArredondamento<>"TransfereGOV", ROUND(OFFSET($P29,0,AC$13),15-13*ORÇAMENTO!$AF$7)/$H29*OFFSET(ORÇAMENTO!$X$15,ROW(AC29)-ROW(AC$15),0), ROUND(ROUND(OFFSET($P29,0,AC$13),15-13*ORÇAMENTO!$AF$7)*OFFSET(ORÇAMENTO!$W$15,ROW(AC29)-ROW(AC$15),0),15-13*ORÇAMENTO!$AF$11)),0) -> 0 | AD29: =IF(AND($D29="Serviço",AD$12<>0,$H29>0,OR(AUTOEVENTO<>"manual",$M29<>1)), IF(Import.TipoArredondamento<>"TransfereGOV", ROUND(OFFSET($P29,0,AD$13),15-13*ORÇAMENTO!$AF$7)/$H29*OFFSET(ORÇAMENTO!$X$15,ROW(AD29)-ROW(AD$15),0), ROUND(ROUND(OFFSET($P29,0,AD$13),15-13*ORÇAMENTO!$AF$7)*OFFSET(ORÇAMENTO!$W$15,ROW(AD29)-ROW(AD$15),0),15-13*ORÇAMENTO!$AF$11)),0) -> 0 | AE29: =IF(AND($D29="Serviço",AE$12<>0,$H29>0,OR(AUTOEVENTO<>"manual",$M29<>1)), IF(Import.TipoArredondamento<>"TransfereGOV", ROUND(OFFSET($P29,0,AE$13),15-13*ORÇAMENTO!$AF$7)/$H29*OFFSET(ORÇAMENTO!$X$15,ROW(AE29)-ROW(AE$15),0), ROUND(ROUND(OFFSET($P29,0,AE$13),15-13*ORÇAMENTO!$AF$7)*OFFSET(ORÇAMENTO!$W$15,ROW(AE29)-ROW(AE$15),0),15-13*ORÇAMENTO!$AF$11)),0) -> 0 | AF29: =IF(AND($D29="Serviço",AF$12<>0,$H29>0,OR(AUTOEVENTO<>"manual",$M29<>1)), IF(Import.TipoArredondamento<>"TransfereGOV", ROUND(OFFSET($P29,0,AF$13),15-13*ORÇAMENTO!$AF$7)/$H29*OFFSET(ORÇAMENTO!$X$15,ROW(AF29)-ROW(AF$15),0), ROUND(ROUND(OFFSET($P29,0,AF$13),15-13*ORÇAMENTO!$AF$7)*OFFSET(ORÇAMENTO!$W$15,ROW(AF29)-ROW(AF$15),0),15-13*ORÇAMENTO!$AF$11)),0) -> 0 | AG29: =IF(AND($D29="Serviço",AG$12<>0,$H29>0,OR(AUTOEVENTO<>"manual",$M29<>1)), IF(Import.TipoArredondamento<>"TransfereGOV", ROUND(OFFSET($P29,0,AG$13),15-13*ORÇAMENTO!$AF$7)/$H29*OFFSET(ORÇAMENTO!$X$15,ROW(AG29)-ROW(AG$15),0), ROUND(ROUND(OFFSET($P29,0,AG$13),15-13*ORÇAMENTO!$AF$7)*OFFSET(ORÇAMENTO!$W$15,ROW(AG29)-ROW(AG$15),0),15-13*ORÇAMENTO!$AF$11)),0) -> 0 | AH29: =IF(AND($D29="Serviço",AH$12<>0,$H29>0,OR(AUTOEVENTO<>"manual",$M29<>1)), IF(Import.TipoArredondamento<>"TransfereGOV", ROUND(OFFSET($P29,0,AH$13),15-13*ORÇAMENTO!$AF$7)/$H29*OFFSET(ORÇAMENTO!$X$15,ROW(AH29)-ROW(AH$15),0), ROUND(ROUND(OFFSET($P29,0,AH$13),15-13*ORÇAMENTO!$AF$7)*OFFSET(ORÇAMENTO!$W$15,ROW(AH29)-ROW(AH$15),0),15-13*ORÇAMENTO!$AF$11)),0) -> 0 | AI29: =IF(AND($D29="Serviço",AI$12<>0,$H29>0,OR(AUTOEVENTO<>"manual",$M29<>1)), IF(Import.TipoArredondamento<>"TransfereGOV", ROUND(OFFSET($P29,0,AI$13),15-13*ORÇAMENTO!$AF$7)/$H29*OFFSET(ORÇAMENTO!$X$15,ROW(AI29)-ROW(AI$15),0), ROUND(ROUND(OFFSET($P29,0,AI$13),15-13*ORÇAMENTO!$AF$7)*OFFSET(ORÇAMENTO!$W$15,ROW(AI29)-ROW(AI$15),0),15-13*ORÇAMENTO!$AF$11)),0) -> 0 | AJ29: =IF(AND($D29="Serviço",AJ$12<>0,$H29>0,OR(AUTOEVENTO<>"manual",$M29<>1)), IF(Import.TipoArredondamento<>"TransfereGOV", ROUND(OFFSET($P29,0,AJ$13),15-13*ORÇAMENTO!$AF$7)/$H29*OFFSET(ORÇAMENTO!$X$15,ROW(AJ29)-ROW(AJ$15),0), ROUND(ROUND(OFFSET($P29,0,AJ$13),15-13*ORÇAMENTO!$AF$7)*OFFSET(ORÇAMENTO!$W$15,ROW(AJ29)-ROW(AJ$15),0),15-13*ORÇAMENTO!$AF$11)),0) -> 0 | AK29: =IF(AND($D29="Serviço",AK$12<>0,$H29>0,OR(AUTOEVENTO<>"manual",$M29<>1)), IF(Import.TipoArredondamento<>"TransfereGOV", ROUND(OFFSET($P29,0,AK$13),15-13*ORÇAMENTO!$AF$7)/$H29*OFFSET(ORÇAMENTO!$X$15,ROW(AK29)-ROW(AK$15),0), ROUND(ROUND(OFFSET($P29,0,AK$13),15-13*ORÇAMENTO!$AF$7)*OFFSET(ORÇAMENTO!$W$15,ROW(AK29)-ROW(AK$15),0),15-13*ORÇAMENTO!$AF$11)),0) -> 0 | AM29: =IF($D29<>"Serviço",0,IF(AND(AUTOEVENTO="Manual",$M29=1),0,IF(OFFSET(CRONOPLE!$F$14,$M29,AM$13)="",10^12,OFFSET(CRONOPLE!$F$14,$M29,AM$13)))) -> 1 | AN29: =IF($D29<>"Serviço",0,IF(AND(AUTOEVENTO="Manual",$M29=1),0,IF(OFFSET(CRONOPLE!$F$14,$M29,AN$13)="",10^12,OFFSET(CRONOPLE!$F$14,$M29,AN$13)))) -> 1000000000000 | AO29: =IF($D29<>"Serviço",0,IF(AND(AUTOEVENTO="Manual",$M29=1),0,IF(OFFSET(CRONOPLE!$F$14,$M29,AO$13)="",10^12,OFFSET(CRONOPLE!$F$14,$M29,AO$13)))) -> 1000000000000 | AP29: =IF($D29<>"Serviço",0,IF(AND(AUTOEVENTO="Manual",$M29=1),0,IF(OFFSET(CRONOPLE!$F$14,$M29,AP$13)="",10^12,OFFSET(CRONOPLE!$F$14,$M29,AP$13)))) -> 1000000000000 | AQ29: =IF($D29<>"Serviço",0,IF(AND(AUTOEVENTO="Manual",$M29=1),0,IF(OFFSET(CRONOPLE!$F$14,$M29,AQ$13)="",10^12,OFFSET(CRONOPLE!$F$14,$M29,AQ$13)))) -> 1000000000000 | AR29: =IF($D29<>"Serviço",0,IF(AND(AUTOEVENTO="Manual",$M29=1),0,IF(OFFSET(CRONOPLE!$F$14,$M29,AR$13)="",10^12,OFFSET(CRONOPLE!$F$14,$M29,AR$13)))) -> 1000000000000 | AS29: =IF($D29<>"Serviço",0,IF(AND(AUTOEVENTO="Manual",$M29=1),0,IF(OFFSET(CRONOPLE!$F$14,$M29,AS$13)="",10^12,OFFSET(CRONOPLE!$F$14,$M29,AS$13)))) -> 1000000000000 | AT29: =IF($D29<>"Serviço",0,IF(AND(AUTOEVENTO="Manual",$M29=1),0,IF(OFFSET(CRONOPLE!$F$14,$M29,AT$13)="",10^12,OFFSET(CRONOPLE!$F$14,$M29,AT$13)))) -> 1000000000000 | AU29: =IF($D29<>"Serviço",0,IF(AND(AUTOEVENTO="Manual",$M29=1),0,IF(OFFSET(CRONOPLE!$F$14,$M29,AU$13)="",10^12,OFFSET(CRONOPLE!$F$14,$M29,AU$13)))) -> 1000000000000 | AV29: =IF($D29<>"Serviço",0,IF(AND(AUTOEVENTO="Manual",$M29=1),0,IF(OFFSET(CRONOPLE!$F$14,$M29,AV$13)="",10^12,OFFSET(CRONOPLE!$F$14,$M29,AV$13)))) -> 1000000000000 | AX29: =IF($D29<>"Serviço",0,IF(OR(AND(AUTOEVENTO="Manual",$M29=1),$M29>(ROW(PLE.lastrow)-ROW(PLE.firstrow))),0,IF(OFFSET(PLE!$G$14,$M29,AX$13)="",10^12,OFFSET(PLE!$G$14,$M29,AX$13)))) -> 1000000000000 | AY29: =IF($D29<>"Serviço",0,IF(OR(AND(AUTOEVENTO="Manual",$M29=1),$M29>(ROW(PLE.lastrow)-ROW(PLE.firstrow))),0,IF(OFFSET(PLE!$G$14,$M29,AY$13)="",10^12,OFFSET(PLE!$G$14,$M29,AY$13)))) -> 1000000000000 | AZ29: =IF($D29<>"Serviço",0,IF(OR(AND(AUTOEVENTO="Manual",$M29=1),$M29>(ROW(PLE.lastrow)-ROW(PLE.firstrow))),0,IF(OFFSET(PLE!$G$14,$M29,AZ$13)="",10^12,OFFSET(PLE!$G$14,$M29,AZ$13)))) -> 1000000000000 | BA29: =IF($D29<>"Serviço",0,IF(OR(AND(AUTOEVENTO="Manual",$M29=1),$M29>(ROW(PLE.lastrow)-ROW(PLE.firstrow))),0,IF(OFFSET(PLE!$G$14,$M29,BA$13)="",10^12,OFFSET(PLE!$G$14,$M29,BA$13)))) -> 1000000000000 | BB29: =IF($D29<>"Serviço",0,IF(OR(AND(AUTOEVENTO="Manual",$M29=1),$M29>(ROW(PLE.lastrow)-ROW(PLE.firstrow))),0,IF(OFFSET(PLE!$G$14,$M29,BB$13)="",10^12,OFFSET(PLE!$G$14,$M29,BB$13)))) -> 1000000000000 | BC29: =IF($D29<>"Serviço",0,IF(OR(AND(AUTOEVENTO="Manual",$M29=1),$M29>(ROW(PLE.lastrow)-ROW(PLE.firstrow))),0,IF(OFFSET(PLE!$G$14,$M29,BC$13)="",10^12,OFFSET(PLE!$G$14,$M29,BC$13)))) -> 1000000000000 | BD29: =IF($D29<>"Serviço",0,IF(OR(AND(AUTOEVENTO="Manual",$M29=1),$M29>(ROW(PLE.lastrow)-ROW(PLE.firstrow))),0,IF(OFFSET(PLE!$G$14,$M29,BD$13)="",10^12,OFFSET(PLE!$G$14,$M29,BD$13)))) -> 1000000000000 | BE29: =IF($D29<>"Serviço",0,IF(OR(AND(AUTOEVENTO="Manual",$M29=1),$M29>(ROW(PLE.lastrow)-ROW(PLE.firstrow))),0,IF(OFFSET(PLE!$G$14,$M29,BE$13)="",10^12,OFFSET(PLE!$G$14,$M29,BE$13)))) -> 1000000000000 | BF29: =IF($D29<>"Serviço",0,IF(OR(AND(AUTOEVENTO="Manual",$M29=1),$M29>(ROW(PLE.lastrow)-ROW(PLE.firstrow))),0,IF(OFFSET(PLE!$G$14,$M29,BF$13)="",10^12,OFFSET(PLE!$G$14,$M29,BF$13)))) -> 1000000000000 | BG29: =IF($D29<>"Serviço",0,IF(OR(AND(AUTOEVENTO="Manual",$M29=1),$M29>(ROW(PLE.lastrow)-ROW(PLE.firstrow))),0,IF(OFFSET(PLE!$G$14,$M29,BG$13)="",10^12,OFFSET(PLE!$G$14,$M29,BG$13)))) -> 1000000000000
A30: 6 | B30: =OFFSET(ORÇAMENTO!C$15,ROW(B30)-ROW(B$15),0) -> S | C30: =OFFSET(ORÇAMENTO!L$15,ROW(C30)-ROW(C$15),0) -> F | D30: =OFFSET(ORÇAMENTO!N$15,ROW(D30)-ROW(D$15),0) -> Serviço | E30: =OFFSET(ORÇAMENTO!O$15,ROW(E30)-ROW(E$15),0) -> 1.4.5. | F30: =OFFSET(ORÇAMENTO!R$15,ROW(F30)-ROW(F$15),0) -> ESCAVAÇÃO MECANIZADA DE VALA COM PROFUNDIDADE ATÉ 1,5 M (MÉDIA MONTANTE E JUSANTE/UMA COMPOSIÇÃO POR TRECHO), RETROESCAV. (0,26 M3), LARGURA DE 0,8 M A 1,5 M, EM SOLO DE 1A CATEGORIA, LOCAIS COM BAIXO NÍVEL DE INTERFERÊNCIA. AF_02/2021 | G30: =IF($D30<>"Serviço","",OFFSET(ORÇAMENTO!S$15,ROW(G30)-ROW(G$15),0)) -> M3 | H30: =IF($D30<>"Serviço",0,IF(ACOMPANHAMENTO="BM",ROUND(OFFSET(ORÇAMENTO!AJ$15,ROW(H30)-ROW(H$15),0),15-13*ORÇAMENTO!$AF$7),SUMPRODUCT(($Q$12:$AA$12<>"")*ROUND($Q30:$AA30,15-13*ORÇAMENTO!$AF$7)))) -> 27.36 | K30: 6.Drenagem | L30: . | M30: =IF($D30<>"Serviço","",IF(AUTOEVENTO="manual",$A30,IF(ISERROR(MATCH($A30,$A$15:OFFSET($A30,-1,0),0)),MAX($M$15:OFFSET(M30,-1,0))+1,INDEX($M$15:OFFSET(M30,-1,0),MATCH($A30,$A$15:OFFSET($A30,-1,0),0))))) -> 6 | N30: =IF($D30<>"Serviço","",IF(AUTOEVENTO="Manual",IF($A30=0,"<-- defina o número do agrupador",OFFSET(EVENTOS!$D$14,$A30,0)),OFFSET($F$15,$A30,0))) -> Drenagem | Q30: 27.36 | AB30: =IF(AND($D30="Serviço",AB$12<>0,$H30>0,OR(AUTOEVENTO<>"manual",$M30<>1)), IF(Import.TipoArredondamento<>"TransfereGOV", ROUND(OFFSET($P30,0,AB$13),15-13*ORÇAMENTO!$AF$7)/$H30*OFFSET(ORÇAMENTO!$X$15,ROW(AB30)-ROW(AB$15),0), ROUND(ROUND(OFFSET($P30,0,AB$13),15-13*ORÇAMENTO!$AF$7)*OFFSET(ORÇAMENTO!$W$15,ROW(AB30)-ROW(AB$15),0),15-13*ORÇAMENTO!$AF$11)),0) -> 256.64 | AC30: =IF(AND($D30="Serviço",AC$12<>0,$H30>0,OR(AUTOEVENTO<>"manual",$M30<>1)), IF(Import.TipoArredondamento<>"TransfereGOV", ROUND(OFFSET($P30,0,AC$13),15-13*ORÇAMENTO!$AF$7)/$H30*OFFSET(ORÇAMENTO!$X$15,ROW(AC30)-ROW(AC$15),0), ROUND(ROUND(OFFSET($P30,0,AC$13),15-13*ORÇAMENTO!$AF$7)*OFFSET(ORÇAMENTO!$W$15,ROW(AC30)-ROW(AC$15),0),15-13*ORÇAMENTO!$AF$11)),0) -> 0 | AD30: =IF(AND($D30="Serviço",AD$12<>0,$H30>0,OR(AUTOEVENTO<>"manual",$M30<>1)), IF(Import.TipoArredondamento<>"TransfereGOV", ROUND(OFFSET($P30,0,AD$13),15-13*ORÇAMENTO!$AF$7)/$H30*OFFSET(ORÇAMENTO!$X$15,ROW(AD30)-ROW(AD$15),0), ROUND(ROUND(OFFSET($P30,0,AD$13),15-13*ORÇAMENTO!$AF$7)*OFFSET(ORÇAMENTO!$W$15,ROW(AD30)-ROW(AD$15),0),15-13*ORÇAMENTO!$AF$11)),0) -> 0 | AE30: =IF(AND($D30="Serviço",AE$12<>0,$H30>0,OR(AUTOEVENTO<>"manual",$M30<>1)), IF(Import.TipoArredondamento<>"TransfereGOV", ROUND(OFFSET($P30,0,AE$13),15-13*ORÇAMENTO!$AF$7)/$H30*OFFSET(ORÇAMENTO!$X$15,ROW(AE30)-ROW(AE$15),0), ROUND(ROUND(OFFSET($P30,0,AE$13),15-13*ORÇAMENTO!$AF$7)*OFFSET(ORÇAMENTO!$W$15,ROW(AE30)-ROW(AE$15),0),15-13*ORÇAMENTO!$AF$11)),0) -> 0 | AF30: =IF(AND($D30="Serviço",AF$12<>0,$H30>0,OR(AUTOEVENTO<>"manual",$M30<>1)), IF(Import.TipoArredondamento<>"TransfereGOV", ROUND(OFFSET($P30,0,AF$13),15-13*ORÇAMENTO!$AF$7)/$H30*OFFSET(ORÇAMENTO!$X$15,ROW(AF30)-ROW(AF$15),0), ROUND(ROUND(OFFSET($P30,0,AF$13),15-13*ORÇAMENTO!$AF$7)*OFFSET(ORÇAMENTO!$W$15,ROW(AF30)-ROW(AF$15),0),15-13*ORÇAMENTO!$AF$11)),0) -> 0 | AG30: =IF(AND($D30="Serviço",AG$12<>0,$H30>0,OR(AUTOEVENTO<>"manual",$M30<>1)), IF(Import.TipoArredondamento<>"TransfereGOV", ROUND(OFFSET($P30,0,AG$13),15-13*ORÇAMENTO!$AF$7)/$H30*OFFSET(ORÇAMENTO!$X$15,ROW(AG30)-ROW(AG$15),0), ROUND(ROUND(OFFSET($P30,0,AG$13),15-13*ORÇAMENTO!$AF$7)*OFFSET(ORÇAMENTO!$W$15,ROW(AG30)-ROW(AG$15),0),15-13*ORÇAMENTO!$AF$11)),0) -> 0 | AH30: =IF(AND($D30="Serviço",AH$12<>0,$H30>0,OR(AUTOEVENTO<>"manual",$M30<>1)), IF(Import.TipoArredondamento<>"TransfereGOV", ROUND(OFFSET($P30,0,AH$13),15-13*ORÇAMENTO!$AF$7)/$H30*OFFSET(ORÇAMENTO!$X$15,ROW(AH30)-ROW(AH$15),0), ROUND(ROUND(OFFSET($P30,0,AH$13),15-13*ORÇAMENTO!$AF$7)*OFFSET(ORÇAMENTO!$W$15,ROW(AH30)-ROW(AH$15),0),15-13*ORÇAMENTO!$AF$11)),0) -> 0 | AI30: =IF(AND($D30="Serviço",AI$12<>0,$H30>0,OR(AUTOEVENTO<>"manual",$M30<>1)), IF(Import.TipoArredondamento<>"TransfereGOV", ROUND(OFFSET($P30,0,AI$13),15-13*ORÇAMENTO!$AF$7)/$H30*OFFSET(ORÇAMENTO!$X$15,ROW(AI30)-ROW(AI$15),0), ROUND(ROUND(OFFSET($P30,0,AI$13),15-13*ORÇAMENTO!$AF$7)*OFFSET(ORÇAMENTO!$W$15,ROW(AI30)-ROW(AI$15),0),15-13*ORÇAMENTO!$AF$11)),0) -> 0 | AJ30: =IF(AND($D30="Serviço",AJ$12<>0,$H30>0,OR(AUTOEVENTO<>"manual",$M30<>1)), IF(Import.TipoArredondamento<>"TransfereGOV", ROUND(OFFSET($P30,0,AJ$13),15-13*ORÇAMENTO!$AF$7)/$H30*OFFSET(ORÇAMENTO!$X$15,ROW(AJ30)-ROW(AJ$15),0), ROUND(ROUND(OFFSET($P30,0,AJ$13),15-13*ORÇAMENTO!$AF$7)*OFFSET(ORÇAMENTO!$W$15,ROW(AJ30)-ROW(AJ$15),0),15-13*ORÇAMENTO!$AF$11)),0) -> 0 | AK30: =IF(AND($D30="Serviço",AK$12<>0,$H30>0,OR(AUTOEVENTO<>"manual",$M30<>1)), IF(Import.TipoArredondamento<>"TransfereGOV", ROUND(OFFSET($P30,0,AK$13),15-13*ORÇAMENTO!$AF$7)/$H30*OFFSET(ORÇAMENTO!$X$15,ROW(AK30)-ROW(AK$15),0), ROUND(ROUND(OFFSET($P30,0,AK$13),15-13*ORÇAMENTO!$AF$7)*OFFSET(ORÇAMENTO!$W$15,ROW(AK30)-ROW(AK$15),0),15-13*ORÇAMENTO!$AF$11)),0) -> 0 | AM30: =IF($D30<>"Serviço",0,IF(AND(AUTOEVENTO="Manual",$M30=1),0,IF(OFFSET(CRONOPLE!$F$14,$M30,AM$13)="",10^12,OFFSET(CRONOPLE!$F$14,$M30,AM$13)))) -> 1 | AN30: =IF($D30<>"Serviço",0,IF(AND(AUTOEVENTO="Manual",$M30=1),0,IF(OFFSET(CRONOPLE!$F$14,$M30,AN$13)="",10^12,OFFSET(CRONOPLE!$F$14,$M30,AN$13)))) -> 1000000000000 | AO30: =IF($D30<>"Serviço",0,IF(AND(AUTOEVENTO="Manual",$M30=1),0,IF(OFFSET(CRONOPLE!$F$14,$M30,AO$13)="",10^12,OFFSET(CRONOPLE!$F$14,$M30,AO$13)))) -> 1000000000000 | AP30: =IF($D30<>"Serviço",0,IF(AND(AUTOEVENTO="Manual",$M30=1),0,IF(OFFSET(CRONOPLE!$F$14,$M30,AP$13)="",10^12,OFFSET(CRONOPLE!$F$14,$M30,AP$13)))) -> 1000000000000 | AQ30: =IF($D30<>"Serviço",0,IF(AND(AUTOEVENTO="Manual",$M30=1),0,IF(OFFSET(CRONOPLE!$F$14,$M30,AQ$13)="",10^12,OFFSET(CRONOPLE!$F$14,$M30,AQ$13)))) -> 1000000000000 | AR30: =IF($D30<>"Serviço",0,IF(AND(AUTOEVENTO="Manual",$M30=1),0,IF(OFFSET(CRONOPLE!$F$14,$M30,AR$13)="",10^12,OFFSET(CRONOPLE!$F$14,$M30,AR$13)))) -> 1000000000000 | AS30: =IF($D30<>"Serviço",0,IF(AND(AUTOEVENTO="Manual",$M30=1),0,IF(OFFSET(CRONOPLE!$F$14,$M30,AS$13)="",10^12,OFFSET(CRONOPLE!$F$14,$M30,AS$13)))) -> 1000000000000 | AT30: =IF($D30<>"Serviço",0,IF(AND(AUTOEVENTO="Manual",$M30=1),0,IF(OFFSET(CRONOPLE!$F$14,$M30,AT$13)="",10^12,OFFSET(CRONOPLE!$F$14,$M30,AT$13)))) -> 1000000000000 | AU30: =IF($D30<>"Serviço",0,IF(AND(AUTOEVENTO="Manual",$M30=1),0,IF(OFFSET(CRONOPLE!$F$14,$M30,AU$13)="",10^12,OFFSET(CRONOPLE!$F$14,$M30,AU$13)))) -> 1000000000000 | AV30: =IF($D30<>"Serviço",0,IF(AND(AUTOEVENTO="Manual",$M30=1),0,IF(OFFSET(CRONOPLE!$F$14,$M30,AV$13)="",10^12,OFFSET(CRONOPLE!$F$14,$M30,AV$13)))) -> 1000000000000 | AX30: =IF($D30<>"Serviço",0,IF(OR(AND(AUTOEVENTO="Manual",$M30=1),$M30>(ROW(PLE.lastrow)-ROW(PLE.firstrow))),0,IF(OFFSET(PLE!$G$14,$M30,AX$13)="",10^12,OFFSET(PLE!$G$14,$M30,AX$13)))) -> 1000000000000 | AY30: =IF($D30<>"Serviço",0,IF(OR(AND(AUTOEVENTO="Manual",$M30=1),$M30>(ROW(PLE.lastrow)-ROW(PLE.firstrow))),0,IF(OFFSET(PLE!$G$14,$M30,AY$13)="",10^12,OFFSET(PLE!$G$14,$M30,AY$13)))) -> 1000000000000 | AZ30: =IF($D30<>"Serviço",0,IF(OR(AND(AUTOEVENTO="Manual",$M30=1),$M30>(ROW(PLE.lastrow)-ROW(PLE.firstrow))),0,IF(OFFSET(PLE!$G$14,$M30,AZ$13)="",10^12,OFFSET(PLE!$G$14,$M30,AZ$13)))) -> 1000000000000 | BA30: =IF($D30<>"Serviço",0,IF(OR(AND(AUTOEVENTO="Manual",$M30=1),$M30>(ROW(PLE.lastrow)-ROW(PLE.firstrow))),0,IF(OFFSET(PLE!$G$14,$M30,BA$13)="",10^12,OFFSET(PLE!$G$14,$M30,BA$13)))) -> 1000000000000 | BB30: =IF($D30<>"Serviço",0,IF(OR(AND(AUTOEVENTO="Manual",$M30=1),$M30>(ROW(PLE.lastrow)-ROW(PLE.firstrow))),0,IF(OFFSET(PLE!$G$14,$M30,BB$13)="",10^12,OFFSET(PLE!$G$14,$M30,BB$13)))) -> 1000000000000 | BC30: =IF($D30<>"Serviço",0,IF(OR(AND(AUTOEVENTO="Manual",$M30=1),$M30>(ROW(PLE.lastrow)-ROW(PLE.firstrow))),0,IF(OFFSET(PLE!$G$14,$M30,BC$13)="",10^12,OFFSET(PLE!$G$14,$M30,BC$13)))) -> 1000000000000 | BD30: =IF($D30<>"Serviço",0,IF(OR(AND(AUTOEVENTO="Manual",$M30=1),$M30>(ROW(PLE.lastrow)-ROW(PLE.firstrow))),0,IF(OFFSET(PLE!$G$14,$M30,BD$13)="",10^12,OFFSET(PLE!$G$14,$M30,BD$13)))) -> 1000000000000 | BE30: =IF($D30<>"Serviço",0,IF(OR(AND(AUTOEVENTO="Manual",$M30=1),$M30>(ROW(PLE.lastrow)-ROW(PLE.firstrow))),0,IF(OFFSET(PLE!$G$14,$M30,BE$13)="",10^12,OFFSET(PLE!$G$14,$M30,BE$13)))) -> 1000000000000 | BF30: =IF($D30<>"Serviço",0,IF(OR(AND(AUTOEVENTO="Manual",$M30=1),$M30>(ROW(PLE.lastrow)-ROW(PLE.firstrow))),0,IF(OFFSET(PLE!$G$14,$M30,BF$13)="",10^12,OFFSET(PLE!$G$14,$M30,BF$13)))) -> 1000000000000 | BG30: =IF($D30<>"Serviço",0,IF(OR(AND(AUTOEVENTO="Manual",$M30=1),$M30>(ROW(PLE.lastrow)-ROW(PLE.firstrow))),0,IF(OFFSET(PLE!$G$14,$M30,BG$13)="",10^12,OFFSET(PLE!$G$14,$M30,BG$13)))) -> 1000000000000
A31: 6 | B31: =OFFSET(ORÇAMENTO!C$15,ROW(B31)-ROW(B$15),0) -> S | C31: =OFFSET(ORÇAMENTO!L$15,ROW(C31)-ROW(C$15),0) -> F | D31: =OFFSET(ORÇAMENTO!N$15,ROW(D31)-ROW(D$15),0) -> Serviço | E31: =OFFSET(ORÇAMENTO!O$15,ROW(E31)-ROW(E$15),0) -> 1.4.6. | F31: =OFFSET(ORÇAMENTO!R$15,ROW(F31)-ROW(F$15),0) -> REATERRO MECANIZADO DE VALA COM RETROESCAVADEIRA (CAPACIDADE DA CAÇAMBA DA RETRO: 0,26 M³/POTÊNCIA: 88 HP), LARGURA 0,8 A 1,5 M, PROFUNDIDADE ATÉ 1,5 M, COM SOLO (SEM SUBSTITUIÇÃO) DE 1ª CATEGORIA, COM COMPACTADOR DE SOLOS DE PERCUSSÃO AF_08/2023 | G31: =IF($D31<>"Serviço","",OFFSET(ORÇAMENTO!S$15,ROW(G31)-ROW(G$15),0)) -> M3 | H31: =IF($D31<>"Serviço",0,IF(ACOMPANHAMENTO="BM",ROUND(OFFSET(ORÇAMENTO!AJ$15,ROW(H31)-ROW(H$15),0),15-13*ORÇAMENTO!$AF$7),SUMPRODUCT(($Q$12:$AA$12<>"")*ROUND($Q31:$AA31,15-13*ORÇAMENTO!$AF$7)))) -> 22.84 | K31: 6.Drenagem | L31: . | M31: =IF($D31<>"Serviço","",IF(AUTOEVENTO="manual",$A31,IF(ISERROR(MATCH($A31,$A$15:OFFSET($A31,-1,0),0)),MAX($M$15:OFFSET(M31,-1,0))+1,INDEX($M$15:OFFSET(M31,-1,0),MATCH($A31,$A$15:OFFSET($A31,-1,0),0))))) -> 6 | N31: =IF($D31<>"Serviço","",IF(AUTOEVENTO="Manual",IF($A31=0,"<-- defina o número do agrupador",OFFSET(EVENTOS!$D$14,$A31,0)),OFFSET($F$15,$A31,0))) -> Drenagem | Q31: 22.84 | AB31: =IF(AND($D31="Serviço",AB$12<>0,$H31>0,OR(AUTOEVENTO<>"manual",$M31<>1)), IF(Import.TipoArredondamento<>"TransfereGOV", ROUND(OFFSET($P31,0,AB$13),15-13*ORÇAMENTO!$AF$7)/$H31*OFFSET(ORÇAMENTO!$X$15,ROW(AB31)-ROW(AB$15),0), ROUND(ROUND(OFFSET($P31,0,AB$13),15-13*ORÇAMENTO!$AF$7)*OFFSET(ORÇAMENTO!$W$15,ROW(AB31)-ROW(AB$15),0),15-13*ORÇAMENTO!$AF$11)),0) -> 520.3 | AC31: =IF(AND($D31="Serviço",AC$12<>0,$H31>0,OR(AUTOEVENTO<>"manual",$M31<>1)), IF(Import.TipoArredondamento<>"TransfereGOV", ROUND(OFFSET($P31,0,AC$13),15-13*ORÇAMENTO!$AF$7)/$H31*OFFSET(ORÇAMENTO!$X$15,ROW(AC31)-ROW(AC$15),0), ROUND(ROUND(OFFSET($P31,0,AC$13),15-13*ORÇAMENTO!$AF$7)*OFFSET(ORÇAMENTO!$W$15,ROW(AC31)-ROW(AC$15),0),15-13*ORÇAMENTO!$AF$11)),0) -> 0 | AD31: =IF(AND($D31="Serviço",AD$12<>0,$H31>0,OR(AUTOEVENTO<>"manual",$M31<>1)), IF(Import.TipoArredondamento<>"TransfereGOV", ROUND(OFFSET($P31,0,AD$13),15-13*ORÇAMENTO!$AF$7)/$H31*OFFSET(ORÇAMENTO!$X$15,ROW(AD31)-ROW(AD$15),0), ROUND(ROUND(OFFSET($P31,0,AD$13),15-13*ORÇAMENTO!$AF$7)*OFFSET(ORÇAMENTO!$W$15,ROW(AD31)-ROW(AD$15),0),15-13*ORÇAMENTO!$AF$11)),0) -> 0 | AE31: =IF(AND($D31="Serviço",AE$12<>0,$H31>0,OR(AUTOEVENTO<>"manual",$M31<>1)), IF(Import.TipoArredondamento<>"TransfereGOV", ROUND(OFFSET($P31,0,AE$13),15-13*ORÇAMENTO!$AF$7)/$H31*OFFSET(ORÇAMENTO!$X$15,ROW(AE31)-ROW(AE$15),0), ROUND(ROUND(OFFSET($P31,0,AE$13),15-13*ORÇAMENTO!$AF$7)*OFFSET(ORÇAMENTO!$W$15,ROW(AE31)-ROW(AE$15),0),15-13*ORÇAMENTO!$AF$11)),0) -> 0 | AF31: =IF(AND($D31="Serviço",AF$12<>0,$H31>0,OR(AUTOEVENTO<>"manual",$M31<>1)), IF(Import.TipoArredondamento<>"TransfereGOV", ROUND(OFFSET($P31,0,AF$13),15-13*ORÇAMENTO!$AF$7)/$H31*OFFSET(ORÇAMENTO!$X$15,ROW(AF31)-ROW(AF$15),0), ROUND(ROUND(OFFSET($P31,0,AF$13),15-13*ORÇAMENTO!$AF$7)*OFFSET(ORÇAMENTO!$W$15,ROW(AF31)-ROW(AF$15),0),15-13*ORÇAMENTO!$AF$11)),0) -> 0 | AG31: =IF(AND($D31="Serviço",AG$12<>0,$H31>0,OR(AUTOEVENTO<>"manual",$M31<>1)), IF(Import.TipoArredondamento<>"TransfereGOV", ROUND(OFFSET($P31,0,AG$13),15-13*ORÇAMENTO!$AF$7)/$H31*OFFSET(ORÇAMENTO!$X$15,ROW(AG31)-ROW(AG$15),0), ROUND(ROUND(OFFSET($P31,0,AG$13),15-13*ORÇAMENTO!$AF$7)*OFFSET(ORÇAMENTO!$W$15,ROW(AG31)-ROW(AG$15),0),15-13*ORÇAMENTO!$AF$11)),0) -> 0 | AH31: =IF(AND($D31="Serviço",AH$12<>0,$H31>0,OR(AUTOEVENTO<>"manual",$M31<>1)), IF(Import.TipoArredondamento<>"TransfereGOV", ROUND(OFFSET($P31,0,AH$13),15-13*ORÇAMENTO!$AF$7)/$H31*OFFSET(ORÇAMENTO!$X$15,ROW(AH31)-ROW(AH$15),0), ROUND(ROUND(OFFSET($P31,0,AH$13),15-13*ORÇAMENTO!$AF$7)*OFFSET(ORÇAMENTO!$W$15,ROW(AH31)-ROW(AH$15),0),15-13*ORÇAMENTO!$AF$11)),0) -> 0 | AI31: =IF(AND($D31="Serviço",AI$12<>0,$H31>0,OR(AUTOEVENTO<>"manual",$M31<>1)), IF(Import.TipoArredondamento<>"TransfereGOV", ROUND(OFFSET($P31,0,AI$13),15-13*ORÇAMENTO!$AF$7)/$H31*OFFSET(ORÇAMENTO!$X$15,ROW(AI31)-ROW(AI$15),0), ROUND(ROUND(OFFSET($P31,0,AI$13),15-13*ORÇAMENTO!$AF$7)*OFFSET(ORÇAMENTO!$W$15,ROW(AI31)-ROW(AI$15),0),15-13*ORÇAMENTO!$AF$11)),0) -> 0 | AJ31: =IF(AND($D31="Serviço",AJ$12<>0,$H31>0,OR(AUTOEVENTO<>"manual",$M31<>1)), IF(Import.TipoArredondamento<>"TransfereGOV", ROUND(OFFSET($P31,0,AJ$13),15-13*ORÇAMENTO!$AF$7)/$H31*OFFSET(ORÇAMENTO!$X$15,ROW(AJ31)-ROW(AJ$15),0), ROUND(ROUND(OFFSET($P31,0,AJ$13),15-13*ORÇAMENTO!$AF$7)*OFFSET(ORÇAMENTO!$W$15,ROW(AJ31)-ROW(AJ$15),0),15-13*ORÇAMENTO!$AF$11)),0) -> 0 | AK31: =IF(AND($D31="Serviço",AK$12<>0,$H31>0,OR(AUTOEVENTO<>"manual",$M31<>1)), IF(Import.TipoArredondamento<>"TransfereGOV", ROUND(OFFSET($P31,0,AK$13),15-13*ORÇAMENTO!$AF$7)/$H31*OFFSET(ORÇAMENTO!$X$15,ROW(AK31)-ROW(AK$15),0), ROUND(ROUND(OFFSET($P31,0,AK$13),15-13*ORÇAMENTO!$AF$7)*OFFSET(ORÇAMENTO!$W$15,ROW(AK31)-ROW(AK$15),0),15-13*ORÇAMENTO!$AF$11)),0) -> 0 | AM31: =IF($D31<>"Serviço",0,IF(AND(AUTOEVENTO="Manual",$M31=1),0,IF(OFFSET(CRONOPLE!$F$14,$M31,AM$13)="",10^12,OFFSET(CRONOPLE!$F$14,$M31,AM$13)))) -> 1 | AN31: =IF($D31<>"Serviço",0,IF(AND(AUTOEVENTO="Manual",$M31=1),0,IF(OFFSET(CRONOPLE!$F$14,$M31,AN$13)="",10^12,OFFSET(CRONOPLE!$F$14,$M31,AN$13)))) -> 1000000000000 | AO31: =IF($D31<>"Serviço",0,IF(AND(AUTOEVENTO="Manual",$M31=1),0,IF(OFFSET(CRONOPLE!$F$14,$M31,AO$13)="",10^12,OFFSET(CRONOPLE!$F$14,$M31,AO$13)))) -> 1000000000000 | AP31: =IF($D31<>"Serviço",0,IF(AND(AUTOEVENTO="Manual",$M31=1),0,IF(OFFSET(CRONOPLE!$F$14,$M31,AP$13)="",10^12,OFFSET(CRONOPLE!$F$14,$M31,AP$13)))) -> 1000000000000 | AQ31: =IF($D31<>"Serviço",0,IF(AND(AUTOEVENTO="Manual",$M31=1),0,IF(OFFSET(CRONOPLE!$F$14,$M31,AQ$13)="",10^12,OFFSET(CRONOPLE!$F$14,$M31,AQ$13)))) -> 1000000000000 | AR31: =IF($D31<>"Serviço",0,IF(AND(AUTOEVENTO="Manual",$M31=1),0,IF(OFFSET(CRONOPLE!$F$14,$M31,AR$13)="",10^12,OFFSET(CRONOPLE!$F$14,$M31,AR$13)))) -> 1000000000000 | AS31: =IF($D31<>"Serviço",0,IF(AND(AUTOEVENTO="Manual",$M31=1),0,IF(OFFSET(CRONOPLE!$F$14,$M31,AS$13)="",10^12,OFFSET(CRONOPLE!$F$14,$M31,AS$13)))) -> 1000000000000 | AT31: =IF($D31<>"Serviço",0,IF(AND(AUTOEVENTO="Manual",$M31=1),0,IF(OFFSET(CRONOPLE!$F$14,$M31,AT$13)="",10^12,OFFSET(CRONOPLE!$F$14,$M31,AT$13)))) -> 1000000000000 | AU31: =IF($D31<>"Serviço",0,IF(AND(AUTOEVENTO="Manual",$M31=1),0,IF(OFFSET(CRONOPLE!$F$14,$M31,AU$13)="",10^12,OFFSET(CRONOPLE!$F$14,$M31,AU$13)))) -> 1000000000000 | AV31: =IF($D31<>"Serviço",0,IF(AND(AUTOEVENTO="Manual",$M31=1),0,IF(OFFSET(CRONOPLE!$F$14,$M31,AV$13)="",10^12,OFFSET(CRONOPLE!$F$14,$M31,AV$13)))) -> 1000000000000 | AX31: =IF($D31<>"Serviço",0,IF(OR(AND(AUTOEVENTO="Manual",$M31=1),$M31>(ROW(PLE.lastrow)-ROW(PLE.firstrow))),0,IF(OFFSET(PLE!$G$14,$M31,AX$13)="",10^12,OFFSET(PLE!$G$14,$M31,AX$13)))) -> 1000000000000 | AY31: =IF($D31<>"Serviço",0,IF(OR(AND(AUTOEVENTO="Manual",$M31=1),$M31>(ROW(PLE.lastrow)-ROW(PLE.firstrow))),0,IF(OFFSET(PLE!$G$14,$M31,AY$13)="",10^12,OFFSET(PLE!$G$14,$M31,AY$13)))) -> 1000000000000 | AZ31: =IF($D31<>"Serviço",0,IF(OR(AND(AUTOEVENTO="Manual",$M31=1),$M31>(ROW(PLE.lastrow)-ROW(PLE.firstrow))),0,IF(OFFSET(PLE!$G$14,$M31,AZ$13)="",10^12,OFFSET(PLE!$G$14,$M31,AZ$13)))) -> 1000000000000 | BA31: =IF($D31<>"Serviço",0,IF(OR(AND(AUTOEVENTO="Manual",$M31=1),$M31>(ROW(PLE.lastrow)-ROW(PLE.firstrow))),0,IF(OFFSET(PLE!$G$14,$M31,BA$13)="",10^12,OFFSET(PLE!$G$14,$M31,BA$13)))) -> 1000000000000 | BB31: =IF($D31<>"Serviço",0,IF(OR(AND(AUTOEVENTO="Manual",$M31=1),$M31>(ROW(PLE.lastrow)-ROW(PLE.firstrow))),0,IF(OFFSET(PLE!$G$14,$M31,BB$13)="",10^12,OFFSET(PLE!$G$14,$M31,BB$13)))) -> 1000000000000 | BC31: =IF($D31<>"Serviço",0,IF(OR(AND(AUTOEVENTO="Manual",$M31=1),$M31>(ROW(PLE.lastrow)-ROW(PLE.firstrow))),0,IF(OFFSET(PLE!$G$14,$M31,BC$13)="",10^12,OFFSET(PLE!$G$14,$M31,BC$13)))) -> 1000000000000 | BD31: =IF($D31<>"Serviço",0,IF(OR(AND(AUTOEVENTO="Manual",$M31=1),$M31>(ROW(PLE.lastrow)-ROW(PLE.firstrow))),0,IF(OFFSET(PLE!$G$14,$M31,BD$13)="",10^12,OFFSET(PLE!$G$14,$M31,BD$13)))) -> 1000000000000 | BE31: =IF($D31<>"Serviço",0,IF(OR(AND(AUTOEVENTO="Manual",$M31=1),$M31>(ROW(PLE.lastrow)-ROW(PLE.firstrow))),0,IF(OFFSET(PLE!$G$14,$M31,BE$13)="",10^12,OFFSET(PLE!$G$14,$M31,BE$13)))) -> 1000000000000 | BF31: =IF($D31<>"Serviço",0,IF(OR(AND(AUTOEVENTO="Manual",$M31=1),$M31>(ROW(PLE.lastrow)-ROW(PLE.firstrow))),0,IF(OFFSET(PLE!$G$14,$M31,BF$13)="",10^12,OFFSET(PLE!$G$14,$M31,BF$13)))) -> 1000000000000 | BG31: =IF($D31<>"Serviço",0,IF(OR(AND(AUTOEVENTO="Manual",$M31=1),$M31>(ROW(PLE.lastrow)-ROW(PLE.firstrow))),0,IF(OFFSET(PLE!$G$14,$M31,BG$13)="",10^12,OFFSET(PLE!$G$14,$M31,BG$13)))) -> 1000000000000
